Workbook

Sheet Summary
A2: Operating Assumptions | G2: Returns
D3: Price | E3: ='Operations Monthly'!F42 -> 70 | H3: Equity IRR | I3: ='Project Finance Analysis'!E157 -> 0.05573146641
D4: Capacity Factor Scenario | E4: ='Operations Monthly'!F28 -> 2 | H4: Project IRR | I4: ='Project Finance Analysis'!E158 -> 0.05575422943
D5: Capital Cost/kW | E5: ='Operations Monthly'!F37 -> 2000 | H5: Debt IRR | I5: ='Project Finance Analysis'!E168 -> 
D6: O&M Cost/kW-yr | E6: ='Operations Monthly'!G54 -> 35 | H6: After Tax Debt IRR | I6: ='Project Finance Analysis'!E175 -> 
D7: Revenue Inflation | E7: ='Operations Monthly'!F45 -> 2
D8: O&M Inflation | E8: ='Operations Monthly'!F59 -> 2 | G8: Credit
H9: DSCR Min | I9: ='Project Finance Analysis'!F184 -> 0
H10: PLCR | I10: ='Project Finance Analysis'!F190 -> 
A11: Aggregate Sources and Uses | H11: LLCR | I11: ='Project Finance Analysis'!F196 -> 
B12: Uses | H12: Average Life | I12: ='Project Finance Analysis'!F201 -> 
C13: Capital Expenditures | E13: ='Project Finance Analysis'!G56 -> 600000
C14: Add: Interest During Construction | E14: ='Project Finance Analysis'!G57 -> 0
C15: Add: Fees During Construction | E15: ='Project Finance Analysis'!G58 -> 0
C16: Add: DSRA | E16: ='Project Finance Analysis'!G59 -> 0
C17: Add: Pre-funded Working Cap | E17: ='Project Finance Analysis'!G60 -> 6590.259912
C18: Total | E18: ='Project Finance Analysis'!G61 -> 606590.2599
B20: Sources
C21: Debt | E21: ='Project Finance Analysis'!G64 -> 0
C22: Equity | E22: ='Project Finance Analysis'!G65 -> 606590.2599
C23: Total | E23: ='Project Finance Analysis'!G66 -> 606590.2599

Sheet Project Finance Analysis
E1: Project IRR | G1: ='Operations Monthly'!I158 -> 0.05680203971
L2: =K3+1 -> 2015-03-01 | M2: =L3+1 -> 2015-04-01 | N2: 2015-05-01 | O2: 2015-06-01 | P2: 2015-07-01 | Q2: 2015-08-01 | R2: 2015-09-01 | S2: 2015-10-01 | T2: 2015-11-01 | U2: 2015-12-01 | V2: 2016-01-01 | W2: 2016-02-01 | X2: 2016-03-01 | Y2: 2016-04-01 | Z2: 2016-05-01 | AA2: 2016-06-01 | AB2: 2016-07-01 | AC2: 2016-08-01 | AD2: 2016-09-01 | AE2: 2016-10-01 | AF2: 2016-11-01 | AG2: 2016-12-01 | AH2: 2017-01-01 | AI2: 2017-02-01 | AJ2: 2017-03-01 | AK2: 2017-04-01 | AL2: 2017-05-01 | AM2: 2017-06-01 | AN2: 2017-07-01 | AO2: 2017-08-01 | AP2: 2017-09-01 | AQ2: 2017-10-01 | AR2: 2017-11-01 | AS2: 2017-12-01 | AT2: 2018-01-01 | AU2: 2018-02-01 | AV2: 2018-03-01 | AW2: 2018-04-01 | AX2: 2018-05-01 | AY2: 2018-06-01 | AZ2: 2018-07-01 | BA2: 2018-08-01 | BB2: 2018-09-01 | BC2: 2018-10-01 | BD2: 2018-11-01 | BE2: 2019-05-01 | BF2: 2019-11-01 | BG2: 2020-05-01 | BH2: 2020-11-01 | BI2: 2021-05-01 | BJ2: 2021-11-01 | BK2: 2022-05-01 | BL2: 2022-11-01 | BM2: 2023-05-01 | BN2: 2023-11-01 | BO2: 2024-05-01 | BP2: 2024-11-01 | BQ2: 2025-05-01 | BR2: 2025-11-01 | BS2: 2026-05-01 | BT2: 2026-11-01 | BU2: 2027-05-01 | BV2: 2027-11-01 | BW2: 2028-05-01 | BX2: 2028-11-01 | BY2: =BX3+1 -> 2029-05-01 | BZ2: 2029-11-01 | CA2: 2030-05-01 | CB2: 2030-11-01 | CC2: 2031-05-01 | CD2: 2031-11-01 | CE2: 2032-05-01 | CF2: 2032-11-01 | CG2: 2033-05-01 | CH2: 2033-11-01 | CI2: 2034-05-01 | CJ2: 2034-11-01 | CK2: 2035-05-01 | CL2: 2035-11-01 | CM2: 2036-05-01 | CN2: 2036-11-01 | CO2: 2037-05-01 | CP2: 2037-11-01 | CQ2: 2038-05-01 | CR2: 2038-11-01 | CS2: 2039-05-01 | CT2: 2039-11-01 | CU2: 2040-05-01 | CV2: 2040-11-01 | CW2: 2041-05-01 | CX2: 2041-11-01 | CY2: 2042-05-01 | CZ2: 2042-11-01 | DA2: 2043-05-01 | DB2: 2043-11-01 | DC2: 2044-05-01 | DD2: 2044-11-01 | DE2: 2045-05-01 | DF2: 2045-11-01 | DG2: 2046-05-01 | DH2: 2046-11-01 | DI2: 2047-05-01 | DJ2: 2047-11-01 | DK2: 2048-05-01 | DL2: 2048-11-01 | DM2: 2049-05-01 | DN2: 2049-11-01 | DO2: 2050-05-01 | DP2: 2050-11-01 | DQ2: 2051-05-01
A3: Date | E3: COD | F3: ='Operations Monthly'!F20 -> 2018-11-01 | K3: ='Operations Monthly'!J3 -> 2015-02-28 | L3: =IF(K3+1<$F$3,EOMONTH(K3,1),EOMONTH(K3,6)) -> 2015-03-31 | M3: =IF(L3+1<$F$3,EOMONTH(L3,1),EOMONTH(L3,6)) -> 2015-04-30 | N3: 2015-05-31 | O3: 2015-06-30 | P3: 2015-07-31 | Q3: 2015-08-31 | R3: 2015-09-30 | S3: 2015-10-31 | T3: 2015-11-30 | U3: 2015-12-31 | V3: 2016-01-31 | W3: 2016-02-29 | X3: 2016-03-31 | Y3: 2016-04-30 | Z3: 2016-05-31 | AA3: 2016-06-30 | AB3: 2016-07-31 | AC3: 2016-08-31 | AD3: 2016-09-30 | AE3: 2016-10-31 | AF3: 2016-11-30 | AG3: 2016-12-31 | AH3: 2017-01-31 | AI3: 2017-02-28 | AJ3: 2017-03-31 | AK3: 2017-04-30 | AL3: 2017-05-31 | AM3: 2017-06-30 | AN3: 2017-07-31 | AO3: 2017-08-31 | AP3: 2017-09-30 | AQ3: 2017-10-31 | AR3: 2017-11-30 | AS3: 2017-12-31 | AT3: 2018-01-31 | AU3: 2018-02-28 | AV3: 2018-03-31 | AW3: 2018-04-30 | AX3: 2018-05-31 | AY3: 2018-06-30 | AZ3: 2018-07-31 | BA3: 2018-08-31 | BB3: 2018-09-30 | BC3: 2018-10-31 | BD3: 2019-04-30 | BE3: 2019-10-31 | BF3: 2020-04-30 | BG3: 2020-10-31 | BH3: 2021-04-30 | BI3: 2021-10-31 | BJ3: 2022-04-30 | BK3: 2022-10-31 | BL3: 2023-04-30 | BM3: 2023-10-31 | BN3: 2024-04-30 | BO3: 2024-10-31 | BP3: 2025-04-30 | BQ3: 2025-10-31 | BR3: 2026-04-30 | BS3: 2026-10-31 | BT3: 2027-04-30 | BU3: 2027-10-31 | BV3: 2028-04-30 | BW3: 2028-10-31 | BX3: 2029-04-30 | BY3: =IF(BX3+1<$F$3,EOMONTH(BX3,1),EOMONTH(BX3,6)) -> 2029-10-31 | BZ3: 2030-04-30 | CA3: 2030-10-31 | CB3: 2031-04-30 | CC3: 2031-10-31 | CD3: 2032-04-30 | CE3: 2032-10-31 | CF3: 2033-04-30 | CG3: 2033-10-31 | CH3: 2034-04-30 | CI3: 2034-10-31 | CJ3: 2035-04-30 | CK3: 2035-10-31 | CL3: 2036-04-30 | CM3: 2036-10-31 | CN3: 2037-04-30 | CO3: 2037-10-31 | CP3: 2038-04-30 | CQ3: 2038-10-31 | CR3: 2039-04-30 | CS3: 2039-10-31 | CT3: 2040-04-30 | CU3: 2040-10-31 | CV3: 2041-04-30 | CW3: 2041-10-31 | CX3: 2042-04-30 | CY3: 2042-10-31 | CZ3: 2043-04-30 | DA3: 2043-10-31 | DB3: 2044-04-30 | DC3: 2044-10-31 | DD3: 2045-04-30 | DE3: 2045-10-31 | DF3: 2046-04-30 | DG3: 2046-10-31 | DH3: 2047-04-30 | DI3: 2047-10-31 | DJ3: 2048-04-30 | DK3: 2048-10-31 | DL3: 2049-04-30 | DM3: 2049-10-31 | DN3: 2050-04-30 | DO3: 2050-10-31 | DP3: 2051-04-30 | DQ3: 2051-10-31
C4: Debt Repayment Switch | H4: =F3 -> 2018-11-01 | I4: =F27 -> 2035-11-01 | L4: =AND(L2>=$H$4,L2<$I$4) -> FALSE | M4: =AND(M2>=$H$4,M2<$I$4) -> FALSE | N4: FALSE | O4: FALSE | P4: FALSE | Q4: FALSE | R4: FALSE | S4: FALSE | T4: FALSE | U4: FALSE | V4: FALSE | W4: FALSE | X4: FALSE | Y4: FALSE | Z4: FALSE | AA4: FALSE | AB4: FALSE | AC4: FALSE | AD4: FALSE | AE4: FALSE | AF4: FALSE | AG4: FALSE | AH4: FALSE | AI4: FALSE | AJ4: FALSE | AK4: FALSE | AL4: FALSE | AM4: FALSE | AN4: FALSE | AO4: FALSE | AP4: FALSE | AQ4: FALSE | AR4: FALSE | AS4: FALSE | AT4: FALSE | AU4: FALSE | AV4: FALSE | AW4: FALSE | AX4: FALSE | AY4: FALSE | AZ4: FALSE | BA4: FALSE | BB4: FALSE | BC4: FALSE | BD4: TRUE | BE4: TRUE | BF4: TRUE | BG4: TRUE | BH4: TRUE | BI4: TRUE | BJ4: TRUE | BK4: TRUE | BL4: TRUE | BM4: TRUE | BN4: TRUE | BO4: TRUE | BP4: TRUE | BQ4: TRUE | BR4: TRUE | BS4: TRUE | BT4: TRUE | BU4: TRUE | BV4: TRUE | BW4: TRUE | BX4: TRUE | BY4: =AND(BY2>=$H$4,BY2<$I$4) -> TRUE | BZ4: TRUE | CA4: TRUE | CB4: TRUE | CC4: TRUE | CD4: TRUE | CE4: TRUE | CF4: TRUE | CG4: TRUE | CH4: TRUE | CI4: TRUE | CJ4: TRUE | CK4: TRUE | CL4: FALSE | CM4: FALSE | CN4: FALSE | CO4: FALSE | CP4: FALSE | CQ4: FALSE | CR4: FALSE | CS4: FALSE | CT4: FALSE | CU4: FALSE | CV4: FALSE | CW4: FALSE | CX4: FALSE | CY4: FALSE | CZ4: FALSE | DA4: FALSE | DB4: FALSE | DC4: FALSE | DD4: FALSE | DE4: FALSE | DF4: FALSE | DG4: FALSE | DH4: FALSE | DI4: FALSE | DJ4: FALSE | DK4: FALSE | DL4: FALSE | DM4: FALSE | DN4: FALSE | DO4: FALSE | DP4: FALSE | DQ4: FALSE
C5: Re-financing at end of Construction | H5: =EOMONTH(F3,-1) -> 2018-10-31 | L5: =L3=$H$5 -> FALSE | M5: FALSE | N5: FALSE | O5: FALSE | P5: FALSE | Q5: FALSE | R5: FALSE | S5: FALSE | T5: FALSE | U5: FALSE | V5: FALSE | W5: FALSE | X5: FALSE | Y5: FALSE | Z5: FALSE | AA5: FALSE | AB5: FALSE | AC5: FALSE | AD5: FALSE | AE5: FALSE | AF5: FALSE | AG5: FALSE | AH5: FALSE | AI5: FALSE | AJ5: FALSE | AK5: FALSE | AL5: FALSE | AM5: FALSE | AN5: FALSE | AO5: FALSE | AP5: FALSE | AQ5: FALSE | AR5: =AR3=$H$5 -> FALSE | AS5: FALSE | AT5: FALSE | AU5: FALSE | AV5: FALSE | AW5: FALSE | AX5: FALSE | AY5: FALSE | AZ5: FALSE | BA5: FALSE | BB5: FALSE | BC5: TRUE | BD5: FALSE | BE5: FALSE | BF5: FALSE | BG5: FALSE | BH5: FALSE | BI5: FALSE | BJ5: FALSE | BK5: FALSE | BL5: FALSE | BM5: FALSE | BN5: FALSE | BO5: FALSE | BP5: FALSE | BQ5: FALSE | BR5: FALSE | BS5: FALSE | BT5: FALSE | BU5: FALSE | BV5: FALSE | BW5: FALSE | BX5: =BX3=$H$5 -> FALSE | BY5: FALSE | BZ5: FALSE | CA5: FALSE | CB5: FALSE | CC5: FALSE | CD5: FALSE | CE5: FALSE | CF5: FALSE | CG5: FALSE | CH5: FALSE | CI5: FALSE | CJ5: FALSE | CK5: FALSE | CL5: FALSE | CM5: FALSE | CN5: FALSE | CO5: FALSE | CP5: FALSE | CQ5: FALSE | CR5: FALSE | CS5: FALSE | CT5: FALSE | CU5: FALSE | CV5: FALSE | CW5: FALSE | CX5: FALSE | CY5: FALSE | CZ5: FALSE | DA5: FALSE | DB5: FALSE | DC5: FALSE | DD5: =DD3=$H$5 -> FALSE | DE5: FALSE | DF5: FALSE | DG5: FALSE | DH5: FALSE | DI5: FALSE | DJ5: FALSE | DK5: FALSE | DL5: FALSE | DM5: FALSE | DN5: FALSE | DO5: FALSE | DP5: FALSE | DQ5: FALSE
C6: Construction Switch | H6: =F3 -> 2018-11-01 | L6: =L2<$H$6 -> TRUE | M6: =M2<$H$6 -> TRUE | N6: TRUE | O6: TRUE | P6: TRUE | Q6: TRUE | R6: TRUE | S6: TRUE | T6: TRUE | U6: TRUE | V6: TRUE | W6: TRUE | X6: TRUE | Y6: TRUE | Z6: TRUE | AA6: TRUE | AB6: TRUE | AC6: TRUE | AD6: TRUE | AE6: TRUE | AF6: TRUE | AG6: TRUE | AH6: TRUE | AI6: TRUE | AJ6: TRUE | AK6: TRUE | AL6: TRUE | AM6: TRUE | AN6: TRUE | AO6: TRUE | AP6: TRUE | AQ6: TRUE | AR6: TRUE | AS6: TRUE | AT6: TRUE | AU6: TRUE | AV6: TRUE | AW6: TRUE | AX6: TRUE | AY6: TRUE | AZ6: TRUE | BA6: TRUE | BB6: TRUE | BC6: TRUE | BD6: FALSE | BE6: FALSE | BF6: FALSE | BG6: FALSE | BH6: FALSE | BI6: FALSE | BJ6: FALSE | BK6: FALSE | BL6: FALSE | BM6: FALSE | BN6: FALSE | BO6: FALSE | BP6: FALSE | BQ6: FALSE | BR6: FALSE | BS6: FALSE | BT6: FALSE | BU6: FALSE | BV6: FALSE | BW6: FALSE | BX6: FALSE | BY6: =BY2<$H$6 -> FALSE | BZ6: FALSE | CA6: FALSE | CB6: FALSE | CC6: FALSE | CD6: FALSE | CE6: FALSE | CF6: FALSE | CG6: FALSE | CH6: FALSE | CI6: FALSE | CJ6: FALSE | CK6: FALSE | CL6: FALSE | CM6: FALSE | CN6: FALSE | CO6: FALSE | CP6: FALSE | CQ6: FALSE | CR6: FALSE | CS6: FALSE | CT6: FALSE | CU6: FALSE | CV6: FALSE | CW6: FALSE | CX6: FALSE | CY6: FALSE | CZ6: FALSE | DA6: FALSE | DB6: FALSE | DC6: FALSE | DD6: FALSE | DE6: FALSE | DF6: FALSE | DG6: FALSE | DH6: FALSE | DI6: FALSE | DJ6: FALSE | DK6: FALSE | DL6: FALSE | DM6: FALSE | DN6: FALSE | DO6: FALSE | DP6: FALSE | DQ6: FALSE
C7: Months in Period | L7: =IF(L6,1,6) -> 1 | M7: =IF(M6,1,6) -> 1 | N7: 1 | O7: 1 | P7: 1 | Q7: 1 | R7: 1 | S7: 1 | T7: 1 | U7: 1 | V7: 1 | W7: 1 | X7: 1 | Y7: 1 | Z7: 1 | AA7: 1 | AB7: 1 | AC7: 1 | AD7: 1 | AE7: 1 | AF7: 1 | AG7: 1 | AH7: 1 | AI7: 1 | AJ7: 1 | AK7: 1 | AL7: 1 | AM7: 1 | AN7: 1 | AO7: 1 | AP7: 1 | AQ7: 1 | AR7: 1 | AS7: 1 | AT7: 1 | AU7: 1 | AV7: 1 | AW7: 1 | AX7: 1 | AY7: 1 | AZ7: 1 | BA7: 1 | BB7: 1 | BC7: 1 | BD7: 6 | BE7: 6 | BF7: 6 | BG7: 6 | BH7: 6 | BI7: 6 | BJ7: 6 | BK7: 6 | BL7: 6 | BM7: 6 | BN7: 6 | BO7: 6 | BP7: 6 | BQ7: 6 | BR7: 6 | BS7: 6 | BT7: 6 | BU7: 6 | BV7: 6 | BW7: 6 | BX7: 6 | BY7: =IF(BY6,1,6) -> 6 | BZ7: 6 | CA7: 6 | CB7: 6 | CC7: 6 | CD7: 6 | CE7: 6 | CF7: 6 | CG7: 6 | CH7: 6 | CI7: 6 | CJ7: 6 | CK7: 6 | CL7: 6 | CM7: 6 | CN7: 6 | CO7: 6 | CP7: 6 | CQ7: 6 | CR7: 6 | CS7: 6 | CT7: 6 | CU7: 6 | CV7: 6 | CW7: 6 | CX7: 6 | CY7: 6 | CZ7: 6 | DA7: 6 | DB7: 6 | DC7: 6 | DD7: 6 | DE7: 6 | DF7: 6 | DG7: 6 | DH7: 6 | DI7: 6 | DJ7: 6 | DK7: 6 | DL7: 6 | DM7: 6 | DN7: 6 | DO7: 6 | DP7: 6 | DQ7: 6
C8: Periods to Accumuate to a Year | L8: =12/L7 -> 12 | M8: =12/M7 -> 12 | N8: 12 | O8: 12 | P8: 12 | Q8: 12 | R8: 12 | S8: 12 | T8: 12 | U8: 12 | V8: 12 | W8: 12 | X8: 12 | Y8: 12 | Z8: 12 | AA8: 12 | AB8: 12 | AC8: 12 | AD8: 12 | AE8: 12 | AF8: 12 | AG8: 12 | AH8: 12 | AI8: 12 | AJ8: 12 | AK8: 12 | AL8: 12 | AM8: 12 | AN8: 12 | AO8: 12 | AP8: 12 | AQ8: 12 | AR8: 12 | AS8: 12 | AT8: 12 | AU8: 12 | AV8: 12 | AW8: 12 | AX8: 12 | AY8: 12 | AZ8: 12 | BA8: 12 | BB8: 12 | BC8: 12 | BD8: 2 | BE8: 2 | BF8: 2 | BG8: 2 | BH8: 2 | BI8: 2 | BJ8: 2 | BK8: 2 | BL8: 2 | BM8: 2 | BN8: 2 | BO8: 2 | BP8: 2 | BQ8: 2 | BR8: 2 | BS8: 2 | BT8: 2 | BU8: 2 | BV8: 2 | BW8: 2 | BX8: 2 | BY8: =12/BY7 -> 2 | BZ8: 2 | CA8: 2 | CB8: 2 | CC8: 2 | CD8: 2 | CE8: 2 | CF8: 2 | CG8: 2 | CH8: 2 | CI8: 2 | CJ8: 2 | CK8: 2 | CL8: 2 | CM8: 2 | CN8: 2 | CO8: 2 | CP8: 2 | CQ8: 2 | CR8: 2 | CS8: 2 | CT8: 2 | CU8: 2 | CV8: 2 | CW8: 2 | CX8: 2 | CY8: 2 | CZ8: 2 | DA8: 2 | DB8: 2 | DC8: 2 | DD8: 2 | DE8: 2 | DF8: 2 | DG8: 2 | DH8: 2 | DI8: 2 | DJ8: 2 | DK8: 2 | DL8: 2 | DM8: 2 | DN8: 2 | DO8: 2 | DP8: 2 | DQ8: 2
C9: COD Switch | H9: =F3 -> 2018-11-01 | L9: =L2=$H$9 -> FALSE | M9: =M2=$H$9 -> FALSE | N9: FALSE | O9: FALSE | P9: FALSE | Q9: FALSE | R9: FALSE | S9: FALSE | T9: FALSE | U9: FALSE | V9: FALSE | W9: FALSE | X9: FALSE | Y9: FALSE | Z9: FALSE | AA9: FALSE | AB9: FALSE | AC9: FALSE | AD9: FALSE | AE9: FALSE | AF9: FALSE | AG9: FALSE | AH9: FALSE | AI9: FALSE | AJ9: FALSE | AK9: FALSE | AL9: FALSE | AM9: FALSE | AN9: FALSE | AO9: FALSE | AP9: FALSE | AQ9: FALSE | AR9: FALSE | AS9: FALSE | AT9: FALSE | AU9: FALSE | AV9: FALSE | AW9: FALSE | AX9: FALSE | AY9: FALSE | AZ9: FALSE | BA9: FALSE | BB9: FALSE | BC9: FALSE | BD9: TRUE | BE9: FALSE | BF9: FALSE | BG9: FALSE | BH9: FALSE | BI9: FALSE | BJ9: FALSE | BK9: FALSE | BL9: FALSE | BM9: FALSE | BN9: FALSE | BO9: FALSE | BP9: FALSE | BQ9: FALSE | BR9: FALSE | BS9: FALSE | BT9: FALSE | BU9: FALSE | BV9: FALSE | BW9: FALSE | BX9: FALSE | BY9: =BY2=$H$9 -> FALSE | BZ9: FALSE | CA9: FALSE | CB9: FALSE | CC9: FALSE | CD9: FALSE | CE9: FALSE | CF9: FALSE | CG9: FALSE | CH9: FALSE | CI9: FALSE | CJ9: FALSE | CK9: FALSE | CL9: FALSE | CM9: FALSE | CN9: FALSE | CO9: FALSE | CP9: FALSE | CQ9: FALSE | CR9: FALSE | CS9: FALSE | CT9: FALSE | CU9: FALSE | CV9: FALSE | CW9: FALSE | CX9: FALSE | CY9: FALSE | CZ9: FALSE | DA9: FALSE | DB9: FALSE | DC9: FALSE | DD9: FALSE | DE9: FALSE | DF9: FALSE | DG9: FALSE | DH9: FALSE | DI9: FALSE | DJ9: FALSE | DK9: FALSE | DL9: FALSE | DM9: FALSE | DN9: FALSE | DO9: FALSE | DP9: FALSE | DQ9: FALSE
C10: Year | L10: =YEAR(L2) -> 2015 | M10: =YEAR(M2) -> 2015 | N10: 2015 | O10: 2015 | P10: 2015 | Q10: 2015 | R10: 2015 | S10: 2015 | T10: 2015 | U10: 2015 | V10: 2016 | W10: 2016 | X10: 2016 | Y10: 2016 | Z10: 2016 | AA10: 2016 | AB10: 2016 | AC10: 2016 | AD10: 2016 | AE10: 2016 | AF10: 2016 | AG10: 2016 | AH10: 2017 | AI10: 2017 | AJ10: 2017 | AK10: 2017 | AL10: 2017 | AM10: 2017 | AN10: 2017 | AO10: 2017 | AP10: 2017 | AQ10: 2017 | AR10: 2017 | AS10: 2017 | AT10: 2018 | AU10: 2018 | AV10: 2018 | AW10: 2018 | AX10: 2018 | AY10: 2018 | AZ10: 2018 | BA10: 2018 | BB10: 2018 | BC10: 2018 | BD10: 2018 | BE10: 2019 | BF10: 2019 | BG10: 2020 | BH10: 2020 | BI10: 2021 | BJ10: 2021 | BK10: 2022 | BL10: 2022 | BM10: 2023 | BN10: 2023 | BO10: 2024 | BP10: 2024 | BQ10: 2025 | BR10: 2025 | BS10: 2026 | BT10: 2026 | BU10: 2027 | BV10: 2027 | BW10: 2028 | BX10: 2028 | BY10: =YEAR(BY2) -> 2029 | BZ10: 2029 | CA10: 2030 | CB10: 2030 | CC10: 2031 | CD10: 2031 | CE10: 2032 | CF10: 2032 | CG10: 2033 | CH10: 2033 | CI10: 2034 | CJ10: 2034 | CK10: 2035 | CL10: 2035 | CM10: 2036 | CN10: 2036 | CO10: 2037 | CP10: 2037 | CQ10: 2038 | CR10: 2038 | CS10: 2039 | CT10: 2039 | CU10: 2040 | CV10: 2040 | CW10: 2041 | CX10: 2041 | CY10: 2042 | CZ10: 2042 | DA10: 2043 | DB10: 2043 | DC10: 2044 | DD10: 2044 | DE10: 2045 | DF10: 2045 | DG10: 2046 | DH10: 2046 | DI10: 2047 | DJ10: 2047 | DK10: 2048 | DL10: 2048 | DM10: 2049 | DN10: 2049 | DO10: 2050 | DP10: 2050 | DQ10: 2051
L11: =COLUMN() -> 12 | M11: =COLUMN() -> 13 | N11: =COLUMN() -> 14 | O11: =COLUMN() -> 15 | P11: =COLUMN() -> 16 | Q11: =COLUMN() -> 17 | R11: =COLUMN() -> 18 | S11: =COLUMN() -> 19 | T11: =COLUMN() -> 20 | U11: =COLUMN() -> 21 | V11: =COLUMN() -> 22 | W11: =COLUMN() -> 23 | X11: =COLUMN() -> 24 | Y11: =COLUMN() -> 25 | Z11: =COLUMN() -> 26 | AA11: =COLUMN() -> 27 | AB11: =COLUMN() -> 28 | AC11: =COLUMN() -> 29 | AD11: =COLUMN() -> 30 | AE11: =COLUMN() -> 31 | AF11: =COLUMN() -> 32 | AG11: =COLUMN() -> 33 | AH11: =COLUMN() -> 34 | AI11: =COLUMN() -> 35 | AJ11: =COLUMN() -> 36 | AK11: =COLUMN() -> 37 | AL11: =COLUMN() -> 38 | AM11: =COLUMN() -> 39 | AN11: =COLUMN() -> 40 | AO11: =COLUMN() -> 41 | AP11: =COLUMN() -> 42 | AQ11: =COLUMN() -> 43 | AR11: =COLUMN() -> 44 | AS11: =COLUMN() -> 45 | AT11: =COLUMN() -> 46 | AU11: =COLUMN() -> 47 | AV11: =COLUMN() -> 48 | AW11: =COLUMN() -> 49 | AX11: =COLUMN() -> 50 | AY11: =COLUMN() -> 51 | AZ11: =COLUMN() -> 52 | BA11: =COLUMN() -> 53 | BB11: =COLUMN() -> 54 | BC11: =COLUMN() -> 55 | BD11: =COLUMN() -> 56 | BE11: =COLUMN() -> 57 | BF11: =COLUMN() -> 58 | BG11: =COLUMN() -> 59 | BH11: =COLUMN() -> 60 | BI11: =COLUMN() -> 61 | BJ11: =COLUMN() -> 62 | BK11: =COLUMN() -> 63 | BL11: =COLUMN() -> 64 | BM11: =COLUMN() -> 65 | BN11: =COLUMN() -> 66 | BO11: =COLUMN() -> 67 | BP11: =COLUMN() -> 68 | BQ11: =COLUMN() -> 69 | BR11: =COLUMN() -> 70 | BS11: =COLUMN() -> 71 | BT11: =COLUMN() -> 72 | BU11: =COLUMN() -> 73 | BV11: =COLUMN() -> 74 | BW11: =COLUMN() -> 75 | BX11: =COLUMN() -> 76 | BY11: =COLUMN() -> 77 | BZ11: =COLUMN() -> 78 | CA11: =COLUMN() -> 79 | CB11: =COLUMN() -> 80 | CC11: =COLUMN() -> 81 | CD11: =COLUMN() -> 82 | CE11: =COLUMN() -> 83 | CF11: =COLUMN() -> 84 | CG11: =COLUMN() -> 85 | CH11: =COLUMN() -> 86 | CI11: =COLUMN() -> 87 | CJ11: =COLUMN() -> 88 | CK11: =COLUMN() -> 89 | CL11: =COLUMN() -> 90 | CM11: =COLUMN() -> 91 | CN11: =COLUMN() -> 92 | CO11: =COLUMN() -> 93 | CP11: =COLUMN() -> 94 | CQ11: =COLUMN() -> 95 | CR11: =COLUMN() -> 96 | CS11: =COLUMN() -> 97 | CT11: =COLUMN() -> 98 | CU11: =COLUMN() -> 99 | CV11: =COLUMN() -> 100 | CW11: =COLUMN() -> 101 | CX11: =COLUMN() -> 102 | CY11: =COLUMN() -> 103 | CZ11: =COLUMN() -> 104 | DA11: =COLUMN() -> 105 | DB11: =COLUMN() -> 106 | DC11: =COLUMN() -> 107 | DD11: =COLUMN() -> 108 | DE11: =COLUMN() -> 109 | DF11: =COLUMN() -> 110 | DG11: =COLUMN() -> 111 | DH11: =COLUMN() -> 112 | DI11: =COLUMN() -> 113 | DJ11: =COLUMN() -> 114 | DK11: =COLUMN() -> 115 | DL11: =COLUMN() -> 116 | DM11: =COLUMN() -> 117 | DN11: =COLUMN() -> 118 | DO11: =COLUMN() -> 119 | DP11: =COLUMN() -> 120 | DQ11: =COLUMN() -> 121
A12: Financing Inputs | E12: Units
B13: Debt Sizing | G13: Fixed Amt | H13: Computed | I13: Difference | K13: Applied
C14: Maximum Debt to Capital | E14: Pct | F14: 0.7 | G14: =G17 -> 0 | H14: =F14*G61 -> 424613.1819 | I14: =G14-H14 -> -424613.1819 | K14: TRUE
C15: Target Minimum DSCR | E15: Times
C16: Applied Debt | G16: =IF(K14,fixed1,fixed2) -> 0
C17: Debt Size Function for Debt to Capital
C18: Debt Size Function for DSCR
B20: Debt Funding
C21: Pro-Rata | E21: Switch | F21: TRUE
C22: Equity First | F22: =NOT(F21) -> FALSE
C23: Capitalise Interest | F23: FALSE
B25: Debt Repayment
C26: Debt Tenor | E26: Years | F26: 17
C27: End of Debt Term | E27: Date | F27: =EDATE(F3,F26*12) -> 2035-11-01
C29: Level Repayment | F29: TRUE
C30: Annuity Repayment | F30: FALSE
C31: Sculpted Repayment | F31: FALSE
B33: Interest and Fees
C34: EURIBOR | F34: 0.012
C35: Credit Spread | F35: 0.013
C37: Commitment Fee | F37: =F35*0.4 -> 0.0052
C38: Up-Front Fee | F38: 0.01
B40: Credit Support and Enhancements
C41: Dividend Lock-up | F41: 1.15
C42: Cash Flow Sweep | F42: 0
C43: DSRA Months | F43: 0
C44: Interest Income Rate | F44: 0.005
A46: Transferred Variables
C47: EBITDA | L47: =SUMIF('Operations Monthly'!$15:$15,'Project Finance Analysis'!L$3,'Operations Monthly'!127:127) -> 0 | M47: =SUMIF('Operations Monthly'!$15:$15,'Project Finance Analysis'!M$3,'Operations Monthly'!127:127) -> 0 | N47: =SUMIF('Operations Monthly'!$15:$15,'Project Finance Analysis'!N$3,'Operations Monthly'!127:127) -> 0 | O47: =SUMIF('Operations Monthly'!$15:$15,'Project Finance Analysis'!O$3,'Operations Monthly'!127:127) -> 0 | P47: =SUMIF('Operations Monthly'!$15:$15,'Project Finance Analysis'!P$3,'Operations Monthly'!127:127) -> 0 | Q47: =SUMIF('Operations Monthly'!$15:$15,'Project Finance Analysis'!Q$3,'Operations Monthly'!127:127) -> 0 | R47: =SUMIF('Operations Monthly'!$15:$15,'Project Finance Analysis'!R$3,'Operations Monthly'!127:127) -> 0 | S47: =SUMIF('Operations Monthly'!$15:$15,'Project Finance Analysis'!S$3,'Operations Monthly'!127:127) -> 0 | T47: =SUMIF('Operations Monthly'!$15:$15,'Project Finance Analysis'!T$3,'Operations Monthly'!127:127) -> 0 | U47: =SUMIF('Operations Monthly'!$15:$15,'Project Finance Analysis'!U$3,'Operations Monthly'!127:127) -> 0 | V47: =SUMIF('Operations Monthly'!$15:$15,'Project Finance Analysis'!V$3,'Operations Monthly'!127:127) -> 0 | W47: =SUMIF('Operations Monthly'!$15:$15,'Project Finance Analysis'!W$3,'Operations Monthly'!127:127) -> 0 | X47: =SUMIF('Operations Monthly'!$15:$15,'Project Finance Analysis'!X$3,'Operations Monthly'!127:127) -> 0 | Y47: =SUMIF('Operations Monthly'!$15:$15,'Project Finance Analysis'!Y$3,'Operations Monthly'!127:127) -> 0 | Z47: =SUMIF('Operations Monthly'!$15:$15,'Project Finance Analysis'!Z$3,'Operations Monthly'!127:127) -> 0 | AA47: =SUMIF('Operations Monthly'!$15:$15,'Project Finance Analysis'!AA$3,'Operations Monthly'!127:127) -> 0 | AB47: =SUMIF('Operations Monthly'!$15:$15,'Project Finance Analysis'!AB$3,'Operations Monthly'!127:127) -> 0 | AC47: =SUMIF('Operations Monthly'!$15:$15,'Project Finance Analysis'!AC$3,'Operations Monthly'!127:127) -> 0 | AD47: =SUMIF('Operations Monthly'!$15:$15,'Project Finance Analysis'!AD$3,'Operations Monthly'!127:127) -> 0 | AE47: =SUMIF('Operations Monthly'!$15:$15,'Project Finance Analysis'!AE$3,'Operations Monthly'!127:127) -> 0 | AF47: =SUMIF('Operations Monthly'!$15:$15,'Project Finance Analysis'!AF$3,'Operations Monthly'!127:127) -> 0 | AG47: =SUMIF('Operations Monthly'!$15:$15,'Project Finance Analysis'!AG$3,'Operations Monthly'!127:127) -> 0 | AH47: =SUMIF('Operations Monthly'!$15:$15,'Project Finance Analysis'!AH$3,'Operations Monthly'!127:127) -> 0 | AI47: =SUMIF('Operations Monthly'!$15:$15,'Project Finance Analysis'!AI$3,'Operations Monthly'!127:127) -> 0 | AJ47: =SUMIF('Operations Monthly'!$15:$15,'Project Finance Analysis'!AJ$3,'Operations Monthly'!127:127) -> 0 | AK47: =SUMIF('Operations Monthly'!$15:$15,'Project Finance Analysis'!AK$3,'Operations Monthly'!127:127) -> 0 | AL47: =SUMIF('Operations Monthly'!$15:$15,'Project Finance Analysis'!AL$3,'Operations Monthly'!127:127) -> 0 | AM47: =SUMIF('Operations Monthly'!$15:$15,'Project Finance Analysis'!AM$3,'Operations Monthly'!127:127) -> 0 | AN47: =SUMIF('Operations Monthly'!$15:$15,'Project Finance Analysis'!AN$3,'Operations Monthly'!127:127) -> 0 | AO47: =SUMIF('Operations Monthly'!$15:$15,'Project Finance Analysis'!AO$3,'Operations Monthly'!127:127) -> 0 | AP47: =SUMIF('Operations Monthly'!$15:$15,'Project Finance Analysis'!AP$3,'Operations Monthly'!127:127) -> 0 | AQ47: =SUMIF('Operations Monthly'!$15:$15,'Project Finance Analysis'!AQ$3,'Operations Monthly'!127:127) -> 0 | AR47: =SUMIF('Operations Monthly'!$15:$15,'Project Finance Analysis'!AR$3,'Operations Monthly'!127:127) -> 0 | AS47: =SUMIF('Operations Monthly'!$15:$15,'Project Finance Analysis'!AS$3,'Operations Monthly'!127:127) -> 0 | AT47: =SUMIF('Operations Monthly'!$15:$15,'Project Finance Analysis'!AT$3,'Operations Monthly'!127:127) -> 0 | AU47: =SUMIF('Operations Monthly'!$15:$15,'Project Finance Analysis'!AU$3,'Operations Monthly'!127:127) -> 0 | AV47: =SUMIF('Operations Monthly'!$15:$15,'Project Finance Analysis'!AV$3,'Operations Monthly'!127:127) -> 0 | AW47: =SUMIF('Operations Monthly'!$15:$15,'Project Finance Analysis'!AW$3,'Operations Monthly'!127:127) -> 0 | AX47: =SUMIF('Operations Monthly'!$15:$15,'Project Finance Analysis'!AX$3,'Operations Monthly'!127:127) -> 0 | AY47: =SUMIF('Operations Monthly'!$15:$15,'Project Finance Analysis'!AY$3,'Operations Monthly'!127:127) -> 0 | AZ47: =SUMIF('Operations Monthly'!$15:$15,'Project Finance Analysis'!AZ$3,'Operations Monthly'!127:127) -> 0 | BA47: =SUMIF('Operations Monthly'!$15:$15,'Project Finance Analysis'!BA$3,'Operations Monthly'!127:127) -> 0 | BB47: =SUMIF('Operations Monthly'!$15:$15,'Project Finance Analysis'!BB$3,'Operations Monthly'!127:127) -> 0 | BC47: =SUMIF('Operations Monthly'!$15:$15,'Project Finance Analysis'!BC$3,'Operations Monthly'!127:127) -> 0 | BD47: =SUMIF('Operations Monthly'!$15:$15,'Project Finance Analysis'!BD$3,'Operations Monthly'!127:127) -> 23499.40509 | BE47: =SUMIF('Operations Monthly'!$15:$15,'Project Finance Analysis'!BE$3,'Operations Monthly'!127:127) -> 24093.25987 | BF47: =SUMIF('Operations Monthly'!$15:$15,'Project Finance Analysis'!BF$3,'Operations Monthly'!127:127) -> 25666.6341 | BG47: =SUMIF('Operations Monthly'!$15:$15,'Project Finance Analysis'!BG$3,'Operations Monthly'!127:127) -> 26137.88392 | BH47: =SUMIF('Operations Monthly'!$15:$15,'Project Finance Analysis'!BH$3,'Operations Monthly'!127:127) -> 25750.82678 | BI47: =SUMIF('Operations Monthly'!$15:$15,'Project Finance Analysis'!BI$3,'Operations Monthly'!127:127) -> 26399.26275 | BJ47: =SUMIF('Operations Monthly'!$15:$15,'Project Finance Analysis'!BJ$3,'Operations Monthly'!127:127) -> 26029.87236 | BK47: =SUMIF('Operations Monthly'!$15:$15,'Project Finance Analysis'!BK$3,'Operations Monthly'!127:127) -> 26762.82911 | BL47: =SUMIF('Operations Monthly'!$15:$15,'Project Finance Analysis'!BL$3,'Operations Monthly'!127:127) -> 26749.22838 | BM47: =SUMIF('Operations Monthly'!$15:$15,'Project Finance Analysis'!BM$3,'Operations Monthly'!127:127) -> 27660.28054 | BN47: =SUMIF('Operations Monthly'!$15:$15,'Project Finance Analysis'!BN$3,'Operations Monthly'!127:127) -> 27516.49632 | BO47: =SUMIF('Operations Monthly'!$15:$15,'Project Finance Analysis'!BO$3,'Operations Monthly'!127:127) -> 28103.1405 | BP47: =SUMIF('Operations Monthly'!$15:$15,'Project Finance Analysis'!BP$3,'Operations Monthly'!127:127) -> 27772.42911 | BQ47: =SUMIF('Operations Monthly'!$15:$15,'Project Finance Analysis'!BQ$3,'Operations Monthly'!127:127) -> 28552.92293 | BR47: =SUMIF('Operations Monthly'!$15:$15,'Project Finance Analysis'!BR$3,'Operations Monthly'!127:127) -> 28217.39169 | BS47: =SUMIF('Operations Monthly'!$15:$15,'Project Finance Analysis'!BS$3,'Operations Monthly'!127:127) -> 29009.73444 | BT47: =SUMIF('Operations Monthly'!$15:$15,'Project Finance Analysis'!BT$3,'Operations Monthly'!127:127) -> 28669.31246 | BU47: =SUMIF('Operations Monthly'!$15:$15,'Project Finance Analysis'!BU$3,'Operations Monthly'!127:127) -> 29473.6833 | BV47: =SUMIF('Operations Monthly'!$15:$15,'Project Finance Analysis'!BV$3,'Operations Monthly'!127:127) -> 28820.4669 | BW47: =SUMIF('Operations Monthly'!$15:$15,'Project Finance Analysis'!BW$3,'Operations Monthly'!127:127) -> 29441.19174 | BX47: =SUMIF('Operations Monthly'!$15:$15,'Project Finance Analysis'!BX$3,'Operations Monthly'!127:127) -> 27588.254 | BY47: =SUMIF('Operations Monthly'!$15:$15,'Project Finance Analysis'!BY$3,'Operations Monthly'!127:127) -> 28378.4329 | BZ47: =SUMIF('Operations Monthly'!$15:$15,'Project Finance Analysis'!BZ$3,'Operations Monthly'!127:127) -> 28034.13713 | CA47: =SUMIF('Operations Monthly'!$15:$15,'Project Finance Analysis'!CA$3,'Operations Monthly'!127:127) -> 28836.32861 | CB47: =SUMIF('Operations Monthly'!$15:$15,'Project Finance Analysis'!CB$3,'Operations Monthly'!127:127) -> 28487.02911 | CC47: =SUMIF('Operations Monthly'!$15:$15,'Project Finance Analysis'!CC$3,'Operations Monthly'!127:127) -> 29301.41495 | CD47: =SUMIF('Operations Monthly'!$15:$15,'Project Finance Analysis'!CD$3,'Operations Monthly'!127:127) -> 29143.58819 | CE47: =SUMIF('Operations Monthly'!$15:$15,'Project Finance Analysis'!CE$3,'Operations Monthly'!127:127) -> 29773.80301 | CF47: =SUMIF('Operations Monthly'!$15:$15,'Project Finance Analysis'!CF$3,'Operations Monthly'!127:127) -> 28185.18286 | CG47: =SUMIF('Operations Monthly'!$15:$15,'Project Finance Analysis'!CG$3,'Operations Monthly'!127:127) -> 29018.38365 | CH47: =SUMIF('Operations Monthly'!$15:$15,'Project Finance Analysis'!CH$3,'Operations Monthly'!127:127) -> 28647.46712 | CI47: =SUMIF('Operations Monthly'!$15:$15,'Project Finance Analysis'!CI$3,'Operations Monthly'!127:127) -> 29493.36296 | CJ47: =SUMIF('Operations Monthly'!$15:$15,'Project Finance Analysis'!CJ$3,'Operations Monthly'!127:127) -> 29117.08071 | CK47: =SUMIF('Operations Monthly'!$15:$15,'Project Finance Analysis'!CK$3,'Operations Monthly'!127:127) -> 29975.86401 | CL47: =SUMIF('Operations Monthly'!$15:$15,'Project Finance Analysis'!CL$3,'Operations Monthly'!127:127) -> 29802.74846 | CM47: =SUMIF('Operations Monthly'!$15:$15,'Project Finance Analysis'!CM$3,'Operations Monthly'!127:127) -> 30466.00357 | CN47: =SUMIF('Operations Monthly'!$15:$15,'Project Finance Analysis'!CN$3,'Operations Monthly'!127:127) -> 30078.75319 | CO47: =SUMIF('Operations Monthly'!$15:$15,'Project Finance Analysis'!CO$3,'Operations Monthly'!127:127) -> 30963.90024 | CP47: =SUMIF('Operations Monthly'!$15:$15,'Project Finance Analysis'!CP$3,'Operations Monthly'!127:127) -> 30571.04514 | CQ47: =SUMIF('Operations Monthly'!$15:$15,'Project Finance Analysis'!CQ$3,'Operations Monthly'!127:127) -> 31469.67443 | CR47: =SUMIF('Operations Monthly'!$15:$15,'Project Finance Analysis'!CR$3,'Operations Monthly'!127:127) -> 31071.13256 | CS47: =SUMIF('Operations Monthly'!$15:$15,'Project Finance Analysis'!CS$3,'Operations Monthly'!127:127) -> 31588.41675 | CT47: =SUMIF('Operations Monthly'!$15:$15,'Project Finance Analysis'!CT$3,'Operations Monthly'!127:127) -> 30616.08338 | CU47: =SUMIF('Operations Monthly'!$15:$15,'Project Finance Analysis'!CU$3,'Operations Monthly'!127:127) -> 31298.90905 | CV47: =SUMIF('Operations Monthly'!$15:$15,'Project Finance Analysis'!CV$3,'Operations Monthly'!127:127) -> 30899.55755 | CW47: =SUMIF('Operations Monthly'!$15:$15,'Project Finance Analysis'!CW$3,'Operations Monthly'!127:127) -> 31810.96028 | CX47: =SUMIF('Operations Monthly'!$15:$15,'Project Finance Analysis'!CX$3,'Operations Monthly'!127:127) -> 31405.83081 | CY47: =SUMIF('Operations Monthly'!$15:$15,'Project Finance Analysis'!CY$3,'Operations Monthly'!127:127) -> 32331.11795 | CZ47: =SUMIF('Operations Monthly'!$15:$15,'Project Finance Analysis'!CZ$3,'Operations Monthly'!127:127) -> 31920.12598 | DA47: =SUMIF('Operations Monthly'!$15:$15,'Project Finance Analysis'!DA$3,'Operations Monthly'!127:127) -> 32859.50792 | DB47: =SUMIF('Operations Monthly'!$15:$15,'Project Finance Analysis'!DB$3,'Operations Monthly'!127:127) -> 0 | DC47: =SUMIF('Operations Monthly'!$15:$15,'Project Finance Analysis'!DC$3,'Operations Monthly'!127:127) -> 0 | DD47: =SUMIF('Operations Monthly'!$15:$15,'Project Finance Analysis'!DD$3,'Operations Monthly'!127:127) -> 0 | DE47: =SUMIF('Operations Monthly'!$15:$15,'Project Finance Analysis'!DE$3,'Operations Monthly'!127:127) -> 0 | DF47: =SUMIF('Operations Monthly'!$15:$15,'Project Finance Analysis'!DF$3,'Operations Monthly'!127:127) -> 0 | DG47: =SUMIF('Operations Monthly'!$15:$15,'Project Finance Analysis'!DG$3,'Operations Monthly'!127:127) -> 0 | DH47: =SUMIF('Operations Monthly'!$15:$15,'Project Finance Analysis'!DH$3,'Operations Monthly'!127:127) -> 0 | DI47: =SUMIF('Operations Monthly'!$15:$15,'Project Finance Analysis'!DI$3,'Operations Monthly'!127:127) -> 0 | DJ47: =SUMIF('Operations Monthly'!$15:$15,'Project Finance Analysis'!DJ$3,'Operations Monthly'!127:127) -> 0 | DK47: =SUMIF('Operations Monthly'!$15:$15,'Project Finance Analysis'!DK$3,'Operations Monthly'!127:127) -> 0 | DL47: =SUMIF('Operations Monthly'!$15:$15,'Project Finance Analysis'!DL$3,'Operations Monthly'!127:127) -> 0 | DM47: =SUMIF('Operations Monthly'!$15:$15,'Project Finance Analysis'!DM$3,'Operations Monthly'!127:127) -> 0 | DN47: =SUMIF('Operations Monthly'!$15:$15,'Project Finance Analysis'!DN$3,'Operations Monthly'!127:127) -> 0 | DO47: =SUMIF('Operations Monthly'!$15:$15,'Project Finance Analysis'!DO$3,'Operations Monthly'!127:127) -> 0 | DP47: =SUMIF('Operations Monthly'!$15:$15,'Project Finance Analysis'!DP$3,'Operations Monthly'!127:127) -> 0 | DQ47: =SUMIF('Operations Monthly'!$15:$15,'Project Finance Analysis'!DQ$3,'Operations Monthly'!127:127) -> 0
C48: Capital Expenditures | L48: =-SUMIF('Operations Monthly'!$15:$15,'Project Finance Analysis'!L$3,'Operations Monthly'!128:128) -> 10000 | M48: =-SUMIF('Operations Monthly'!$15:$15,'Project Finance Analysis'!M$3,'Operations Monthly'!128:128) -> 10000 | N48: =-SUMIF('Operations Monthly'!$15:$15,'Project Finance Analysis'!N$3,'Operations Monthly'!128:128) -> 10000 | O48: =-SUMIF('Operations Monthly'!$15:$15,'Project Finance Analysis'!O$3,'Operations Monthly'!128:128) -> 10000 | P48: =-SUMIF('Operations Monthly'!$15:$15,'Project Finance Analysis'!P$3,'Operations Monthly'!128:128) -> 10000 | Q48: =-SUMIF('Operations Monthly'!$15:$15,'Project Finance Analysis'!Q$3,'Operations Monthly'!128:128) -> 10000 | R48: =-SUMIF('Operations Monthly'!$15:$15,'Project Finance Analysis'!R$3,'Operations Monthly'!128:128) -> 10000 | S48: =-SUMIF('Operations Monthly'!$15:$15,'Project Finance Analysis'!S$3,'Operations Monthly'!128:128) -> 10000 | T48: =-SUMIF('Operations Monthly'!$15:$15,'Project Finance Analysis'!T$3,'Operations Monthly'!128:128) -> 10000 | U48: =-SUMIF('Operations Monthly'!$15:$15,'Project Finance Analysis'!U$3,'Operations Monthly'!128:128) -> 10000 | V48: =-SUMIF('Operations Monthly'!$15:$15,'Project Finance Analysis'!V$3,'Operations Monthly'!128:128) -> 10000 | W48: =-SUMIF('Operations Monthly'!$15:$15,'Project Finance Analysis'!W$3,'Operations Monthly'!128:128) -> 10000 | X48: =-SUMIF('Operations Monthly'!$15:$15,'Project Finance Analysis'!X$3,'Operations Monthly'!128:128) -> 32500 | Y48: =-SUMIF('Operations Monthly'!$15:$15,'Project Finance Analysis'!Y$3,'Operations Monthly'!128:128) -> 32500 | Z48: =-SUMIF('Operations Monthly'!$15:$15,'Project Finance Analysis'!Z$3,'Operations Monthly'!128:128) -> 32500 | AA48: =-SUMIF('Operations Monthly'!$15:$15,'Project Finance Analysis'!AA$3,'Operations Monthly'!128:128) -> 32500 | AB48: =-SUMIF('Operations Monthly'!$15:$15,'Project Finance Analysis'!AB$3,'Operations Monthly'!128:128) -> 32500 | AC48: =-SUMIF('Operations Monthly'!$15:$15,'Project Finance Analysis'!AC$3,'Operations Monthly'!128:128) -> 32500 | AD48: =-SUMIF('Operations Monthly'!$15:$15,'Project Finance Analysis'!AD$3,'Operations Monthly'!128:128) -> 32500 | AE48: =-SUMIF('Operations Monthly'!$15:$15,'Project Finance Analysis'!AE$3,'Operations Monthly'!128:128) -> 32500 | AF48: =-SUMIF('Operations Monthly'!$15:$15,'Project Finance Analysis'!AF$3,'Operations Monthly'!128:128) -> 32500 | AG48: =-SUMIF('Operations Monthly'!$15:$15,'Project Finance Analysis'!AG$3,'Operations Monthly'!128:128) -> 32500 | AH48: =-SUMIF('Operations Monthly'!$15:$15,'Project Finance Analysis'!AH$3,'Operations Monthly'!128:128) -> 32500 | AI48: =-SUMIF('Operations Monthly'!$15:$15,'Project Finance Analysis'!AI$3,'Operations Monthly'!128:128) -> 32500 | AJ48: =-SUMIF('Operations Monthly'!$15:$15,'Project Finance Analysis'!AJ$3,'Operations Monthly'!128:128) -> 7500 | AK48: =-SUMIF('Operations Monthly'!$15:$15,'Project Finance Analysis'!AK$3,'Operations Monthly'!128:128) -> 7500 | AL48: =-SUMIF('Operations Monthly'!$15:$15,'Project Finance Analysis'!AL$3,'Operations Monthly'!128:128) -> 7500 | AM48: =-SUMIF('Operations Monthly'!$15:$15,'Project Finance Analysis'!AM$3,'Operations Monthly'!128:128) -> 7500 | AN48: =-SUMIF('Operations Monthly'!$15:$15,'Project Finance Analysis'!AN$3,'Operations Monthly'!128:128) -> 7500 | AO48: =-SUMIF('Operations Monthly'!$15:$15,'Project Finance Analysis'!AO$3,'Operations Monthly'!128:128) -> 7500 | AP48: =-SUMIF('Operations Monthly'!$15:$15,'Project Finance Analysis'!AP$3,'Operations Monthly'!128:128) -> 7500 | AQ48: =-SUMIF('Operations Monthly'!$15:$15,'Project Finance Analysis'!AQ$3,'Operations Monthly'!128:128) -> 7500 | AR48: =-SUMIF('Operations Monthly'!$15:$15,'Project Finance Analysis'!AR$3,'Operations Monthly'!128:128) -> 7500 | AS48: =-SUMIF('Operations Monthly'!$15:$15,'Project Finance Analysis'!AS$3,'Operations Monthly'!128:128) -> 7500 | AT48: =-SUMIF('Operations Monthly'!$15:$15,'Project Finance Analysis'!AT$3,'Operations Monthly'!128:128) -> 7500 | AU48: =-SUMIF('Operations Monthly'!$15:$15,'Project Finance Analysis'!AU$3,'Operations Monthly'!128:128) -> 7500 | AV48: =-SUMIF('Operations Monthly'!$15:$15,'Project Finance Analysis'!AV$3,'Operations Monthly'!128:128) -> 0 | AW48: =-SUMIF('Operations Monthly'!$15:$15,'Project Finance Analysis'!AW$3,'Operations Monthly'!128:128) -> 0 | AX48: =-SUMIF('Operations Monthly'!$15:$15,'Project Finance Analysis'!AX$3,'Operations Monthly'!128:128) -> 0 | AY48: =-SUMIF('Operations Monthly'!$15:$15,'Project Finance Analysis'!AY$3,'Operations Monthly'!128:128) -> 0 | AZ48: =-SUMIF('Operations Monthly'!$15:$15,'Project Finance Analysis'!AZ$3,'Operations Monthly'!128:128) -> 0 | BA48: =-SUMIF('Operations Monthly'!$15:$15,'Project Finance Analysis'!BA$3,'Operations Monthly'!128:128) -> 0 | BB48: =-SUMIF('Operations Monthly'!$15:$15,'Project Finance Analysis'!BB$3,'Operations Monthly'!128:128) -> 0 | BC48: =-SUMIF('Operations Monthly'!$15:$15,'Project Finance Analysis'!BC$3,'Operations Monthly'!128:128) -> 1.33226763e-10 | BD48: =-SUMIF('Operations Monthly'!$15:$15,'Project Finance Analysis'!BD$3,'Operations Monthly'!128:128) -> 0 | BE48: =-SUMIF('Operations Monthly'!$15:$15,'Project Finance Analysis'!BE$3,'Operations Monthly'!128:128) -> 0 | BF48: =-SUMIF('Operations Monthly'!$15:$15,'Project Finance Analysis'!BF$3,'Operations Monthly'!128:128) -> 0 | BG48: =-SUMIF('Operations Monthly'!$15:$15,'Project Finance Analysis'!BG$3,'Operations Monthly'!128:128) -> 0 | BH48: =-SUMIF('Operations Monthly'!$15:$15,'Project Finance Analysis'!BH$3,'Operations Monthly'!128:128) -> 0 | BI48: =-SUMIF('Operations Monthly'!$15:$15,'Project Finance Analysis'!BI$3,'Operations Monthly'!128:128) -> 0 | BJ48: =-SUMIF('Operations Monthly'!$15:$15,'Project Finance Analysis'!BJ$3,'Operations Monthly'!128:128) -> 0 | BK48: =-SUMIF('Operations Monthly'!$15:$15,'Project Finance Analysis'!BK$3,'Operations Monthly'!128:128) -> 0 | BL48: =-SUMIF('Operations Monthly'!$15:$15,'Project Finance Analysis'!BL$3,'Operations Monthly'!128:128) -> 0 | BM48: =-SUMIF('Operations Monthly'!$15:$15,'Project Finance Analysis'!BM$3,'Operations Monthly'!128:128) -> 0 | BN48: =-SUMIF('Operations Monthly'!$15:$15,'Project Finance Analysis'!BN$3,'Operations Monthly'!128:128) -> 0 | BO48: =-SUMIF('Operations Monthly'!$15:$15,'Project Finance Analysis'!BO$3,'Operations Monthly'!128:128) -> 0 | BP48: =-SUMIF('Operations Monthly'!$15:$15,'Project Finance Analysis'!BP$3,'Operations Monthly'!128:128) -> 0 | BQ48: =-SUMIF('Operations Monthly'!$15:$15,'Project Finance Analysis'!BQ$3,'Operations Monthly'!128:128) -> 0 | BR48: =-SUMIF('Operations Monthly'!$15:$15,'Project Finance Analysis'!BR$3,'Operations Monthly'!128:128) -> 0 | BS48: =-SUMIF('Operations Monthly'!$15:$15,'Project Finance Analysis'!BS$3,'Operations Monthly'!128:128) -> 0 | BT48: =-SUMIF('Operations Monthly'!$15:$15,'Project Finance Analysis'!BT$3,'Operations Monthly'!128:128) -> 0 | BU48: =-SUMIF('Operations Monthly'!$15:$15,'Project Finance Analysis'!BU$3,'Operations Monthly'!128:128) -> 0 | BV48: =-SUMIF('Operations Monthly'!$15:$15,'Project Finance Analysis'!BV$3,'Operations Monthly'!128:128) -> 0 | BW48: =-SUMIF('Operations Monthly'!$15:$15,'Project Finance Analysis'!BW$3,'Operations Monthly'!128:128) -> 0 | BX48: =-SUMIF('Operations Monthly'!$15:$15,'Project Finance Analysis'!BX$3,'Operations Monthly'!128:128) -> 0 | BY48: =-SUMIF('Operations Monthly'!$15:$15,'Project Finance Analysis'!BY$3,'Operations Monthly'!128:128) -> 0 | BZ48: =-SUMIF('Operations Monthly'!$15:$15,'Project Finance Analysis'!BZ$3,'Operations Monthly'!128:128) -> 0 | CA48: =-SUMIF('Operations Monthly'!$15:$15,'Project Finance Analysis'!CA$3,'Operations Monthly'!128:128) -> 0 | CB48: =-SUMIF('Operations Monthly'!$15:$15,'Project Finance Analysis'!CB$3,'Operations Monthly'!128:128) -> 0 | CC48: =-SUMIF('Operations Monthly'!$15:$15,'Project Finance Analysis'!CC$3,'Operations Monthly'!128:128) -> 0 | CD48: =-SUMIF('Operations Monthly'!$15:$15,'Project Finance Analysis'!CD$3,'Operations Monthly'!128:128) -> 0 | CE48: =-SUMIF('Operations Monthly'!$15:$15,'Project Finance Analysis'!CE$3,'Operations Monthly'!128:128) -> 0 | CF48: =-SUMIF('Operations Monthly'!$15:$15,'Project Finance Analysis'!CF$3,'Operations Monthly'!128:128) -> 0 | CG48: =-SUMIF('Operations Monthly'!$15:$15,'Project Finance Analysis'!CG$3,'Operations Monthly'!128:128) -> 0 | CH48: =-SUMIF('Operations Monthly'!$15:$15,'Project Finance Analysis'!CH$3,'Operations Monthly'!128:128) -> 0 | CI48: =-SUMIF('Operations Monthly'!$15:$15,'Project Finance Analysis'!CI$3,'Operations Monthly'!128:128) -> 0 | CJ48: =-SUMIF('Operations Monthly'!$15:$15,'Project Finance Analysis'!CJ$3,'Operations Monthly'!128:128) -> 0 | CK48: =-SUMIF('Operations Monthly'!$15:$15,'Project Finance Analysis'!CK$3,'Operations Monthly'!128:128) -> 0 | CL48: =-SUMIF('Operations Monthly'!$15:$15,'Project Finance Analysis'!CL$3,'Operations Monthly'!128:128) -> 0 | CM48: =-SUMIF('Operations Monthly'!$15:$15,'Project Finance Analysis'!CM$3,'Operations Monthly'!128:128) -> 0 | CN48: =-SUMIF('Operations Monthly'!$15:$15,'Project Finance Analysis'!CN$3,'Operations Monthly'!128:128) -> 0 | CO48: =-SUMIF('Operations Monthly'!$15:$15,'Project Finance Analysis'!CO$3,'Operations Monthly'!128:128) -> 0 | CP48: =-SUMIF('Operations Monthly'!$15:$15,'Project Finance Analysis'!CP$3,'Operations Monthly'!128:128) -> 0 | CQ48: =-SUMIF('Operations Monthly'!$15:$15,'Project Finance Analysis'!CQ$3,'Operations Monthly'!128:128) -> 0 | CR48: =-SUMIF('Operations Monthly'!$15:$15,'Project Finance Analysis'!CR$3,'Operations Monthly'!128:128) -> 0 | CS48: =-SUMIF('Operations Monthly'!$15:$15,'Project Finance Analysis'!CS$3,'Operations Monthly'!128:128) -> 0 | CT48: =-SUMIF('Operations Monthly'!$15:$15,'Project Finance Analysis'!CT$3,'Operations Monthly'!128:128) -> 0 | CU48: =-SUMIF('Operations Monthly'!$15:$15,'Project Finance Analysis'!CU$3,'Operations Monthly'!128:128) -> 0 | CV48: =-SUMIF('Operations Monthly'!$15:$15,'Project Finance Analysis'!CV$3,'Operations Monthly'!128:128) -> 0 | CW48: =-SUMIF('Operations Monthly'!$15:$15,'Project Finance Analysis'!CW$3,'Operations Monthly'!128:128) -> 0 | CX48: =-SUMIF('Operations Monthly'!$15:$15,'Project Finance Analysis'!CX$3,'Operations Monthly'!128:128) -> 0 | CY48: =-SUMIF('Operations Monthly'!$15:$15,'Project Finance Analysis'!CY$3,'Operations Monthly'!128:128) -> 0 | CZ48: =-SUMIF('Operations Monthly'!$15:$15,'Project Finance Analysis'!CZ$3,'Operations Monthly'!128:128) -> 0 | DA48: =-SUMIF('Operations Monthly'!$15:$15,'Project Finance Analysis'!DA$3,'Operations Monthly'!128:128) -> 0 | DB48: =-SUMIF('Operations Monthly'!$15:$15,'Project Finance Analysis'!DB$3,'Operations Monthly'!128:128) -> 0 | DC48: =-SUMIF('Operations Monthly'!$15:$15,'Project Finance Analysis'!DC$3,'Operations Monthly'!128:128) -> 0 | DD48: =-SUMIF('Operations Monthly'!$15:$15,'Project Finance Analysis'!DD$3,'Operations Monthly'!128:128) -> 0 | DE48: =-SUMIF('Operations Monthly'!$15:$15,'Project Finance Analysis'!DE$3,'Operations Monthly'!128:128) -> 0 | DF48: =-SUMIF('Operations Monthly'!$15:$15,'Project Finance Analysis'!DF$3,'Operations Monthly'!128:128) -> 0 | DG48: =-SUMIF('Operations Monthly'!$15:$15,'Project Finance Analysis'!DG$3,'Operations Monthly'!128:128) -> 0 | DH48: =-SUMIF('Operations Monthly'!$15:$15,'Project Finance Analysis'!DH$3,'Operations Monthly'!128:128) -> 0 | DI48: =-SUMIF('Operations Monthly'!$15:$15,'Project Finance Analysis'!DI$3,'Operations Monthly'!128:128) -> 0 | DJ48: =-SUMIF('Operations Monthly'!$15:$15,'Project Finance Analysis'!DJ$3,'Operations Monthly'!128:128) -> 0 | DK48: =-SUMIF('Operations Monthly'!$15:$15,'Project Finance Analysis'!DK$3,'Operations Monthly'!128:128) -> 0 | DL48: =-SUMIF('Operations Monthly'!$15:$15,'Project Finance Analysis'!DL$3,'Operations Monthly'!128:128) -> 0 | DM48: =-SUMIF('Operations Monthly'!$15:$15,'Project Finance Analysis'!DM$3,'Operations Monthly'!128:128) -> 0 | DN48: =-SUMIF('Operations Monthly'!$15:$15,'Project Finance Analysis'!DN$3,'Operations Monthly'!128:128) -> 0 | DO48: =-SUMIF('Operations Monthly'!$15:$15,'Project Finance Analysis'!DO$3,'Operations Monthly'!128:128) -> 0 | DP48: =-SUMIF('Operations Monthly'!$15:$15,'Project Finance Analysis'!DP$3,'Operations Monthly'!128:128) -> 0 | DQ48: =-SUMIF('Operations Monthly'!$15:$15,'Project Finance Analysis'!DQ$3,'Operations Monthly'!128:128) -> 0
C49: Working Capital Changes | L49: =-SUMIF('Operations Monthly'!$15:$15,'Project Finance Analysis'!L$3,'Operations Monthly'!129:129) -> 0 | M49: =-SUMIF('Operations Monthly'!$15:$15,'Project Finance Analysis'!M$3,'Operations Monthly'!129:129) -> 0 | N49: =-SUMIF('Operations Monthly'!$15:$15,'Project Finance Analysis'!N$3,'Operations Monthly'!129:129) -> 0 | O49: =-SUMIF('Operations Monthly'!$15:$15,'Project Finance Analysis'!O$3,'Operations Monthly'!129:129) -> 0 | P49: =-SUMIF('Operations Monthly'!$15:$15,'Project Finance Analysis'!P$3,'Operations Monthly'!129:129) -> 0 | Q49: =-SUMIF('Operations Monthly'!$15:$15,'Project Finance Analysis'!Q$3,'Operations Monthly'!129:129) -> 0 | R49: =-SUMIF('Operations Monthly'!$15:$15,'Project Finance Analysis'!R$3,'Operations Monthly'!129:129) -> 0 | S49: =-SUMIF('Operations Monthly'!$15:$15,'Project Finance Analysis'!S$3,'Operations Monthly'!129:129) -> 0 | T49: =-SUMIF('Operations Monthly'!$15:$15,'Project Finance Analysis'!T$3,'Operations Monthly'!129:129) -> 0 | U49: =-SUMIF('Operations Monthly'!$15:$15,'Project Finance Analysis'!U$3,'Operations Monthly'!129:129) -> 0 | V49: =-SUMIF('Operations Monthly'!$15:$15,'Project Finance Analysis'!V$3,'Operations Monthly'!129:129) -> 0 | W49: =-SUMIF('Operations Monthly'!$15:$15,'Project Finance Analysis'!W$3,'Operations Monthly'!129:129) -> 0 | X49: =-SUMIF('Operations Monthly'!$15:$15,'Project Finance Analysis'!X$3,'Operations Monthly'!129:129) -> 0 | Y49: =-SUMIF('Operations Monthly'!$15:$15,'Project Finance Analysis'!Y$3,'Operations Monthly'!129:129) -> 0 | Z49: =-SUMIF('Operations Monthly'!$15:$15,'Project Finance Analysis'!Z$3,'Operations Monthly'!129:129) -> 0 | AA49: =-SUMIF('Operations Monthly'!$15:$15,'Project Finance Analysis'!AA$3,'Operations Monthly'!129:129) -> 0 | AB49: =-SUMIF('Operations Monthly'!$15:$15,'Project Finance Analysis'!AB$3,'Operations Monthly'!129:129) -> 0 | AC49: =-SUMIF('Operations Monthly'!$15:$15,'Project Finance Analysis'!AC$3,'Operations Monthly'!129:129) -> 0 | AD49: =-SUMIF('Operations Monthly'!$15:$15,'Project Finance Analysis'!AD$3,'Operations Monthly'!129:129) -> 0 | AE49: =-SUMIF('Operations Monthly'!$15:$15,'Project Finance Analysis'!AE$3,'Operations Monthly'!129:129) -> 0 | AF49: =-SUMIF('Operations Monthly'!$15:$15,'Project Finance Analysis'!AF$3,'Operations Monthly'!129:129) -> 0 | AG49: =-SUMIF('Operations Monthly'!$15:$15,'Project Finance Analysis'!AG$3,'Operations Monthly'!129:129) -> 0 | AH49: =-SUMIF('Operations Monthly'!$15:$15,'Project Finance Analysis'!AH$3,'Operations Monthly'!129:129) -> 0 | AI49: =-SUMIF('Operations Monthly'!$15:$15,'Project Finance Analysis'!AI$3,'Operations Monthly'!129:129) -> 0 | AJ49: =-SUMIF('Operations Monthly'!$15:$15,'Project Finance Analysis'!AJ$3,'Operations Monthly'!129:129) -> 0 | AK49: =-SUMIF('Operations Monthly'!$15:$15,'Project Finance Analysis'!AK$3,'Operations Monthly'!129:129) -> 0 | AL49: =-SUMIF('Operations Monthly'!$15:$15,'Project Finance Analysis'!AL$3,'Operations Monthly'!129:129) -> 0 | AM49: =-SUMIF('Operations Monthly'!$15:$15,'Project Finance Analysis'!AM$3,'Operations Monthly'!129:129) -> 0 | AN49: =-SUMIF('Operations Monthly'!$15:$15,'Project Finance Analysis'!AN$3,'Operations Monthly'!129:129) -> 0 | AO49: =-SUMIF('Operations Monthly'!$15:$15,'Project Finance Analysis'!AO$3,'Operations Monthly'!129:129) -> 0 | AP49: =-SUMIF('Operations Monthly'!$15:$15,'Project Finance Analysis'!AP$3,'Operations Monthly'!129:129) -> 0 | AQ49: =-SUMIF('Operations Monthly'!$15:$15,'Project Finance Analysis'!AQ$3,'Operations Monthly'!129:129) -> 0 | AR49: =-SUMIF('Operations Monthly'!$15:$15,'Project Finance Analysis'!AR$3,'Operations Monthly'!129:129) -> 0 | AS49: =-SUMIF('Operations Monthly'!$15:$15,'Project Finance Analysis'!AS$3,'Operations Monthly'!129:129) -> 0 | AT49: =-SUMIF('Operations Monthly'!$15:$15,'Project Finance Analysis'!AT$3,'Operations Monthly'!129:129) -> 0 | AU49: =-SUMIF('Operations Monthly'!$15:$15,'Project Finance Analysis'!AU$3,'Operations Monthly'!129:129) -> 0 | AV49: =-SUMIF('Operations Monthly'!$15:$15,'Project Finance Analysis'!AV$3,'Operations Monthly'!129:129) -> 0 | AW49: =-SUMIF('Operations Monthly'!$15:$15,'Project Finance Analysis'!AW$3,'Operations Monthly'!129:129) -> 0 | AX49: =-SUMIF('Operations Monthly'!$15:$15,'Project Finance Analysis'!AX$3,'Operations Monthly'!129:129) -> 0 | AY49: =-SUMIF('Operations Monthly'!$15:$15,'Project Finance Analysis'!AY$3,'Operations Monthly'!129:129) -> 0 | AZ49: =-SUMIF('Operations Monthly'!$15:$15,'Project Finance Analysis'!AZ$3,'Operations Monthly'!129:129) -> 0 | BA49: =-SUMIF('Operations Monthly'!$15:$15,'Project Finance Analysis'!BA$3,'Operations Monthly'!129:129) -> 0 | BB49: =-SUMIF('Operations Monthly'!$15:$15,'Project Finance Analysis'!BB$3,'Operations Monthly'!129:129) -> 0 | BC49: =-SUMIF('Operations Monthly'!$15:$15,'Project Finance Analysis'!BC$3,'Operations Monthly'!129:129) -> 0 | BD49: =-SUMIF('Operations Monthly'!$15:$15,'Project Finance Analysis'!BD$3,'Operations Monthly'!129:129) -> 6590.259912 | BE49: =-SUMIF('Operations Monthly'!$15:$15,'Project Finance Analysis'!BE$3,'Operations Monthly'!129:129) -> 52.16729065 | BF49: =-SUMIF('Operations Monthly'!$15:$15,'Project Finance Analysis'!BF$3,'Operations Monthly'!129:129) -> 453.5767033 | BG49: =-SUMIF('Operations Monthly'!$15:$15,'Project Finance Analysis'!BG$3,'Operations Monthly'!129:129) -> 54.88269984 | BH49: =-SUMIF('Operations Monthly'!$15:$15,'Project Finance Analysis'!BH$3,'Operations Monthly'!129:129) -> 16.07733923 | BI49: =-SUMIF('Operations Monthly'!$15:$15,'Project Finance Analysis'!BI$3,'Operations Monthly'!129:129) -> 55.43152683 | BJ49: =-SUMIF('Operations Monthly'!$15:$15,'Project Finance Analysis'!BJ$3,'Operations Monthly'!129:129) -> 29.17378447 | BK49: =-SUMIF('Operations Monthly'!$15:$15,'Project Finance Analysis'!BK$3,'Operations Monthly'!129:129) -> 75.59081174 | BL49: =-SUMIF('Operations Monthly'!$15:$15,'Project Finance Analysis'!BL$3,'Operations Monthly'!129:129) -> 150.2899295 | BM49: =-SUMIF('Operations Monthly'!$15:$15,'Project Finance Analysis'!BM$3,'Operations Monthly'!129:129) -> 77.49267638 | BN49: =-SUMIF('Operations Monthly'!$15:$15,'Project Finance Analysis'!BN$3,'Operations Monthly'!129:129) -> 37.76626401 | BO49: =-SUMIF('Operations Monthly'!$15:$15,'Project Finance Analysis'!BO$3,'Operations Monthly'!129:129) -> 78.57010628 | BP49: =-SUMIF('Operations Monthly'!$15:$15,'Project Finance Analysis'!BP$3,'Operations Monthly'!129:129) -> 38.44869012 | BQ49: =-SUMIF('Operations Monthly'!$15:$15,'Project Finance Analysis'!BQ$3,'Operations Monthly'!129:129) -> 79.66284803 | BR49: =-SUMIF('Operations Monthly'!$15:$15,'Project Finance Analysis'!BR$3,'Operations Monthly'!129:129) -> 39.14251194 | BS49: =-SUMIF('Operations Monthly'!$15:$15,'Project Finance Analysis'!BS$3,'Operations Monthly'!129:129) -> 80.77112281 | BT49: =-SUMIF('Operations Monthly'!$15:$15,'Project Finance Analysis'!BT$3,'Operations Monthly'!129:129) -> 39.847912 | BU49: =-SUMIF('Operations Monthly'!$15:$15,'Project Finance Analysis'!BU$3,'Operations Monthly'!129:129) -> 81.89515503 | BV49: =-SUMIF('Operations Monthly'!$15:$15,'Project Finance Analysis'!BV$3,'Operations Monthly'!129:129) -> -15.23798032 | BW49: =-SUMIF('Operations Monthly'!$15:$15,'Project Finance Analysis'!BW$3,'Operations Monthly'!129:129) -> 84.56592786 | BX49: =-SUMIF('Operations Monthly'!$15:$15,'Project Finance Analysis'!BX$3,'Operations Monthly'!129:129) -> -334.8856257 | BY49: =-SUMIF('Operations Monthly'!$15:$15,'Project Finance Analysis'!BY$3,'Operations Monthly'!129:129) -> 82.94222933 | BZ49: =-SUMIF('Operations Monthly'!$15:$15,'Project Finance Analysis'!BZ$3,'Operations Monthly'!129:129) -> 37.10965024 | CA49: =-SUMIF('Operations Monthly'!$15:$15,'Project Finance Analysis'!CA$3,'Operations Monthly'!129:129) -> 84.08844544 | CB49: =-SUMIF('Operations Monthly'!$15:$15,'Project Finance Analysis'!CB$3,'Operations Monthly'!129:129) -> 37.79990768 | CC49: =-SUMIF('Operations Monthly'!$15:$15,'Project Finance Analysis'!CC$3,'Operations Monthly'!129:129) -> 85.25087563 | CD49: =-SUMIF('Operations Monthly'!$15:$15,'Project Finance Analysis'!CD$3,'Operations Monthly'!129:129) -> 38.5018551 | CE49: =-SUMIF('Operations Monthly'!$15:$15,'Project Finance Analysis'!CE$3,'Operations Monthly'!129:129) -> 86.4297533 | CF49: =-SUMIF('Operations Monthly'!$15:$15,'Project Finance Analysis'!CF$3,'Operations Monthly'!129:129) -> -97.63332173 | CG49: =-SUMIF('Operations Monthly'!$15:$15,'Project Finance Analysis'!CG$3,'Operations Monthly'!129:129) -> 91.37927386 | CH49: =-SUMIF('Operations Monthly'!$15:$15,'Project Finance Analysis'!CH$3,'Operations Monthly'!129:129) -> 34.81912911 | CI49: =-SUMIF('Operations Monthly'!$15:$15,'Project Finance Analysis'!CI$3,'Operations Monthly'!129:129) -> 92.62930001 | CJ49: =-SUMIF('Operations Monthly'!$15:$15,'Project Finance Analysis'!CJ$3,'Operations Monthly'!129:129) -> 35.50606618 | CK49: =-SUMIF('Operations Monthly'!$15:$15,'Project Finance Analysis'!CK$3,'Operations Monthly'!129:129) -> 93.89686993 | CL49: =-SUMIF('Operations Monthly'!$15:$15,'Project Finance Analysis'!CL$3,'Operations Monthly'!129:129) -> 36.20495381 | CM49: =-SUMIF('Operations Monthly'!$15:$15,'Project Finance Analysis'!CM$3,'Operations Monthly'!129:129) -> 95.1822347 | CN49: =-SUMIF('Operations Monthly'!$15:$15,'Project Finance Analysis'!CN$3,'Operations Monthly'!129:129) -> 36.91598772 | CO49: =-SUMIF('Operations Monthly'!$15:$15,'Project Finance Analysis'!CO$3,'Operations Monthly'!129:129) -> 96.48564905 | CP49: =-SUMIF('Operations Monthly'!$15:$15,'Project Finance Analysis'!CP$3,'Operations Monthly'!129:129) -> 37.63936673 | CQ49: =-SUMIF('Operations Monthly'!$15:$15,'Project Finance Analysis'!CQ$3,'Operations Monthly'!129:129) -> 97.80737143 | CR49: =-SUMIF('Operations Monthly'!$15:$15,'Project Finance Analysis'!CR$3,'Operations Monthly'!129:129) -> 38.37529282 | CS49: =-SUMIF('Operations Monthly'!$15:$15,'Project Finance Analysis'!CS$3,'Operations Monthly'!129:129) -> -192.4469383 | CT49: =-SUMIF('Operations Monthly'!$15:$15,'Project Finance Analysis'!CT$3,'Operations Monthly'!129:129) -> 36.9451518 | CU49: =-SUMIF('Operations Monthly'!$15:$15,'Project Finance Analysis'!CU$3,'Operations Monthly'!129:129) -> 98.31169315 | CV49: =-SUMIF('Operations Monthly'!$15:$15,'Project Finance Analysis'!CV$3,'Operations Monthly'!129:129) -> 37.67410852 | CW49: =-SUMIF('Operations Monthly'!$15:$15,'Project Finance Analysis'!CW$3,'Operations Monthly'!129:129) -> 99.65700153 | CX49: =-SUMIF('Operations Monthly'!$15:$15,'Project Finance Analysis'!CX$3,'Operations Monthly'!129:129) -> 38.41574737 | CY49: =-SUMIF('Operations Monthly'!$15:$15,'Project Finance Analysis'!CY$3,'Operations Monthly'!129:129) -> 101.0211959 | CZ49: =-SUMIF('Operations Monthly'!$15:$15,'Project Finance Analysis'!CZ$3,'Operations Monthly'!129:129) -> 39.17027608 | DA49: =-SUMIF('Operations Monthly'!$15:$15,'Project Finance Analysis'!DA$3,'Operations Monthly'!129:129) -> 102.4045465 | DB49: =-SUMIF('Operations Monthly'!$15:$15,'Project Finance Analysis'!DB$3,'Operations Monthly'!129:129) -> -9267.973279 | DC49: =-SUMIF('Operations Monthly'!$15:$15,'Project Finance Analysis'!DC$3,'Operations Monthly'!129:129) -> 0 | DD49: =-SUMIF('Operations Monthly'!$15:$15,'Project Finance Analysis'!DD$3,'Operations Monthly'!129:129) -> 0 | DE49: =-SUMIF('Operations Monthly'!$15:$15,'Project Finance Analysis'!DE$3,'Operations Monthly'!129:129) -> 0 | DF49: =-SUMIF('Operations Monthly'!$15:$15,'Project Finance Analysis'!DF$3,'Operations Monthly'!129:129) -> 0 | DG49: =-SUMIF('Operations Monthly'!$15:$15,'Project Finance Analysis'!DG$3,'Operations Monthly'!129:129) -> 0 | DH49: =-SUMIF('Operations Monthly'!$15:$15,'Project Finance Analysis'!DH$3,'Operations Monthly'!129:129) -> 0 | DI49: =-SUMIF('Operations Monthly'!$15:$15,'Project Finance Analysis'!DI$3,'Operations Monthly'!129:129) -> 0 | DJ49: =-SUMIF('Operations Monthly'!$15:$15,'Project Finance Analysis'!DJ$3,'Operations Monthly'!129:129) -> 0 | DK49: =-SUMIF('Operations Monthly'!$15:$15,'Project Finance Analysis'!DK$3,'Operations Monthly'!129:129) -> 0 | DL49: =-SUMIF('Operations Monthly'!$15:$15,'Project Finance Analysis'!DL$3,'Operations Monthly'!129:129) -> 0 | DM49: =-SUMIF('Operations Monthly'!$15:$15,'Project Finance Analysis'!DM$3,'Operations Monthly'!129:129) -> 0 | DN49: =-SUMIF('Operations Monthly'!$15:$15,'Project Finance Analysis'!DN$3,'Operations Monthly'!129:129) -> 0 | DO49: =-SUMIF('Operations Monthly'!$15:$15,'Project Finance Analysis'!DO$3,'Operations Monthly'!129:129) -> 0 | DP49: =-SUMIF('Operations Monthly'!$15:$15,'Project Finance Analysis'!DP$3,'Operations Monthly'!129:129) -> 0 | DQ49: =-SUMIF('Operations Monthly'!$15:$15,'Project Finance Analysis'!DQ$3,'Operations Monthly'!129:129) -> 0
C50: Depreciation Expense | L50: =SUMIF('Operations Monthly'!$15:$15,'Project Finance Analysis'!L$3,'Operations Monthly'!139:139) -> 0 | M50: =SUMIF('Operations Monthly'!$15:$15,'Project Finance Analysis'!M$3,'Operations Monthly'!139:139) -> 0 | N50: =SUMIF('Operations Monthly'!$15:$15,'Project Finance Analysis'!N$3,'Operations Monthly'!139:139) -> 0 | O50: =SUMIF('Operations Monthly'!$15:$15,'Project Finance Analysis'!O$3,'Operations Monthly'!139:139) -> 0 | P50: =SUMIF('Operations Monthly'!$15:$15,'Project Finance Analysis'!P$3,'Operations Monthly'!139:139) -> 0 | Q50: =SUMIF('Operations Monthly'!$15:$15,'Project Finance Analysis'!Q$3,'Operations Monthly'!139:139) -> 0 | R50: =SUMIF('Operations Monthly'!$15:$15,'Project Finance Analysis'!R$3,'Operations Monthly'!139:139) -> 0 | S50: =SUMIF('Operations Monthly'!$15:$15,'Project Finance Analysis'!S$3,'Operations Monthly'!139:139) -> 0 | T50: =SUMIF('Operations Monthly'!$15:$15,'Project Finance Analysis'!T$3,'Operations Monthly'!139:139) -> 0 | U50: =SUMIF('Operations Monthly'!$15:$15,'Project Finance Analysis'!U$3,'Operations Monthly'!139:139) -> 0 | V50: =SUMIF('Operations Monthly'!$15:$15,'Project Finance Analysis'!V$3,'Operations Monthly'!139:139) -> 0 | W50: =SUMIF('Operations Monthly'!$15:$15,'Project Finance Analysis'!W$3,'Operations Monthly'!139:139) -> 0 | X50: =SUMIF('Operations Monthly'!$15:$15,'Project Finance Analysis'!X$3,'Operations Monthly'!139:139) -> 0 | Y50: =SUMIF('Operations Monthly'!$15:$15,'Project Finance Analysis'!Y$3,'Operations Monthly'!139:139) -> 0 | Z50: =SUMIF('Operations Monthly'!$15:$15,'Project Finance Analysis'!Z$3,'Operations Monthly'!139:139) -> 0 | AA50: =SUMIF('Operations Monthly'!$15:$15,'Project Finance Analysis'!AA$3,'Operations Monthly'!139:139) -> 0 | AB50: =SUMIF('Operations Monthly'!$15:$15,'Project Finance Analysis'!AB$3,'Operations Monthly'!139:139) -> 0 | AC50: =SUMIF('Operations Monthly'!$15:$15,'Project Finance Analysis'!AC$3,'Operations Monthly'!139:139) -> 0 | AD50: =SUMIF('Operations Monthly'!$15:$15,'Project Finance Analysis'!AD$3,'Operations Monthly'!139:139) -> 0 | AE50: =SUMIF('Operations Monthly'!$15:$15,'Project Finance Analysis'!AE$3,'Operations Monthly'!139:139) -> 0 | AF50: =SUMIF('Operations Monthly'!$15:$15,'Project Finance Analysis'!AF$3,'Operations Monthly'!139:139) -> 0 | AG50: =SUMIF('Operations Monthly'!$15:$15,'Project Finance Analysis'!AG$3,'Operations Monthly'!139:139) -> 0 | AH50: =SUMIF('Operations Monthly'!$15:$15,'Project Finance Analysis'!AH$3,'Operations Monthly'!139:139) -> 0 | AI50: =SUMIF('Operations Monthly'!$15:$15,'Project Finance Analysis'!AI$3,'Operations Monthly'!139:139) -> 0 | AJ50: =SUMIF('Operations Monthly'!$15:$15,'Project Finance Analysis'!AJ$3,'Operations Monthly'!139:139) -> 0 | AK50: =SUMIF('Operations Monthly'!$15:$15,'Project Finance Analysis'!AK$3,'Operations Monthly'!139:139) -> 0 | AL50: =SUMIF('Operations Monthly'!$15:$15,'Project Finance Analysis'!AL$3,'Operations Monthly'!139:139) -> 0 | AM50: =SUMIF('Operations Monthly'!$15:$15,'Project Finance Analysis'!AM$3,'Operations Monthly'!139:139) -> 0 | AN50: =SUMIF('Operations Monthly'!$15:$15,'Project Finance Analysis'!AN$3,'Operations Monthly'!139:139) -> 0 | AO50: =SUMIF('Operations Monthly'!$15:$15,'Project Finance Analysis'!AO$3,'Operations Monthly'!139:139) -> 0 | AP50: =SUMIF('Operations Monthly'!$15:$15,'Project Finance Analysis'!AP$3,'Operations Monthly'!139:139) -> 0 | AQ50: =SUMIF('Operations Monthly'!$15:$15,'Project Finance Analysis'!AQ$3,'Operations Monthly'!139:139) -> 0 | AR50: =SUMIF('Operations Monthly'!$15:$15,'Project Finance Analysis'!AR$3,'Operations Monthly'!139:139) -> 0 | AS50: =SUMIF('Operations Monthly'!$15:$15,'Project Finance Analysis'!AS$3,'Operations Monthly'!139:139) -> 0 | AT50: =SUMIF('Operations Monthly'!$15:$15,'Project Finance Analysis'!AT$3,'Operations Monthly'!139:139) -> 0 | AU50: =SUMIF('Operations Monthly'!$15:$15,'Project Finance Analysis'!AU$3,'Operations Monthly'!139:139) -> 0 | AV50: =SUMIF('Operations Monthly'!$15:$15,'Project Finance Analysis'!AV$3,'Operations Monthly'!139:139) -> 0 | AW50: =SUMIF('Operations Monthly'!$15:$15,'Project Finance Analysis'!AW$3,'Operations Monthly'!139:139) -> 0 | AX50: =SUMIF('Operations Monthly'!$15:$15,'Project Finance Analysis'!AX$3,'Operations Monthly'!139:139) -> 0 | AY50: =SUMIF('Operations Monthly'!$15:$15,'Project Finance Analysis'!AY$3,'Operations Monthly'!139:139) -> 0 | AZ50: =SUMIF('Operations Monthly'!$15:$15,'Project Finance Analysis'!AZ$3,'Operations Monthly'!139:139) -> 0 | BA50: =SUMIF('Operations Monthly'!$15:$15,'Project Finance Analysis'!BA$3,'Operations Monthly'!139:139) -> 0 | BB50: =SUMIF('Operations Monthly'!$15:$15,'Project Finance Analysis'!BB$3,'Operations Monthly'!139:139) -> 0 | BC50: =SUMIF('Operations Monthly'!$15:$15,'Project Finance Analysis'!BC$3,'Operations Monthly'!139:139) -> 0 | BD50: =SUMIF('Operations Monthly'!$15:$15,'Project Finance Analysis'!BD$3,'Operations Monthly'!139:139) -> 60000 | BE50: =SUMIF('Operations Monthly'!$15:$15,'Project Finance Analysis'!BE$3,'Operations Monthly'!139:139) -> 60000 | BF50: =SUMIF('Operations Monthly'!$15:$15,'Project Finance Analysis'!BF$3,'Operations Monthly'!139:139) -> 48000 | BG50: =SUMIF('Operations Monthly'!$15:$15,'Project Finance Analysis'!BG$3,'Operations Monthly'!139:139) -> 48000 | BH50: =SUMIF('Operations Monthly'!$15:$15,'Project Finance Analysis'!BH$3,'Operations Monthly'!139:139) -> 38400 | BI50: =SUMIF('Operations Monthly'!$15:$15,'Project Finance Analysis'!BI$3,'Operations Monthly'!139:139) -> 38400 | BJ50: =SUMIF('Operations Monthly'!$15:$15,'Project Finance Analysis'!BJ$3,'Operations Monthly'!139:139) -> 30720 | BK50: =SUMIF('Operations Monthly'!$15:$15,'Project Finance Analysis'!BK$3,'Operations Monthly'!139:139) -> 30720 | BL50: =SUMIF('Operations Monthly'!$15:$15,'Project Finance Analysis'!BL$3,'Operations Monthly'!139:139) -> 24576 | BM50: =SUMIF('Operations Monthly'!$15:$15,'Project Finance Analysis'!BM$3,'Operations Monthly'!139:139) -> 24576 | BN50: =SUMIF('Operations Monthly'!$15:$15,'Project Finance Analysis'!BN$3,'Operations Monthly'!139:139) -> 19660.8 | BO50: =SUMIF('Operations Monthly'!$15:$15,'Project Finance Analysis'!BO$3,'Operations Monthly'!139:139) -> 19660.8 | BP50: =SUMIF('Operations Monthly'!$15:$15,'Project Finance Analysis'!BP$3,'Operations Monthly'!139:139) -> 19660.8 | BQ50: =SUMIF('Operations Monthly'!$15:$15,'Project Finance Analysis'!BQ$3,'Operations Monthly'!139:139) -> 19660.8 | BR50: =SUMIF('Operations Monthly'!$15:$15,'Project Finance Analysis'!BR$3,'Operations Monthly'!139:139) -> 19660.8 | BS50: =SUMIF('Operations Monthly'!$15:$15,'Project Finance Analysis'!BS$3,'Operations Monthly'!139:139) -> 19660.8 | BT50: =SUMIF('Operations Monthly'!$15:$15,'Project Finance Analysis'!BT$3,'Operations Monthly'!139:139) -> 19660.8 | BU50: =SUMIF('Operations Monthly'!$15:$15,'Project Finance Analysis'!BU$3,'Operations Monthly'!139:139) -> 19660.8 | BV50: =SUMIF('Operations Monthly'!$15:$15,'Project Finance Analysis'!BV$3,'Operations Monthly'!139:139) -> 19660.8 | BW50: =SUMIF('Operations Monthly'!$15:$15,'Project Finance Analysis'!BW$3,'Operations Monthly'!139:139) -> 19660.8 | BX50: =SUMIF('Operations Monthly'!$15:$15,'Project Finance Analysis'!BX$3,'Operations Monthly'!139:139) -> 0 | BY50: =SUMIF('Operations Monthly'!$15:$15,'Project Finance Analysis'!BY$3,'Operations Monthly'!139:139) -> 0 | BZ50: =SUMIF('Operations Monthly'!$15:$15,'Project Finance Analysis'!BZ$3,'Operations Monthly'!139:139) -> 0 | CA50: =SUMIF('Operations Monthly'!$15:$15,'Project Finance Analysis'!CA$3,'Operations Monthly'!139:139) -> 0 | CB50: =SUMIF('Operations Monthly'!$15:$15,'Project Finance Analysis'!CB$3,'Operations Monthly'!139:139) -> 0 | CC50: =SUMIF('Operations Monthly'!$15:$15,'Project Finance Analysis'!CC$3,'Operations Monthly'!139:139) -> 0 | CD50: =SUMIF('Operations Monthly'!$15:$15,'Project Finance Analysis'!CD$3,'Operations Monthly'!139:139) -> 0 | CE50: =SUMIF('Operations Monthly'!$15:$15,'Project Finance Analysis'!CE$3,'Operations Monthly'!139:139) -> 0 | CF50: =SUMIF('Operations Monthly'!$15:$15,'Project Finance Analysis'!CF$3,'Operations Monthly'!139:139) -> 0 | CG50: =SUMIF('Operations Monthly'!$15:$15,'Project Finance Analysis'!CG$3,'Operations Monthly'!139:139) -> 0 | CH50: =SUMIF('Operations Monthly'!$15:$15,'Project Finance Analysis'!CH$3,'Operations Monthly'!139:139) -> 0 | CI50: =SUMIF('Operations Monthly'!$15:$15,'Project Finance Analysis'!CI$3,'Operations Monthly'!139:139) -> 0 | CJ50: =SUMIF('Operations Monthly'!$15:$15,'Project Finance Analysis'!CJ$3,'Operations Monthly'!139:139) -> 0 | CK50: =SUMIF('Operations Monthly'!$15:$15,'Project Finance Analysis'!CK$3,'Operations Monthly'!139:139) -> 0 | CL50: =SUMIF('Operations Monthly'!$15:$15,'Project Finance Analysis'!CL$3,'Operations Monthly'!139:139) -> 0 | CM50: =SUMIF('Operations Monthly'!$15:$15,'Project Finance Analysis'!CM$3,'Operations Monthly'!139:139) -> 0 | CN50: =SUMIF('Operations Monthly'!$15:$15,'Project Finance Analysis'!CN$3,'Operations Monthly'!139:139) -> 0 | CO50: =SUMIF('Operations Monthly'!$15:$15,'Project Finance Analysis'!CO$3,'Operations Monthly'!139:139) -> 0 | CP50: =SUMIF('Operations Monthly'!$15:$15,'Project Finance Analysis'!CP$3,'Operations Monthly'!139:139) -> 0 | CQ50: =SUMIF('Operations Monthly'!$15:$15,'Project Finance Analysis'!CQ$3,'Operations Monthly'!139:139) -> 0 | CR50: =SUMIF('Operations Monthly'!$15:$15,'Project Finance Analysis'!CR$3,'Operations Monthly'!139:139) -> 0 | CS50: =SUMIF('Operations Monthly'!$15:$15,'Project Finance Analysis'!CS$3,'Operations Monthly'!139:139) -> 0 | CT50: =SUMIF('Operations Monthly'!$15:$15,'Project Finance Analysis'!CT$3,'Operations Monthly'!139:139) -> 0 | CU50: =SUMIF('Operations Monthly'!$15:$15,'Project Finance Analysis'!CU$3,'Operations Monthly'!139:139) -> 0 | CV50: =SUMIF('Operations Monthly'!$15:$15,'Project Finance Analysis'!CV$3,'Operations Monthly'!139:139) -> 0 | CW50: =SUMIF('Operations Monthly'!$15:$15,'Project Finance Analysis'!CW$3,'Operations Monthly'!139:139) -> 0 | CX50: =SUMIF('Operations Monthly'!$15:$15,'Project Finance Analysis'!CX$3,'Operations Monthly'!139:139) -> 0 | CY50: =SUMIF('Operations Monthly'!$15:$15,'Project Finance Analysis'!CY$3,'Operations Monthly'!139:139) -> 0 | CZ50: =SUMIF('Operations Monthly'!$15:$15,'Project Finance Analysis'!CZ$3,'Operations Monthly'!139:139) -> 0 | DA50: =SUMIF('Operations Monthly'!$15:$15,'Project Finance Analysis'!DA$3,'Operations Monthly'!139:139) -> 0 | DB50: =SUMIF('Operations Monthly'!$15:$15,'Project Finance Analysis'!DB$3,'Operations Monthly'!139:139) -> 0 | DC50: =SUMIF('Operations Monthly'!$15:$15,'Project Finance Analysis'!DC$3,'Operations Monthly'!139:139) -> 0 | DD50: =SUMIF('Operations Monthly'!$15:$15,'Project Finance Analysis'!DD$3,'Operations Monthly'!139:139) -> 0 | DE50: =SUMIF('Operations Monthly'!$15:$15,'Project Finance Analysis'!DE$3,'Operations Monthly'!139:139) -> 0 | DF50: =SUMIF('Operations Monthly'!$15:$15,'Project Finance Analysis'!DF$3,'Operations Monthly'!139:139) -> 0 | DG50: =SUMIF('Operations Monthly'!$15:$15,'Project Finance Analysis'!DG$3,'Operations Monthly'!139:139) -> 0 | DH50: =SUMIF('Operations Monthly'!$15:$15,'Project Finance Analysis'!DH$3,'Operations Monthly'!139:139) -> 0 | DI50: =SUMIF('Operations Monthly'!$15:$15,'Project Finance Analysis'!DI$3,'Operations Monthly'!139:139) -> 0 | DJ50: =SUMIF('Operations Monthly'!$15:$15,'Project Finance Analysis'!DJ$3,'Operations Monthly'!139:139) -> 0 | DK50: =SUMIF('Operations Monthly'!$15:$15,'Project Finance Analysis'!DK$3,'Operations Monthly'!139:139) -> 0 | DL50: =SUMIF('Operations Monthly'!$15:$15,'Project Finance Analysis'!DL$3,'Operations Monthly'!139:139) -> 0 | DM50: =SUMIF('Operations Monthly'!$15:$15,'Project Finance Analysis'!DM$3,'Operations Monthly'!139:139) -> 0 | DN50: =SUMIF('Operations Monthly'!$15:$15,'Project Finance Analysis'!DN$3,'Operations Monthly'!139:139) -> 0 | DO50: =SUMIF('Operations Monthly'!$15:$15,'Project Finance Analysis'!DO$3,'Operations Monthly'!139:139) -> 0 | DP50: =SUMIF('Operations Monthly'!$15:$15,'Project Finance Analysis'!DP$3,'Operations Monthly'!139:139) -> 0 | DQ50: =SUMIF('Operations Monthly'!$15:$15,'Project Finance Analysis'!DQ$3,'Operations Monthly'!139:139) -> 0
C51: Free Cash Flow | L51: =SUMIF('Operations Monthly'!$15:$15,'Project Finance Analysis'!L$3,'Operations Monthly'!156:156) -> -10000 | M51: =SUMIF('Operations Monthly'!$15:$15,'Project Finance Analysis'!M$3,'Operations Monthly'!156:156) -> -10000 | N51: =SUMIF('Operations Monthly'!$15:$15,'Project Finance Analysis'!N$3,'Operations Monthly'!156:156) -> -10000 | O51: =SUMIF('Operations Monthly'!$15:$15,'Project Finance Analysis'!O$3,'Operations Monthly'!156:156) -> -10000 | P51: =SUMIF('Operations Monthly'!$15:$15,'Project Finance Analysis'!P$3,'Operations Monthly'!156:156) -> -10000 | Q51: =SUMIF('Operations Monthly'!$15:$15,'Project Finance Analysis'!Q$3,'Operations Monthly'!156:156) -> -10000 | R51: =SUMIF('Operations Monthly'!$15:$15,'Project Finance Analysis'!R$3,'Operations Monthly'!156:156) -> -10000 | S51: =SUMIF('Operations Monthly'!$15:$15,'Project Finance Analysis'!S$3,'Operations Monthly'!156:156) -> -10000 | T51: =SUMIF('Operations Monthly'!$15:$15,'Project Finance Analysis'!T$3,'Operations Monthly'!156:156) -> -10000 | U51: =SUMIF('Operations Monthly'!$15:$15,'Project Finance Analysis'!U$3,'Operations Monthly'!156:156) -> -10000 | V51: =SUMIF('Operations Monthly'!$15:$15,'Project Finance Analysis'!V$3,'Operations Monthly'!156:156) -> -10000 | W51: =SUMIF('Operations Monthly'!$15:$15,'Project Finance Analysis'!W$3,'Operations Monthly'!156:156) -> -10000 | X51: =SUMIF('Operations Monthly'!$15:$15,'Project Finance Analysis'!X$3,'Operations Monthly'!156:156) -> -32500 | Y51: =SUMIF('Operations Monthly'!$15:$15,'Project Finance Analysis'!Y$3,'Operations Monthly'!156:156) -> -32500 | Z51: =SUMIF('Operations Monthly'!$15:$15,'Project Finance Analysis'!Z$3,'Operations Monthly'!156:156) -> -32500 | AA51: =SUMIF('Operations Monthly'!$15:$15,'Project Finance Analysis'!AA$3,'Operations Monthly'!156:156) -> -32500 | AB51: =SUMIF('Operations Monthly'!$15:$15,'Project Finance Analysis'!AB$3,'Operations Monthly'!156:156) -> -32500 | AC51: =SUMIF('Operations Monthly'!$15:$15,'Project Finance Analysis'!AC$3,'Operations Monthly'!156:156) -> -32500 | AD51: =SUMIF('Operations Monthly'!$15:$15,'Project Finance Analysis'!AD$3,'Operations Monthly'!156:156) -> -32500 | AE51: =SUMIF('Operations Monthly'!$15:$15,'Project Finance Analysis'!AE$3,'Operations Monthly'!156:156) -> -32500 | AF51: =SUMIF('Operations Monthly'!$15:$15,'Project Finance Analysis'!AF$3,'Operations Monthly'!156:156) -> -32500 | AG51: =SUMIF('Operations Monthly'!$15:$15,'Project Finance Analysis'!AG$3,'Operations Monthly'!156:156) -> -32500 | AH51: =SUMIF('Operations Monthly'!$15:$15,'Project Finance Analysis'!AH$3,'Operations Monthly'!156:156) -> -32500 | AI51: =SUMIF('Operations Monthly'!$15:$15,'Project Finance Analysis'!AI$3,'Operations Monthly'!156:156) -> -32500 | AJ51: =SUMIF('Operations Monthly'!$15:$15,'Project Finance Analysis'!AJ$3,'Operations Monthly'!156:156) -> -7500 | AK51: =SUMIF('Operations Monthly'!$15:$15,'Project Finance Analysis'!AK$3,'Operations Monthly'!156:156) -> -7500 | AL51: =SUMIF('Operations Monthly'!$15:$15,'Project Finance Analysis'!AL$3,'Operations Monthly'!156:156) -> -7500 | AM51: =SUMIF('Operations Monthly'!$15:$15,'Project Finance Analysis'!AM$3,'Operations Monthly'!156:156) -> -7500 | AN51: =SUMIF('Operations Monthly'!$15:$15,'Project Finance Analysis'!AN$3,'Operations Monthly'!156:156) -> -7500 | AO51: =SUMIF('Operations Monthly'!$15:$15,'Project Finance Analysis'!AO$3,'Operations Monthly'!156:156) -> -7500 | AP51: =SUMIF('Operations Monthly'!$15:$15,'Project Finance Analysis'!AP$3,'Operations Monthly'!156:156) -> -7500 | AQ51: =SUMIF('Operations Monthly'!$15:$15,'Project Finance Analysis'!AQ$3,'Operations Monthly'!156:156) -> -7500 | AR51: =SUMIF('Operations Monthly'!$15:$15,'Project Finance Analysis'!AR$3,'Operations Monthly'!156:156) -> -7500 | AS51: =SUMIF('Operations Monthly'!$15:$15,'Project Finance Analysis'!AS$3,'Operations Monthly'!156:156) -> -7500 | AT51: =SUMIF('Operations Monthly'!$15:$15,'Project Finance Analysis'!AT$3,'Operations Monthly'!156:156) -> -7500 | AU51: =SUMIF('Operations Monthly'!$15:$15,'Project Finance Analysis'!AU$3,'Operations Monthly'!156:156) -> -7500 | AV51: =SUMIF('Operations Monthly'!$15:$15,'Project Finance Analysis'!AV$3,'Operations Monthly'!156:156) -> 0 | AW51: =SUMIF('Operations Monthly'!$15:$15,'Project Finance Analysis'!AW$3,'Operations Monthly'!156:156) -> 0 | AX51: =SUMIF('Operations Monthly'!$15:$15,'Project Finance Analysis'!AX$3,'Operations Monthly'!156:156) -> 0 | AY51: =SUMIF('Operations Monthly'!$15:$15,'Project Finance Analysis'!AY$3,'Operations Monthly'!156:156) -> 0 | AZ51: =SUMIF('Operations Monthly'!$15:$15,'Project Finance Analysis'!AZ$3,'Operations Monthly'!156:156) -> 0 | BA51: =SUMIF('Operations Monthly'!$15:$15,'Project Finance Analysis'!BA$3,'Operations Monthly'!156:156) -> 0 | BB51: =SUMIF('Operations Monthly'!$15:$15,'Project Finance Analysis'!BB$3,'Operations Monthly'!156:156) -> 0 | BC51: =SUMIF('Operations Monthly'!$15:$15,'Project Finance Analysis'!BC$3,'Operations Monthly'!156:156) -> -1.33226763e-10 | BD51: =SUMIF('Operations Monthly'!$15:$15,'Project Finance Analysis'!BD$3,'Operations Monthly'!156:156) -> 16909.14518 | BE51: =SUMIF('Operations Monthly'!$15:$15,'Project Finance Analysis'!BE$3,'Operations Monthly'!156:156) -> 24041.09258 | BF51: =SUMIF('Operations Monthly'!$15:$15,'Project Finance Analysis'!BF$3,'Operations Monthly'!156:156) -> 25213.0574 | BG51: =SUMIF('Operations Monthly'!$15:$15,'Project Finance Analysis'!BG$3,'Operations Monthly'!156:156) -> 26083.00122 | BH51: =SUMIF('Operations Monthly'!$15:$15,'Project Finance Analysis'!BH$3,'Operations Monthly'!156:156) -> 25734.74944 | BI51: =SUMIF('Operations Monthly'!$15:$15,'Project Finance Analysis'!BI$3,'Operations Monthly'!156:156) -> 26343.83123 | BJ51: =SUMIF('Operations Monthly'!$15:$15,'Project Finance Analysis'!BJ$3,'Operations Monthly'!156:156) -> 26000.69857 | BK51: =SUMIF('Operations Monthly'!$15:$15,'Project Finance Analysis'!BK$3,'Operations Monthly'!156:156) -> 26687.2383 | BL51: =SUMIF('Operations Monthly'!$15:$15,'Project Finance Analysis'!BL$3,'Operations Monthly'!156:156) -> 26598.93845 | BM51: =SUMIF('Operations Monthly'!$15:$15,'Project Finance Analysis'!BM$3,'Operations Monthly'!156:156) -> 27582.78786 | BN51: =SUMIF('Operations Monthly'!$15:$15,'Project Finance Analysis'!BN$3,'Operations Monthly'!156:156) -> 27478.73006 | BO51: =SUMIF('Operations Monthly'!$15:$15,'Project Finance Analysis'!BO$3,'Operations Monthly'!156:156) -> 28024.5704 | BP51: =SUMIF('Operations Monthly'!$15:$15,'Project Finance Analysis'!BP$3,'Operations Monthly'!156:156) -> 27733.98042 | BQ51: =SUMIF('Operations Monthly'!$15:$15,'Project Finance Analysis'!BQ$3,'Operations Monthly'!156:156) -> 28473.26008 | BR51: =SUMIF('Operations Monthly'!$15:$15,'Project Finance Analysis'!BR$3,'Operations Monthly'!156:156) -> 28178.24917 | BS51: =SUMIF('Operations Monthly'!$15:$15,'Project Finance Analysis'!BS$3,'Operations Monthly'!156:156) -> 28928.96331 | BT51: =SUMIF('Operations Monthly'!$15:$15,'Project Finance Analysis'!BT$3,'Operations Monthly'!156:156) -> 28629.46455 | BU51: =SUMIF('Operations Monthly'!$15:$15,'Project Finance Analysis'!BU$3,'Operations Monthly'!156:156) -> 29391.78814 | BV51: =SUMIF('Operations Monthly'!$15:$15,'Project Finance Analysis'!BV$3,'Operations Monthly'!156:156) -> 28835.70488 | BW51: =SUMIF('Operations Monthly'!$15:$15,'Project Finance Analysis'!BW$3,'Operations Monthly'!156:156) -> 29356.62581 | BX51: =SUMIF('Operations Monthly'!$15:$15,'Project Finance Analysis'!BX$3,'Operations Monthly'!156:156) -> 27923.13962 | BY51: =SUMIF('Operations Monthly'!$15:$15,'Project Finance Analysis'!BY$3,'Operations Monthly'!156:156) -> 28222.25587 | BZ51: =SUMIF('Operations Monthly'!$15:$15,'Project Finance Analysis'!BZ$3,'Operations Monthly'!156:156) -> 20988.4932 | CA51: =SUMIF('Operations Monthly'!$15:$15,'Project Finance Analysis'!CA$3,'Operations Monthly'!156:156) -> 21543.15801 | CB51: =SUMIF('Operations Monthly'!$15:$15,'Project Finance Analysis'!CB$3,'Operations Monthly'!156:156) -> 21327.47192 | CC51: =SUMIF('Operations Monthly'!$15:$15,'Project Finance Analysis'!CC$3,'Operations Monthly'!156:156) -> 21890.81034 | CD51: =SUMIF('Operations Monthly'!$15:$15,'Project Finance Analysis'!CD$3,'Operations Monthly'!156:156) -> 21819.18929 | CE51: =SUMIF('Operations Monthly'!$15:$15,'Project Finance Analysis'!CE$3,'Operations Monthly'!156:156) -> 22243.9225 | CF51: =SUMIF('Operations Monthly'!$15:$15,'Project Finance Analysis'!CF$3,'Operations Monthly'!156:156) -> 21236.52047 | CG51: =SUMIF('Operations Monthly'!$15:$15,'Project Finance Analysis'!CG$3,'Operations Monthly'!156:156) -> 21672.40846 | CH51: =SUMIF('Operations Monthly'!$15:$15,'Project Finance Analysis'!CH$3,'Operations Monthly'!156:156) -> 21450.78121 | CI51: =SUMIF('Operations Monthly'!$15:$15,'Project Finance Analysis'!CI$3,'Operations Monthly'!156:156) -> 22027.39292 | CJ51: =SUMIF('Operations Monthly'!$15:$15,'Project Finance Analysis'!CJ$3,'Operations Monthly'!156:156) -> 21802.30447 | CK51: =SUMIF('Operations Monthly'!$15:$15,'Project Finance Analysis'!CK$3,'Operations Monthly'!156:156) -> 22388.00113 | CL51: =SUMIF('Operations Monthly'!$15:$15,'Project Finance Analysis'!CL$3,'Operations Monthly'!156:156) -> 22315.85639 | CM51: =SUMIF('Operations Monthly'!$15:$15,'Project Finance Analysis'!CM$3,'Operations Monthly'!156:156) -> 22754.32044 | CN51: =SUMIF('Operations Monthly'!$15:$15,'Project Finance Analysis'!CN$3,'Operations Monthly'!156:156) -> 22522.14891 | CO51: =SUMIF('Operations Monthly'!$15:$15,'Project Finance Analysis'!CO$3,'Operations Monthly'!156:156) -> 23126.43953 | CP51: =SUMIF('Operations Monthly'!$15:$15,'Project Finance Analysis'!CP$3,'Operations Monthly'!156:156) -> 22890.64448 | CQ51: =SUMIF('Operations Monthly'!$15:$15,'Project Finance Analysis'!CQ$3,'Operations Monthly'!156:156) -> 23504.44845 | CR51: =SUMIF('Operations Monthly'!$15:$15,'Project Finance Analysis'!CR$3,'Operations Monthly'!156:156) -> 23264.97413 | CS51: =SUMIF('Operations Monthly'!$15:$15,'Project Finance Analysis'!CS$3,'Operations Monthly'!156:156) -> 23883.7595 | CT51: =SUMIF('Operations Monthly'!$15:$15,'Project Finance Analysis'!CT$3,'Operations Monthly'!156:156) -> 22925.11739 | CU51: =SUMIF('Operations Monthly'!$15:$15,'Project Finance Analysis'!CU$3,'Operations Monthly'!156:156) -> 23375.8701 | CV51: =SUMIF('Operations Monthly'!$15:$15,'Project Finance Analysis'!CV$3,'Operations Monthly'!156:156) -> 23136.99406 | CW51: =SUMIF('Operations Monthly'!$15:$15,'Project Finance Analysis'!CW$3,'Operations Monthly'!156:156) -> 23758.56321 | CX51: =SUMIF('Operations Monthly'!$15:$15,'Project Finance Analysis'!CX$3,'Operations Monthly'!156:156) -> 23515.95736 | CY51: =SUMIF('Operations Monthly'!$15:$15,'Project Finance Analysis'!CY$3,'Operations Monthly'!156:156) -> 24147.31727 | CZ51: =SUMIF('Operations Monthly'!$15:$15,'Project Finance Analysis'!CZ$3,'Operations Monthly'!156:156) -> 23900.92421 | DA51: =SUMIF('Operations Monthly'!$15:$15,'Project Finance Analysis'!DA$3,'Operations Monthly'!156:156) -> 24542.22639 | DB51: =SUMIF('Operations Monthly'!$15:$15,'Project Finance Analysis'!DB$3,'Operations Monthly'!156:156) -> 9267.973279 | DC51: =SUMIF('Operations Monthly'!$15:$15,'Project Finance Analysis'!DC$3,'Operations Monthly'!156:156) -> 0 | DD51: =SUMIF('Operations Monthly'!$15:$15,'Project Finance Analysis'!DD$3,'Operations Monthly'!156:156) -> 0 | DE51: =SUMIF('Operations Monthly'!$15:$15,'Project Finance Analysis'!DE$3,'Operations Monthly'!156:156) -> 0 | DF51: =SUMIF('Operations Monthly'!$15:$15,'Project Finance Analysis'!DF$3,'Operations Monthly'!156:156) -> 0 | DG51: =SUMIF('Operations Monthly'!$15:$15,'Project Finance Analysis'!DG$3,'Operations Monthly'!156:156) -> 0 | DH51: =SUMIF('Operations Monthly'!$15:$15,'Project Finance Analysis'!DH$3,'Operations Monthly'!156:156) -> 0 | DI51: =SUMIF('Operations Monthly'!$15:$15,'Project Finance Analysis'!DI$3,'Operations Monthly'!156:156) -> 0 | DJ51: =SUMIF('Operations Monthly'!$15:$15,'Project Finance Analysis'!DJ$3,'Operations Monthly'!156:156) -> 0 | DK51: =SUMIF('Operations Monthly'!$15:$15,'Project Finance Analysis'!DK$3,'Operations Monthly'!156:156) -> 0 | DL51: =SUMIF('Operations Monthly'!$15:$15,'Project Finance Analysis'!DL$3,'Operations Monthly'!156:156) -> 0 | DM51: =SUMIF('Operations Monthly'!$15:$15,'Project Finance Analysis'!DM$3,'Operations Monthly'!156:156) -> 0 | DN51: =SUMIF('Operations Monthly'!$15:$15,'Project Finance Analysis'!DN$3,'Operations Monthly'!156:156) -> 0 | DO51: =SUMIF('Operations Monthly'!$15:$15,'Project Finance Analysis'!DO$3,'Operations Monthly'!156:156) -> 0 | DP51: =SUMIF('Operations Monthly'!$15:$15,'Project Finance Analysis'!DP$3,'Operations Monthly'!156:156) -> 0 | DQ51: =SUMIF('Operations Monthly'!$15:$15,'Project Finance Analysis'!DQ$3,'Operations Monthly'!156:156) -> 0
A53: Debt Sizing
B54: Aggregate Sources and Uses
C55: Uses
D56: Capital Expenditures | G56: =SUM(48:48) -> 600000
D57: Add: Interest During Construction | G57: =SUM(98:98) -> 0
D58: Add: Fees During Construction
D59: Add: DSRA
D60: Add: Pre-funded Working Cap | G60: =SUMIF(2:2,F3,49:49) -> 6590.259912
D61: Total | G61: =SUM(G56:G60) -> 606590.2599
C63: Sources
D64: Debt | E64: =F14 -> 0.7 | G64: =G16 -> 0 | H64: =G61*E64 -> 424613.1819
D65: Equity | G65: =G61-G64 -> 606590.2599
D66: Total | G66: =SUM(G64:G65) -> 606590.2599
B68: Working Capital Facility
C69: Opening Balance | L69: =K72 -> 0 | M69: =L72 -> 0 | N69: 0 | O69: 0 | P69: 0 | Q69: 0 | R69: 0 | S69: 0 | T69: 0 | U69: 0 | V69: 0 | W69: 0 | X69: 0 | Y69: 0 | Z69: 0 | AA69: 0 | AB69: 0 | AC69: 0 | AD69: 0 | AE69: 0 | AF69: 0 | AG69: 0 | AH69: 0 | AI69: 0 | AJ69: 0 | AK69: 0 | AL69: 0 | AM69: 0 | AN69: 0 | AO69: 0 | AP69: 0 | AQ69: 0 | AR69: 0 | AS69: 0 | AT69: 0 | AU69: 0 | AV69: 0 | AW69: 0 | AX69: 0 | AY69: 0 | AZ69: 0 | BA69: 0 | BB69: 0 | BC69: 0 | BD69: 6590.259912 | BE69: 0 | BF69: 0 | BG69: 0 | BH69: 0 | BI69: 0 | BJ69: 0 | BK69: 0 | BL69: 0 | BM69: 0 | BN69: 0 | BO69: 0 | BP69: 0 | BQ69: 0 | BR69: 0 | BS69: 0 | BT69: 0 | BU69: 0 | BV69: 0 | BW69: 0 | BX69: 0 | BY69: =BX72 -> 0 | BZ69: 0 | CA69: 0 | CB69: 0 | CC69: 0 | CD69: 0 | CE69: 0 | CF69: 0 | CG69: 0 | CH69: 0 | CI69: 0 | CJ69: 0 | CK69: 0 | CL69: 0 | CM69: 0 | CN69: 0 | CO69: 0 | CP69: 0 | CQ69: 0 | CR69: 0 | CS69: 0 | CT69: 0 | CU69: 0 | CV69: 0 | CW69: 0 | CX69: 0 | CY69: 0 | CZ69: 0 | DA69: 0 | DB69: 0 | DC69: 0 | DD69: 0 | DE69: 0 | DF69: 0 | DG69: 0 | DH69: 0 | DI69: 0 | DJ69: 0 | DK69: 0 | DL69: 0 | DM69: 0 | DN69: 0 | DO69: 0 | DP69: 0 | DQ69: 0
C70: Add: Working Capital Deposit | L70: =$G$60*L5 -> 0 | M70: 0 | N70: 0 | O70: 0 | P70: 0 | Q70: 0 | R70: 0 | S70: 0 | T70: 0 | U70: 0 | V70: 0 | W70: 0 | X70: 0 | Y70: 0 | Z70: 0 | AA70: 0 | AB70: 0 | AC70: 0 | AD70: 0 | AE70: 0 | AF70: 0 | AG70: 0 | AH70: 0 | AI70: 0 | AJ70: 0 | AK70: 0 | AL70: 0 | AM70: 0 | AN70: 0 | AO70: 0 | AP70: 0 | AQ70: 0 | AR70: =$G$60*AR5 -> 0 | AS70: 0 | AT70: 0 | AU70: 0 | AV70: 0 | AW70: 0 | AX70: 0 | AY70: 0 | AZ70: 0 | BA70: 0 | BB70: 0 | BC70: 6590.259912 | BD70: 0 | BE70: 0 | BF70: 0 | BG70: 0 | BH70: 0 | BI70: 0 | BJ70: 0 | BK70: 0 | BL70: 0 | BM70: 0 | BN70: 0 | BO70: 0 | BP70: 0 | BQ70: 0 | BR70: 0 | BS70: 0 | BT70: 0 | BU70: 0 | BV70: 0 | BW70: 0 | BX70: =$G$60*BX5 -> 0 | BY70: 0 | BZ70: 0 | CA70: 0 | CB70: 0 | CC70: 0 | CD70: 0 | CE70: 0 | CF70: 0 | CG70: 0 | CH70: 0 | CI70: 0 | CJ70: 0 | CK70: 0 | CL70: 0 | CM70: 0 | CN70: 0 | CO70: 0 | CP70: 0 | CQ70: 0 | CR70: 0 | CS70: 0 | CT70: 0 | CU70: 0 | CV70: 0 | CW70: 0 | CX70: 0 | CY70: 0 | CZ70: 0 | DA70: 0 | DB70: 0 | DC70: 0 | DD70: =$G$60*DD5 -> 0 | DE70: 0 | DF70: 0 | DG70: 0 | DH70: 0 | DI70: 0 | DJ70: 0 | DK70: 0 | DL70: 0 | DM70: 0 | DN70: 0 | DO70: 0 | DP70: 0 | DQ70: 0
C71: Less: Use of Working Capital | L71: =L9*L49 -> 0 | M71: 0 | N71: 0 | O71: 0 | P71: 0 | Q71: 0 | R71: 0 | S71: 0 | T71: 0 | U71: 0 | V71: 0 | W71: 0 | X71: 0 | Y71: 0 | Z71: 0 | AA71: 0 | AB71: 0 | AC71: 0 | AD71: 0 | AE71: 0 | AF71: 0 | AG71: 0 | AH71: 0 | AI71: 0 | AJ71: 0 | AK71: 0 | AL71: 0 | AM71: 0 | AN71: 0 | AO71: 0 | AP71: 0 | AQ71: 0 | AR71: =AR9*AR49 -> 0 | AS71: 0 | AT71: 0 | AU71: 0 | AV71: 0 | AW71: 0 | AX71: 0 | AY71: 0 | AZ71: 0 | BA71: 0 | BB71: 0 | BC71: 0 | BD71: 6590.259912 | BE71: 0 | BF71: 0 | BG71: 0 | BH71: 0 | BI71: 0 | BJ71: 0 | BK71: 0 | BL71: 0 | BM71: 0 | BN71: 0 | BO71: 0 | BP71: 0 | BQ71: 0 | BR71: 0 | BS71: 0 | BT71: 0 | BU71: 0 | BV71: 0 | BW71: 0 | BX71: =BX9*BX49 -> 0 | BY71: 0 | BZ71: 0 | CA71: 0 | CB71: 0 | CC71: 0 | CD71: 0 | CE71: 0 | CF71: 0 | CG71: 0 | CH71: 0 | CI71: 0 | CJ71: 0 | CK71: 0 | CL71: 0 | CM71: 0 | CN71: 0 | CO71: 0 | CP71: 0 | CQ71: 0 | CR71: 0 | CS71: 0 | CT71: 0 | CU71: 0 | CV71: 0 | CW71: 0 | CX71: 0 | CY71: 0 | CZ71: 0 | DA71: 0 | DB71: 0 | DC71: 0 | DD71: =DD9*DD49 -> 0 | DE71: 0 | DF71: 0 | DG71: 0 | DH71: 0 | DI71: 0 | DJ71: 0 | DK71: 0 | DL71: 0 | DM71: 0 | DN71: 0 | DO71: 0 | DP71: 0 | DQ71: 0
C72: Closing Balance | L72: =L69+L70-L71 -> 0 | M72: =M69+M70-M71 -> 0 | N72: 0 | O72: 0 | P72: 0 | Q72: 0 | R72: 0 | S72: 0 | T72: 0 | U72: 0 | V72: 0 | W72: 0 | X72: 0 | Y72: 0 | Z72: 0 | AA72: 0 | AB72: 0 | AC72: 0 | AD72: 0 | AE72: 0 | AF72: 0 | AG72: 0 | AH72: 0 | AI72: 0 | AJ72: 0 | AK72: 0 | AL72: 0 | AM72: 0 | AN72: 0 | AO72: 0 | AP72: 0 | AQ72: 0 | AR72: 0 | AS72: 0 | AT72: 0 | AU72: 0 | AV72: 0 | AW72: 0 | AX72: 0 | AY72: 0 | AZ72: 0 | BA72: 0 | BB72: 0 | BC72: 6590.259912 | BD72: 0 | BE72: 0 | BF72: 0 | BG72: 0 | BH72: 0 | BI72: 0 | BJ72: 0 | BK72: 0 | BL72: 0 | BM72: 0 | BN72: 0 | BO72: 0 | BP72: 0 | BQ72: 0 | BR72: 0 | BS72: 0 | BT72: 0 | BU72: 0 | BV72: 0 | BW72: 0 | BX72: 0 | BY72: =BY69+BY70-BY71 -> 0 | BZ72: 0 | CA72: 0 | CB72: 0 | CC72: 0 | CD72: 0 | CE72: 0 | CF72: 0 | CG72: 0 | CH72: 0 | CI72: 0 | CJ72: 0 | CK72: 0 | CL72: 0 | CM72: 0 | CN72: 0 | CO72: 0 | CP72: 0 | CQ72: 0 | CR72: 0 | CS72: 0 | CT72: 0 | CU72: 0 | CV72: 0 | CW72: 0 | CX72: 0 | CY72: 0 | CZ72: 0 | DA72: 0 | DB72: 0 | DC72: 0 | DD72: 0 | DE72: 0 | DF72: 0 | DG72: 0 | DH72: 0 | DI72: 0 | DJ72: 0 | DK72: 0 | DL72: 0 | DM72: 0 | DN72: 0 | DO72: 0 | DP72: 0 | DQ72: 0
A74: Debt Funding and Sources and Uses
B75: Pro-Rata
C76: Total Funding Needs
D77: Capital Expenditures | L77: =L48 -> 10000 | M77: 10000 | N77: 10000 | O77: 10000 | P77: 10000 | Q77: 10000 | R77: 10000 | S77: 10000 | T77: 10000 | U77: 10000 | V77: 10000 | W77: 10000 | X77: 32500 | Y77: 32500 | Z77: 32500 | AA77: 32500 | AB77: 32500 | AC77: 32500 | AD77: 32500 | AE77: 32500 | AF77: 32500 | AG77: 32500 | AH77: 32500 | AI77: 32500 | AJ77: 7500 | AK77: 7500 | AL77: 7500 | AM77: 7500 | AN77: 7500 | AO77: 7500 | AP77: 7500 | AQ77: 7500 | AR77: =AR48 -> 7500 | AS77: 7500 | AT77: 7500 | AU77: 7500 | AV77: 0 | AW77: 0 | AX77: 0 | AY77: 0 | AZ77: 0 | BA77: 0 | BB77: 0 | BC77: 1.33226763e-10 | BD77: 0 | BE77: 0 | BF77: 0 | BG77: 0 | BH77: 0 | BI77: 0 | BJ77: 0 | BK77: 0 | BL77: 0 | BM77: 0 | BN77: 0 | BO77: 0 | BP77: 0 | BQ77: 0 | BR77: 0 | BS77: 0 | BT77: 0 | BU77: 0 | BV77: 0 | BW77: 0 | BX77: =BX48 -> 0 | BY77: 0 | BZ77: 0 | CA77: 0 | CB77: 0 | CC77: 0 | CD77: 0 | CE77: 0 | CF77: 0 | CG77: 0 | CH77: 0 | CI77: 0 | CJ77: 0 | CK77: 0 | CL77: 0 | CM77: 0 | CN77: 0 | CO77: 0 | CP77: 0 | CQ77: 0 | CR77: 0 | CS77: 0 | CT77: 0 | CU77: 0 | CV77: 0 | CW77: 0 | CX77: 0 | CY77: 0 | CZ77: 0 | DA77: 0 | DB77: 0 | DC77: 0 | DD77: =DD48 -> 0 | DE77: 0 | DF77: 0 | DG77: 0 | DH77: 0 | DI77: 0 | DJ77: 0 | DK77: 0 | DL77: 0 | DM77: 0 | DN77: 0 | DO77: 0 | DP77: 0 | DQ77: 0
D78: Add: Interest During Construction | L78: =L98 -> 0 | M78: =M98 -> 0 | N78: 0 | O78: 0 | P78: 0 | Q78: 0 | R78: 0 | S78: 0 | T78: 0 | U78: 0 | V78: 0 | W78: 0 | X78: 0 | Y78: 0 | Z78: 0 | AA78: 0 | AB78: 0 | AC78: 0 | AD78: 0 | AE78: 0 | AF78: 0 | AG78: 0 | AH78: 0 | AI78: 0 | AJ78: 0 | AK78: 0 | AL78: 0 | AM78: 0 | AN78: 0 | AO78: 0 | AP78: 0 | AQ78: 0 | AR78: 0 | AS78: 0 | AT78: 0 | AU78: 0 | AV78: 0 | AW78: 0 | AX78: 0 | AY78: 0 | AZ78: 0 | BA78: 0 | BB78: 0 | BC78: 0 | BD78: 0 | BE78: 0 | BF78: 0 | BG78: 0 | BH78: 0 | BI78: 0 | BJ78: 0 | BK78: 0 | BL78: 0 | BM78: 0 | BN78: 0 | BO78: 0 | BP78: 0 | BQ78: 0 | BR78: 0 | BS78: 0 | BT78: 0 | BU78: 0 | BV78: 0 | BW78: 0 | BX78: 0 | BY78: =BY98 -> 0 | BZ78: 0 | CA78: 0 | CB78: 0 | CC78: 0 | CD78: 0 | CE78: 0 | CF78: 0 | CG78: 0 | CH78: 0 | CI78: 0 | CJ78: 0 | CK78: 0 | CL78: 0 | CM78: 0 | CN78: 0 | CO78: 0 | CP78: 0 | CQ78: 0 | CR78: 0 | CS78: 0 | CT78: 0 | CU78: 0 | CV78: 0 | CW78: 0 | CX78: 0 | CY78: 0 | CZ78: 0 | DA78: 0 | DB78: 0 | DC78: 0 | DD78: 0 | DE78: 0 | DF78: 0 | DG78: 0 | DH78: 0 | DI78: 0 | DJ78: 0 | DK78: 0 | DL78: 0 | DM78: 0 | DN78: 0 | DO78: 0 | DP78: 0 | DQ78: 0
D79: Add: Fees During Construction
D80: Add: DSRA
D81: Add: Funding of Working Captial | L81: =L70 -> 0 | M81: =M70 -> 0 | N81: 0 | O81: 0 | P81: 0 | Q81: 0 | R81: 0 | S81: 0 | T81: 0 | U81: 0 | V81: 0 | W81: 0 | X81: 0 | Y81: 0 | Z81: 0 | AA81: 0 | AB81: 0 | AC81: 0 | AD81: 0 | AE81: 0 | AF81: 0 | AG81: 0 | AH81: 0 | AI81: 0 | AJ81: 0 | AK81: 0 | AL81: 0 | AM81: 0 | AN81: 0 | AO81: 0 | AP81: 0 | AQ81: 0 | AR81: 0 | AS81: 0 | AT81: 0 | AU81: 0 | AV81: 0 | AW81: 0 | AX81: 0 | AY81: 0 | AZ81: 0 | BA81: 0 | BB81: 0 | BC81: 6590.259912 | BD81: 0 | BE81: 0 | BF81: 0 | BG81: 0 | BH81: 0 | BI81: 0 | BJ81: 0 | BK81: 0 | BL81: 0 | BM81: 0 | BN81: 0 | BO81: 0 | BP81: 0 | BQ81: 0 | BR81: 0 | BS81: 0 | BT81: 0 | BU81: 0 | BV81: 0 | BW81: 0 | BX81: 0 | BY81: =BY70 -> 0 | BZ81: 0 | CA81: 0 | CB81: 0 | CC81: 0 | CD81: 0 | CE81: 0 | CF81: 0 | CG81: 0 | CH81: 0 | CI81: 0 | CJ81: 0 | CK81: 0 | CL81: 0 | CM81: 0 | CN81: 0 | CO81: 0 | CP81: 0 | CQ81: 0 | CR81: 0 | CS81: 0 | CT81: 0 | CU81: 0 | CV81: 0 | CW81: 0 | CX81: 0 | CY81: 0 | CZ81: 0 | DA81: 0 | DB81: 0 | DC81: 0 | DD81: 0 | DE81: 0 | DF81: 0 | DG81: 0 | DH81: 0 | DI81: 0 | DJ81: 0 | DK81: 0 | DL81: 0 | DM81: 0 | DN81: 0 | DO81: 0 | DP81: 0 | DQ81: 0
D82: Total | L82: =SUM(L77:L81) -> 10000 | M82: =SUM(M77:M81) -> 10000 | N82: 10000 | O82: 10000 | P82: 10000 | Q82: 10000 | R82: 10000 | S82: 10000 | T82: 10000 | U82: 10000 | V82: 10000 | W82: 10000 | X82: 32500 | Y82: 32500 | Z82: 32500 | AA82: 32500 | AB82: 32500 | AC82: 32500 | AD82: 32500 | AE82: 32500 | AF82: 32500 | AG82: 32500 | AH82: 32500 | AI82: 32500 | AJ82: 7500 | AK82: 7500 | AL82: 7500 | AM82: 7500 | AN82: 7500 | AO82: 7500 | AP82: 7500 | AQ82: 7500 | AR82: 7500 | AS82: 7500 | AT82: 7500 | AU82: 7500 | AV82: 0 | AW82: 0 | AX82: 0 | AY82: 0 | AZ82: 0 | BA82: 0 | BB82: 0 | BC82: 6590.259912 | BD82: 0 | BE82: 0 | BF82: 0 | BG82: 0 | BH82: 0 | BI82: 0 | BJ82: 0 | BK82: 0 | BL82: 0 | BM82: 0 | BN82: 0 | BO82: 0 | BP82: 0 | BQ82: 0 | BR82: 0 | BS82: 0 | BT82: 0 | BU82: 0 | BV82: 0 | BW82: 0 | BX82: 0 | BY82: =SUM(BY77:BY81) -> 0 | BZ82: 0 | CA82: 0 | CB82: 0 | CC82: 0 | CD82: 0 | CE82: 0 | CF82: 0 | CG82: 0 | CH82: 0 | CI82: 0 | CJ82: 0 | CK82: 0 | CL82: 0 | CM82: 0 | CN82: 0 | CO82: 0 | CP82: 0 | CQ82: 0 | CR82: 0 | CS82: 0 | CT82: 0 | CU82: 0 | CV82: 0 | CW82: 0 | CX82: 0 | CY82: 0 | CZ82: 0 | DA82: 0 | DB82: 0 | DC82: 0 | DD82: 0 | DE82: 0 | DF82: 0 | DG82: 0 | DH82: 0 | DI82: 0 | DJ82: 0 | DK82: 0 | DL82: 0 | DM82: 0 | DN82: 0 | DO82: 0 | DP82: 0 | DQ82: 0
C84: Debt Funding Ratio - Pro Rata | L84: =L77/SUM(77:77) -> 0.01666666667 | M84: =M77/SUM(77:77) -> 0.01666666667 | N84: 0.01666666667 | O84: 0.01666666667 | P84: 0.01666666667 | Q84: 0.01666666667 | R84: 0.01666666667 | S84: 0.01666666667 | T84: 0.01666666667 | U84: 0.01666666667 | V84: 0.01666666667 | W84: 0.01666666667 | X84: 0.05416666667 | Y84: 0.05416666667 | Z84: 0.05416666667 | AA84: 0.05416666667 | AB84: 0.05416666667 | AC84: 0.05416666667 | AD84: 0.05416666667 | AE84: 0.05416666667 | AF84: 0.05416666667 | AG84: 0.05416666667 | AH84: 0.05416666667 | AI84: 0.05416666667 | AJ84: 0.0125 | AK84: 0.0125 | AL84: 0.0125 | AM84: 0.0125 | AN84: 0.0125 | AO84: 0.0125 | AP84: 0.0125 | AQ84: 0.0125 | AR84: 0.0125 | AS84: 0.0125 | AT84: 0.0125 | AU84: 0.0125 | AV84: 0 | AW84: 0 | AX84: 0 | AY84: 0 | AZ84: 0 | BA84: 0 | BB84: 0 | BC84: 2.220446049e-16 | BD84: 0 | BE84: 0 | BF84: 0 | BG84: 0 | BH84: 0 | BI84: 0 | BJ84: 0 | BK84: 0 | BL84: 0 | BM84: 0 | BN84: 0 | BO84: 0 | BP84: 0 | BQ84: 0 | BR84: 0 | BS84: 0 | BT84: 0 | BU84: 0 | BV84: 0 | BW84: 0 | BX84: 0 | BY84: =BY77/SUM(77:77) -> 0 | BZ84: 0 | CA84: 0 | CB84: 0 | CC84: 0 | CD84: 0 | CE84: 0 | CF84: 0 | CG84: 0 | CH84: 0 | CI84: 0 | CJ84: 0 | CK84: 0 | CL84: 0 | CM84: 0 | CN84: 0 | CO84: 0 | CP84: 0 | CQ84: 0 | CR84: 0 | CS84: 0 | CT84: 0 | CU84: 0 | CV84: 0 | CW84: 0 | CX84: 0 | CY84: 0 | CZ84: 0 | DA84: 0 | DB84: 0 | DC84: 0 | DD84: 0 | DE84: 0 | DF84: 0 | DG84: 0 | DH84: 0 | DI84: 0 | DJ84: 0 | DK84: 0 | DL84: 0 | DM84: 0 | DN84: 0 | DO84: 0 | DP84: 0 | DQ84: 0
C86: Debt Funding | E86: Debt | F86: =G16 -> 0 | L86: =$F$86*L84 -> 0 | M86: =$F$86*M84 -> 0 | N86: 0 | O86: 0 | P86: 0 | Q86: 0 | R86: 0 | S86: 0 | T86: 0 | U86: 0 | V86: 0 | W86: 0 | X86: 0 | Y86: 0 | Z86: 0 | AA86: 0 | AB86: 0 | AC86: 0 | AD86: 0 | AE86: 0 | AF86: 0 | AG86: 0 | AH86: 0 | AI86: 0 | AJ86: 0 | AK86: 0 | AL86: 0 | AM86: 0 | AN86: 0 | AO86: 0 | AP86: 0 | AQ86: 0 | AR86: 0 | AS86: 0 | AT86: 0 | AU86: 0 | AV86: 0 | AW86: 0 | AX86: 0 | AY86: 0 | AZ86: 0 | BA86: 0 | BB86: 0 | BC86: 0 | BD86: 0 | BE86: 0 | BF86: 0 | BG86: 0 | BH86: 0 | BI86: 0 | BJ86: 0 | BK86: 0 | BL86: 0 | BM86: 0 | BN86: 0 | BO86: 0 | BP86: 0 | BQ86: 0 | BR86: 0 | BS86: 0 | BT86: 0 | BU86: 0 | BV86: 0 | BW86: 0 | BX86: 0 | BY86: =$F$86*BY84 -> 0 | BZ86: 0 | CA86: 0 | CB86: 0 | CC86: 0 | CD86: 0 | CE86: 0 | CF86: 0 | CG86: 0 | CH86: 0 | CI86: 0 | CJ86: 0 | CK86: 0 | CL86: 0 | CM86: 0 | CN86: 0 | CO86: 0 | CP86: 0 | CQ86: 0 | CR86: 0 | CS86: 0 | CT86: 0 | CU86: 0 | CV86: 0 | CW86: 0 | CX86: 0 | CY86: 0 | CZ86: 0 | DA86: 0 | DB86: 0 | DC86: 0 | DD86: 0 | DE86: 0 | DF86: 0 | DG86: 0 | DH86: 0 | DI86: 0 | DJ86: 0 | DK86: 0 | DL86: 0 | DM86: 0 | DN86: 0 | DO86: 0 | DP86: 0 | DQ86: 0
C87: Equity Fiunding | L87: =L82-L86 -> 10000 | M87: =M82-M86 -> 10000 | N87: 10000 | O87: 10000 | P87: 10000 | Q87: 10000 | R87: 10000 | S87: 10000 | T87: 10000 | U87: 10000 | V87: 10000 | W87: 10000 | X87: 32500 | Y87: 32500 | Z87: 32500 | AA87: 32500 | AB87: 32500 | AC87: 32500 | AD87: 32500 | AE87: 32500 | AF87: 32500 | AG87: 32500 | AH87: 32500 | AI87: 32500 | AJ87: 7500 | AK87: 7500 | AL87: 7500 | AM87: 7500 | AN87: 7500 | AO87: 7500 | AP87: 7500 | AQ87: 7500 | AR87: 7500 | AS87: 7500 | AT87: 7500 | AU87: 7500 | AV87: 0 | AW87: 0 | AX87: 0 | AY87: 0 | AZ87: 0 | BA87: 0 | BB87: 0 | BC87: 6590.259912 | BD87: 0 | BE87: 0 | BF87: 0 | BG87: 0 | BH87: 0 | BI87: 0 | BJ87: 0 | BK87: 0 | BL87: 0 | BM87: 0 | BN87: 0 | BO87: 0 | BP87: 0 | BQ87: 0 | BR87: 0 | BS87: 0 | BT87: 0 | BU87: 0 | BV87: 0 | BW87: 0 | BX87: 0 | BY87: =BY82-BY86 -> 0 | BZ87: 0 | CA87: 0 | CB87: 0 | CC87: 0 | CD87: 0 | CE87: 0 | CF87: 0 | CG87: 0 | CH87: 0 | CI87: 0 | CJ87: 0 | CK87: 0 | CL87: 0 | CM87: 0 | CN87: 0 | CO87: 0 | CP87: 0 | CQ87: 0 | CR87: 0 | CS87: 0 | CT87: 0 | CU87: 0 | CV87: 0 | CW87: 0 | CX87: 0 | CY87: 0 | CZ87: 0 | DA87: 0 | DB87: 0 | DC87: 0 | DD87: 0 | DE87: 0 | DF87: 0 | DG87: 0 | DH87: 0 | DI87: 0 | DJ87: 0 | DK87: 0 | DL87: 0 | DM87: 0 | DN87: 0 | DO87: 0 | DP87: 0 | DQ87: 0
D88: Total Uses | L88: =SUM(L86:L87) -> 10000 | M88: =SUM(M86:M87) -> 10000 | N88: 10000 | O88: 10000 | P88: 10000 | Q88: 10000 | R88: 10000 | S88: 10000 | T88: 10000 | U88: 10000 | V88: 10000 | W88: 10000 | X88: 32500 | Y88: 32500 | Z88: 32500 | AA88: 32500 | AB88: 32500 | AC88: 32500 | AD88: 32500 | AE88: 32500 | AF88: 32500 | AG88: 32500 | AH88: 32500 | AI88: 32500 | AJ88: 7500 | AK88: 7500 | AL88: 7500 | AM88: 7500 | AN88: 7500 | AO88: 7500 | AP88: 7500 | AQ88: 7500 | AR88: 7500 | AS88: 7500 | AT88: 7500 | AU88: 7500 | AV88: 0 | AW88: 0 | AX88: 0 | AY88: 0 | AZ88: 0 | BA88: 0 | BB88: 0 | BC88: 6590.259912 | BD88: 0 | BE88: 0 | BF88: 0 | BG88: 0 | BH88: 0 | BI88: 0 | BJ88: 0 | BK88: 0 | BL88: 0 | BM88: 0 | BN88: 0 | BO88: 0 | BP88: 0 | BQ88: 0 | BR88: 0 | BS88: 0 | BT88: 0 | BU88: 0 | BV88: 0 | BW88: 0 | BX88: 0 | BY88: =SUM(BY86:BY87) -> 0 | BZ88: 0 | CA88: 0 | CB88: 0 | CC88: 0 | CD88: 0 | CE88: 0 | CF88: 0 | CG88: 0 | CH88: 0 | CI88: 0 | CJ88: 0 | CK88: 0 | CL88: 0 | CM88: 0 | CN88: 0 | CO88: 0 | CP88: 0 | CQ88: 0 | CR88: 0 | CS88: 0 | CT88: 0 | CU88: 0 | CV88: 0 | CW88: 0 | CX88: 0 | CY88: 0 | CZ88: 0 | DA88: 0 | DB88: 0 | DC88: 0 | DD88: 0 | DE88: 0 | DF88: 0 | DG88: 0 | DH88: 0 | DI88: 0 | DJ88: 0 | DK88: 0 | DL88: 0 | DM88: 0 | DN88: 0 | DO88: 0 | DP88: 0 | DQ88: 0
B90: Construction Debt
C91: Opening Balance | L91: =K95 -> 0 | M91: =L95 -> 0 | N91: 0 | O91: 0 | P91: 0 | Q91: 0 | R91: 0 | S91: 0 | T91: 0 | U91: 0 | V91: 0 | W91: 0 | X91: 0 | Y91: 0 | Z91: 0 | AA91: 0 | AB91: 0 | AC91: 0 | AD91: 0 | AE91: 0 | AF91: 0 | AG91: 0 | AH91: 0 | AI91: 0 | AJ91: 0 | AK91: 0 | AL91: 0 | AM91: 0 | AN91: 0 | AO91: 0 | AP91: 0 | AQ91: 0 | AR91: 0 | AS91: 0 | AT91: 0 | AU91: 0 | AV91: 0 | AW91: 0 | AX91: 0 | AY91: 0 | AZ91: 0 | BA91: 0 | BB91: 0 | BC91: 0 | BD91: 0 | BE91: 0 | BF91: 0 | BG91: 0 | BH91: 0 | BI91: 0 | BJ91: 0 | BK91: 0 | BL91: 0 | BM91: 0 | BN91: 0 | BO91: 0 | BP91: 0 | BQ91: 0 | BR91: 0 | BS91: 0 | BT91: 0 | BU91: 0 | BV91: 0 | BW91: 0 | BX91: 0 | BY91: =BX95 -> 0 | BZ91: 0 | CA91: 0 | CB91: 0 | CC91: 0 | CD91: 0 | CE91: 0 | CF91: 0 | CG91: 0 | CH91: 0 | CI91: 0 | CJ91: 0 | CK91: 0 | CL91: 0 | CM91: 0 | CN91: 0 | CO91: 0 | CP91: 0 | CQ91: 0 | CR91: 0 | CS91: 0 | CT91: 0 | CU91: 0 | CV91: 0 | CW91: 0 | CX91: 0 | CY91: 0 | CZ91: 0 | DA91: 0 | DB91: 0 | DC91: 0 | DD91: 0 | DE91: 0 | DF91: 0 | DG91: 0 | DH91: 0 | DI91: 0 | DJ91: 0 | DK91: 0 | DL91: 0 | DM91: 0 | DN91: 0 | DO91: 0 | DP91: 0 | DQ91: 0
C92: Add: Debt Draws | L92: =L86 -> 0 | M92: =M86 -> 0 | N92: 0 | O92: 0 | P92: 0 | Q92: 0 | R92: 0 | S92: 0 | T92: 0 | U92: 0 | V92: 0 | W92: 0 | X92: 0 | Y92: 0 | Z92: 0 | AA92: 0 | AB92: 0 | AC92: 0 | AD92: 0 | AE92: 0 | AF92: 0 | AG92: 0 | AH92: 0 | AI92: 0 | AJ92: 0 | AK92: 0 | AL92: 0 | AM92: 0 | AN92: 0 | AO92: 0 | AP92: 0 | AQ92: 0 | AR92: 0 | AS92: 0 | AT92: 0 | AU92: 0 | AV92: 0 | AW92: 0 | AX92: 0 | AY92: 0 | AZ92: 0 | BA92: 0 | BB92: 0 | BC92: 0 | BD92: 0 | BE92: 0 | BF92: 0 | BG92: 0 | BH92: 0 | BI92: 0 | BJ92: 0 | BK92: 0 | BL92: 0 | BM92: 0 | BN92: 0 | BO92: 0 | BP92: 0 | BQ92: 0 | BR92: 0 | BS92: 0 | BT92: 0 | BU92: 0 | BV92: 0 | BW92: 0 | BX92: 0 | BY92: =BY86 -> 0 | BZ92: 0 | CA92: 0 | CB92: 0 | CC92: 0 | CD92: 0 | CE92: 0 | CF92: 0 | CG92: 0 | CH92: 0 | CI92: 0 | CJ92: 0 | CK92: 0 | CL92: 0 | CM92: 0 | CN92: 0 | CO92: 0 | CP92: 0 | CQ92: 0 | CR92: 0 | CS92: 0 | CT92: 0 | CU92: 0 | CV92: 0 | CW92: 0 | CX92: 0 | CY92: 0 | CZ92: 0 | DA92: 0 | DB92: 0 | DC92: 0 | DD92: 0 | DE92: 0 | DF92: 0 | DG92: 0 | DH92: 0 | DI92: 0 | DJ92: 0 | DK92: 0 | DL92: 0 | DM92: 0 | DN92: 0 | DO92: 0 | DP92: 0 | DQ92: 0
C93: Add: Capitalised Interest | L93: =L99 -> 0 | M93: =M99 -> 0 | N93: 0 | O93: 0 | P93: 0 | Q93: 0 | R93: 0 | S93: 0 | T93: 0 | U93: 0 | V93: 0 | W93: 0 | X93: 0 | Y93: 0 | Z93: 0 | AA93: 0 | AB93: 0 | AC93: 0 | AD93: 0 | AE93: 0 | AF93: 0 | AG93: 0 | AH93: 0 | AI93: 0 | AJ93: 0 | AK93: 0 | AL93: 0 | AM93: 0 | AN93: 0 | AO93: 0 | AP93: 0 | AQ93: 0 | AR93: 0 | AS93: 0 | AT93: 0 | AU93: 0 | AV93: 0 | AW93: 0 | AX93: 0 | AY93: 0 | AZ93: 0 | BA93: 0 | BB93: 0 | BC93: 0 | BD93: 0 | BE93: 0 | BF93: 0 | BG93: 0 | BH93: 0 | BI93: 0 | BJ93: 0 | BK93: 0 | BL93: 0 | BM93: 0 | BN93: 0 | BO93: 0 | BP93: 0 | BQ93: 0 | BR93: 0 | BS93: 0 | BT93: 0 | BU93: 0 | BV93: 0 | BW93: 0 | BX93: 0 | BY93: =BY99 -> 0 | BZ93: 0 | CA93: 0 | CB93: 0 | CC93: 0 | CD93: 0 | CE93: 0 | CF93: 0 | CG93: 0 | CH93: 0 | CI93: 0 | CJ93: 0 | CK93: 0 | CL93: 0 | CM93: 0 | CN93: 0 | CO93: 0 | CP93: 0 | CQ93: 0 | CR93: 0 | CS93: 0 | CT93: 0 | CU93: 0 | CV93: 0 | CW93: 0 | CX93: 0 | CY93: 0 | CZ93: 0 | DA93: 0 | DB93: 0 | DC93: 0 | DD93: 0 | DE93: 0 | DF93: 0 | DG93: 0 | DH93: 0 | DI93: 0 | DJ93: 0 | DK93: 0 | DL93: 0 | DM93: 0 | DN93: 0 | DO93: 0 | DP93: 0 | DQ93: 0
C94: Less: Debt Re-financed prior to COD | L94: =SUM(L91:L93)*L5 -> 0 | M94: 0 | N94: 0 | O94: 0 | P94: 0 | Q94: 0 | R94: 0 | S94: 0 | T94: 0 | U94: 0 | V94: 0 | W94: 0 | X94: 0 | Y94: 0 | Z94: 0 | AA94: 0 | AB94: 0 | AC94: 0 | AD94: 0 | AE94: 0 | AF94: 0 | AG94: 0 | AH94: 0 | AI94: 0 | AJ94: 0 | AK94: 0 | AL94: 0 | AM94: 0 | AN94: 0 | AO94: 0 | AP94: 0 | AQ94: 0 | AR94: =SUM(AR91:AR93)*AR5 -> 0 | AS94: 0 | AT94: 0 | AU94: 0 | AV94: 0 | AW94: 0 | AX94: 0 | AY94: 0 | AZ94: 0 | BA94: 0 | BB94: 0 | BC94: 0 | BD94: 0 | BE94: 0 | BF94: 0 | BG94: 0 | BH94: 0 | BI94: 0 | BJ94: 0 | BK94: 0 | BL94: 0 | BM94: 0 | BN94: 0 | BO94: 0 | BP94: 0 | BQ94: 0 | BR94: 0 | BS94: 0 | BT94: 0 | BU94: 0 | BV94: 0 | BW94: 0 | BX94: =SUM(BX91:BX93)*BX5 -> 0 | BY94: 0 | BZ94: 0 | CA94: 0 | CB94: 0 | CC94: 0 | CD94: 0 | CE94: 0 | CF94: 0 | CG94: 0 | CH94: 0 | CI94: 0 | CJ94: 0 | CK94: 0 | CL94: 0 | CM94: 0 | CN94: 0 | CO94: 0 | CP94: 0 | CQ94: 0 | CR94: 0 | CS94: 0 | CT94: 0 | CU94: 0 | CV94: 0 | CW94: 0 | CX94: 0 | CY94: 0 | CZ94: 0 | DA94: 0 | DB94: 0 | DC94: 0 | DD94: =SUM(DD91:DD93)*DD5 -> 0 | DE94: 0 | DF94: 0 | DG94: 0 | DH94: 0 | DI94: 0 | DJ94: 0 | DK94: 0 | DL94: 0 | DM94: 0 | DN94: 0 | DO94: 0 | DP94: 0 | DQ94: 0
C95: Closing Balance | L95: =SUM(L91:L93)-L94 -> 0 | M95: =SUM(M91:M93)-M94 -> 0 | N95: 0 | O95: 0 | P95: 0 | Q95: 0 | R95: 0 | S95: 0 | T95: 0 | U95: 0 | V95: 0 | W95: 0 | X95: 0 | Y95: 0 | Z95: 0 | AA95: 0 | AB95: 0 | AC95: 0 | AD95: 0 | AE95: 0 | AF95: 0 | AG95: 0 | AH95: 0 | AI95: 0 | AJ95: 0 | AK95: 0 | AL95: 0 | AM95: 0 | AN95: 0 | AO95: 0 | AP95: 0 | AQ95: 0 | AR95: 0 | AS95: 0 | AT95: 0 | AU95: 0 | AV95: 0 | AW95: 0 | AX95: 0 | AY95: 0 | AZ95: 0 | BA95: 0 | BB95: 0 | BC95: 0 | BD95: 0 | BE95: 0 | BF95: 0 | BG95: 0 | BH95: 0 | BI95: 0 | BJ95: 0 | BK95: 0 | BL95: 0 | BM95: 0 | BN95: 0 | BO95: 0 | BP95: 0 | BQ95: 0 | BR95: 0 | BS95: 0 | BT95: 0 | BU95: 0 | BV95: 0 | BW95: 0 | BX95: 0 | BY95: =SUM(BY91:BY93)-BY94 -> 0 | BZ95: 0 | CA95: 0 | CB95: 0 | CC95: 0 | CD95: 0 | CE95: 0 | CF95: 0 | CG95: 0 | CH95: 0 | CI95: 0 | CJ95: 0 | CK95: 0 | CL95: 0 | CM95: 0 | CN95: 0 | CO95: 0 | CP95: 0 | CQ95: 0 | CR95: 0 | CS95: 0 | CT95: 0 | CU95: 0 | CV95: 0 | CW95: 0 | CX95: 0 | CY95: 0 | CZ95: 0 | DA95: 0 | DB95: 0 | DC95: 0 | DD95: 0 | DE95: 0 | DF95: 0 | DG95: 0 | DH95: 0 | DI95: 0 | DJ95: 0 | DK95: 0 | DL95: 0 | DM95: 0 | DN95: 0 | DO95: 0 | DP95: 0 | DQ95: 0
C97: Interest Rate | E97: Euribor | F97: =F34 -> 0.012 | G97: Spread | H97: =F35 -> 0.013 | L97: =($F$97+$H$97)/L8 -> 0.002083333333 | M97: 0.002083333333 | N97: 0.002083333333 | O97: 0.002083333333 | P97: 0.002083333333 | Q97: 0.002083333333 | R97: 0.002083333333 | S97: 0.002083333333 | T97: 0.002083333333 | U97: 0.002083333333 | V97: 0.002083333333 | W97: 0.002083333333 | X97: 0.002083333333 | Y97: 0.002083333333 | Z97: 0.002083333333 | AA97: 0.002083333333 | AB97: 0.002083333333 | AC97: 0.002083333333 | AD97: 0.002083333333 | AE97: 0.002083333333 | AF97: 0.002083333333 | AG97: 0.002083333333 | AH97: 0.002083333333 | AI97: 0.002083333333 | AJ97: 0.002083333333 | AK97: 0.002083333333 | AL97: 0.002083333333 | AM97: 0.002083333333 | AN97: 0.002083333333 | AO97: 0.002083333333 | AP97: 0.002083333333 | AQ97: 0.002083333333 | AR97: =($F$97+$H$97)/AR8 -> 0.002083333333 | AS97: 0.002083333333 | AT97: 0.002083333333 | AU97: 0.002083333333 | AV97: 0.002083333333 | AW97: 0.002083333333 | AX97: 0.002083333333 | AY97: 0.002083333333 | AZ97: 0.002083333333 | BA97: 0.002083333333 | BB97: 0.002083333333 | BC97: 0.002083333333 | BD97: 0.0125 | BE97: 0.0125 | BF97: 0.0125 | BG97: 0.0125 | BH97: 0.0125 | BI97: 0.0125 | BJ97: 0.0125 | BK97: 0.0125 | BL97: 0.0125 | BM97: 0.0125 | BN97: 0.0125 | BO97: 0.0125 | BP97: 0.0125 | BQ97: 0.0125 | BR97: 0.0125 | BS97: 0.0125 | BT97: 0.0125 | BU97: 0.0125 | BV97: 0.0125 | BW97: 0.0125 | BX97: =($F$97+$H$97)/BX8 -> 0.0125 | BY97: 0.0125 | BZ97: 0.0125 | CA97: 0.0125 | CB97: 0.0125 | CC97: 0.0125 | CD97: 0.0125 | CE97: 0.0125 | CF97: 0.0125 | CG97: 0.0125 | CH97: 0.0125 | CI97: 0.0125 | CJ97: 0.0125 | CK97: 0.0125 | CL97: 0.0125 | CM97: 0.0125 | CN97: 0.0125 | CO97: 0.0125 | CP97: 0.0125 | CQ97: 0.0125 | CR97: 0.0125 | CS97: 0.0125 | CT97: 0.0125 | CU97: 0.0125 | CV97: 0.0125 | CW97: 0.0125 | CX97: 0.0125 | CY97: 0.0125 | CZ97: 0.0125 | DA97: 0.0125 | DB97: 0.0125 | DC97: 0.0125 | DD97: =($F$97+$H$97)/DD8 -> 0.0125 | DE97: 0.0125 | DF97: 0.0125 | DG97: 0.0125 | DH97: 0.0125 | DI97: 0.0125 | DJ97: 0.0125 | DK97: 0.0125 | DL97: 0.0125 | DM97: 0.0125 | DN97: 0.0125 | DO97: 0.0125 | DP97: 0.0125 | DQ97: 0.0125
C98: Interest During Construction | L98: =L97*L91 -> 0 | M98: =M97*M91 -> 0 | N98: 0 | O98: 0 | P98: 0 | Q98: 0 | R98: 0 | S98: 0 | T98: 0 | U98: 0 | V98: 0 | W98: 0 | X98: 0 | Y98: 0 | Z98: 0 | AA98: 0 | AB98: 0 | AC98: 0 | AD98: 0 | AE98: 0 | AF98: 0 | AG98: 0 | AH98: 0 | AI98: 0 | AJ98: 0 | AK98: 0 | AL98: 0 | AM98: 0 | AN98: 0 | AO98: 0 | AP98: 0 | AQ98: 0 | AR98: 0 | AS98: 0 | AT98: 0 | AU98: 0 | AV98: 0 | AW98: 0 | AX98: 0 | AY98: 0 | AZ98: 0 | BA98: 0 | BB98: 0 | BC98: 0 | BD98: 0 | BE98: 0 | BF98: 0 | BG98: 0 | BH98: 0 | BI98: 0 | BJ98: 0 | BK98: 0 | BL98: 0 | BM98: 0 | BN98: 0 | BO98: 0 | BP98: 0 | BQ98: 0 | BR98: 0 | BS98: 0 | BT98: 0 | BU98: 0 | BV98: 0 | BW98: 0 | BX98: 0 | BY98: =BY97*BY91 -> 0 | BZ98: 0 | CA98: 0 | CB98: 0 | CC98: 0 | CD98: 0 | CE98: 0 | CF98: 0 | CG98: 0 | CH98: 0 | CI98: 0 | CJ98: 0 | CK98: 0 | CL98: 0 | CM98: 0 | CN98: 0 | CO98: 0 | CP98: 0 | CQ98: 0 | CR98: 0 | CS98: 0 | CT98: 0 | CU98: 0 | CV98: 0 | CW98: 0 | CX98: 0 | CY98: 0 | CZ98: 0 | DA98: 0 | DB98: 0 | DC98: 0 | DD98: 0 | DE98: 0 | DF98: 0 | DG98: 0 | DH98: 0 | DI98: 0 | DJ98: 0 | DK98: 0 | DL98: 0 | DM98: 0 | DN98: 0 | DO98: 0 | DP98: 0 | DQ98: 0
C99: Interest Capitalised | E99: Switch | F99: =F23 -> FALSE | L99: =L98*$F$99 -> 0 | M99: =M98*$F$99 -> 0 | N99: 0 | O99: 0 | P99: 0 | Q99: 0 | R99: 0 | S99: 0 | T99: 0 | U99: 0 | V99: 0 | W99: 0 | X99: 0 | Y99: 0 | Z99: 0 | AA99: 0 | AB99: 0 | AC99: 0 | AD99: 0 | AE99: 0 | AF99: 0 | AG99: 0 | AH99: 0 | AI99: 0 | AJ99: 0 | AK99: 0 | AL99: 0 | AM99: 0 | AN99: 0 | AO99: 0 | AP99: 0 | AQ99: 0 | AR99: 0 | AS99: 0 | AT99: 0 | AU99: 0 | AV99: 0 | AW99: 0 | AX99: 0 | AY99: 0 | AZ99: 0 | BA99: 0 | BB99: 0 | BC99: 0 | BD99: 0 | BE99: 0 | BF99: 0 | BG99: 0 | BH99: 0 | BI99: 0 | BJ99: 0 | BK99: 0 | BL99: 0 | BM99: 0 | BN99: 0 | BO99: 0 | BP99: 0 | BQ99: 0 | BR99: 0 | BS99: 0 | BT99: 0 | BU99: 0 | BV99: 0 | BW99: 0 | BX99: 0 | BY99: =BY98*$F$99 -> 0 | BZ99: 0 | CA99: 0 | CB99: 0 | CC99: 0 | CD99: 0 | CE99: 0 | CF99: 0 | CG99: 0 | CH99: 0 | CI99: 0 | CJ99: 0 | CK99: 0 | CL99: 0 | CM99: 0 | CN99: 0 | CO99: 0 | CP99: 0 | CQ99: 0 | CR99: 0 | CS99: 0 | CT99: 0 | CU99: 0 | CV99: 0 | CW99: 0 | CX99: 0 | CY99: 0 | CZ99: 0 | DA99: 0 | DB99: 0 | DC99: 0 | DD99: 0 | DE99: 0 | DF99: 0 | DG99: 0 | DH99: 0 | DI99: 0 | DJ99: 0 | DK99: 0 | DL99: 0 | DM99: 0 | DN99: 0 | DO99: 0 | DP99: 0 | DQ99: 0
C101: Fees
B105: Permenant Debt and Repayment
C106: Level Repayment | E106: Total Debt | F106: =G16 -> 0 | G106: Tenor | H106: =F26 -> 17 | L106: =$F$106/$H$106*L4/L8 -> 0 | M106: 0 | N106: 0 | O106: 0 | P106: 0 | Q106: 0 | R106: 0 | S106: 0 | T106: 0 | U106: 0 | V106: 0 | W106: 0 | X106: 0 | Y106: 0 | Z106: 0 | AA106: 0 | AB106: 0 | AC106: 0 | AD106: 0 | AE106: 0 | AF106: 0 | AG106: 0 | AH106: 0 | AI106: 0 | AJ106: 0 | AK106: 0 | AL106: 0 | AM106: 0 | AN106: 0 | AO106: 0 | AP106: 0 | AQ106: 0 | AR106: =$F$106/$H$106*AR4/AR8 -> 0 | AS106: 0 | AT106: 0 | AU106: 0 | AV106: 0 | AW106: 0 | AX106: 0 | AY106: 0 | AZ106: 0 | BA106: 0 | BB106: 0 | BC106: 0 | BD106: 0 | BE106: 0 | BF106: 0 | BG106: 0 | BH106: 0 | BI106: 0 | BJ106: 0 | BK106: 0 | BL106: 0 | BM106: 0 | BN106: 0 | BO106: 0 | BP106: 0 | BQ106: 0 | BR106: 0 | BS106: 0 | BT106: 0 | BU106: 0 | BV106: 0 | BW106: 0 | BX106: =$F$106/$H$106*BX4/BX8 -> 0 | BY106: 0 | BZ106: 0 | CA106: 0 | CB106: 0 | CC106: 0 | CD106: 0 | CE106: 0 | CF106: 0 | CG106: 0 | CH106: 0 | CI106: 0 | CJ106: 0 | CK106: 0 | CL106: 0 | CM106: 0 | CN106: 0 | CO106: 0 | CP106: 0 | CQ106: 0 | CR106: 0 | CS106: 0 | CT106: 0 | CU106: 0 | CV106: 0 | CW106: 0 | CX106: 0 | CY106: 0 | CZ106: 0 | DA106: 0 | DB106: 0 | DC106: 0 | DD106: =$F$106/$H$106*DD4/DD8 -> 0 | DE106: 0 | DF106: 0 | DG106: 0 | DH106: 0 | DI106: 0 | DJ106: 0 | DK106: 0 | DL106: 0 | DM106: 0 | DN106: 0 | DO106: 0 | DP106: 0 | DQ106: 0
C107: Annuity Repayment
C108: Sculpting Repaymet
C110: Opening Balance | L110: =K113 -> 0 | M110: =L113 -> 0 | N110: 0 | O110: 0 | P110: 0 | Q110: 0 | R110: 0 | S110: 0 | T110: 0 | U110: 0 | V110: 0 | W110: 0 | X110: 0 | Y110: 0 | Z110: 0 | AA110: 0 | AB110: 0 | AC110: 0 | AD110: 0 | AE110: 0 | AF110: 0 | AG110: 0 | AH110: 0 | AI110: 0 | AJ110: 0 | AK110: 0 | AL110: 0 | AM110: 0 | AN110: 0 | AO110: 0 | AP110: 0 | AQ110: 0 | AR110: 0 | AS110: 0 | AT110: 0 | AU110: 0 | AV110: 0 | AW110: 0 | AX110: 0 | AY110: 0 | AZ110: 0 | BA110: 0 | BB110: 0 | BC110: 0 | BD110: 0 | BE110: 0 | BF110: 0 | BG110: 0 | BH110: 0 | BI110: 0 | BJ110: 0 | BK110: 0 | BL110: 0 | BM110: 0 | BN110: 0 | BO110: 0 | BP110: 0 | BQ110: 0 | BR110: 0 | BS110: 0 | BT110: 0 | BU110: 0 | BV110: 0 | BW110: 0 | BX110: 0 | BY110: =BX113 -> 0 | BZ110: 0 | CA110: 0 | CB110: 0 | CC110: 0 | CD110: 0 | CE110: 0 | CF110: 0 | CG110: 0 | CH110: 0 | CI110: 0 | CJ110: 0 | CK110: 0 | CL110: 0 | CM110: 0 | CN110: 0 | CO110: 0 | CP110: 0 | CQ110: 0 | CR110: 0 | CS110: 0 | CT110: 0 | CU110: 0 | CV110: 0 | CW110: 0 | CX110: 0 | CY110: 0 | CZ110: 0 | DA110: 0 | DB110: 0 | DC110: 0 | DD110: 0 | DE110: 0 | DF110: 0 | DG110: 0 | DH110: 0 | DI110: 0 | DJ110: 0 | DK110: 0 | DL110: 0 | DM110: 0 | DN110: 0 | DO110: 0 | DP110: 0 | DQ110: 0
C111: Add: Draws from Re-financing Construction | E111: Total Debt | F111: =F106 -> 0 | L111: =$F$111*L5 -> 0 | M111: 0 | N111: 0 | O111: 0 | P111: 0 | Q111: 0 | R111: 0 | S111: 0 | T111: 0 | U111: 0 | V111: 0 | W111: 0 | X111: 0 | Y111: 0 | Z111: 0 | AA111: 0 | AB111: 0 | AC111: 0 | AD111: 0 | AE111: 0 | AF111: 0 | AG111: 0 | AH111: 0 | AI111: 0 | AJ111: 0 | AK111: 0 | AL111: 0 | AM111: 0 | AN111: 0 | AO111: 0 | AP111: 0 | AQ111: 0 | AR111: =$F$111*AR5 -> 0 | AS111: 0 | AT111: 0 | AU111: 0 | AV111: 0 | AW111: 0 | AX111: 0 | AY111: 0 | AZ111: 0 | BA111: 0 | BB111: 0 | BC111: 0 | BD111: 0 | BE111: 0 | BF111: 0 | BG111: 0 | BH111: 0 | BI111: 0 | BJ111: 0 | BK111: 0 | BL111: 0 | BM111: 0 | BN111: 0 | BO111: 0 | BP111: 0 | BQ111: 0 | BR111: 0 | BS111: 0 | BT111: 0 | BU111: 0 | BV111: 0 | BW111: 0 | BX111: =$F$111*BX5 -> 0 | BY111: 0 | BZ111: 0 | CA111: 0 | CB111: 0 | CC111: 0 | CD111: 0 | CE111: 0 | CF111: 0 | CG111: 0 | CH111: 0 | CI111: 0 | CJ111: 0 | CK111: 0 | CL111: 0 | CM111: 0 | CN111: 0 | CO111: 0 | CP111: 0 | CQ111: 0 | CR111: 0 | CS111: 0 | CT111: 0 | CU111: 0 | CV111: 0 | CW111: 0 | CX111: 0 | CY111: 0 | CZ111: 0 | DA111: 0 | DB111: 0 | DC111: 0 | DD111: =$F$111*DD5 -> 0 | DE111: 0 | DF111: 0 | DG111: 0 | DH111: 0 | DI111: 0 | DJ111: 0 | DK111: 0 | DL111: 0 | DM111: 0 | DN111: 0 | DO111: 0 | DP111: 0 | DQ111: 0
C112: Less: Repayments | L112: =L106 -> 0 | M112: =M106 -> 0 | N112: 0 | O112: 0 | P112: 0 | Q112: 0 | R112: 0 | S112: 0 | T112: 0 | U112: 0 | V112: 0 | W112: 0 | X112: 0 | Y112: 0 | Z112: 0 | AA112: 0 | AB112: 0 | AC112: 0 | AD112: 0 | AE112: 0 | AF112: 0 | AG112: 0 | AH112: 0 | AI112: 0 | AJ112: 0 | AK112: 0 | AL112: 0 | AM112: 0 | AN112: 0 | AO112: 0 | AP112: 0 | AQ112: 0 | AR112: 0 | AS112: 0 | AT112: 0 | AU112: 0 | AV112: 0 | AW112: 0 | AX112: 0 | AY112: 0 | AZ112: 0 | BA112: 0 | BB112: 0 | BC112: 0 | BD112: 0 | BE112: 0 | BF112: 0 | BG112: 0 | BH112: 0 | BI112: 0 | BJ112: 0 | BK112: 0 | BL112: 0 | BM112: 0 | BN112: 0 | BO112: 0 | BP112: 0 | BQ112: 0 | BR112: 0 | BS112: 0 | BT112: 0 | BU112: 0 | BV112: 0 | BW112: 0 | BX112: 0 | BY112: =BY106 -> 0 | BZ112: 0 | CA112: 0 | CB112: 0 | CC112: 0 | CD112: 0 | CE112: 0 | CF112: 0 | CG112: 0 | CH112: 0 | CI112: 0 | CJ112: 0 | CK112: 0 | CL112: 0 | CM112: 0 | CN112: 0 | CO112: 0 | CP112: 0 | CQ112: 0 | CR112: 0 | CS112: 0 | CT112: 0 | CU112: 0 | CV112: 0 | CW112: 0 | CX112: 0 | CY112: 0 | CZ112: 0 | DA112: 0 | DB112: 0 | DC112: 0 | DD112: 0 | DE112: 0 | DF112: 0 | DG112: 0 | DH112: 0 | DI112: 0 | DJ112: 0 | DK112: 0 | DL112: 0 | DM112: 0 | DN112: 0 | DO112: 0 | DP112: 0 | DQ112: 0
C113: Closing Balance | L113: =L110+L111-L112 -> 0 | M113: =M110+M111-M112 -> 0 | N113: 0 | O113: 0 | P113: 0 | Q113: 0 | R113: 0 | S113: 0 | T113: 0 | U113: 0 | V113: 0 | W113: 0 | X113: 0 | Y113: 0 | Z113: 0 | AA113: 0 | AB113: 0 | AC113: 0 | AD113: 0 | AE113: 0 | AF113: 0 | AG113: 0 | AH113: 0 | AI113: 0 | AJ113: 0 | AK113: 0 | AL113: 0 | AM113: 0 | AN113: 0 | AO113: 0 | AP113: 0 | AQ113: 0 | AR113: 0 | AS113: 0 | AT113: 0 | AU113: 0 | AV113: 0 | AW113: 0 | AX113: 0 | AY113: 0 | AZ113: 0 | BA113: 0 | BB113: 0 | BC113: 0 | BD113: 0 | BE113: 0 | BF113: 0 | BG113: 0 | BH113: 0 | BI113: 0 | BJ113: 0 | BK113: 0 | BL113: 0 | BM113: 0 | BN113: 0 | BO113: 0 | BP113: 0 | BQ113: 0 | BR113: 0 | BS113: 0 | BT113: 0 | BU113: 0 | BV113: 0 | BW113: 0 | BX113: 0 | BY113: =BY110+BY111-BY112 -> 0 | BZ113: 0 | CA113: 0 | CB113: 0 | CC113: 0 | CD113: 0 | CE113: 0 | CF113: 0 | CG113: 0 | CH113: 0 | CI113: 0 | CJ113: 0 | CK113: 0 | CL113: 0 | CM113: 0 | CN113: 0 | CO113: 0 | CP113: 0 | CQ113: 0 | CR113: 0 | CS113: 0 | CT113: 0 | CU113: 0 | CV113: 0 | CW113: 0 | CX113: 0 | CY113: 0 | CZ113: 0 | DA113: 0 | DB113: 0 | DC113: 0 | DD113: 0 | DE113: 0 | DF113: 0 | DG113: 0 | DH113: 0 | DI113: 0 | DJ113: 0 | DK113: 0 | DL113: 0 | DM113: 0 | DN113: 0 | DO113: 0 | DP113: 0 | DQ113: 0
C115: Interest Rate | L115: =L97 -> 0.002083333333 | M115: =M97 -> 0.002083333333 | N115: 0.002083333333 | O115: 0.002083333333 | P115: 0.002083333333 | Q115: 0.002083333333 | R115: 0.002083333333 | S115: 0.002083333333 | T115: 0.002083333333 | U115: 0.002083333333 | V115: 0.002083333333 | W115: 0.002083333333 | X115: 0.002083333333 | Y115: 0.002083333333 | Z115: 0.002083333333 | AA115: 0.002083333333 | AB115: 0.002083333333 | AC115: 0.002083333333 | AD115: 0.002083333333 | AE115: 0.002083333333 | AF115: 0.002083333333 | AG115: 0.002083333333 | AH115: 0.002083333333 | AI115: 0.002083333333 | AJ115: 0.002083333333 | AK115: 0.002083333333 | AL115: 0.002083333333 | AM115: 0.002083333333 | AN115: 0.002083333333 | AO115: 0.002083333333 | AP115: 0.002083333333 | AQ115: 0.002083333333 | AR115: 0.002083333333 | AS115: 0.002083333333 | AT115: 0.002083333333 | AU115: 0.002083333333 | AV115: 0.002083333333 | AW115: 0.002083333333 | AX115: 0.002083333333 | AY115: 0.002083333333 | AZ115: 0.002083333333 | BA115: 0.002083333333 | BB115: 0.002083333333 | BC115: 0.002083333333 | BD115: 0.0125 | BE115: 0.0125 | BF115: 0.0125 | BG115: 0.0125 | BH115: 0.0125 | BI115: 0.0125 | BJ115: 0.0125 | BK115: 0.0125 | BL115: 0.0125 | BM115: 0.0125 | BN115: 0.0125 | BO115: 0.0125 | BP115: 0.0125 | BQ115: 0.0125 | BR115: 0.0125 | BS115: 0.0125 | BT115: 0.0125 | BU115: 0.0125 | BV115: 0.0125 | BW115: 0.0125 | BX115: 0.0125 | BY115: =BY97 -> 0.0125 | BZ115: 0.0125 | CA115: 0.0125 | CB115: 0.0125 | CC115: 0.0125 | CD115: 0.0125 | CE115: 0.0125 | CF115: 0.0125 | CG115: 0.0125 | CH115: 0.0125 | CI115: 0.0125 | CJ115: 0.0125 | CK115: 0.0125 | CL115: 0.0125 | CM115: 0.0125 | CN115: 0.0125 | CO115: 0.0125 | CP115: 0.0125 | CQ115: 0.0125 | CR115: 0.0125 | CS115: 0.0125 | CT115: 0.0125 | CU115: 0.0125 | CV115: 0.0125 | CW115: 0.0125 | CX115: 0.0125 | CY115: 0.0125 | CZ115: 0.0125 | DA115: 0.0125 | DB115: 0.0125 | DC115: 0.0125 | DD115: 0.0125 | DE115: 0.0125 | DF115: 0.0125 | DG115: 0.0125 | DH115: 0.0125 | DI115: 0.0125 | DJ115: 0.0125 | DK115: 0.0125 | DL115: 0.0125 | DM115: 0.0125 | DN115: 0.0125 | DO115: 0.0125 | DP115: 0.0125 | DQ115: 0.0125
C116: Interest Expense | L116: =L115*L110 -> 0 | M116: =M115*M110 -> 0 | N116: 0 | O116: 0 | P116: 0 | Q116: 0 | R116: 0 | S116: 0 | T116: 0 | U116: 0 | V116: 0 | W116: 0 | X116: 0 | Y116: 0 | Z116: 0 | AA116: 0 | AB116: 0 | AC116: 0 | AD116: 0 | AE116: 0 | AF116: 0 | AG116: 0 | AH116: 0 | AI116: 0 | AJ116: 0 | AK116: 0 | AL116: 0 | AM116: 0 | AN116: 0 | AO116: 0 | AP116: 0 | AQ116: 0 | AR116: 0 | AS116: 0 | AT116: 0 | AU116: 0 | AV116: 0 | AW116: 0 | AX116: 0 | AY116: 0 | AZ116: 0 | BA116: 0 | BB116: 0 | BC116: 0 | BD116: 0 | BE116: 0 | BF116: 0 | BG116: 0 | BH116: 0 | BI116: 0 | BJ116: 0 | BK116: 0 | BL116: 0 | BM116: 0 | BN116: 0 | BO116: 0 | BP116: 0 | BQ116: 0 | BR116: 0 | BS116: 0 | BT116: 0 | BU116: 0 | BV116: 0 | BW116: 0 | BX116: 0 | BY116: =BY115*BY110 -> 0 | BZ116: 0 | CA116: 0 | CB116: 0 | CC116: 0 | CD116: 0 | CE116: 0 | CF116: 0 | CG116: 0 | CH116: 0 | CI116: 0 | CJ116: 0 | CK116: 0 | CL116: 0 | CM116: 0 | CN116: 0 | CO116: 0 | CP116: 0 | CQ116: 0 | CR116: 0 | CS116: 0 | CT116: 0 | CU116: 0 | CV116: 0 | CW116: 0 | CX116: 0 | CY116: 0 | CZ116: 0 | DA116: 0 | DB116: 0 | DC116: 0 | DD116: 0 | DE116: 0 | DF116: 0 | DG116: 0 | DH116: 0 | DI116: 0 | DJ116: 0 | DK116: 0 | DL116: 0 | DM116: 0 | DN116: 0 | DO116: 0 | DP116: 0 | DQ116: 0
B118: Depreciation on IDC and Fee Amortisation
C119: Opening Balance | L119: =K121 -> 0 | M119: =L121 -> 0 | N119: 0 | O119: 0 | P119: 0 | Q119: 0 | R119: 0 | S119: 0 | T119: 0 | U119: 0 | V119: 0 | W119: 0 | X119: 0 | Y119: 0 | Z119: 0 | AA119: 0 | AB119: 0 | AC119: 0 | AD119: 0 | AE119: 0 | AF119: 0 | AG119: 0 | AH119: 0 | AI119: 0 | AJ119: 0 | AK119: 0 | AL119: 0 | AM119: 0 | AN119: 0 | AO119: 0 | AP119: 0 | AQ119: 0 | AR119: 0 | AS119: 0 | AT119: 0 | AU119: 0 | AV119: 0 | AW119: 0 | AX119: 0 | AY119: 0 | AZ119: 0 | BA119: 0 | BB119: 0 | BC119: 0 | BD119: 0 | BE119: 0 | BF119: 0 | BG119: 0 | BH119: 0 | BI119: 0 | BJ119: 0 | BK119: 0 | BL119: 0 | BM119: 0 | BN119: 0 | BO119: 0 | BP119: 0 | BQ119: 0 | BR119: 0 | BS119: 0 | BT119: 0 | BU119: 0 | BV119: 0 | BW119: 0 | BX119: 0 | BY119: =BX121 -> 0 | BZ119: 0 | CA119: 0 | CB119: 0 | CC119: 0 | CD119: 0 | CE119: 0 | CF119: 0 | CG119: 0 | CH119: 0 | CI119: 0 | CJ119: 0 | CK119: 0 | CL119: 0 | CM119: 0 | CN119: 0 | CO119: 0 | CP119: 0 | CQ119: 0 | CR119: 0 | CS119: 0 | CT119: 0 | CU119: 0 | CV119: 0 | CW119: 0 | CX119: 0 | CY119: 0 | CZ119: 0 | DA119: 0 | DB119: 0 | DC119: 0 | DD119: 0 | DE119: 0 | DF119: 0 | DG119: 0 | DH119: 0 | DI119: 0 | DJ119: 0 | DK119: 0 | DL119: 0 | DM119: 0 | DN119: 0 | DO119: 0 | DP119: 0 | DQ119: 0
C120: Add: IDC | L120: =L98 -> 0 | M120: =M98 -> 0 | N120: 0 | O120: 0 | P120: 0 | Q120: 0 | R120: 0 | S120: 0 | T120: 0 | U120: 0 | V120: 0 | W120: 0 | X120: 0 | Y120: 0 | Z120: 0 | AA120: 0 | AB120: 0 | AC120: 0 | AD120: 0 | AE120: 0 | AF120: 0 | AG120: 0 | AH120: 0 | AI120: 0 | AJ120: 0 | AK120: 0 | AL120: 0 | AM120: 0 | AN120: 0 | AO120: 0 | AP120: 0 | AQ120: 0 | AR120: 0 | AS120: 0 | AT120: 0 | AU120: 0 | AV120: 0 | AW120: 0 | AX120: 0 | AY120: 0 | AZ120: 0 | BA120: 0 | BB120: 0 | BC120: 0 | BD120: 0 | BE120: 0 | BF120: 0 | BG120: 0 | BH120: 0 | BI120: 0 | BJ120: 0 | BK120: 0 | BL120: 0 | BM120: 0 | BN120: 0 | BO120: 0 | BP120: 0 | BQ120: 0 | BR120: 0 | BS120: 0 | BT120: 0 | BU120: 0 | BV120: 0 | BW120: 0 | BX120: 0 | BY120: =BY98 -> 0 | BZ120: 0 | CA120: 0 | CB120: 0 | CC120: 0 | CD120: 0 | CE120: 0 | CF120: 0 | CG120: 0 | CH120: 0 | CI120: 0 | CJ120: 0 | CK120: 0 | CL120: 0 | CM120: 0 | CN120: 0 | CO120: 0 | CP120: 0 | CQ120: 0 | CR120: 0 | CS120: 0 | CT120: 0 | CU120: 0 | CV120: 0 | CW120: 0 | CX120: 0 | CY120: 0 | CZ120: 0 | DA120: 0 | DB120: 0 | DC120: 0 | DD120: 0 | DE120: 0 | DF120: 0 | DG120: 0 | DH120: 0 | DI120: 0 | DJ120: 0 | DK120: 0 | DL120: 0 | DM120: 0 | DN120: 0 | DO120: 0 | DP120: 0 | DQ120: 0
C121: Closing Balance | L121: =L119+L120 -> 0 | M121: =M119+M120 -> 0 | N121: 0 | O121: 0 | P121: 0 | Q121: 0 | R121: 0 | S121: 0 | T121: 0 | U121: 0 | V121: 0 | W121: 0 | X121: 0 | Y121: 0 | Z121: 0 | AA121: 0 | AB121: 0 | AC121: 0 | AD121: 0 | AE121: 0 | AF121: 0 | AG121: 0 | AH121: 0 | AI121: 0 | AJ121: 0 | AK121: 0 | AL121: 0 | AM121: 0 | AN121: 0 | AO121: 0 | AP121: 0 | AQ121: 0 | AR121: 0 | AS121: 0 | AT121: 0 | AU121: 0 | AV121: 0 | AW121: 0 | AX121: 0 | AY121: 0 | AZ121: 0 | BA121: 0 | BB121: 0 | BC121: 0 | BD121: 0 | BE121: 0 | BF121: 0 | BG121: 0 | BH121: 0 | BI121: 0 | BJ121: 0 | BK121: 0 | BL121: 0 | BM121: 0 | BN121: 0 | BO121: 0 | BP121: 0 | BQ121: 0 | BR121: 0 | BS121: 0 | BT121: 0 | BU121: 0 | BV121: 0 | BW121: 0 | BX121: 0 | BY121: =BY119+BY120 -> 0 | BZ121: 0 | CA121: 0 | CB121: 0 | CC121: 0 | CD121: 0 | CE121: 0 | CF121: 0 | CG121: 0 | CH121: 0 | CI121: 0 | CJ121: 0 | CK121: 0 | CL121: 0 | CM121: 0 | CN121: 0 | CO121: 0 | CP121: 0 | CQ121: 0 | CR121: 0 | CS121: 0 | CT121: 0 | CU121: 0 | CV121: 0 | CW121: 0 | CX121: 0 | CY121: 0 | CZ121: 0 | DA121: 0 | DB121: 0 | DC121: 0 | DD121: 0 | DE121: 0 | DF121: 0 | DG121: 0 | DH121: 0 | DI121: 0 | DJ121: 0 | DK121: 0 | DL121: 0 | DM121: 0 | DN121: 0 | DO121: 0 | DP121: 0 | DQ121: 0
C122: Dep Rate | L122: =L50/SUM(50:50) -> 0 | M122: 0 | N122: 0 | O122: 0 | P122: 0 | Q122: 0 | R122: 0 | S122: 0 | T122: 0 | U122: 0 | V122: 0 | W122: 0 | X122: 0 | Y122: 0 | Z122: 0 | AA122: 0 | AB122: 0 | AC122: 0 | AD122: 0 | AE122: 0 | AF122: 0 | AG122: 0 | AH122: 0 | AI122: 0 | AJ122: 0 | AK122: 0 | AL122: 0 | AM122: 0 | AN122: 0 | AO122: 0 | AP122: 0 | AQ122: 0 | AR122: =AR50/SUM(50:50) -> 0 | AS122: 0 | AT122: 0 | AU122: 0 | AV122: 0 | AW122: 0 | AX122: 0 | AY122: 0 | AZ122: 0 | BA122: 0 | BB122: 0 | BC122: 0 | BD122: 0.1 | BE122: 0.1 | BF122: 0.08 | BG122: 0.08 | BH122: 0.064 | BI122: 0.064 | BJ122: 0.0512 | BK122: 0.0512 | BL122: 0.04096 | BM122: 0.04096 | BN122: 0.032768 | BO122: 0.032768 | BP122: 0.032768 | BQ122: 0.032768 | BR122: 0.032768 | BS122: 0.032768 | BT122: 0.032768 | BU122: 0.032768 | BV122: 0.032768 | BW122: 0.032768 | BX122: =BX50/SUM(50:50) -> 0 | BY122: 0 | BZ122: 0 | CA122: 0 | CB122: 0 | CC122: 0 | CD122: 0 | CE122: 0 | CF122: 0 | CG122: 0 | CH122: 0 | CI122: 0 | CJ122: 0 | CK122: 0 | CL122: 0 | CM122: 0 | CN122: 0 | CO122: 0 | CP122: 0 | CQ122: 0 | CR122: 0 | CS122: 0 | CT122: 0 | CU122: 0 | CV122: 0 | CW122: 0 | CX122: 0 | CY122: 0 | CZ122: 0 | DA122: 0 | DB122: 0 | DC122: 0 | DD122: =DD50/SUM(50:50) -> 0 | DE122: 0 | DF122: 0 | DG122: 0 | DH122: 0 | DI122: 0 | DJ122: 0 | DK122: 0 | DL122: 0 | DM122: 0 | DN122: 0 | DO122: 0 | DP122: 0 | DQ122: 0
C123: Depreciation Expense | L123: =L122*L121 -> 0 | M123: =M122*M121 -> 0 | N123: 0 | O123: 0 | P123: 0 | Q123: 0 | R123: 0 | S123: 0 | T123: 0 | U123: 0 | V123: 0 | W123: 0 | X123: 0 | Y123: 0 | Z123: 0 | AA123: 0 | AB123: 0 | AC123: 0 | AD123: 0 | AE123: 0 | AF123: 0 | AG123: 0 | AH123: 0 | AI123: 0 | AJ123: 0 | AK123: 0 | AL123: 0 | AM123: 0 | AN123: 0 | AO123: 0 | AP123: 0 | AQ123: 0 | AR123: 0 | AS123: 0 | AT123: 0 | AU123: 0 | AV123: 0 | AW123: 0 | AX123: 0 | AY123: 0 | AZ123: 0 | BA123: 0 | BB123: 0 | BC123: 0 | BD123: 0 | BE123: 0 | BF123: 0 | BG123: 0 | BH123: 0 | BI123: 0 | BJ123: 0 | BK123: 0 | BL123: 0 | BM123: 0 | BN123: 0 | BO123: 0 | BP123: 0 | BQ123: 0 | BR123: 0 | BS123: 0 | BT123: 0 | BU123: 0 | BV123: 0 | BW123: 0 | BX123: 0 | BY123: =BY122*BY121 -> 0 | BZ123: 0 | CA123: 0 | CB123: 0 | CC123: 0 | CD123: 0 | CE123: 0 | CF123: 0 | CG123: 0 | CH123: 0 | CI123: 0 | CJ123: 0 | CK123: 0 | CL123: 0 | CM123: 0 | CN123: 0 | CO123: 0 | CP123: 0 | CQ123: 0 | CR123: 0 | CS123: 0 | CT123: 0 | CU123: 0 | CV123: 0 | CW123: 0 | CX123: 0 | CY123: 0 | CZ123: 0 | DA123: 0 | DB123: 0 | DC123: 0 | DD123: 0 | DE123: 0 | DF123: 0 | DG123: 0 | DH123: 0 | DI123: 0 | DJ123: 0 | DK123: 0 | DL123: 0 | DM123: 0 | DN123: 0 | DO123: 0 | DP123: 0 | DQ123: 0
B125: Profit and Loss
C126: EBITDA | L126: =L47 -> 0 | M126: 0 | N126: 0 | O126: 0 | P126: 0 | Q126: 0 | R126: 0 | S126: 0 | T126: 0 | U126: 0 | V126: 0 | W126: 0 | X126: 0 | Y126: 0 | Z126: 0 | AA126: 0 | AB126: 0 | AC126: 0 | AD126: 0 | AE126: 0 | AF126: 0 | AG126: 0 | AH126: 0 | AI126: 0 | AJ126: 0 | AK126: 0 | AL126: 0 | AM126: 0 | AN126: 0 | AO126: 0 | AP126: 0 | AQ126: 0 | AR126: =AR47 -> 0 | AS126: 0 | AT126: 0 | AU126: 0 | AV126: 0 | AW126: 0 | AX126: 0 | AY126: 0 | AZ126: 0 | BA126: 0 | BB126: 0 | BC126: 0 | BD126: 23499.40509 | BE126: 24093.25987 | BF126: 25666.6341 | BG126: 26137.88392 | BH126: 25750.82678 | BI126: 26399.26275 | BJ126: 26029.87236 | BK126: 26762.82911 | BL126: 26749.22838 | BM126: 27660.28054 | BN126: 27516.49632 | BO126: 28103.1405 | BP126: 27772.42911 | BQ126: 28552.92293 | BR126: 28217.39169 | BS126: 29009.73444 | BT126: 28669.31246 | BU126: 29473.6833 | BV126: 28820.4669 | BW126: 29441.19174 | BX126: =BX47 -> 27588.254 | BY126: 28378.4329 | BZ126: 28034.13713 | CA126: 28836.32861 | CB126: 28487.02911 | CC126: 29301.41495 | CD126: 29143.58819 | CE126: 29773.80301 | CF126: 28185.18286 | CG126: 29018.38365 | CH126: 28647.46712 | CI126: 29493.36296 | CJ126: 29117.08071 | CK126: 29975.86401 | CL126: 29802.74846 | CM126: 30466.00357 | CN126: 30078.75319 | CO126: 30963.90024 | CP126: 30571.04514 | CQ126: 31469.67443 | CR126: 31071.13256 | CS126: 31588.41675 | CT126: 30616.08338 | CU126: 31298.90905 | CV126: 30899.55755 | CW126: 31810.96028 | CX126: 31405.83081 | CY126: 32331.11795 | CZ126: 31920.12598 | DA126: 32859.50792 | DB126: 0 | DC126: 0 | DD126: =DD47 -> 0 | DE126: 0 | DF126: 0 | DG126: 0 | DH126: 0 | DI126: 0 | DJ126: 0 | DK126: 0 | DL126: 0 | DM126: 0 | DN126: 0 | DO126: 0 | DP126: 0 | DQ126: 0
C127: Less: Depreciation | L127: =L50 -> 0 | M127: 0 | N127: 0 | O127: 0 | P127: 0 | Q127: 0 | R127: 0 | S127: 0 | T127: 0 | U127: 0 | V127: 0 | W127: 0 | X127: 0 | Y127: 0 | Z127: 0 | AA127: 0 | AB127: 0 | AC127: 0 | AD127: 0 | AE127: 0 | AF127: 0 | AG127: 0 | AH127: 0 | AI127: 0 | AJ127: 0 | AK127: 0 | AL127: 0 | AM127: 0 | AN127: 0 | AO127: 0 | AP127: 0 | AQ127: 0 | AR127: =AR50 -> 0 | AS127: 0 | AT127: 0 | AU127: 0 | AV127: 0 | AW127: 0 | AX127: 0 | AY127: 0 | AZ127: 0 | BA127: 0 | BB127: 0 | BC127: 0 | BD127: 60000 | BE127: 60000 | BF127: 48000 | BG127: 48000 | BH127: 38400 | BI127: 38400 | BJ127: 30720 | BK127: 30720 | BL127: 24576 | BM127: 24576 | BN127: 19660.8 | BO127: 19660.8 | BP127: 19660.8 | BQ127: 19660.8 | BR127: 19660.8 | BS127: 19660.8 | BT127: 19660.8 | BU127: 19660.8 | BV127: 19660.8 | BW127: 19660.8 | BX127: =BX50 -> 0 | BY127: 0 | BZ127: 0 | CA127: 0 | CB127: 0 | CC127: 0 | CD127: 0 | CE127: 0 | CF127: 0 | CG127: 0 | CH127: 0 | CI127: 0 | CJ127: 0 | CK127: 0 | CL127: 0 | CM127: 0 | CN127: 0 | CO127: 0 | CP127: 0 | CQ127: 0 | CR127: 0 | CS127: 0 | CT127: 0 | CU127: 0 | CV127: 0 | CW127: 0 | CX127: 0 | CY127: 0 | CZ127: 0 | DA127: 0 | DB127: 0 | DC127: 0 | DD127: =DD50 -> 0 | DE127: 0 | DF127: 0 | DG127: 0 | DH127: 0 | DI127: 0 | DJ127: 0 | DK127: 0 | DL127: 0 | DM127: 0 | DN127: 0 | DO127: 0 | DP127: 0 | DQ127: 0
C128: Less: Depreciation on IDC | L128: =L123 -> 0 | M128: =M123 -> 0 | N128: 0 | O128: 0 | P128: 0 | Q128: 0 | R128: 0 | S128: 0 | T128: 0 | U128: 0 | V128: 0 | W128: 0 | X128: 0 | Y128: 0 | Z128: 0 | AA128: 0 | AB128: 0 | AC128: 0 | AD128: 0 | AE128: 0 | AF128: 0 | AG128: 0 | AH128: 0 | AI128: 0 | AJ128: 0 | AK128: 0 | AL128: 0 | AM128: 0 | AN128: 0 | AO128: 0 | AP128: 0 | AQ128: 0 | AR128: 0 | AS128: 0 | AT128: 0 | AU128: 0 | AV128: 0 | AW128: 0 | AX128: 0 | AY128: 0 | AZ128: 0 | BA128: 0 | BB128: 0 | BC128: 0 | BD128: 0 | BE128: 0 | BF128: 0 | BG128: 0 | BH128: 0 | BI128: 0 | BJ128: 0 | BK128: 0 | BL128: 0 | BM128: 0 | BN128: 0 | BO128: 0 | BP128: 0 | BQ128: 0 | BR128: 0 | BS128: 0 | BT128: 0 | BU128: 0 | BV128: 0 | BW128: 0 | BX128: 0 | BY128: =BY123 -> 0 | BZ128: 0 | CA128: 0 | CB128: 0 | CC128: 0 | CD128: 0 | CE128: 0 | CF128: 0 | CG128: 0 | CH128: 0 | CI128: 0 | CJ128: 0 | CK128: 0 | CL128: 0 | CM128: 0 | CN128: 0 | CO128: 0 | CP128: 0 | CQ128: 0 | CR128: 0 | CS128: 0 | CT128: 0 | CU128: 0 | CV128: 0 | CW128: 0 | CX128: 0 | CY128: 0 | CZ128: 0 | DA128: 0 | DB128: 0 | DC128: 0 | DD128: 0 | DE128: 0 | DF128: 0 | DG128: 0 | DH128: 0 | DI128: 0 | DJ128: 0 | DK128: 0 | DL128: 0 | DM128: 0 | DN128: 0 | DO128: 0 | DP128: 0 | DQ128: 0
D129: EBIT | L129: =L126-L127-L128 -> 0 | M129: =M126-M127-M128 -> 0 | N129: 0 | O129: 0 | P129: 0 | Q129: 0 | R129: 0 | S129: 0 | T129: 0 | U129: 0 | V129: 0 | W129: 0 | X129: 0 | Y129: 0 | Z129: 0 | AA129: 0 | AB129: 0 | AC129: 0 | AD129: 0 | AE129: 0 | AF129: 0 | AG129: 0 | AH129: 0 | AI129: 0 | AJ129: 0 | AK129: 0 | AL129: 0 | AM129: 0 | AN129: 0 | AO129: 0 | AP129: 0 | AQ129: 0 | AR129: 0 | AS129: 0 | AT129: 0 | AU129: 0 | AV129: 0 | AW129: 0 | AX129: 0 | AY129: 0 | AZ129: 0 | BA129: 0 | BB129: 0 | BC129: 0 | BD129: -36500.59491 | BE129: -35906.74013 | BF129: -22333.3659 | BG129: -21862.11608 | BH129: -12649.17322 | BI129: -12000.73725 | BJ129: -4690.127641 | BK129: -3957.170891 | BL129: 2173.228382 | BM129: 3084.280539 | BN129: 7855.696322 | BO129: 8442.340504 | BP129: 8111.62911 | BQ129: 8892.122926 | BR129: 8556.591686 | BS129: 9348.934437 | BT129: 9008.512463 | BU129: 9812.883298 | BV129: 9159.666901 | BW129: 9780.39174 | BX129: 27588.254 | BY129: =BY126-BY127-BY128 -> 28378.4329 | BZ129: 28034.13713 | CA129: 28836.32861 | CB129: 28487.02911 | CC129: 29301.41495 | CD129: 29143.58819 | CE129: 29773.80301 | CF129: 28185.18286 | CG129: 29018.38365 | CH129: 28647.46712 | CI129: 29493.36296 | CJ129: 29117.08071 | CK129: 29975.86401 | CL129: 29802.74846 | CM129: 30466.00357 | CN129: 30078.75319 | CO129: 30963.90024 | CP129: 30571.04514 | CQ129: 31469.67443 | CR129: 31071.13256 | CS129: 31588.41675 | CT129: 30616.08338 | CU129: 31298.90905 | CV129: 30899.55755 | CW129: 31810.96028 | CX129: 31405.83081 | CY129: 32331.11795 | CZ129: 31920.12598 | DA129: 32859.50792 | DB129: 0 | DC129: 0 | DD129: 0 | DE129: 0 | DF129: 0 | DG129: 0 | DH129: 0 | DI129: 0 | DJ129: 0 | DK129: 0 | DL129: 0 | DM129: 0 | DN129: 0 | DO129: 0 | DP129: 0 | DQ129: 0
C130: Less: Interest Expense | L130: =L116 -> 0 | M130: =M116 -> 0 | N130: 0 | O130: 0 | P130: 0 | Q130: 0 | R130: 0 | S130: 0 | T130: 0 | U130: 0 | V130: 0 | W130: 0 | X130: 0 | Y130: 0 | Z130: 0 | AA130: 0 | AB130: 0 | AC130: 0 | AD130: 0 | AE130: 0 | AF130: 0 | AG130: 0 | AH130: 0 | AI130: 0 | AJ130: 0 | AK130: 0 | AL130: 0 | AM130: 0 | AN130: 0 | AO130: 0 | AP130: 0 | AQ130: 0 | AR130: 0 | AS130: 0 | AT130: 0 | AU130: 0 | AV130: 0 | AW130: 0 | AX130: 0 | AY130: 0 | AZ130: 0 | BA130: 0 | BB130: 0 | BC130: 0 | BD130: 0 | BE130: 0 | BF130: 0 | BG130: 0 | BH130: 0 | BI130: 0 | BJ130: 0 | BK130: 0 | BL130: 0 | BM130: 0 | BN130: 0 | BO130: 0 | BP130: 0 | BQ130: 0 | BR130: 0 | BS130: 0 | BT130: 0 | BU130: 0 | BV130: 0 | BW130: 0 | BX130: 0 | BY130: =BY116 -> 0 | BZ130: 0 | CA130: 0 | CB130: 0 | CC130: 0 | CD130: 0 | CE130: 0 | CF130: 0 | CG130: 0 | CH130: 0 | CI130: 0 | CJ130: 0 | CK130: 0 | CL130: 0 | CM130: 0 | CN130: 0 | CO130: 0 | CP130: 0 | CQ130: 0 | CR130: 0 | CS130: 0 | CT130: 0 | CU130: 0 | CV130: 0 | CW130: 0 | CX130: 0 | CY130: 0 | CZ130: 0 | DA130: 0 | DB130: 0 | DC130: 0 | DD130: 0 | DE130: 0 | DF130: 0 | DG130: 0 | DH130: 0 | DI130: 0 | DJ130: 0 | DK130: 0 | DL130: 0 | DM130: 0 | DN130: 0 | DO130: 0 | DP130: 0 | DQ130: 0
C131: Add: Interest Income
D132: EBT | L132: =L129-L130+L131 -> 0 | M132: =M129-M130+M131 -> 0 | N132: 0 | O132: 0 | P132: 0 | Q132: 0 | R132: 0 | S132: 0 | T132: 0 | U132: 0 | V132: 0 | W132: 0 | X132: 0 | Y132: 0 | Z132: 0 | AA132: 0 | AB132: 0 | AC132: 0 | AD132: 0 | AE132: 0 | AF132: 0 | AG132: 0 | AH132: 0 | AI132: 0 | AJ132: 0 | AK132: 0 | AL132: 0 | AM132: 0 | AN132: 0 | AO132: 0 | AP132: 0 | AQ132: 0 | AR132: 0 | AS132: 0 | AT132: 0 | AU132: 0 | AV132: 0 | AW132: 0 | AX132: 0 | AY132: 0 | AZ132: 0 | BA132: 0 | BB132: 0 | BC132: 0 | BD132: -36500.59491 | BE132: -35906.74013 | BF132: -22333.3659 | BG132: -21862.11608 | BH132: -12649.17322 | BI132: -12000.73725 | BJ132: -4690.127641 | BK132: -3957.170891 | BL132: 2173.228382 | BM132: 3084.280539 | BN132: 7855.696322 | BO132: 8442.340504 | BP132: 8111.62911 | BQ132: 8892.122926 | BR132: 8556.591686 | BS132: 9348.934437 | BT132: 9008.512463 | BU132: 9812.883298 | BV132: 9159.666901 | BW132: 9780.39174 | BX132: 27588.254 | BY132: =BY129-BY130+BY131 -> 28378.4329 | BZ132: 28034.13713 | CA132: 28836.32861 | CB132: 28487.02911 | CC132: 29301.41495 | CD132: 29143.58819 | CE132: 29773.80301 | CF132: 28185.18286 | CG132: 29018.38365 | CH132: 28647.46712 | CI132: 29493.36296 | CJ132: 29117.08071 | CK132: 29975.86401 | CL132: 29802.74846 | CM132: 30466.00357 | CN132: 30078.75319 | CO132: 30963.90024 | CP132: 30571.04514 | CQ132: 31469.67443 | CR132: 31071.13256 | CS132: 31588.41675 | CT132: 30616.08338 | CU132: 31298.90905 | CV132: 30899.55755 | CW132: 31810.96028 | CX132: 31405.83081 | CY132: 32331.11795 | CZ132: 31920.12598 | DA132: 32859.50792 | DB132: 0 | DC132: 0 | DD132: 0 | DE132: 0 | DF132: 0 | DG132: 0 | DH132: 0 | DI132: 0 | DJ132: 0 | DK132: 0 | DL132: 0 | DM132: 0 | DN132: 0 | DO132: 0 | DP132: 0 | DQ132: 0
C133: NOL Balance
C134: Opening Balance | L134: =K137 -> 0 | M134: =L137 -> 0 | N134: 0 | O134: 0 | P134: 0 | Q134: 0 | R134: 0 | S134: 0 | T134: 0 | U134: 0 | V134: 0 | W134: 0 | X134: 0 | Y134: 0 | Z134: 0 | AA134: 0 | AB134: 0 | AC134: 0 | AD134: 0 | AE134: 0 | AF134: 0 | AG134: 0 | AH134: 0 | AI134: 0 | AJ134: 0 | AK134: 0 | AL134: 0 | AM134: 0 | AN134: 0 | AO134: 0 | AP134: 0 | AQ134: 0 | AR134: 0 | AS134: 0 | AT134: 0 | AU134: 0 | AV134: 0 | AW134: 0 | AX134: 0 | AY134: 0 | AZ134: 0 | BA134: 0 | BB134: 0 | BC134: 0 | BD134: 0 | BE134: 36500.59491 | BF134: 72407.33504 | BG134: 94740.70094 | BH134: 116602.817 | BI134: 129251.9902 | BJ134: 141252.7275 | BK134: 145942.8551 | BL134: 149900.026 | BM134: 147726.7976 | BN134: 144642.5171 | BO134: 136786.8208 | BP134: 128344.4803 | BQ134: 120232.8512 | BR134: 111340.7282 | BS134: 102784.1366 | BT134: 93435.20212 | BU134: 84426.68966 | BV134: 74613.80636 | BW134: 65454.13946 | BX134: 55673.74772 | BY134: =BX137 -> 28085.49372 | BZ134: 0 | CA134: 0 | CB134: 0 | CC134: 0 | CD134: 0 | CE134: 0 | CF134: 0 | CG134: 0 | CH134: 0 | CI134: 0 | CJ134: 0 | CK134: 0 | CL134: 0 | CM134: 0 | CN134: 0 | CO134: 0 | CP134: 0 | CQ134: 0 | CR134: 0 | CS134: 0 | CT134: 0 | CU134: 0 | CV134: 0 | CW134: 0 | CX134: 0 | CY134: 0 | CZ134: 0 | DA134: 0 | DB134: 0 | DC134: 0 | DD134: 0 | DE134: 0 | DF134: 0 | DG134: 0 | DH134: 0 | DI134: 0 | DJ134: 0 | DK134: 0 | DL134: 0 | DM134: 0 | DN134: 0 | DO134: 0 | DP134: 0 | DQ134: 0
C135: Add: NOL Created from Negative Taxable Income | L135: =MAX(-L132,0) -> 0 | M135: =MAX(-M132,0) -> 0 | N135: 0 | O135: 0 | P135: 0 | Q135: 0 | R135: 0 | S135: 0 | T135: 0 | U135: 0 | V135: 0 | W135: 0 | X135: 0 | Y135: 0 | Z135: 0 | AA135: 0 | AB135: 0 | AC135: 0 | AD135: 0 | AE135: 0 | AF135: 0 | AG135: 0 | AH135: 0 | AI135: 0 | AJ135: 0 | AK135: 0 | AL135: 0 | AM135: 0 | AN135: 0 | AO135: 0 | AP135: 0 | AQ135: 0 | AR135: 0 | AS135: 0 | AT135: 0 | AU135: 0 | AV135: 0 | AW135: 0 | AX135: 0 | AY135: 0 | AZ135: 0 | BA135: 0 | BB135: 0 | BC135: 0 | BD135: 36500.59491 | BE135: 35906.74013 | BF135: 22333.3659 | BG135: 21862.11608 | BH135: 12649.17322 | BI135: 12000.73725 | BJ135: 4690.127641 | BK135: 3957.170891 | BL135: 0 | BM135: 0 | BN135: 0 | BO135: 0 | BP135: 0 | BQ135: 0 | BR135: 0 | BS135: 0 | BT135: 0 | BU135: 0 | BV135: 0 | BW135: 0 | BX135: 0 | BY135: =MAX(-BY132,0) -> 0 | BZ135: 0 | CA135: 0 | CB135: 0 | CC135: 0 | CD135: 0 | CE135: 0 | CF135: 0 | CG135: 0 | CH135: 0 | CI135: 0 | CJ135: 0 | CK135: 0 | CL135: 0 | CM135: 0 | CN135: 0 | CO135: 0 | CP135: 0 | CQ135: 0 | CR135: 0 | CS135: 0 | CT135: 0 | CU135: 0 | CV135: 0 | CW135: 0 | CX135: 0 | CY135: 0 | CZ135: 0 | DA135: 0 | DB135: 0 | DC135: 0 | DD135: 0 | DE135: 0 | DF135: 0 | DG135: 0 | DH135: 0 | DI135: 0 | DJ135: 0 | DK135: 0 | DL135: 0 | DM135: 0 | DN135: 0 | DO135: 0 | DP135: 0 | DQ135: 0
C136: Less: NOL Used when Postive Taxable Income | L136: =MIN(L134,MAX(L132,0)) -> 0 | M136: =MIN(M134,MAX(M132,0)) -> 0 | N136: 0 | O136: 0 | P136: 0 | Q136: 0 | R136: 0 | S136: 0 | T136: 0 | U136: 0 | V136: 0 | W136: 0 | X136: 0 | Y136: 0 | Z136: 0 | AA136: 0 | AB136: 0 | AC136: 0 | AD136: 0 | AE136: 0 | AF136: 0 | AG136: 0 | AH136: 0 | AI136: 0 | AJ136: 0 | AK136: 0 | AL136: 0 | AM136: 0 | AN136: 0 | AO136: 0 | AP136: 0 | AQ136: 0 | AR136: 0 | AS136: 0 | AT136: 0 | AU136: 0 | AV136: 0 | AW136: 0 | AX136: 0 | AY136: 0 | AZ136: 0 | BA136: 0 | BB136: 0 | BC136: 0 | BD136: 0 | BE136: 0 | BF136: 0 | BG136: 0 | BH136: 0 | BI136: 0 | BJ136: 0 | BK136: 0 | BL136: 2173.228382 | BM136: 3084.280539 | BN136: 7855.696322 | BO136: 8442.340504 | BP136: 8111.62911 | BQ136: 8892.122926 | BR136: 8556.591686 | BS136: 9348.934437 | BT136: 9008.512463 | BU136: 9812.883298 | BV136: 9159.666901 | BW136: 9780.39174 | BX136: 27588.254 | BY136: =MIN(BY134,MAX(BY132,0)) -> 28085.49372 | BZ136: 0 | CA136: 0 | CB136: 0 | CC136: 0 | CD136: 0 | CE136: 0 | CF136: 0 | CG136: 0 | CH136: 0 | CI136: 0 | CJ136: 0 | CK136: 0 | CL136: 0 | CM136: 0 | CN136: 0 | CO136: 0 | CP136: 0 | CQ136: 0 | CR136: 0 | CS136: 0 | CT136: 0 | CU136: 0 | CV136: 0 | CW136: 0 | CX136: 0 | CY136: 0 | CZ136: 0 | DA136: 0 | DB136: 0 | DC136: 0 | DD136: 0 | DE136: 0 | DF136: 0 | DG136: 0 | DH136: 0 | DI136: 0 | DJ136: 0 | DK136: 0 | DL136: 0 | DM136: 0 | DN136: 0 | DO136: 0 | DP136: 0 | DQ136: 0
C137: Closing Balance | L137: =L134+L135-L136 -> 0 | M137: =M134+M135-M136 -> 0 | N137: 0 | O137: 0 | P137: 0 | Q137: 0 | R137: 0 | S137: 0 | T137: 0 | U137: 0 | V137: 0 | W137: 0 | X137: 0 | Y137: 0 | Z137: 0 | AA137: 0 | AB137: 0 | AC137: 0 | AD137: 0 | AE137: 0 | AF137: 0 | AG137: 0 | AH137: 0 | AI137: 0 | AJ137: 0 | AK137: 0 | AL137: 0 | AM137: 0 | AN137: 0 | AO137: 0 | AP137: 0 | AQ137: 0 | AR137: 0 | AS137: 0 | AT137: 0 | AU137: 0 | AV137: 0 | AW137: 0 | AX137: 0 | AY137: 0 | AZ137: 0 | BA137: 0 | BB137: 0 | BC137: 0 | BD137: 36500.59491 | BE137: 72407.33504 | BF137: 94740.70094 | BG137: 116602.817 | BH137: 129251.9902 | BI137: 141252.7275 | BJ137: 145942.8551 | BK137: 149900.026 | BL137: 147726.7976 | BM137: 144642.5171 | BN137: 136786.8208 | BO137: 128344.4803 | BP137: 120232.8512 | BQ137: 111340.7282 | BR137: 102784.1366 | BS137: 93435.20212 | BT137: 84426.68966 | BU137: 74613.80636 | BV137: 65454.13946 | BW137: 55673.74772 | BX137: 28085.49372 | BY137: =BY134+BY135-BY136 -> 0 | BZ137: 0 | CA137: 0 | CB137: 0 | CC137: 0 | CD137: 0 | CE137: 0 | CF137: 0 | CG137: 0 | CH137: 0 | CI137: 0 | CJ137: 0 | CK137: 0 | CL137: 0 | CM137: 0 | CN137: 0 | CO137: 0 | CP137: 0 | CQ137: 0 | CR137: 0 | CS137: 0 | CT137: 0 | CU137: 0 | CV137: 0 | CW137: 0 | CX137: 0 | CY137: 0 | CZ137: 0 | DA137: 0 | DB137: 0 | DC137: 0 | DD137: 0 | DE137: 0 | DF137: 0 | DG137: 0 | DH137: 0 | DI137: 0 | DJ137: 0 | DK137: 0 | DL137: 0 | DM137: 0 | DN137: 0 | DO137: 0 | DP137: 0 | DQ137: 0
D138: Adjusted EBT | L138: =L132+L135-L136 -> 0 | M138: =M132+M135-M136 -> 0 | N138: 0 | O138: 0 | P138: 0 | Q138: 0 | R138: 0 | S138: 0 | T138: 0 | U138: 0 | V138: 0 | W138: 0 | X138: 0 | Y138: 0 | Z138: 0 | AA138: 0 | AB138: 0 | AC138: 0 | AD138: 0 | AE138: 0 | AF138: 0 | AG138: 0 | AH138: 0 | AI138: 0 | AJ138: 0 | AK138: 0 | AL138: 0 | AM138: 0 | AN138: 0 | AO138: 0 | AP138: 0 | AQ138: 0 | AR138: 0 | AS138: 0 | AT138: 0 | AU138: 0 | AV138: 0 | AW138: 0 | AX138: 0 | AY138: 0 | AZ138: 0 | BA138: 0 | BB138: 0 | BC138: 0 | BD138: 0 | BE138: 0 | BF138: 0 | BG138: 0 | BH138: 0 | BI138: 0 | BJ138: 0 | BK138: 0 | BL138: 0 | BM138: 0 | BN138: 0 | BO138: 0 | BP138: 0 | BQ138: 0 | BR138: 0 | BS138: 0 | BT138: 0 | BU138: 0 | BV138: 0 | BW138: 0 | BX138: 0 | BY138: =BY132+BY135-BY136 -> 292.9391757 | BZ138: 28034.13713 | CA138: 28836.32861 | CB138: 28487.02911 | CC138: 29301.41495 | CD138: 29143.58819 | CE138: 29773.80301 | CF138: 28185.18286 | CG138: 29018.38365 | CH138: 28647.46712 | CI138: 29493.36296 | CJ138: 29117.08071 | CK138: 29975.86401 | CL138: 29802.74846 | CM138: 30466.00357 | CN138: 30078.75319 | CO138: 30963.90024 | CP138: 30571.04514 | CQ138: 31469.67443 | CR138: 31071.13256 | CS138: 31588.41675 | CT138: 30616.08338 | CU138: 31298.90905 | CV138: 30899.55755 | CW138: 31810.96028 | CX138: 31405.83081 | CY138: 32331.11795 | CZ138: 31920.12598 | DA138: 32859.50792 | DB138: 0 | DC138: 0 | DD138: 0 | DE138: 0 | DF138: 0 | DG138: 0 | DH138: 0 | DI138: 0 | DJ138: 0 | DK138: 0 | DL138: 0 | DM138: 0 | DN138: 0 | DO138: 0 | DP138: 0 | DQ138: 0
C139: Tax Paid | E139: Tax Rate | F139: ='Operations Monthly'!F71 -> 0.25 | L139: =L138*$F$139 -> 0 | M139: =M138*$F$139 -> 0 | N139: 0 | O139: 0 | P139: 0 | Q139: 0 | R139: 0 | S139: 0 | T139: 0 | U139: 0 | V139: 0 | W139: 0 | X139: 0 | Y139: 0 | Z139: 0 | AA139: 0 | AB139: 0 | AC139: 0 | AD139: 0 | AE139: 0 | AF139: 0 | AG139: 0 | AH139: 0 | AI139: 0 | AJ139: 0 | AK139: 0 | AL139: 0 | AM139: 0 | AN139: 0 | AO139: 0 | AP139: 0 | AQ139: 0 | AR139: 0 | AS139: 0 | AT139: 0 | AU139: 0 | AV139: 0 | AW139: 0 | AX139: 0 | AY139: 0 | AZ139: 0 | BA139: 0 | BB139: 0 | BC139: 0 | BD139: 0 | BE139: 0 | BF139: 0 | BG139: 0 | BH139: 0 | BI139: 0 | BJ139: 0 | BK139: 0 | BL139: 0 | BM139: 0 | BN139: 0 | BO139: 0 | BP139: 0 | BQ139: 0 | BR139: 0 | BS139: 0 | BT139: 0 | BU139: 0 | BV139: 0 | BW139: 0 | BX139: 0 | BY139: =BY138*$F$139 -> 73.23479393 | BZ139: 7008.534283 | CA139: 7209.082153 | CB139: 7121.757277 | CC139: 7325.353739 | CD139: 7285.897047 | CE139: 7443.450752 | CF139: 7046.295715 | CG139: 7254.595912 | CH139: 7161.86678 | CI139: 7373.340741 | CJ139: 7279.270178 | CK139: 7493.966001 | CL139: 7450.687114 | CM139: 7616.500892 | CN139: 7519.688299 | CO139: 7740.97506 | CP139: 7642.761284 | CQ139: 7867.418607 | CR139: 7767.78314 | CS139: 7897.104186 | CT139: 7654.020846 | CU139: 7824.727263 | CV139: 7724.889388 | CW139: 7952.74007 | CX139: 7851.457704 | CY139: 8082.779487 | CZ139: 7980.031494 | DA139: 8214.87698 | DB139: 0 | DC139: 0 | DD139: 0 | DE139: 0 | DF139: 0 | DG139: 0 | DH139: 0 | DI139: 0 | DJ139: 0 | DK139: 0 | DL139: 0 | DM139: 0 | DN139: 0 | DO139: 0 | DP139: 0 | DQ139: 0
D141: Net Earnings | L141: =L132-L139 -> 0 | M141: =M132-M139 -> 0 | N141: 0 | O141: 0 | P141: 0 | Q141: 0 | R141: 0 | S141: 0 | T141: 0 | U141: 0 | V141: 0 | W141: 0 | X141: 0 | Y141: 0 | Z141: 0 | AA141: 0 | AB141: 0 | AC141: 0 | AD141: 0 | AE141: 0 | AF141: 0 | AG141: 0 | AH141: 0 | AI141: 0 | AJ141: 0 | AK141: 0 | AL141: 0 | AM141: 0 | AN141: 0 | AO141: 0 | AP141: 0 | AQ141: 0 | AR141: 0 | AS141: 0 | AT141: 0 | AU141: 0 | AV141: 0 | AW141: 0 | AX141: 0 | AY141: 0 | AZ141: 0 | BA141: 0 | BB141: 0 | BC141: 0 | BD141: -36500.59491 | BE141: -35906.74013 | BF141: -22333.3659 | BG141: -21862.11608 | BH141: -12649.17322 | BI141: -12000.73725 | BJ141: -4690.127641 | BK141: -3957.170891 | BL141: 2173.228382 | BM141: 3084.280539 | BN141: 7855.696322 | BO141: 8442.340504 | BP141: 8111.62911 | BQ141: 8892.122926 | BR141: 8556.591686 | BS141: 9348.934437 | BT141: 9008.512463 | BU141: 9812.883298 | BV141: 9159.666901 | BW141: 9780.39174 | BX141: 27588.254 | BY141: =BY132-BY139 -> 28305.1981 | BZ141: 21025.60285 | CA141: 21627.24646 | CB141: 21365.27183 | CC141: 21976.06122 | CD141: 21857.69114 | CE141: 22330.35226 | CF141: 21138.88714 | CG141: 21763.78774 | CH141: 21485.60034 | CI141: 22120.02222 | CJ141: 21837.81053 | CK141: 22481.898 | CL141: 22352.06134 | CM141: 22849.50268 | CN141: 22559.0649 | CO141: 23222.92518 | CP141: 22928.28385 | CQ141: 23602.25582 | CR141: 23303.34942 | CS141: 23691.31256 | CT141: 22962.06254 | CU141: 23474.18179 | CV141: 23174.66816 | CW141: 23858.22021 | CX141: 23554.37311 | CY141: 24248.33846 | CZ141: 23940.09448 | DA141: 24644.63094 | DB141: 0 | DC141: 0 | DD141: 0 | DE141: 0 | DF141: 0 | DG141: 0 | DH141: 0 | DI141: 0 | DJ141: 0 | DK141: 0 | DL141: 0 | DM141: 0 | DN141: 0 | DO141: 0 | DP141: 0 | DQ141: 0
B143: Cash Flow Statement
C144: EBITDA | L144: =L126 -> 0 | M144: =M126 -> 0 | N144: 0 | O144: 0 | P144: 0 | Q144: 0 | R144: 0 | S144: 0 | T144: 0 | U144: 0 | V144: 0 | W144: 0 | X144: 0 | Y144: 0 | Z144: 0 | AA144: 0 | AB144: 0 | AC144: 0 | AD144: 0 | AE144: 0 | AF144: 0 | AG144: 0 | AH144: 0 | AI144: 0 | AJ144: 0 | AK144: 0 | AL144: 0 | AM144: 0 | AN144: 0 | AO144: 0 | AP144: 0 | AQ144: 0 | AR144: 0 | AS144: 0 | AT144: 0 | AU144: 0 | AV144: 0 | AW144: 0 | AX144: 0 | AY144: 0 | AZ144: 0 | BA144: 0 | BB144: 0 | BC144: 0 | BD144: 23499.40509 | BE144: 24093.25987 | BF144: 25666.6341 | BG144: 26137.88392 | BH144: 25750.82678 | BI144: 26399.26275 | BJ144: 26029.87236 | BK144: 26762.82911 | BL144: 26749.22838 | BM144: 27660.28054 | BN144: 27516.49632 | BO144: 28103.1405 | BP144: 27772.42911 | BQ144: 28552.92293 | BR144: 28217.39169 | BS144: 29009.73444 | BT144: 28669.31246 | BU144: 29473.6833 | BV144: 28820.4669 | BW144: 29441.19174 | BX144: 27588.254 | BY144: =BY126 -> 28378.4329 | BZ144: 28034.13713 | CA144: 28836.32861 | CB144: 28487.02911 | CC144: 29301.41495 | CD144: 29143.58819 | CE144: 29773.80301 | CF144: 28185.18286 | CG144: 29018.38365 | CH144: 28647.46712 | CI144: 29493.36296 | CJ144: 29117.08071 | CK144: 29975.86401 | CL144: 29802.74846 | CM144: 30466.00357 | CN144: 30078.75319 | CO144: 30963.90024 | CP144: 30571.04514 | CQ144: 31469.67443 | CR144: 31071.13256 | CS144: 31588.41675 | CT144: 30616.08338 | CU144: 31298.90905 | CV144: 30899.55755 | CW144: 31810.96028 | CX144: 31405.83081 | CY144: 32331.11795 | CZ144: 31920.12598 | DA144: 32859.50792 | DB144: 0 | DC144: 0 | DD144: 0 | DE144: 0 | DF144: 0 | DG144: 0 | DH144: 0 | DI144: 0 | DJ144: 0 | DK144: 0 | DL144: 0 | DM144: 0 | DN144: 0 | DO144: 0 | DP144: 0 | DQ144: 0
C145: Less: Taxes Paid | L145: =L139 -> 0 | M145: =M139 -> 0 | N145: 0 | O145: 0 | P145: 0 | Q145: 0 | R145: 0 | S145: 0 | T145: 0 | U145: 0 | V145: 0 | W145: 0 | X145: 0 | Y145: 0 | Z145: 0 | AA145: 0 | AB145: 0 | AC145: 0 | AD145: 0 | AE145: 0 | AF145: 0 | AG145: 0 | AH145: 0 | AI145: 0 | AJ145: 0 | AK145: 0 | AL145: 0 | AM145: 0 | AN145: 0 | AO145: 0 | AP145: 0 | AQ145: 0 | AR145: 0 | AS145: 0 | AT145: 0 | AU145: 0 | AV145: 0 | AW145: 0 | AX145: 0 | AY145: 0 | AZ145: 0 | BA145: 0 | BB145: 0 | BC145: 0 | BD145: 0 | BE145: 0 | BF145: 0 | BG145: 0 | BH145: 0 | BI145: 0 | BJ145: 0 | BK145: 0 | BL145: 0 | BM145: 0 | BN145: 0 | BO145: 0 | BP145: 0 | BQ145: 0 | BR145: 0 | BS145: 0 | BT145: 0 | BU145: 0 | BV145: 0 | BW145: 0 | BX145: 0 | BY145: =BY139 -> 73.23479393 | BZ145: 7008.534283 | CA145: 7209.082153 | CB145: 7121.757277 | CC145: 7325.353739 | CD145: 7285.897047 | CE145: 7443.450752 | CF145: 7046.295715 | CG145: 7254.595912 | CH145: 7161.86678 | CI145: 7373.340741 | CJ145: 7279.270178 | CK145: 7493.966001 | CL145: 7450.687114 | CM145: 7616.500892 | CN145: 7519.688299 | CO145: 7740.97506 | CP145: 7642.761284 | CQ145: 7867.418607 | CR145: 7767.78314 | CS145: 7897.104186 | CT145: 7654.020846 | CU145: 7824.727263 | CV145: 7724.889388 | CW145: 7952.74007 | CX145: 7851.457704 | CY145: 8082.779487 | CZ145: 7980.031494 | DA145: 8214.87698 | DB145: 0 | DC145: 0 | DD145: 0 | DE145: 0 | DF145: 0 | DG145: 0 | DH145: 0 | DI145: 0 | DJ145: 0 | DK145: 0 | DL145: 0 | DM145: 0 | DN145: 0 | DO145: 0 | DP145: 0 | DQ145: 0
C146: Less: Working Capital | L146: =L49 -> 0 | M146: 0 | N146: 0 | O146: 0 | P146: 0 | Q146: 0 | R146: 0 | S146: 0 | T146: 0 | U146: 0 | V146: 0 | W146: 0 | X146: 0 | Y146: 0 | Z146: 0 | AA146: 0 | AB146: 0 | AC146: 0 | AD146: 0 | AE146: 0 | AF146: 0 | AG146: 0 | AH146: 0 | AI146: 0 | AJ146: 0 | AK146: 0 | AL146: 0 | AM146: 0 | AN146: 0 | AO146: 0 | AP146: 0 | AQ146: 0 | AR146: =AR49 -> 0 | AS146: 0 | AT146: 0 | AU146: 0 | AV146: 0 | AW146: 0 | AX146: 0 | AY146: 0 | AZ146: 0 | BA146: 0 | BB146: 0 | BC146: 0 | BD146: 6590.259912 | BE146: 52.16729065 | BF146: 453.5767033 | BG146: 54.88269984 | BH146: 16.07733923 | BI146: 55.43152683 | BJ146: 29.17378447 | BK146: 75.59081174 | BL146: 150.2899295 | BM146: 77.49267638 | BN146: 37.76626401 | BO146: 78.57010628 | BP146: 38.44869012 | BQ146: 79.66284803 | BR146: 39.14251194 | BS146: 80.77112281 | BT146: 39.847912 | BU146: 81.89515503 | BV146: -15.23798032 | BW146: 84.56592786 | BX146: =BX49 -> -334.8856257 | BY146: 82.94222933 | BZ146: 37.10965024 | CA146: 84.08844544 | CB146: 37.79990768 | CC146: 85.25087563 | CD146: 38.5018551 | CE146: 86.4297533 | CF146: -97.63332173 | CG146: 91.37927386 | CH146: 34.81912911 | CI146: 92.62930001 | CJ146: 35.50606618 | CK146: 93.89686993 | CL146: 36.20495381 | CM146: 95.1822347 | CN146: 36.91598772 | CO146: 96.48564905 | CP146: 37.63936673 | CQ146: 97.80737143 | CR146: 38.37529282 | CS146: -192.4469383 | CT146: 36.9451518 | CU146: 98.31169315 | CV146: 37.67410852 | CW146: 99.65700153 | CX146: 38.41574737 | CY146: 101.0211959 | CZ146: 39.17027608 | DA146: 102.4045465 | DB146: -9267.973279 | DC146: 0 | DD146: =DD49 -> 0 | DE146: 0 | DF146: 0 | DG146: 0 | DH146: 0 | DI146: 0 | DJ146: 0 | DK146: 0 | DL146: 0 | DM146: 0 | DN146: 0 | DO146: 0 | DP146: 0 | DQ146: 0
C147: Add: Use of Working Capital Reserve | L147: =L71 -> 0 | M147: =M71 -> 0 | N147: 0 | O147: 0 | P147: 0 | Q147: 0 | R147: 0 | S147: 0 | T147: 0 | U147: 0 | V147: 0 | W147: 0 | X147: 0 | Y147: 0 | Z147: 0 | AA147: 0 | AB147: 0 | AC147: 0 | AD147: 0 | AE147: 0 | AF147: 0 | AG147: 0 | AH147: 0 | AI147: 0 | AJ147: 0 | AK147: 0 | AL147: 0 | AM147: 0 | AN147: 0 | AO147: 0 | AP147: 0 | AQ147: 0 | AR147: 0 | AS147: 0 | AT147: 0 | AU147: 0 | AV147: 0 | AW147: 0 | AX147: 0 | AY147: 0 | AZ147: 0 | BA147: 0 | BB147: 0 | BC147: 0 | BD147: 6590.259912 | BE147: 0 | BF147: 0 | BG147: 0 | BH147: 0 | BI147: 0 | BJ147: 0 | BK147: 0 | BL147: 0 | BM147: 0 | BN147: 0 | BO147: 0 | BP147: 0 | BQ147: 0 | BR147: 0 | BS147: 0 | BT147: 0 | BU147: 0 | BV147: 0 | BW147: 0 | BX147: 0 | BY147: =BY71 -> 0 | BZ147: 0 | CA147: 0 | CB147: 0 | CC147: 0 | CD147: 0 | CE147: 0 | CF147: 0 | CG147: 0 | CH147: 0 | CI147: 0 | CJ147: 0 | CK147: 0 | CL147: 0 | CM147: 0 | CN147: 0 | CO147: 0 | CP147: 0 | CQ147: 0 | CR147: 0 | CS147: 0 | CT147: 0 | CU147: 0 | CV147: 0 | CW147: 0 | CX147: 0 | CY147: 0 | CZ147: 0 | DA147: 0 | DB147: 0 | DC147: 0 | DD147: 0 | DE147: 0 | DF147: 0 | DG147: 0 | DH147: 0 | DI147: 0 | DJ147: 0 | DK147: 0 | DL147: 0 | DM147: 0 | DN147: 0 | DO147: 0 | DP147: 0 | DQ147: 0
C148: Add: Interest Income | L148: =L131 -> 0 | M148: =M131 -> 0 | N148: 0 | O148: 0 | P148: 0 | Q148: 0 | R148: 0 | S148: 0 | T148: 0 | U148: 0 | V148: 0 | W148: 0 | X148: 0 | Y148: 0 | Z148: 0 | AA148: 0 | AB148: 0 | AC148: 0 | AD148: 0 | AE148: 0 | AF148: 0 | AG148: 0 | AH148: 0 | AI148: 0 | AJ148: 0 | AK148: 0 | AL148: 0 | AM148: 0 | AN148: 0 | AO148: 0 | AP148: 0 | AQ148: 0 | AR148: 0 | AS148: 0 | AT148: 0 | AU148: 0 | AV148: 0 | AW148: 0 | AX148: 0 | AY148: 0 | AZ148: 0 | BA148: 0 | BB148: 0 | BC148: 0 | BD148: 0 | BE148: 0 | BF148: 0 | BG148: 0 | BH148: 0 | BI148: 0 | BJ148: 0 | BK148: 0 | BL148: 0 | BM148: 0 | BN148: 0 | BO148: 0 | BP148: 0 | BQ148: 0 | BR148: 0 | BS148: 0 | BT148: 0 | BU148: 0 | BV148: 0 | BW148: 0 | BX148: 0 | BY148: =BY131 -> 0 | BZ148: 0 | CA148: 0 | CB148: 0 | CC148: 0 | CD148: 0 | CE148: 0 | CF148: 0 | CG148: 0 | CH148: 0 | CI148: 0 | CJ148: 0 | CK148: 0 | CL148: 0 | CM148: 0 | CN148: 0 | CO148: 0 | CP148: 0 | CQ148: 0 | CR148: 0 | CS148: 0 | CT148: 0 | CU148: 0 | CV148: 0 | CW148: 0 | CX148: 0 | CY148: 0 | CZ148: 0 | DA148: 0 | DB148: 0 | DC148: 0 | DD148: 0 | DE148: 0 | DF148: 0 | DG148: 0 | DH148: 0 | DI148: 0 | DJ148: 0 | DK148: 0 | DL148: 0 | DM148: 0 | DN148: 0 | DO148: 0 | DP148: 0 | DQ148: 0
D149: Cash Flow Available for Debt Service | L149: =L144-L145-L146-L148+L147 -> 0 | M149: =M144-M145-M146-M148+M147 -> 0 | N149: 0 | O149: 0 | P149: 0 | Q149: 0 | R149: 0 | S149: 0 | T149: 0 | U149: 0 | V149: 0 | W149: 0 | X149: 0 | Y149: 0 | Z149: 0 | AA149: 0 | AB149: 0 | AC149: 0 | AD149: 0 | AE149: 0 | AF149: 0 | AG149: 0 | AH149: 0 | AI149: 0 | AJ149: 0 | AK149: 0 | AL149: 0 | AM149: 0 | AN149: 0 | AO149: 0 | AP149: 0 | AQ149: 0 | AR149: 0 | AS149: 0 | AT149: 0 | AU149: 0 | AV149: 0 | AW149: 0 | AX149: 0 | AY149: 0 | AZ149: 0 | BA149: 0 | BB149: 0 | BC149: 0 | BD149: 23499.40509 | BE149: 24041.09258 | BF149: 25213.0574 | BG149: 26083.00122 | BH149: 25734.74944 | BI149: 26343.83123 | BJ149: 26000.69857 | BK149: 26687.2383 | BL149: 26598.93845 | BM149: 27582.78786 | BN149: 27478.73006 | BO149: 28024.5704 | BP149: 27733.98042 | BQ149: 28473.26008 | BR149: 28178.24917 | BS149: 28928.96331 | BT149: 28629.46455 | BU149: 29391.78814 | BV149: 28835.70488 | BW149: 29356.62581 | BX149: 27923.13962 | BY149: =BY144-BY145-BY146-BY148+BY147 -> 28222.25587 | BZ149: 20988.4932 | CA149: 21543.15801 | CB149: 21327.47192 | CC149: 21890.81034 | CD149: 21819.18929 | CE149: 22243.9225 | CF149: 21236.52047 | CG149: 21672.40846 | CH149: 21450.78121 | CI149: 22027.39292 | CJ149: 21802.30447 | CK149: 22388.00113 | CL149: 22315.85639 | CM149: 22754.32044 | CN149: 22522.14891 | CO149: 23126.43953 | CP149: 22890.64448 | CQ149: 23504.44845 | CR149: 23264.97413 | CS149: 23883.7595 | CT149: 22925.11739 | CU149: 23375.8701 | CV149: 23136.99406 | CW149: 23758.56321 | CX149: 23515.95736 | CY149: 24147.31727 | CZ149: 23900.92421 | DA149: 24542.22639 | DB149: 9267.973279 | DC149: 0 | DD149: 0 | DE149: 0 | DF149: 0 | DG149: 0 | DH149: 0 | DI149: 0 | DJ149: 0 | DK149: 0 | DL149: 0 | DM149: 0 | DN149: 0 | DO149: 0 | DP149: 0 | DQ149: 0
C150: Less: Interest Expense | L150: =L130 -> 0 | M150: =M130 -> 0 | N150: 0 | O150: 0 | P150: 0 | Q150: 0 | R150: 0 | S150: 0 | T150: 0 | U150: 0 | V150: 0 | W150: 0 | X150: 0 | Y150: 0 | Z150: 0 | AA150: 0 | AB150: 0 | AC150: 0 | AD150: 0 | AE150: 0 | AF150: 0 | AG150: 0 | AH150: 0 | AI150: 0 | AJ150: 0 | AK150: 0 | AL150: 0 | AM150: 0 | AN150: 0 | AO150: 0 | AP150: 0 | AQ150: 0 | AR150: 0 | AS150: 0 | AT150: 0 | AU150: 0 | AV150: 0 | AW150: 0 | AX150: 0 | AY150: 0 | AZ150: 0 | BA150: 0 | BB150: 0 | BC150: 0 | BD150: 0 | BE150: 0 | BF150: 0 | BG150: 0 | BH150: 0 | BI150: 0 | BJ150: 0 | BK150: 0 | BL150: 0 | BM150: 0 | BN150: 0 | BO150: 0 | BP150: 0 | BQ150: 0 | BR150: 0 | BS150: 0 | BT150: 0 | BU150: 0 | BV150: 0 | BW150: 0 | BX150: 0 | BY150: =BY130 -> 0 | BZ150: 0 | CA150: 0 | CB150: 0 | CC150: 0 | CD150: 0 | CE150: 0 | CF150: 0 | CG150: 0 | CH150: 0 | CI150: 0 | CJ150: 0 | CK150: 0 | CL150: 0 | CM150: 0 | CN150: 0 | CO150: 0 | CP150: 0 | CQ150: 0 | CR150: 0 | CS150: 0 | CT150: 0 | CU150: 0 | CV150: 0 | CW150: 0 | CX150: 0 | CY150: 0 | CZ150: 0 | DA150: 0 | DB150: 0 | DC150: 0 | DD150: 0 | DE150: 0 | DF150: 0 | DG150: 0 | DH150: 0 | DI150: 0 | DJ150: 0 | DK150: 0 | DL150: 0 | DM150: 0 | DN150: 0 | DO150: 0 | DP150: 0 | DQ150: 0
C151: Less: Debt Repayment | L151: =L112 -> 0 | M151: =M112 -> 0 | N151: 0 | O151: 0 | P151: 0 | Q151: 0 | R151: 0 | S151: 0 | T151: 0 | U151: 0 | V151: 0 | W151: 0 | X151: 0 | Y151: 0 | Z151: 0 | AA151: 0 | AB151: 0 | AC151: 0 | AD151: 0 | AE151: 0 | AF151: 0 | AG151: 0 | AH151: 0 | AI151: 0 | AJ151: 0 | AK151: 0 | AL151: 0 | AM151: 0 | AN151: 0 | AO151: 0 | AP151: 0 | AQ151: 0 | AR151: 0 | AS151: 0 | AT151: 0 | AU151: 0 | AV151: 0 | AW151: 0 | AX151: 0 | AY151: 0 | AZ151: 0 | BA151: 0 | BB151: 0 | BC151: 0 | BD151: 0 | BE151: 0 | BF151: 0 | BG151: 0 | BH151: 0 | BI151: 0 | BJ151: 0 | BK151: 0 | BL151: 0 | BM151: 0 | BN151: 0 | BO151: 0 | BP151: 0 | BQ151: 0 | BR151: 0 | BS151: 0 | BT151: 0 | BU151: 0 | BV151: 0 | BW151: 0 | BX151: 0 | BY151: =BY112 -> 0 | BZ151: 0 | CA151: 0 | CB151: 0 | CC151: 0 | CD151: 0 | CE151: 0 | CF151: 0 | CG151: 0 | CH151: 0 | CI151: 0 | CJ151: 0 | CK151: 0 | CL151: 0 | CM151: 0 | CN151: 0 | CO151: 0 | CP151: 0 | CQ151: 0 | CR151: 0 | CS151: 0 | CT151: 0 | CU151: 0 | CV151: 0 | CW151: 0 | CX151: 0 | CY151: 0 | CZ151: 0 | DA151: 0 | DB151: 0 | DC151: 0 | DD151: 0 | DE151: 0 | DF151: 0 | DG151: 0 | DH151: 0 | DI151: 0 | DJ151: 0 | DK151: 0 | DL151: 0 | DM151: 0 | DN151: 0 | DO151: 0 | DP151: 0 | DQ151: 0
D152: Net Cash Flow | L152: =L149-L150-L151 -> 0 | M152: =M149-M150-M151 -> 0 | N152: 0 | O152: 0 | P152: 0 | Q152: 0 | R152: 0 | S152: 0 | T152: 0 | U152: 0 | V152: 0 | W152: 0 | X152: 0 | Y152: 0 | Z152: 0 | AA152: 0 | AB152: 0 | AC152: 0 | AD152: 0 | AE152: 0 | AF152: 0 | AG152: 0 | AH152: 0 | AI152: 0 | AJ152: 0 | AK152: 0 | AL152: 0 | AM152: 0 | AN152: 0 | AO152: 0 | AP152: 0 | AQ152: 0 | AR152: 0 | AS152: 0 | AT152: 0 | AU152: 0 | AV152: 0 | AW152: 0 | AX152: 0 | AY152: 0 | AZ152: 0 | BA152: 0 | BB152: 0 | BC152: 0 | BD152: 23499.40509 | BE152: 24041.09258 | BF152: 25213.0574 | BG152: 26083.00122 | BH152: 25734.74944 | BI152: 26343.83123 | BJ152: 26000.69857 | BK152: 26687.2383 | BL152: 26598.93845 | BM152: 27582.78786 | BN152: 27478.73006 | BO152: 28024.5704 | BP152: 27733.98042 | BQ152: 28473.26008 | BR152: 28178.24917 | BS152: 28928.96331 | BT152: 28629.46455 | BU152: 29391.78814 | BV152: 28835.70488 | BW152: 29356.62581 | BX152: 27923.13962 | BY152: =BY149-BY150-BY151 -> 28222.25587 | BZ152: 20988.4932 | CA152: 21543.15801 | CB152: 21327.47192 | CC152: 21890.81034 | CD152: 21819.18929 | CE152: 22243.9225 | CF152: 21236.52047 | CG152: 21672.40846 | CH152: 21450.78121 | CI152: 22027.39292 | CJ152: 21802.30447 | CK152: 22388.00113 | CL152: 22315.85639 | CM152: 22754.32044 | CN152: 22522.14891 | CO152: 23126.43953 | CP152: 22890.64448 | CQ152: 23504.44845 | CR152: 23264.97413 | CS152: 23883.7595 | CT152: 22925.11739 | CU152: 23375.8701 | CV152: 23136.99406 | CW152: 23758.56321 | CX152: 23515.95736 | CY152: 24147.31727 | CZ152: 23900.92421 | DA152: 24542.22639 | DB152: 9267.973279 | DC152: 0 | DD152: 0 | DE152: 0 | DF152: 0 | DG152: 0 | DH152: 0 | DI152: 0 | DJ152: 0 | DK152: 0 | DL152: 0 | DM152: 0 | DN152: 0 | DO152: 0 | DP152: 0 | DQ152: 0
C153: Less: Sweep etc.
D154: Dividends | L154: =L152-L153 -> 0 | M154: =M152-M153 -> 0 | N154: 0 | O154: 0 | P154: 0 | Q154: 0 | R154: 0 | S154: 0 | T154: 0 | U154: 0 | V154: 0 | W154: 0 | X154: 0 | Y154: 0 | Z154: 0 | AA154: 0 | AB154: 0 | AC154: 0 | AD154: 0 | AE154: 0 | AF154: 0 | AG154: 0 | AH154: 0 | AI154: 0 | AJ154: 0 | AK154: 0 | AL154: 0 | AM154: 0 | AN154: 0 | AO154: 0 | AP154: 0 | AQ154: 0 | AR154: 0 | AS154: 0 | AT154: 0 | AU154: 0 | AV154: 0 | AW154: 0 | AX154: 0 | AY154: 0 | AZ154: 0 | BA154: 0 | BB154: 0 | BC154: 0 | BD154: 23499.40509 | BE154: 24041.09258 | BF154: 25213.0574 | BG154: 26083.00122 | BH154: 25734.74944 | BI154: 26343.83123 | BJ154: 26000.69857 | BK154: 26687.2383 | BL154: 26598.93845 | BM154: 27582.78786 | BN154: 27478.73006 | BO154: 28024.5704 | BP154: 27733.98042 | BQ154: 28473.26008 | BR154: 28178.24917 | BS154: 28928.96331 | BT154: 28629.46455 | BU154: 29391.78814 | BV154: 28835.70488 | BW154: 29356.62581 | BX154: 27923.13962 | BY154: =BY152-BY153 -> 28222.25587 | BZ154: 20988.4932 | CA154: 21543.15801 | CB154: 21327.47192 | CC154: 21890.81034 | CD154: 21819.18929 | CE154: 22243.9225 | CF154: 21236.52047 | CG154: 21672.40846 | CH154: 21450.78121 | CI154: 22027.39292 | CJ154: 21802.30447 | CK154: 22388.00113 | CL154: 22315.85639 | CM154: 22754.32044 | CN154: 22522.14891 | CO154: 23126.43953 | CP154: 22890.64448 | CQ154: 23504.44845 | CR154: 23264.97413 | CS154: 23883.7595 | CT154: 22925.11739 | CU154: 23375.8701 | CV154: 23136.99406 | CW154: 23758.56321 | CX154: 23515.95736 | CY154: 24147.31727 | CZ154: 23900.92421 | DA154: 24542.22639 | DB154: 9267.973279 | DC154: 0 | DD154: 0 | DE154: 0 | DF154: 0 | DG154: 0 | DH154: 0 | DI154: 0 | DJ154: 0 | DK154: 0 | DL154: 0 | DM154: 0 | DN154: 0 | DO154: 0 | DP154: 0 | DQ154: 0
A156: Outputs
C157: Equity Cash Flow | E157: =XIRR(L157:DQ157,L3:DQ3) -> 0.05573146641 | F157: =SUM(L157:DQ157) -> 635595.2616 | L157: =L154-L87 -> -10000 | M157: =M154-M87 -> -10000 | N157: -10000 | O157: -10000 | P157: -10000 | Q157: -10000 | R157: -10000 | S157: -10000 | T157: -10000 | U157: -10000 | V157: -10000 | W157: -10000 | X157: -32500 | Y157: -32500 | Z157: -32500 | AA157: -32500 | AB157: -32500 | AC157: -32500 | AD157: -32500 | AE157: -32500 | AF157: -32500 | AG157: -32500 | AH157: -32500 | AI157: -32500 | AJ157: -7500 | AK157: -7500 | AL157: -7500 | AM157: -7500 | AN157: -7500 | AO157: -7500 | AP157: -7500 | AQ157: -7500 | AR157: -7500 | AS157: -7500 | AT157: -7500 | AU157: -7500 | AV157: 0 | AW157: 0 | AX157: 0 | AY157: 0 | AZ157: 0 | BA157: 0 | BB157: 0 | BC157: -6590.259912 | BD157: 23499.40509 | BE157: 24041.09258 | BF157: 25213.0574 | BG157: 26083.00122 | BH157: 25734.74944 | BI157: 26343.83123 | BJ157: 26000.69857 | BK157: 26687.2383 | BL157: 26598.93845 | BM157: 27582.78786 | BN157: 27478.73006 | BO157: 28024.5704 | BP157: 27733.98042 | BQ157: 28473.26008 | BR157: 28178.24917 | BS157: 28928.96331 | BT157: 28629.46455 | BU157: 29391.78814 | BV157: 28835.70488 | BW157: 29356.62581 | BX157: 27923.13962 | BY157: =BY154-BY87 -> 28222.25587 | BZ157: 20988.4932 | CA157: 21543.15801 | CB157: 21327.47192 | CC157: 21890.81034 | CD157: 21819.18929 | CE157: 22243.9225 | CF157: 21236.52047 | CG157: 21672.40846 | CH157: 21450.78121 | CI157: 22027.39292 | CJ157: 21802.30447 | CK157: 22388.00113 | CL157: 22315.85639 | CM157: 22754.32044 | CN157: 22522.14891 | CO157: 23126.43953 | CP157: 22890.64448 | CQ157: 23504.44845 | CR157: 23264.97413 | CS157: 23883.7595 | CT157: 22925.11739 | CU157: 23375.8701 | CV157: 23136.99406 | CW157: 23758.56321 | CX157: 23515.95736 | CY157: 24147.31727 | CZ157: 23900.92421 | DA157: 24542.22639 | DB157: 9267.973279 | DC157: 0 | DD157: 0 | DE157: 0 | DF157: 0 | DG157: 0 | DH157: 0 | DI157: 0 | DJ157: 0 | DK157: 0 | DL157: 0 | DM157: 0 | DN157: 0 | DO157: 0 | DP157: 0 | DQ157: 0
C158: Project Free Cash Flow | E158: =XIRR(L158:DQ158,L3:DQ3) -> 0.05575422943 | L158: =L51 -> -10000 | M158: =M51 -> -10000 | N158: -10000 | O158: -10000 | P158: -10000 | Q158: -10000 | R158: -10000 | S158: -10000 | T158: -10000 | U158: -10000 | V158: -10000 | W158: -10000 | X158: -32500 | Y158: -32500 | Z158: -32500 | AA158: -32500 | AB158: -32500 | AC158: -32500 | AD158: -32500 | AE158: -32500 | AF158: -32500 | AG158: -32500 | AH158: -32500 | AI158: -32500 | AJ158: -7500 | AK158: -7500 | AL158: -7500 | AM158: -7500 | AN158: -7500 | AO158: -7500 | AP158: -7500 | AQ158: -7500 | AR158: -7500 | AS158: -7500 | AT158: -7500 | AU158: -7500 | AV158: 0 | AW158: 0 | AX158: 0 | AY158: 0 | AZ158: 0 | BA158: 0 | BB158: 0 | BC158: -1.33226763e-10 | BD158: 16909.14518 | BE158: 24041.09258 | BF158: 25213.0574 | BG158: 26083.00122 | BH158: 25734.74944 | BI158: 26343.83123 | BJ158: 26000.69857 | BK158: 26687.2383 | BL158: 26598.93845 | BM158: 27582.78786 | BN158: 27478.73006 | BO158: 28024.5704 | BP158: 27733.98042 | BQ158: 28473.26008 | BR158: 28178.24917 | BS158: 28928.96331 | BT158: 28629.46455 | BU158: 29391.78814 | BV158: 28835.70488 | BW158: 29356.62581 | BX158: 27923.13962 | BY158: =BY51 -> 28222.25587 | BZ158: 20988.4932 | CA158: 21543.15801 | CB158: 21327.47192 | CC158: 21890.81034 | CD158: 21819.18929 | CE158: 22243.9225 | CF158: 21236.52047 | CG158: 21672.40846 | CH158: 21450.78121 | CI158: 22027.39292 | CJ158: 21802.30447 | CK158: 22388.00113 | CL158: 22315.85639 | CM158: 22754.32044 | CN158: 22522.14891 | CO158: 23126.43953 | CP158: 22890.64448 | CQ158: 23504.44845 | CR158: 23264.97413 | CS158: 23883.7595 | CT158: 22925.11739 | CU158: 23375.8701 | CV158: 23136.99406 | CW158: 23758.56321 | CX158: 23515.95736 | CY158: 24147.31727 | CZ158: 23900.92421 | DA158: 24542.22639 | DB158: 9267.973279 | DC158: 0 | DD158: 0 | DE158: 0 | DF158: 0 | DG158: 0 | DH158: 0 | DI158: 0 | DJ158: 0 | DK158: 0 | DL158: 0 | DM158: 0 | DN158: 0 | DO158: 0 | DP158: 0 | DQ158: 0
C160: Debt IRR
D161: Debt Cash Flow
D162: Outflow for Draws | L162: =-L92 -> 0 | M162: =-M92 -> 0 | N162: 0 | O162: 0 | P162: 0 | Q162: 0 | R162: 0 | S162: 0 | T162: 0 | U162: 0 | V162: 0 | W162: 0 | X162: 0 | Y162: 0 | Z162: 0 | AA162: 0 | AB162: 0 | AC162: 0 | AD162: 0 | AE162: 0 | AF162: 0 | AG162: 0 | AH162: 0 | AI162: 0 | AJ162: 0 | AK162: 0 | AL162: 0 | AM162: 0 | AN162: 0 | AO162: 0 | AP162: 0 | AQ162: 0 | AR162: 0 | AS162: 0 | AT162: 0 | AU162: 0 | AV162: 0 | AW162: 0 | AX162: 0 | AY162: 0 | AZ162: 0 | BA162: 0 | BB162: 0 | BC162: 0 | BD162: 0 | BE162: 0 | BF162: 0 | BG162: 0 | BH162: 0 | BI162: 0 | BJ162: 0 | BK162: 0 | BL162: 0 | BM162: 0 | BN162: 0 | BO162: 0 | BP162: 0 | BQ162: 0 | BR162: 0 | BS162: 0 | BT162: 0 | BU162: 0 | BV162: 0 | BW162: 0 | BX162: 0 | BY162: =-BY92 -> 0 | BZ162: 0 | CA162: 0 | CB162: 0 | CC162: 0 | CD162: 0 | CE162: 0 | CF162: 0 | CG162: 0 | CH162: 0 | CI162: 0 | CJ162: 0 | CK162: 0 | CL162: 0 | CM162: 0 | CN162: 0 | CO162: 0 | CP162: 0 | CQ162: 0 | CR162: 0 | CS162: 0 | CT162: 0 | CU162: 0 | CV162: 0 | CW162: 0 | CX162: 0 | CY162: 0 | CZ162: 0 | DA162: 0 | DB162: 0 | DC162: 0 | DD162: 0 | DE162: 0 | DF162: 0 | DG162: 0 | DH162: 0 | DI162: 0 | DJ162: 0 | DK162: 0 | DL162: 0 | DM162: 0 | DN162: 0 | DO162: 0 | DP162: 0 | DQ162: 0
D163: Interest Paid | L163: =L98-L99+L116 -> 0 | M163: =M98-M99+M116 -> 0 | N163: 0 | O163: 0 | P163: 0 | Q163: 0 | R163: 0 | S163: 0 | T163: 0 | U163: 0 | V163: 0 | W163: 0 | X163: 0 | Y163: 0 | Z163: 0 | AA163: 0 | AB163: 0 | AC163: 0 | AD163: 0 | AE163: 0 | AF163: 0 | AG163: 0 | AH163: 0 | AI163: 0 | AJ163: 0 | AK163: 0 | AL163: 0 | AM163: 0 | AN163: 0 | AO163: 0 | AP163: 0 | AQ163: 0 | AR163: 0 | AS163: 0 | AT163: 0 | AU163: 0 | AV163: 0 | AW163: 0 | AX163: 0 | AY163: 0 | AZ163: 0 | BA163: 0 | BB163: 0 | BC163: 0 | BD163: 0 | BE163: 0 | BF163: 0 | BG163: 0 | BH163: 0 | BI163: 0 | BJ163: 0 | BK163: 0 | BL163: 0 | BM163: 0 | BN163: 0 | BO163: 0 | BP163: 0 | BQ163: 0 | BR163: 0 | BS163: 0 | BT163: 0 | BU163: 0 | BV163: 0 | BW163: 0 | BX163: 0 | BY163: =BY98-BY99+BY116 -> 0 | BZ163: 0 | CA163: 0 | CB163: 0 | CC163: 0 | CD163: 0 | CE163: 0 | CF163: 0 | CG163: 0 | CH163: 0 | CI163: 0 | CJ163: 0 | CK163: 0 | CL163: 0 | CM163: 0 | CN163: 0 | CO163: 0 | CP163: 0 | CQ163: 0 | CR163: 0 | CS163: 0 | CT163: 0 | CU163: 0 | CV163: 0 | CW163: 0 | CX163: 0 | CY163: 0 | CZ163: 0 | DA163: 0 | DB163: 0 | DC163: 0 | DD163: 0 | DE163: 0 | DF163: 0 | DG163: 0 | DH163: 0 | DI163: 0 | DJ163: 0 | DK163: 0 | DL163: 0 | DM163: 0 | DN163: 0 | DO163: 0 | DP163: 0 | DQ163: 0
D164: Repayments | L164: =L112 -> 0 | M164: =M112 -> 0 | N164: 0 | O164: 0 | P164: 0 | Q164: 0 | R164: 0 | S164: 0 | T164: 0 | U164: 0 | V164: 0 | W164: 0 | X164: 0 | Y164: 0 | Z164: 0 | AA164: 0 | AB164: 0 | AC164: 0 | AD164: 0 | AE164: 0 | AF164: 0 | AG164: 0 | AH164: 0 | AI164: 0 | AJ164: 0 | AK164: 0 | AL164: 0 | AM164: 0 | AN164: 0 | AO164: 0 | AP164: 0 | AQ164: 0 | AR164: 0 | AS164: 0 | AT164: 0 | AU164: 0 | AV164: 0 | AW164: 0 | AX164: 0 | AY164: 0 | AZ164: 0 | BA164: 0 | BB164: 0 | BC164: 0 | BD164: 0 | BE164: 0 | BF164: 0 | BG164: 0 | BH164: 0 | BI164: 0 | BJ164: 0 | BK164: 0 | BL164: 0 | BM164: 0 | BN164: 0 | BO164: 0 | BP164: 0 | BQ164: 0 | BR164: 0 | BS164: 0 | BT164: 0 | BU164: 0 | BV164: 0 | BW164: 0 | BX164: 0 | BY164: =BY112 -> 0 | BZ164: 0 | CA164: 0 | CB164: 0 | CC164: 0 | CD164: 0 | CE164: 0 | CF164: 0 | CG164: 0 | CH164: 0 | CI164: 0 | CJ164: 0 | CK164: 0 | CL164: 0 | CM164: 0 | CN164: 0 | CO164: 0 | CP164: 0 | CQ164: 0 | CR164: 0 | CS164: 0 | CT164: 0 | CU164: 0 | CV164: 0 | CW164: 0 | CX164: 0 | CY164: 0 | CZ164: 0 | DA164: 0 | DB164: 0 | DC164: 0 | DD164: 0 | DE164: 0 | DF164: 0 | DG164: 0 | DH164: 0 | DI164: 0 | DJ164: 0 | DK164: 0 | DL164: 0 | DM164: 0 | DN164: 0 | DO164: 0 | DP164: 0 | DQ164: 0
D165: Fees Paid
D166: Total Cash Flow | L166: =SUM(L162:L165) -> 0 | M166: =SUM(M162:M165) -> 0 | N166: 0 | O166: 0 | P166: 0 | Q166: 0 | R166: 0 | S166: 0 | T166: 0 | U166: 0 | V166: 0 | W166: 0 | X166: 0 | Y166: 0 | Z166: 0 | AA166: 0 | AB166: 0 | AC166: 0 | AD166: 0 | AE166: 0 | AF166: 0 | AG166: 0 | AH166: 0 | AI166: 0 | AJ166: 0 | AK166: 0 | AL166: 0 | AM166: 0 | AN166: 0 | AO166: 0 | AP166: 0 | AQ166: 0 | AR166: 0 | AS166: 0 | AT166: 0 | AU166: 0 | AV166: 0 | AW166: 0 | AX166: 0 | AY166: 0 | AZ166: 0 | BA166: 0 | BB166: 0 | BC166: 0 | BD166: 0 | BE166: 0 | BF166: 0 | BG166: 0 | BH166: 0 | BI166: 0 | BJ166: 0 | BK166: 0 | BL166: 0 | BM166: 0 | BN166: 0 | BO166: 0 | BP166: 0 | BQ166: 0 | BR166: 0 | BS166: 0 | BT166: 0 | BU166: 0 | BV166: 0 | BW166: 0 | BX166: 0 | BY166: =SUM(BY162:BY165) -> 0 | BZ166: 0 | CA166: 0 | CB166: 0 | CC166: 0 | CD166: 0 | CE166: 0 | CF166: 0 | CG166: 0 | CH166: 0 | CI166: 0 | CJ166: 0 | CK166: 0 | CL166: 0 | CM166: 0 | CN166: 0 | CO166: 0 | CP166: 0 | CQ166: 0 | CR166: 0 | CS166: 0 | CT166: 0 | CU166: 0 | CV166: 0 | CW166: 0 | CX166: 0 | CY166: 0 | CZ166: 0 | DA166: 0 | DB166: 0 | DC166: 0 | DD166: 0 | DE166: 0 | DF166: 0 | DG166: 0 | DH166: 0 | DI166: 0 | DJ166: 0 | DK166: 0 | DL166: 0 | DM166: 0 | DN166: 0 | DO166: 0 | DP166: 0 | DQ166: 0
C168: Debt IRR - Pre Tax | E168: =XIRR(L166:DQ166,L3:DQ3) -> 
C170: Tax Effet of Interest and IDC
D171: Tax Deductions from Debt | L171: =L123+L116 -> 0 | M171: =M123+M116 -> 0 | N171: 0 | O171: 0 | P171: 0 | Q171: 0 | R171: 0 | S171: 0 | T171: 0 | U171: 0 | V171: 0 | W171: 0 | X171: 0 | Y171: 0 | Z171: 0 | AA171: 0 | AB171: 0 | AC171: 0 | AD171: 0 | AE171: 0 | AF171: 0 | AG171: 0 | AH171: 0 | AI171: 0 | AJ171: 0 | AK171: 0 | AL171: 0 | AM171: 0 | AN171: 0 | AO171: 0 | AP171: 0 | AQ171: 0 | AR171: 0 | AS171: 0 | AT171: 0 | AU171: 0 | AV171: 0 | AW171: 0 | AX171: 0 | AY171: 0 | AZ171: 0 | BA171: 0 | BB171: 0 | BC171: 0 | BD171: 0 | BE171: 0 | BF171: 0 | BG171: 0 | BH171: 0 | BI171: 0 | BJ171: 0 | BK171: 0 | BL171: 0 | BM171: 0 | BN171: 0 | BO171: 0 | BP171: 0 | BQ171: 0 | BR171: 0 | BS171: 0 | BT171: 0 | BU171: 0 | BV171: 0 | BW171: 0 | BX171: 0 | BY171: =BY123+BY116 -> 0 | BZ171: 0 | CA171: 0 | CB171: 0 | CC171: 0 | CD171: 0 | CE171: 0 | CF171: 0 | CG171: 0 | CH171: 0 | CI171: 0 | CJ171: 0 | CK171: 0 | CL171: 0 | CM171: 0 | CN171: 0 | CO171: 0 | CP171: 0 | CQ171: 0 | CR171: 0 | CS171: 0 | CT171: 0 | CU171: 0 | CV171: 0 | CW171: 0 | CX171: 0 | CY171: 0 | CZ171: 0 | DA171: 0 | DB171: 0 | DC171: 0 | DD171: 0 | DE171: 0 | DF171: 0 | DG171: 0 | DH171: 0 | DI171: 0 | DJ171: 0 | DK171: 0 | DL171: 0 | DM171: 0 | DN171: 0 | DO171: 0 | DP171: 0 | DQ171: 0
D172: Tax Shield | E172: Tax Rate | F172: =F139 -> 0.25 | L172: =L171*$F$172 -> 0 | M172: =M171*$F$172 -> 0 | N172: 0 | O172: 0 | P172: 0 | Q172: 0 | R172: 0 | S172: 0 | T172: 0 | U172: 0 | V172: 0 | W172: 0 | X172: 0 | Y172: 0 | Z172: 0 | AA172: 0 | AB172: 0 | AC172: 0 | AD172: 0 | AE172: 0 | AF172: 0 | AG172: 0 | AH172: 0 | AI172: 0 | AJ172: 0 | AK172: 0 | AL172: 0 | AM172: 0 | AN172: 0 | AO172: 0 | AP172: 0 | AQ172: 0 | AR172: 0 | AS172: 0 | AT172: 0 | AU172: 0 | AV172: 0 | AW172: 0 | AX172: 0 | AY172: 0 | AZ172: 0 | BA172: 0 | BB172: 0 | BC172: 0 | BD172: 0 | BE172: 0 | BF172: 0 | BG172: 0 | BH172: 0 | BI172: 0 | BJ172: 0 | BK172: 0 | BL172: 0 | BM172: 0 | BN172: 0 | BO172: 0 | BP172: 0 | BQ172: 0 | BR172: 0 | BS172: 0 | BT172: 0 | BU172: 0 | BV172: 0 | BW172: 0 | BX172: 0 | BY172: =BY171*$F$172 -> 0 | BZ172: 0 | CA172: 0 | CB172: 0 | CC172: 0 | CD172: 0 | CE172: 0 | CF172: 0 | CG172: 0 | CH172: 0 | CI172: 0 | CJ172: 0 | CK172: 0 | CL172: 0 | CM172: 0 | CN172: 0 | CO172: 0 | CP172: 0 | CQ172: 0 | CR172: 0 | CS172: 0 | CT172: 0 | CU172: 0 | CV172: 0 | CW172: 0 | CX172: 0 | CY172: 0 | CZ172: 0 | DA172: 0 | DB172: 0 | DC172: 0 | DD172: 0 | DE172: 0 | DF172: 0 | DG172: 0 | DH172: 0 | DI172: 0 | DJ172: 0 | DK172: 0 | DL172: 0 | DM172: 0 | DN172: 0 | DO172: 0 | DP172: 0 | DQ172: 0
D173: After-tax Debt Cash Flow | L173: =L166-L172 -> 0 | M173: =M166-M172 -> 0 | N173: 0 | O173: 0 | P173: 0 | Q173: 0 | R173: 0 | S173: 0 | T173: 0 | U173: 0 | V173: 0 | W173: 0 | X173: 0 | Y173: 0 | Z173: 0 | AA173: 0 | AB173: 0 | AC173: 0 | AD173: 0 | AE173: 0 | AF173: 0 | AG173: 0 | AH173: 0 | AI173: 0 | AJ173: 0 | AK173: 0 | AL173: 0 | AM173: 0 | AN173: 0 | AO173: 0 | AP173: 0 | AQ173: 0 | AR173: 0 | AS173: 0 | AT173: 0 | AU173: 0 | AV173: 0 | AW173: 0 | AX173: 0 | AY173: 0 | AZ173: 0 | BA173: 0 | BB173: 0 | BC173: 0 | BD173: 0 | BE173: 0 | BF173: 0 | BG173: 0 | BH173: 0 | BI173: 0 | BJ173: 0 | BK173: 0 | BL173: 0 | BM173: 0 | BN173: 0 | BO173: 0 | BP173: 0 | BQ173: 0 | BR173: 0 | BS173: 0 | BT173: 0 | BU173: 0 | BV173: 0 | BW173: 0 | BX173: 0 | BY173: =BY166-BY172 -> 0 | BZ173: 0 | CA173: 0 | CB173: 0 | CC173: 0 | CD173: 0 | CE173: 0 | CF173: 0 | CG173: 0 | CH173: 0 | CI173: 0 | CJ173: 0 | CK173: 0 | CL173: 0 | CM173: 0 | CN173: 0 | CO173: 0 | CP173: 0 | CQ173: 0 | CR173: 0 | CS173: 0 | CT173: 0 | CU173: 0 | CV173: 0 | CW173: 0 | CX173: 0 | CY173: 0 | CZ173: 0 | DA173: 0 | DB173: 0 | DC173: 0 | DD173: 0 | DE173: 0 | DF173: 0 | DG173: 0 | DH173: 0 | DI173: 0 | DJ173: 0 | DK173: 0 | DL173: 0 | DM173: 0 | DN173: 0 | DO173: 0 | DP173: 0 | DQ173: 0
C175: After Tax Debt IRR | E175: =XIRR(L173:DQ173,L3:DQ3) -> 
C178: Equity, Debt and Tax Shield | L178: =L157+L166-L172 -> -10000 | M178: =M157+M166-M172 -> -10000 | N178: -10000 | O178: -10000 | P178: -10000 | Q178: -10000 | R178: -10000 | S178: -10000 | T178: -10000 | U178: -10000 | V178: -10000 | W178: -10000 | X178: -32500 | Y178: -32500 | Z178: -32500 | AA178: -32500 | AB178: -32500 | AC178: -32500 | AD178: -32500 | AE178: -32500 | AF178: -32500 | AG178: -32500 | AH178: -32500 | AI178: -32500 | AJ178: -7500 | AK178: -7500 | AL178: -7500 | AM178: -7500 | AN178: -7500 | AO178: -7500 | AP178: -7500 | AQ178: -7500 | AR178: -7500 | AS178: -7500 | AT178: -7500 | AU178: -7500 | AV178: 0 | AW178: 0 | AX178: 0 | AY178: 0 | AZ178: 0 | BA178: 0 | BB178: 0 | BC178: -6590.259912 | BD178: 23499.40509 | BE178: 24041.09258 | BF178: 25213.0574 | BG178: 26083.00122 | BH178: 25734.74944 | BI178: 26343.83123 | BJ178: 26000.69857 | BK178: 26687.2383 | BL178: 26598.93845 | BM178: 27582.78786 | BN178: 27478.73006 | BO178: 28024.5704 | BP178: 27733.98042 | BQ178: 28473.26008 | BR178: 28178.24917 | BS178: 28928.96331 | BT178: 28629.46455 | BU178: 29391.78814 | BV178: 28835.70488 | BW178: 29356.62581 | BX178: 27923.13962 | BY178: =BY157+BY166-BY172 -> 28222.25587 | BZ178: 20988.4932 | CA178: 21543.15801 | CB178: 21327.47192 | CC178: 21890.81034 | CD178: 21819.18929 | CE178: 22243.9225 | CF178: 21236.52047 | CG178: 21672.40846 | CH178: 21450.78121 | CI178: 22027.39292 | CJ178: 21802.30447 | CK178: 22388.00113 | CL178: 22315.85639 | CM178: 22754.32044 | CN178: 22522.14891 | CO178: 23126.43953 | CP178: 22890.64448 | CQ178: 23504.44845 | CR178: 23264.97413 | CS178: 23883.7595 | CT178: 22925.11739 | CU178: 23375.8701 | CV178: 23136.99406 | CW178: 23758.56321 | CX178: 23515.95736 | CY178: 24147.31727 | CZ178: 23900.92421 | DA178: 24542.22639 | DB178: 9267.973279 | DC178: 0 | DD178: 0 | DE178: 0 | DF178: 0 | DG178: 0 | DH178: 0 | DI178: 0 | DJ178: 0 | DK178: 0 | DL178: 0 | DM178: 0 | DN178: 0 | DO178: 0 | DP178: 0 | DQ178: 0
L179: =L178-L158 -> 0 | M179: =M178-M158 -> 0 | N179: 0 | O179: 0 | P179: 0 | Q179: 0 | R179: 0 | S179: 0 | T179: 0 | U179: 0 | V179: 0 | W179: 0 | X179: 0 | Y179: 0 | Z179: 0 | AA179: 0 | AB179: 0 | AC179: 0 | AD179: 0 | AE179: 0 | AF179: 0 | AG179: 0 | AH179: 0 | AI179: 0 | AJ179: 0 | AK179: 0 | AL179: 0 | AM179: 0 | AN179: 0 | AO179: 0 | AP179: 0 | AQ179: 0 | AR179: 0 | AS179: 0 | AT179: 0 | AU179: 0 | AV179: 0 | AW179: 0 | AX179: 0 | AY179: 0 | AZ179: 0 | BA179: 0 | BB179: 0 | BC179: -6590.259912 | BD179: 6590.259912 | BE179: 0 | BF179: 0 | BG179: 0 | BH179: 0 | BI179: 0 | BJ179: 0 | BK179: 0 | BL179: 0 | BM179: 0 | BN179: 0 | BO179: 0 | BP179: 0 | BQ179: 0 | BR179: 0 | BS179: 0 | BT179: 0 | BU179: 0 | BV179: 0 | BW179: 0 | BX179: 0 | BY179: =BY178-BY158 -> 0 | BZ179: 0 | CA179: 0 | CB179: 0 | CC179: 0 | CD179: 0 | CE179: 0 | CF179: 0 | CG179: 0 | CH179: 0 | CI179: 0 | CJ179: 0 | CK179: 0 | CL179: 0 | CM179: 0 | CN179: 0 | CO179: 0 | CP179: 0 | CQ179: 0 | CR179: 0 | CS179: 0 | CT179: 0 | CU179: 0 | CV179: 0 | CW179: 0 | CX179: 0 | CY179: 0 | CZ179: 0 | DA179: 0 | DB179: 0 | DC179: 0 | DD179: 0 | DE179: 0 | DF179: 0 | DG179: 0 | DH179: 0 | DI179: 0 | DJ179: 0 | DK179: 0 | DL179: 0 | DM179: 0 | DN179: 0 | DO179: 0 | DP179: 0 | DQ179: 0
C181: DSCR
D182: CFADS | L182: =L149 -> 0 | M182: =M149 -> 0 | N182: 0 | O182: 0 | P182: 0 | Q182: 0 | R182: 0 | S182: 0 | T182: 0 | U182: 0 | V182: 0 | W182: 0 | X182: 0 | Y182: 0 | Z182: 0 | AA182: 0 | AB182: 0 | AC182: 0 | AD182: 0 | AE182: 0 | AF182: 0 | AG182: 0 | AH182: 0 | AI182: 0 | AJ182: 0 | AK182: 0 | AL182: 0 | AM182: 0 | AN182: 0 | AO182: 0 | AP182: 0 | AQ182: 0 | AR182: 0 | AS182: 0 | AT182: 0 | AU182: 0 | AV182: 0 | AW182: 0 | AX182: 0 | AY182: 0 | AZ182: 0 | BA182: 0 | BB182: 0 | BC182: 0 | BD182: 23499.40509 | BE182: 24041.09258 | BF182: 25213.0574 | BG182: 26083.00122 | BH182: 25734.74944 | BI182: 26343.83123 | BJ182: 26000.69857 | BK182: 26687.2383 | BL182: 26598.93845 | BM182: 27582.78786 | BN182: 27478.73006 | BO182: 28024.5704 | BP182: 27733.98042 | BQ182: 28473.26008 | BR182: 28178.24917 | BS182: 28928.96331 | BT182: 28629.46455 | BU182: 29391.78814 | BV182: 28835.70488 | BW182: 29356.62581 | BX182: 27923.13962 | BY182: =BY149 -> 28222.25587 | BZ182: 20988.4932 | CA182: 21543.15801 | CB182: 21327.47192 | CC182: 21890.81034 | CD182: 21819.18929 | CE182: 22243.9225 | CF182: 21236.52047 | CG182: 21672.40846 | CH182: 21450.78121 | CI182: 22027.39292 | CJ182: 21802.30447 | CK182: 22388.00113 | CL182: 22315.85639 | CM182: 22754.32044 | CN182: 22522.14891 | CO182: 23126.43953 | CP182: 22890.64448 | CQ182: 23504.44845 | CR182: 23264.97413 | CS182: 23883.7595 | CT182: 22925.11739 | CU182: 23375.8701 | CV182: 23136.99406 | CW182: 23758.56321 | CX182: 23515.95736 | CY182: 24147.31727 | CZ182: 23900.92421 | DA182: 24542.22639 | DB182: 9267.973279 | DC182: 0 | DD182: 0 | DE182: 0 | DF182: 0 | DG182: 0 | DH182: 0 | DI182: 0 | DJ182: 0 | DK182: 0 | DL182: 0 | DM182: 0 | DN182: 0 | DO182: 0 | DP182: 0 | DQ182: 0
D183: Debt Service | L183: =L150+L151 -> 0 | M183: =M150+M151 -> 0 | N183: 0 | O183: 0 | P183: 0 | Q183: 0 | R183: 0 | S183: 0 | T183: 0 | U183: 0 | V183: 0 | W183: 0 | X183: 0 | Y183: 0 | Z183: 0 | AA183: 0 | AB183: 0 | AC183: 0 | AD183: 0 | AE183: 0 | AF183: 0 | AG183: 0 | AH183: 0 | AI183: 0 | AJ183: 0 | AK183: 0 | AL183: 0 | AM183: 0 | AN183: 0 | AO183: 0 | AP183: 0 | AQ183: 0 | AR183: 0 | AS183: 0 | AT183: 0 | AU183: 0 | AV183: 0 | AW183: 0 | AX183: 0 | AY183: 0 | AZ183: 0 | BA183: 0 | BB183: 0 | BC183: 0 | BD183: 0 | BE183: 0 | BF183: 0 | BG183: 0 | BH183: 0 | BI183: 0 | BJ183: 0 | BK183: 0 | BL183: 0 | BM183: 0 | BN183: 0 | BO183: 0 | BP183: 0 | BQ183: 0 | BR183: 0 | BS183: 0 | BT183: 0 | BU183: 0 | BV183: 0 | BW183: 0 | BX183: 0 | BY183: =BY150+BY151 -> 0 | BZ183: 0 | CA183: 0 | CB183: 0 | CC183: 0 | CD183: 0 | CE183: 0 | CF183: 0 | CG183: 0 | CH183: 0 | CI183: 0 | CJ183: 0 | CK183: 0 | CL183: 0 | CM183: 0 | CN183: 0 | CO183: 0 | CP183: 0 | CQ183: 0 | CR183: 0 | CS183: 0 | CT183: 0 | CU183: 0 | CV183: 0 | CW183: 0 | CX183: 0 | CY183: 0 | CZ183: 0 | DA183: 0 | DB183: 0 | DC183: 0 | DD183: 0 | DE183: 0 | DF183: 0 | DG183: 0 | DH183: 0 | DI183: 0 | DJ183: 0 | DK183: 0 | DL183: 0 | DM183: 0 | DN183: 0 | DO183: 0 | DP183: 0 | DQ183: 0
D184: DSCR Ratio per period | E184: Min | F184: =MIN(L184:DQ184) -> 0 | L184: =IF(L183>0.1,L182/L183) -> FALSE | M184: =IF(M183>0.1,M182/M183) -> FALSE | N184: FALSE | O184: FALSE | P184: FALSE | Q184: FALSE | R184: FALSE | S184: FALSE | T184: FALSE | U184: FALSE | V184: FALSE | W184: FALSE | X184: FALSE | Y184: FALSE | Z184: FALSE | AA184: FALSE | AB184: FALSE | AC184: FALSE | AD184: FALSE | AE184: FALSE | AF184: FALSE | AG184: FALSE | AH184: FALSE | AI184: FALSE | AJ184: FALSE | AK184: FALSE | AL184: FALSE | AM184: FALSE | AN184: FALSE | AO184: FALSE | AP184: FALSE | AQ184: FALSE | AR184: FALSE | AS184: FALSE | AT184: FALSE | AU184: FALSE | AV184: FALSE | AW184: FALSE | AX184: FALSE | AY184: FALSE | AZ184: FALSE | BA184: FALSE | BB184: FALSE | BC184: FALSE | BD184: FALSE | BE184: FALSE | BF184: FALSE | BG184: FALSE | BH184: FALSE | BI184: FALSE | BJ184: FALSE | BK184: FALSE | BL184: FALSE | BM184: FALSE | BN184: FALSE | BO184: FALSE | BP184: FALSE | BQ184: FALSE | BR184: FALSE | BS184: FALSE | BT184: FALSE | BU184: FALSE | BV184: FALSE | BW184: FALSE | BX184: FALSE | BY184: =IF(BY183>0.1,BY182/BY183) -> FALSE | BZ184: FALSE | CA184: FALSE | CB184: FALSE | CC184: FALSE | CD184: FALSE | CE184: FALSE | CF184: FALSE | CG184: FALSE | CH184: FALSE | CI184: FALSE | CJ184: FALSE | CK184: FALSE | CL184: FALSE | CM184: FALSE | CN184: FALSE | CO184: FALSE | CP184: FALSE | CQ184: FALSE | CR184: FALSE | CS184: FALSE | CT184: FALSE | CU184: FALSE | CV184: FALSE | CW184: FALSE | CX184: FALSE | CY184: FALSE | CZ184: FALSE | DA184: FALSE | DB184: FALSE | DC184: FALSE | DD184: FALSE | DE184: FALSE | DF184: FALSE | DG184: FALSE | DH184: FALSE | DI184: FALSE | DJ184: FALSE | DK184: FALSE | DL184: FALSE | DM184: FALSE | DN184: FALSE | DO184: FALSE | DP184: FALSE | DQ184: FALSE
C186: PLCR
D187: PV Factor | K187: 1 | L187: =K187*(1+L97*NOT(L6)) -> 1 | M187: =L187*(1+M97*NOT(M6)) -> 1 | N187: 1 | O187: 1 | P187: 1 | Q187: 1 | R187: 1 | S187: 1 | T187: 1 | U187: 1 | V187: 1 | W187: 1 | X187: 1 | Y187: 1 | Z187: 1 | AA187: 1 | AB187: 1 | AC187: 1 | AD187: 1 | AE187: 1 | AF187: 1 | AG187: 1 | AH187: 1 | AI187: 1 | AJ187: 1 | AK187: 1 | AL187: 1 | AM187: 1 | AN187: 1 | AO187: 1 | AP187: 1 | AQ187: 1 | AR187: 1 | AS187: 1 | AT187: 1 | AU187: 1 | AV187: 1 | AW187: 1 | AX187: 1 | AY187: 1 | AZ187: 1 | BA187: 1 | BB187: 1 | BC187: 1 | BD187: 1.0125 | BE187: 1.02515625 | BF187: 1.037970703 | BG187: 1.050945337 | BH187: 1.064082154 | BI187: 1.077383181 | BJ187: 1.09085047 | BK187: 1.104486101 | BL187: 1.118292177 | BM187: 1.13227083 | BN187: 1.146424215 | BO187: 1.160754518 | BP187: 1.175263949 | BQ187: 1.189954749 | BR187: 1.204829183 | BS187: 1.219889548 | BT187: 1.235138167 | BU187: 1.250577394 | BV187: 1.266209612 | BW187: 1.282037232 | BX187: 1.298062697 | BY187: =BX187*(1+BY97*NOT(BY6)) -> 1.314288481 | BZ187: 1.330717087 | CA187: 1.34735105 | CB187: 1.364192939 | CC187: 1.38124535 | CD187: 1.398510917 | CE187: 1.415992304 | CF187: 1.433692207 | CG187: 1.45161336 | CH187: 1.469758527 | CI187: 1.488130509 | CJ187: 1.50673214 | CK187: 1.525566292 | CL187: 1.54463587 | CM187: 1.563943819 | CN187: 1.583493116 | CO187: 1.60328678 | CP187: 1.623327865 | CQ187: 1.643619463 | CR187: 1.664164707 | CS187: 1.684966766 | CT187: 1.70602885 | CU187: 1.727354211 | CV187: 1.748946138 | CW187: 1.770807965 | CX187: 1.792943065 | CY187: 1.815354853 | CZ187: 1.838046789 | DA187: 1.861022374 | DB187: 1.884285153 | DC187: 1.907838718 | DD187: 1.931686702 | DE187: 1.955832785 | DF187: 1.980280695 | DG187: 2.005034204 | DH187: 2.030097131 | DI187: 2.055473346 | DJ187: 2.081166762 | DK187: 2.107181347 | DL187: 2.133521114 | DM187: 2.160190128 | DN187: 2.187192504 | DO187: 2.214532411 | DP187: 2.242214066 | DQ187: 2.270241742
D188: PV of CFADS | E188: Sumproduct | F188: =SUMPRODUCT(L182:DQ182/L187:DQ187) -> 926811.7491
D189: PV of Debt Service = Loan Size | F189: =G64 -> 0
D190: PLCR Ratio | F190: =F188/F189 -> 
C192: LLCR
D193: CFADS over the Debt Repayment | L193: =L149*L4 -> 0 | M193: =M149*M4 -> 0 | N193: 0 | O193: 0 | P193: 0 | Q193: 0 | R193: 0 | S193: 0 | T193: 0 | U193: 0 | V193: 0 | W193: 0 | X193: 0 | Y193: 0 | Z193: 0 | AA193: 0 | AB193: 0 | AC193: 0 | AD193: 0 | AE193: 0 | AF193: 0 | AG193: 0 | AH193: 0 | AI193: 0 | AJ193: 0 | AK193: 0 | AL193: 0 | AM193: 0 | AN193: 0 | AO193: 0 | AP193: 0 | AQ193: 0 | AR193: 0 | AS193: 0 | AT193: 0 | AU193: 0 | AV193: 0 | AW193: 0 | AX193: 0 | AY193: 0 | AZ193: 0 | BA193: 0 | BB193: 0 | BC193: 0 | BD193: 23499.40509 | BE193: 24041.09258 | BF193: 25213.0574 | BG193: 26083.00122 | BH193: 25734.74944 | BI193: 26343.83123 | BJ193: 26000.69857 | BK193: 26687.2383 | BL193: 26598.93845 | BM193: 27582.78786 | BN193: 27478.73006 | BO193: 28024.5704 | BP193: 27733.98042 | BQ193: 28473.26008 | BR193: 28178.24917 | BS193: 28928.96331 | BT193: 28629.46455 | BU193: 29391.78814 | BV193: 28835.70488 | BW193: 29356.62581 | BX193: 27923.13962 | BY193: =BY149*BY4 -> 28222.25587 | BZ193: 20988.4932 | CA193: 21543.15801 | CB193: 21327.47192 | CC193: 21890.81034 | CD193: 21819.18929 | CE193: 22243.9225 | CF193: 21236.52047 | CG193: 21672.40846 | CH193: 21450.78121 | CI193: 22027.39292 | CJ193: 21802.30447 | CK193: 22388.00113 | CL193: 0 | CM193: 0 | CN193: 0 | CO193: 0 | CP193: 0 | CQ193: 0 | CR193: 0 | CS193: 0 | CT193: 0 | CU193: 0 | CV193: 0 | CW193: 0 | CX193: 0 | CY193: 0 | CZ193: 0 | DA193: 0 | DB193: 0 | DC193: 0 | DD193: 0 | DE193: 0 | DF193: 0 | DG193: 0 | DH193: 0 | DI193: 0 | DJ193: 0 | DK193: 0 | DL193: 0 | DM193: 0 | DN193: 0 | DO193: 0 | DP193: 0 | DQ193: 0
D194: PV of CFADS of Debt Repayment Period | E194: Sumproduct | F194: =SUMPRODUCT(L193:DQ193/L187:DQ187) -> 701468.1514
D195: Loan Size at COD | F195: =F189 -> 0
D196: LLCR Ratio | F196: =F194/F195 -> 
C198: Average Debt Life
D199: Average Balance of Permanent Debt | L199: =AVERAGE(L113,L110) -> 0 | M199: =AVERAGE(M113,M110) -> 0 | N199: 0 | O199: 0 | P199: 0 | Q199: 0 | R199: 0 | S199: 0 | T199: 0 | U199: 0 | V199: 0 | W199: 0 | X199: 0 | Y199: 0 | Z199: 0 | AA199: 0 | AB199: 0 | AC199: 0 | AD199: 0 | AE199: 0 | AF199: 0 | AG199: 0 | AH199: 0 | AI199: 0 | AJ199: 0 | AK199: 0 | AL199: 0 | AM199: 0 | AN199: 0 | AO199: 0 | AP199: 0 | AQ199: 0 | AR199: 0 | AS199: 0 | AT199: 0 | AU199: 0 | AV199: 0 | AW199: 0 | AX199: 0 | AY199: 0 | AZ199: 0 | BA199: 0 | BB199: 0 | BC199: 0 | BD199: 0 | BE199: 0 | BF199: 0 | BG199: 0 | BH199: 0 | BI199: 0 | BJ199: 0 | BK199: 0 | BL199: 0 | BM199: 0 | BN199: 0 | BO199: 0 | BP199: 0 | BQ199: 0 | BR199: 0 | BS199: 0 | BT199: 0 | BU199: 0 | BV199: 0 | BW199: 0 | BX199: 0 | BY199: =AVERAGE(BY113,BY110) -> 0 | BZ199: 0 | CA199: 0 | CB199: 0 | CC199: 0 | CD199: 0 | CE199: 0 | CF199: 0 | CG199: 0 | CH199: 0 | CI199: 0 | CJ199: 0 | CK199: 0 | CL199: 0 | CM199: 0 | CN199: 0 | CO199: 0 | CP199: 0 | CQ199: 0 | CR199: 0 | CS199: 0 | CT199: 0 | CU199: 0 | CV199: 0 | CW199: 0 | CX199: 0 | CY199: 0 | CZ199: 0 | DA199: 0 | DB199: 0 | DC199: 0 | DD199: 0 | DE199: 0 | DF199: 0 | DG199: 0 | DH199: 0 | DI199: 0 | DJ199: 0 | DK199: 0 | DL199: 0 | DM199: 0 | DN199: 0 | DO199: 0 | DP199: 0 | DQ199: 0
D200: Debt Life - Sum of Balance/Initial | E200: Sumif | F200: =SUMIF(4:4,TRUE,199:199) -> 0 | G200: Initial | H200: =F195 -> 0
D201: Average Life | F201: =F200/H200/2 -> 

Sheet Operations Monthly
A1: Timeline
B2: Start of Period | E2: Date | K2: =J3+1 -> 2015-03-01 | L2: =K3+1 -> 2015-04-01 | M2: 2015-05-01 | N2: 2015-06-01 | O2: 2015-07-01 | P2: 2015-08-01 | Q2: 2015-09-01 | R2: 2015-10-01 | S2: 2015-11-01 | T2: 2015-12-01 | U2: 2016-01-01 | V2: 2016-02-01 | W2: 2016-03-01 | X2: 2016-04-01 | Y2: 2016-05-01 | Z2: 2016-06-01 | AA2: 2016-07-01 | AB2: 2016-08-01 | AC2: 2016-09-01 | AD2: 2016-10-01 | AE2: 2016-11-01 | AF2: 2016-12-01 | AG2: 2017-01-01 | AH2: 2017-02-01 | AI2: 2017-03-01 | AJ2: 2017-04-01 | AK2: 2017-05-01 | AL2: 2017-06-01 | AM2: 2017-07-01 | AN2: 2017-08-01 | AO2: 2017-09-01 | AP2: 2017-10-01 | AQ2: 2017-11-01 | AR2: 2017-12-01 | AS2: 2018-01-01 | AT2: 2018-02-01 | AU2: 2018-03-01 | AV2: 2018-04-01 | AW2: 2018-05-01 | AX2: 2018-06-01 | AY2: 2018-07-01 | AZ2: 2018-08-01 | BA2: 2018-09-01 | BB2: 2018-10-01 | BC2: 2018-11-01 | BD2: 2018-12-01 | BE2: 2019-01-01 | BF2: 2019-02-01 | BG2: 2019-03-01 | BH2: 2019-04-01 | BI2: 2019-05-01 | BJ2: 2019-06-01 | BK2: 2019-07-01 | BL2: 2019-08-01 | BM2: 2019-09-01 | BN2: 2019-10-01 | BO2: 2019-11-01 | BP2: 2019-12-01 | BQ2: 2020-01-01 | BR2: 2020-02-01 | BS2: 2020-03-01 | BT2: 2020-04-01 | BU2: 2020-05-01 | BV2: 2020-06-01 | BW2: 2020-07-01 | BX2: =BW3+1 -> 2020-08-01 | BY2: 2020-09-01 | BZ2: 2020-10-01 | CA2: 2020-11-01 | CB2: 2020-12-01 | CC2: 2021-01-01 | CD2: 2021-02-01 | CE2: 2021-03-01 | CF2: 2021-04-01 | CG2: 2021-05-01 | CH2: 2021-06-01 | CI2: 2021-07-01 | CJ2: 2021-08-01 | CK2: 2021-09-01 | CL2: 2021-10-01 | CM2: 2021-11-01 | CN2: 2021-12-01 | CO2: 2022-01-01 | CP2: 2022-02-01 | CQ2: 2022-03-01 | CR2: 2022-04-01 | CS2: 2022-05-01 | CT2: 2022-06-01 | CU2: 2022-07-01 | CV2: 2022-08-01 | CW2: 2022-09-01 | CX2: 2022-10-01 | CY2: 2022-11-01 | CZ2: 2022-12-01 | DA2: 2023-01-01 | DB2: 2023-02-01 | DC2: 2023-03-01 | DD2: 2023-04-01 | DE2: 2023-05-01 | DF2: 2023-06-01 | DG2: 2023-07-01 | DH2: 2023-08-01 | DI2: 2023-09-01 | DJ2: 2023-10-01 | DK2: 2023-11-01 | DL2: 2023-12-01 | DM2: 2024-01-01 | DN2: 2024-02-01 | DO2: 2024-03-01 | DP2: 2024-04-01 | DQ2: 2024-05-01 | DR2: 2024-06-01 | DS2: 2024-07-01 | DT2: 2024-08-01 | DU2: 2024-09-01 | DV2: 2024-10-01 | DW2: 2024-11-01 | DX2: 2024-12-01 | DY2: 2025-01-01 | DZ2: 2025-02-01 | EA2: 2025-03-01 | EB2: 2025-04-01 | EC2: 2025-05-01 | ED2: 2025-06-01 | EE2: 2025-07-01 | EF2: 2025-08-01 | EG2: 2025-09-01 | EH2: 2025-10-01 | EI2: 2025-11-01 | EJ2: =EI3+1 -> 2025-12-01 | EK2: 2026-01-01 | EL2: 2026-02-01 | EM2: 2026-03-01 | EN2: 2026-04-01 | EO2: 2026-05-01 | EP2: 2026-06-01 | EQ2: 2026-07-01 | ER2: 2026-08-01 | ES2: 2026-09-01 | ET2: 2026-10-01 | EU2: 2026-11-01 | EV2: 2026-12-01 | EW2: 2027-01-01 | EX2: 2027-02-01 | EY2: 2027-03-01 | EZ2: 2027-04-01 | FA2: 2027-05-01 | FB2: 2027-06-01 | FC2: 2027-07-01 | FD2: 2027-08-01 | FE2: 2027-09-01 | FF2: 2027-10-01 | FG2: 2027-11-01 | FH2: 2027-12-01 | FI2: 2028-01-01 | FJ2: 2028-02-01 | FK2: 2028-03-01 | FL2: 2028-04-01 | FM2: 2028-05-01 | FN2: 2028-06-01 | FO2: 2028-07-01 | FP2: 2028-08-01 | FQ2: 2028-09-01 | FR2: 2028-10-01 | FS2: 2028-11-01 | FT2: 2028-12-01 | FU2: 2029-01-01 | FV2: 2029-02-01 | FW2: 2029-03-01 | FX2: 2029-04-01 | FY2: 2029-05-01 | FZ2: 2029-06-01 | GA2: 2029-07-01 | GB2: 2029-08-01 | GC2: 2029-09-01 | GD2: 2029-10-01 | GE2: 2029-11-01 | GF2: 2029-12-01 | GG2: 2030-01-01 | GH2: 2030-02-01 | GI2: 2030-03-01 | GJ2: 2030-04-01 | GK2: 2030-05-01 | GL2: 2030-06-01 | GM2: 2030-07-01 | GN2: 2030-08-01 | GO2: 2030-09-01 | GP2: 2030-10-01 | GQ2: 2030-11-01 | GR2: 2030-12-01 | GS2: 2031-01-01 | GT2: 2031-02-01 | GU2: 2031-03-01 | GV2: =GU3+1 -> 2031-04-01 | GW2: 2031-05-01 | GX2: 2031-06-01 | GY2: 2031-07-01 | GZ2: 2031-08-01 | HA2: 2031-09-01 | HB2: 2031-10-01 | HC2: 2031-11-01 | HD2: 2031-12-01 | HE2: 2032-01-01 | HF2: 2032-02-01 | HG2: 2032-03-01 | HH2: 2032-04-01 | HI2: 2032-05-01 | HJ2: 2032-06-01 | HK2: 2032-07-01 | HL2: 2032-08-01 | HM2: 2032-09-01 | HN2: 2032-10-01 | HO2: 2032-11-01 | HP2: 2032-12-01 | HQ2: 2033-01-01 | HR2: 2033-02-01 | HS2: 2033-03-01 | HT2: 2033-04-01 | HU2: 2033-05-01 | HV2: 2033-06-01 | HW2: 2033-07-01 | HX2: 2033-08-01 | HY2: 2033-09-01 | HZ2: 2033-10-01 | IA2: 2033-11-01 | IB2: 2033-12-01 | IC2: 2034-01-01 | ID2: 2034-02-01 | IE2: 2034-03-01 | IF2: 2034-04-01 | IG2: 2034-05-01 | IH2: 2034-06-01 | II2: 2034-07-01 | IJ2: 2034-08-01 | IK2: 2034-09-01 | IL2: 2034-10-01 | IM2: 2034-11-01 | IN2: 2034-12-01 | IO2: 2035-01-01 | IP2: 2035-02-01 | IQ2: 2035-03-01 | IR2: 2035-04-01 | IS2: 2035-05-01 | IT2: 2035-06-01 | IU2: 2035-07-01 | IV2: 2035-08-01 | IW2: 2035-09-01 | IX2: 2035-10-01 | IY2: 2035-11-01 | IZ2: 2035-12-01 | JA2: 2036-01-01 | JB2: 2036-02-01 | JC2: 2036-03-01 | JD2: 2036-04-01 | JE2: 2036-05-01 | JF2: 2036-06-01 | JG2: 2036-07-01 | JH2: =JG3+1 -> 2036-08-01 | JI2: 2036-09-01 | JJ2: 2036-10-01 | JK2: 2036-11-01 | JL2: 2036-12-01 | JM2: 2037-01-01 | JN2: 2037-02-01 | JO2: 2037-03-01 | JP2: 2037-04-01 | JQ2: 2037-05-01 | JR2: 2037-06-01 | JS2: 2037-07-01 | JT2: 2037-08-01 | JU2: 2037-09-01 | JV2: 2037-10-01 | JW2: 2037-11-01 | JX2: 2037-12-01 | JY2: 2038-01-01 | JZ2: 2038-02-01 | KA2: 2038-03-01 | KB2: 2038-04-01 | KC2: 2038-05-01 | KD2: 2038-06-01 | KE2: 2038-07-01 | KF2: 2038-08-01 | KG2: 2038-09-01 | KH2: 2038-10-01 | KI2: 2038-11-01 | KJ2: 2038-12-01 | KK2: 2039-01-01 | KL2: 2039-02-01 | KM2: 2039-03-01 | KN2: 2039-04-01 | KO2: 2039-05-01 | KP2: 2039-06-01 | KQ2: 2039-07-01 | KR2: 2039-08-01 | KS2: 2039-09-01 | KT2: 2039-10-01 | KU2: 2039-11-01 | KV2: 2039-12-01 | KW2: 2040-01-01 | KX2: 2040-02-01 | KY2: 2040-03-01 | KZ2: 2040-04-01 | LA2: 2040-05-01 | LB2: 2040-06-01 | LC2: 2040-07-01 | LD2: 2040-08-01 | LE2: 2040-09-01 | LF2: 2040-10-01 | LG2: 2040-11-01 | LH2: 2040-12-01 | LI2: 2041-01-01 | LJ2: 2041-02-01 | LK2: 2041-03-01 | LL2: 2041-04-01 | LM2: 2041-05-01 | LN2: 2041-06-01 | LO2: 2041-07-01 | LP2: 2041-08-01 | LQ2: 2041-09-01 | LR2: 2041-10-01 | LS2: 2041-11-01 | LT2: =LS3+1 -> 2041-12-01 | LU2: 2042-01-01 | LV2: 2042-02-01 | LW2: 2042-03-01 | LX2: 2042-04-01 | LY2: 2042-05-01 | LZ2: 2042-06-01 | MA2: 2042-07-01 | MB2: 2042-08-01 | MC2: 2042-09-01 | MD2: 2042-10-01 | ME2: 2042-11-01 | MF2: 2042-12-01 | MG2: 2043-01-01 | MH2: 2043-02-01 | MI2: 2043-03-01 | MJ2: 2043-04-01 | MK2: 2043-05-01 | ML2: 2043-06-01 | MM2: 2043-07-01 | MN2: 2043-08-01 | MO2: 2043-09-01 | MP2: 2043-10-01 | MQ2: 2043-11-01 | MR2: 2043-12-01 | MS2: 2044-01-01 | MT2: 2044-02-01 | MU2: 2044-03-01 | MV2: 2044-04-01 | MW2: 2044-05-01 | MX2: 2044-06-01 | MY2: 2044-07-01 | MZ2: 2044-08-01 | NA2: 2044-09-01 | NB2: 2044-10-01 | NC2: 2044-11-01 | ND2: 2044-12-01 | NE2: 2045-01-01 | NF2: 2045-02-01 | NG2: 2045-03-01 | NH2: 2045-04-01 | NI2: 2045-05-01 | NJ2: 2045-06-01 | NK2: 2045-07-01 | NL2: 2045-08-01 | NM2: 2045-09-01 | NN2: 2045-10-01 | NO2: 2045-11-01 | NP2: 2045-12-01 | NQ2: 2046-01-01 | NR2: 2046-02-01 | NS2: 2046-03-01 | NT2: 2046-04-01 | NU2: 2046-05-01 | NV2: 2046-06-01 | NW2: 2046-07-01 | NX2: 2046-08-01 | NY2: 2046-09-01 | NZ2: 2046-10-01 | OA2: 2046-11-01 | OB2: 2046-12-01 | OC2: 2047-01-01 | OD2: 2047-02-01 | OE2: 2047-03-01
B3: End of Period | E3: Date | J3: =F19-1 -> 2015-02-28 | K3: =EDATE(K2,1)-1 -> 2015-03-31 | L3: =EDATE(L2,1)-1 -> 2015-04-30 | M3: 2015-05-31 | N3: 2015-06-30 | O3: 2015-07-31 | P3: 2015-08-31 | Q3: 2015-09-30 | R3: 2015-10-31 | S3: 2015-11-30 | T3: 2015-12-31 | U3: 2016-01-31 | V3: 2016-02-29 | W3: 2016-03-31 | X3: 2016-04-30 | Y3: 2016-05-31 | Z3: 2016-06-30 | AA3: 2016-07-31 | AB3: 2016-08-31 | AC3: 2016-09-30 | AD3: 2016-10-31 | AE3: 2016-11-30 | AF3: 2016-12-31 | AG3: 2017-01-31 | AH3: 2017-02-28 | AI3: 2017-03-31 | AJ3: 2017-04-30 | AK3: 2017-05-31 | AL3: 2017-06-30 | AM3: 2017-07-31 | AN3: 2017-08-31 | AO3: 2017-09-30 | AP3: 2017-10-31 | AQ3: 2017-11-30 | AR3: 2017-12-31 | AS3: 2018-01-31 | AT3: 2018-02-28 | AU3: 2018-03-31 | AV3: 2018-04-30 | AW3: 2018-05-31 | AX3: 2018-06-30 | AY3: 2018-07-31 | AZ3: 2018-08-31 | BA3: 2018-09-30 | BB3: 2018-10-31 | BC3: 2018-11-30 | BD3: 2018-12-31 | BE3: 2019-01-31 | BF3: 2019-02-28 | BG3: 2019-03-31 | BH3: 2019-04-30 | BI3: 2019-05-31 | BJ3: 2019-06-30 | BK3: 2019-07-31 | BL3: 2019-08-31 | BM3: 2019-09-30 | BN3: 2019-10-31 | BO3: 2019-11-30 | BP3: 2019-12-31 | BQ3: 2020-01-31 | BR3: 2020-02-29 | BS3: 2020-03-31 | BT3: 2020-04-30 | BU3: 2020-05-31 | BV3: 2020-06-30 | BW3: 2020-07-31 | BX3: =EDATE(BX2,1)-1 -> 2020-08-31 | BY3: 2020-09-30 | BZ3: 2020-10-31 | CA3: 2020-11-30 | CB3: 2020-12-31 | CC3: 2021-01-31 | CD3: 2021-02-28 | CE3: 2021-03-31 | CF3: 2021-04-30 | CG3: 2021-05-31 | CH3: 2021-06-30 | CI3: 2021-07-31 | CJ3: 2021-08-31 | CK3: 2021-09-30 | CL3: 2021-10-31 | CM3: 2021-11-30 | CN3: 2021-12-31 | CO3: 2022-01-31 | CP3: 2022-02-28 | CQ3: 2022-03-31 | CR3: 2022-04-30 | CS3: 2022-05-31 | CT3: 2022-06-30 | CU3: 2022-07-31 | CV3: 2022-08-31 | CW3: 2022-09-30 | CX3: 2022-10-31 | CY3: 2022-11-30 | CZ3: 2022-12-31 | DA3: 2023-01-31 | DB3: 2023-02-28 | DC3: 2023-03-31 | DD3: 2023-04-30 | DE3: 2023-05-31 | DF3: 2023-06-30 | DG3: 2023-07-31 | DH3: 2023-08-31 | DI3: 2023-09-30 | DJ3: 2023-10-31 | DK3: 2023-11-30 | DL3: 2023-12-31 | DM3: 2024-01-31 | DN3: 2024-02-29 | DO3: 2024-03-31 | DP3: 2024-04-30 | DQ3: 2024-05-31 | DR3: 2024-06-30 | DS3: 2024-07-31 | DT3: 2024-08-31 | DU3: 2024-09-30 | DV3: 2024-10-31 | DW3: 2024-11-30 | DX3: 2024-12-31 | DY3: 2025-01-31 | DZ3: 2025-02-28 | EA3: 2025-03-31 | EB3: 2025-04-30 | EC3: 2025-05-31 | ED3: 2025-06-30 | EE3: 2025-07-31 | EF3: 2025-08-31 | EG3: 2025-09-30 | EH3: 2025-10-31 | EI3: 2025-11-30 | EJ3: =EDATE(EJ2,1)-1 -> 2025-12-31 | EK3: 2026-01-31 | EL3: 2026-02-28 | EM3: 2026-03-31 | EN3: 2026-04-30 | EO3: 2026-05-31 | EP3: 2026-06-30 | EQ3: 2026-07-31 | ER3: 2026-08-31 | ES3: 2026-09-30 | ET3: 2026-10-31 | EU3: 2026-11-30 | EV3: 2026-12-31 | EW3: 2027-01-31 | EX3: 2027-02-28 | EY3: 2027-03-31 | EZ3: 2027-04-30 | FA3: 2027-05-31 | FB3: 2027-06-30 | FC3: 2027-07-31 | FD3: 2027-08-31 | FE3: 2027-09-30 | FF3: 2027-10-31 | FG3: 2027-11-30 | FH3: 2027-12-31 | FI3: 2028-01-31 | FJ3: 2028-02-29 | FK3: 2028-03-31 | FL3: 2028-04-30 | FM3: 2028-05-31 | FN3: 2028-06-30 | FO3: 2028-07-31 | FP3: 2028-08-31 | FQ3: 2028-09-30 | FR3: 2028-10-31 | FS3: 2028-11-30 | FT3: 2028-12-31 | FU3: 2029-01-31 | FV3: 2029-02-28 | FW3: 2029-03-31 | FX3: 2029-04-30 | FY3: 2029-05-31 | FZ3: 2029-06-30 | GA3: 2029-07-31 | GB3: 2029-08-31 | GC3: 2029-09-30 | GD3: 2029-10-31 | GE3: 2029-11-30 | GF3: 2029-12-31 | GG3: 2030-01-31 | GH3: 2030-02-28 | GI3: 2030-03-31 | GJ3: 2030-04-30 | GK3: 2030-05-31 | GL3: 2030-06-30 | GM3: 2030-07-31 | GN3: 2030-08-31 | GO3: 2030-09-30 | GP3: 2030-10-31 | GQ3: 2030-11-30 | GR3: 2030-12-31 | GS3: 2031-01-31 | GT3: 2031-02-28 | GU3: 2031-03-31 | GV3: =EDATE(GV2,1)-1 -> 2031-04-30 | GW3: 2031-05-31 | GX3: 2031-06-30 | GY3: 2031-07-31 | GZ3: 2031-08-31 | HA3: 2031-09-30 | HB3: 2031-10-31 | HC3: 2031-11-30 | HD3: 2031-12-31 | HE3: 2032-01-31 | HF3: 2032-02-29 | HG3: 2032-03-31 | HH3: 2032-04-30 | HI3: 2032-05-31 | HJ3: 2032-06-30 | HK3: 2032-07-31 | HL3: 2032-08-31 | HM3: 2032-09-30 | HN3: 2032-10-31 | HO3: 2032-11-30 | HP3: 2032-12-31 | HQ3: 2033-01-31 | HR3: 2033-02-28 | HS3: 2033-03-31 | HT3: 2033-04-30 | HU3: 2033-05-31 | HV3: 2033-06-30 | HW3: 2033-07-31 | HX3: 2033-08-31 | HY3: 2033-09-30 | HZ3: 2033-10-31 | IA3: 2033-11-30 | IB3: 2033-12-31 | IC3: 2034-01-31 | ID3: 2034-02-28 | IE3: 2034-03-31 | IF3: 2034-04-30 | IG3: 2034-05-31 | IH3: 2034-06-30 | II3: 2034-07-31 | IJ3: 2034-08-31 | IK3: 2034-09-30 | IL3: 2034-10-31 | IM3: 2034-11-30 | IN3: 2034-12-31 | IO3: 2035-01-31 | IP3: 2035-02-28 | IQ3: 2035-03-31 | IR3: 2035-04-30 | IS3: 2035-05-31 | IT3: 2035-06-30 | IU3: 2035-07-31 | IV3: 2035-08-31 | IW3: 2035-09-30 | IX3: 2035-10-31 | IY3: 2035-11-30 | IZ3: 2035-12-31 | JA3: 2036-01-31 | JB3: 2036-02-29 | JC3: 2036-03-31 | JD3: 2036-04-30 | JE3: 2036-05-31 | JF3: 2036-06-30 | JG3: 2036-07-31 | JH3: =EDATE(JH2,1)-1 -> 2036-08-31 | JI3: 2036-09-30 | JJ3: 2036-10-31 | JK3: 2036-11-30 | JL3: 2036-12-31 | JM3: 2037-01-31 | JN3: 2037-02-28 | JO3: 2037-03-31 | JP3: 2037-04-30 | JQ3: 2037-05-31 | JR3: 2037-06-30 | JS3: 2037-07-31 | JT3: 2037-08-31 | JU3: 2037-09-30 | JV3: 2037-10-31 | JW3: 2037-11-30 | JX3: 2037-12-31 | JY3: 2038-01-31 | JZ3: 2038-02-28 | KA3: 2038-03-31 | KB3: 2038-04-30 | KC3: 2038-05-31 | KD3: 2038-06-30 | KE3: 2038-07-31 | KF3: 2038-08-31 | KG3: 2038-09-30 | KH3: 2038-10-31 | KI3: 2038-11-30 | KJ3: 2038-12-31 | KK3: 2039-01-31 | KL3: 2039-02-28 | KM3: 2039-03-31 | KN3: 2039-04-30 | KO3: 2039-05-31 | KP3: 2039-06-30 | KQ3: 2039-07-31 | KR3: 2039-08-31 | KS3: 2039-09-30 | KT3: 2039-10-31 | KU3: 2039-11-30 | KV3: 2039-12-31 | KW3: 2040-01-31 | KX3: 2040-02-29 | KY3: 2040-03-31 | KZ3: 2040-04-30 | LA3: 2040-05-31 | LB3: 2040-06-30 | LC3: 2040-07-31 | LD3: 2040-08-31 | LE3: 2040-09-30 | LF3: 2040-10-31 | LG3: 2040-11-30 | LH3: 2040-12-31 | LI3: 2041-01-31 | LJ3: 2041-02-28 | LK3: 2041-03-31 | LL3: 2041-04-30 | LM3: 2041-05-31 | LN3: 2041-06-30 | LO3: 2041-07-31 | LP3: 2041-08-31 | LQ3: 2041-09-30 | LR3: 2041-10-31 | LS3: 2041-11-30 | LT3: =EDATE(LT2,1)-1 -> 2041-12-31 | LU3: 2042-01-31 | LV3: 2042-02-28 | LW3: 2042-03-31 | LX3: 2042-04-30 | LY3: 2042-05-31 | LZ3: 2042-06-30 | MA3: 2042-07-31 | MB3: 2042-08-31 | MC3: 2042-09-30 | MD3: 2042-10-31 | ME3: 2042-11-30 | MF3: 2042-12-31 | MG3: 2043-01-31 | MH3: 2043-02-28 | MI3: 2043-03-31 | MJ3: =EDATE(MJ2,1)-1 -> 2043-04-30 | MK3: 2043-05-31 | ML3: 2043-06-30 | MM3: 2043-07-31 | MN3: 2043-08-31 | MO3: 2043-09-30 | MP3: 2043-10-31 | MQ3: 2043-11-30 | MR3: 2043-12-31 | MS3: 2044-01-31 | MT3: 2044-02-29 | MU3: 2044-03-31 | MV3: 2044-04-30 | MW3: 2044-05-31 | MX3: 2044-06-30 | MY3: 2044-07-31 | MZ3: 2044-08-31 | NA3: 2044-09-30 | NB3: 2044-10-31 | NC3: 2044-11-30 | ND3: 2044-12-31 | NE3: 2045-01-31 | NF3: 2045-02-28 | NG3: 2045-03-31 | NH3: 2045-04-30 | NI3: 2045-05-31 | NJ3: 2045-06-30 | NK3: 2045-07-31 | NL3: 2045-08-31 | NM3: 2045-09-30 | NN3: 2045-10-31 | NO3: 2045-11-30 | NP3: 2045-12-31 | NQ3: 2046-01-31 | NR3: 2046-02-28 | NS3: 2046-03-31 | NT3: 2046-04-30 | NU3: 2046-05-31 | NV3: 2046-06-30 | NW3: 2046-07-31 | NX3: 2046-08-31 | NY3: 2046-09-30 | NZ3: 2046-10-31 | OA3: 2046-11-30 | OB3: 2046-12-31 | OC3: 2047-01-31 | OD3: 2047-02-28 | OE3: 2047-03-31
B4: Construction Phase | G4: =F19 -> 2015-03-01 | H4: =F20 -> 2018-11-01 | I4: =COUNTIF(K4:MI4,TRUE)=F21 -> TRUE | K4: =AND(K$2>=$G4,K$2<$H4) -> TRUE | L4: TRUE | M4: TRUE | N4: TRUE | O4: TRUE | P4: TRUE | Q4: TRUE | R4: TRUE | S4: TRUE | T4: TRUE | U4: =AND(U$2>=$G4,U$2<$H4) -> TRUE | V4: TRUE | W4: TRUE | X4: TRUE | Y4: TRUE | Z4: TRUE | AA4: TRUE | AB4: TRUE | AC4: TRUE | AD4: TRUE | AE4: =AND(AE$2>=$G4,AE$2<$H4) -> TRUE | AF4: TRUE | AG4: TRUE | AH4: TRUE | AI4: TRUE | AJ4: TRUE | AK4: TRUE | AL4: TRUE | AM4: TRUE | AN4: TRUE | AO4: =AND(AO$2>=$G4,AO$2<$H4) -> TRUE | AP4: TRUE | AQ4: TRUE | AR4: TRUE | AS4: TRUE | AT4: TRUE | AU4: TRUE | AV4: TRUE | AW4: TRUE | AX4: TRUE | AY4: =AND(AY$2>=$G4,AY$2<$H4) -> TRUE | AZ4: TRUE | BA4: TRUE | BB4: TRUE | BC4: FALSE | BD4: FALSE | BE4: FALSE | BF4: FALSE | BG4: FALSE | BH4: FALSE | BI4: =AND(BI$2>=$G4,BI$2<$H4) -> FALSE | BJ4: FALSE | BK4: FALSE | BL4: FALSE | BM4: FALSE | BN4: FALSE | BO4: FALSE | BP4: FALSE | BQ4: FALSE | BR4: FALSE | BS4: =AND(BS$2>=$G4,BS$2<$H4) -> FALSE | BT4: FALSE | BU4: FALSE | BV4: FALSE | BW4: FALSE | BX4: FALSE | BY4: FALSE | BZ4: FALSE | CA4: FALSE | CB4: FALSE | CC4: =AND(CC$2>=$G4,CC$2<$H4) -> FALSE | CD4: FALSE | CE4: FALSE | CF4: FALSE | CG4: FALSE | CH4: FALSE | CI4: FALSE | CJ4: FALSE | CK4: FALSE | CL4: FALSE | CM4: =AND(CM$2>=$G4,CM$2<$H4) -> FALSE | CN4: FALSE | CO4: FALSE | CP4: FALSE | CQ4: FALSE | CR4: FALSE | CS4: FALSE | CT4: FALSE | CU4: FALSE | CV4: FALSE | CW4: =AND(CW$2>=$G4,CW$2<$H4) -> FALSE | CX4: FALSE | CY4: FALSE | CZ4: FALSE | DA4: FALSE | DB4: FALSE | DC4: FALSE | DD4: FALSE | DE4: FALSE | DF4: FALSE | DG4: =AND(DG$2>=$G4,DG$2<$H4) -> FALSE | DH4: FALSE | DI4: FALSE | DJ4: FALSE | DK4: FALSE | DL4: FALSE | DM4: FALSE | DN4: FALSE | DO4: FALSE | DP4: FALSE | DQ4: =AND(DQ$2>=$G4,DQ$2<$H4) -> FALSE | DR4: FALSE | DS4: FALSE | DT4: FALSE | DU4: FALSE | DV4: FALSE | DW4: FALSE | DX4: FALSE | DY4: FALSE | DZ4: FALSE | EA4: =AND(EA$2>=$G4,EA$2<$H4) -> FALSE | EB4: FALSE | EC4: FALSE | ED4: FALSE | EE4: FALSE | EF4: FALSE | EG4: FALSE | EH4: FALSE | EI4: FALSE | EJ4: FALSE | EK4: =AND(EK$2>=$G4,EK$2<$H4) -> FALSE | EL4: FALSE | EM4: FALSE | EN4: FALSE | EO4: FALSE | EP4: FALSE | EQ4: FALSE | ER4: FALSE | ES4: FALSE | ET4: FALSE | EU4: =AND(EU$2>=$G4,EU$2<$H4) -> FALSE | EV4: FALSE | EW4: FALSE | EX4: FALSE | EY4: FALSE | EZ4: FALSE | FA4: FALSE | FB4: FALSE | FC4: FALSE | FD4: FALSE | FE4: =AND(FE$2>=$G4,FE$2<$H4) -> FALSE | FF4: FALSE | FG4: FALSE | FH4: FALSE | FI4: FALSE | FJ4: FALSE | FK4: FALSE | FL4: FALSE | FM4: FALSE | FN4: FALSE | FO4: =AND(FO$2>=$G4,FO$2<$H4) -> FALSE | FP4: FALSE | FQ4: FALSE | FR4: FALSE | FS4: FALSE | FT4: FALSE | FU4: FALSE | FV4: FALSE | FW4: FALSE | FX4: FALSE | FY4: =AND(FY$2>=$G4,FY$2<$H4) -> FALSE | FZ4: FALSE | GA4: FALSE | GB4: FALSE | GC4: FALSE | GD4: FALSE | GE4: FALSE | GF4: FALSE | GG4: FALSE | GH4: FALSE | GI4: =AND(GI$2>=$G4,GI$2<$H4) -> FALSE | GJ4: FALSE | GK4: FALSE | GL4: FALSE | GM4: FALSE | GN4: FALSE | GO4: FALSE | GP4: FALSE | GQ4: FALSE | GR4: FALSE | GS4: =AND(GS$2>=$G4,GS$2<$H4) -> FALSE | GT4: FALSE | GU4: FALSE | GV4: FALSE | GW4: FALSE | GX4: FALSE | GY4: FALSE | GZ4: FALSE | HA4: FALSE | HB4: FALSE | HC4: =AND(HC$2>=$G4,HC$2<$H4) -> FALSE | HD4: FALSE | HE4: FALSE | HF4: FALSE | HG4: FALSE | HH4: FALSE | HI4: FALSE | HJ4: FALSE | HK4: FALSE | HL4: FALSE | HM4: =AND(HM$2>=$G4,HM$2<$H4) -> FALSE | HN4: FALSE | HO4: FALSE | HP4: FALSE | HQ4: FALSE | HR4: FALSE | HS4: FALSE | HT4: FALSE | HU4: FALSE | HV4: FALSE | HW4: =AND(HW$2>=$G4,HW$2<$H4) -> FALSE | HX4: FALSE | HY4: FALSE | HZ4: FALSE | IA4: FALSE | IB4: FALSE | IC4: FALSE | ID4: FALSE | IE4: FALSE | IF4: FALSE | IG4: =AND(IG$2>=$G4,IG$2<$H4) -> FALSE | IH4: FALSE | II4: FALSE | IJ4: FALSE | IK4: FALSE | IL4: FALSE | IM4: FALSE | IN4: FALSE | IO4: FALSE | IP4: FALSE | IQ4: =AND(IQ$2>=$G4,IQ$2<$H4) -> FALSE | IR4: FALSE | IS4: FALSE | IT4: FALSE | IU4: FALSE | IV4: FALSE | IW4: FALSE | IX4: FALSE | IY4: FALSE | IZ4: FALSE | JA4: =AND(JA$2>=$G4,JA$2<$H4) -> FALSE | JB4: FALSE | JC4: FALSE | JD4: FALSE | JE4: FALSE | JF4: FALSE | JG4: FALSE | JH4: FALSE | JI4: FALSE | JJ4: FALSE | JK4: =AND(JK$2>=$G4,JK$2<$H4) -> FALSE | JL4: FALSE | JM4: FALSE | JN4: FALSE | JO4: FALSE | JP4: FALSE | JQ4: FALSE | JR4: FALSE | JS4: FALSE | JT4: FALSE | JU4: =AND(JU$2>=$G4,JU$2<$H4) -> FALSE | JV4: FALSE | JW4: FALSE | JX4: FALSE | JY4: FALSE | JZ4: FALSE | KA4: FALSE | KB4: FALSE | KC4: FALSE | KD4: FALSE | KE4: =AND(KE$2>=$G4,KE$2<$H4) -> FALSE | KF4: FALSE | KG4: FALSE | KH4: FALSE | KI4: FALSE | KJ4: FALSE | KK4: FALSE | KL4: FALSE | KM4: FALSE | KN4: FALSE | KO4: =AND(KO$2>=$G4,KO$2<$H4) -> FALSE | KP4: FALSE | KQ4: FALSE | KR4: FALSE | KS4: FALSE | KT4: FALSE | KU4: FALSE | KV4: FALSE | KW4: FALSE | KX4: FALSE | KY4: =AND(KY$2>=$G4,KY$2<$H4) -> FALSE | KZ4: FALSE | LA4: FALSE | LB4: FALSE | LC4: FALSE | LD4: FALSE | LE4: FALSE | LF4: FALSE | LG4: FALSE | LH4: FALSE | LI4: =AND(LI$2>=$G4,LI$2<$H4) -> FALSE | LJ4: FALSE | LK4: FALSE | LL4: FALSE | LM4: FALSE | LN4: FALSE | LO4: FALSE | LP4: FALSE | LQ4: FALSE | LR4: FALSE | LS4: =AND(LS$2>=$G4,LS$2<$H4) -> FALSE | LT4: FALSE | LU4: FALSE | LV4: FALSE | LW4: FALSE | LX4: FALSE | LY4: FALSE | LZ4: FALSE | MA4: FALSE | MB4: FALSE | MC4: =AND(MC$2>=$G4,MC$2<$H4) -> FALSE | MD4: FALSE | ME4: FALSE | MF4: FALSE | MG4: FALSE | MH4: FALSE | MI4: FALSE | MJ4: FALSE | MK4: FALSE | ML4: FALSE | MM4: =AND(MM$2>=$G4,MM$2<$H4) -> FALSE | MN4: FALSE | MO4: FALSE | MP4: FALSE | MQ4: FALSE | MR4: FALSE | MS4: FALSE | MT4: FALSE | MU4: FALSE | MV4: FALSE | MW4: =AND(MW$2>=$G4,MW$2<$H4) -> FALSE | MX4: FALSE | MY4: FALSE | MZ4: FALSE | NA4: FALSE | NB4: FALSE | NC4: FALSE | ND4: FALSE | NE4: FALSE | NF4: FALSE | NG4: =AND(NG$2>=$G4,NG$2<$H4) -> FALSE | NH4: FALSE | NI4: FALSE | NJ4: FALSE | NK4: FALSE | NL4: FALSE | NM4: FALSE | NN4: FALSE | NO4: FALSE | NP4: FALSE | NQ4: =AND(NQ$2>=$G4,NQ$2<$H4) -> FALSE | NR4: FALSE | NS4: FALSE | NT4: FALSE | NU4: FALSE | NV4: FALSE | NW4: FALSE | NX4: FALSE | NY4: FALSE | NZ4: FALSE | OA4: FALSE | OB4: FALSE | OC4: FALSE | OD4: FALSE | OE4: FALSE
B5: Operation Phase | G5: =F20 -> 2018-11-01 | H5: =F23 -> 2043-11-01 | I5: =COUNTIF(K5:OE5,TRUE)=F22*12 -> TRUE | K5: FALSE | L5: FALSE | M5: FALSE | N5: FALSE | O5: FALSE | P5: FALSE | Q5: FALSE | R5: FALSE | S5: FALSE | T5: FALSE | U5: FALSE | V5: FALSE | W5: FALSE | X5: FALSE | Y5: FALSE | Z5: FALSE | AA5: FALSE | AB5: FALSE | AC5: FALSE | AD5: FALSE | AE5: FALSE | AF5: FALSE | AG5: FALSE | AH5: FALSE | AI5: FALSE | AJ5: FALSE | AK5: FALSE | AL5: FALSE | AM5: FALSE | AN5: FALSE | AO5: FALSE | AP5: FALSE | AQ5: FALSE | AR5: FALSE | AS5: FALSE | AT5: FALSE | AU5: FALSE | AV5: FALSE | AW5: FALSE | AX5: FALSE | AY5: FALSE | AZ5: FALSE | BA5: FALSE | BB5: FALSE | BC5: TRUE | BD5: TRUE | BE5: TRUE | BF5: TRUE | BG5: TRUE | BH5: TRUE | BI5: TRUE | BJ5: TRUE | BK5: TRUE | BL5: TRUE | BM5: TRUE | BN5: TRUE | BO5: TRUE | BP5: TRUE | BQ5: TRUE | BR5: TRUE | BS5: TRUE | BT5: TRUE | BU5: TRUE | BV5: TRUE | BW5: TRUE | BX5: TRUE | BY5: TRUE | BZ5: TRUE | CA5: TRUE | CB5: TRUE | CC5: TRUE | CD5: TRUE | CE5: TRUE | CF5: TRUE | CG5: TRUE | CH5: TRUE | CI5: TRUE | CJ5: TRUE | CK5: TRUE | CL5: TRUE | CM5: TRUE | CN5: TRUE | CO5: TRUE | CP5: TRUE | CQ5: TRUE | CR5: TRUE | CS5: TRUE | CT5: TRUE | CU5: TRUE | CV5: TRUE | CW5: TRUE | CX5: TRUE | CY5: TRUE | CZ5: TRUE | DA5: TRUE | DB5: TRUE | DC5: TRUE | DD5: TRUE | DE5: TRUE | DF5: TRUE | DG5: TRUE | DH5: TRUE | DI5: TRUE | DJ5: TRUE | DK5: TRUE | DL5: TRUE | DM5: TRUE | DN5: TRUE | DO5: TRUE | DP5: TRUE | DQ5: TRUE | DR5: TRUE | DS5: TRUE | DT5: TRUE | DU5: TRUE | DV5: TRUE | DW5: TRUE | DX5: TRUE | DY5: TRUE | DZ5: TRUE | EA5: TRUE | EB5: TRUE | EC5: TRUE | ED5: TRUE | EE5: TRUE | EF5: TRUE | EG5: TRUE | EH5: TRUE | EI5: TRUE | EJ5: TRUE | EK5: TRUE | EL5: TRUE | EM5: TRUE | EN5: TRUE | EO5: TRUE | EP5: TRUE | EQ5: TRUE | ER5: TRUE | ES5: TRUE | ET5: TRUE | EU5: TRUE | EV5: TRUE | EW5: TRUE | EX5: TRUE | EY5: TRUE | EZ5: TRUE | FA5: TRUE | FB5: TRUE | FC5: TRUE | FD5: TRUE | FE5: TRUE | FF5: TRUE | FG5: TRUE | FH5: TRUE | FI5: TRUE | FJ5: TRUE | FK5: TRUE | FL5: TRUE | FM5: TRUE | FN5: TRUE | FO5: TRUE | FP5: TRUE | FQ5: TRUE | FR5: TRUE | FS5: TRUE | FT5: TRUE | FU5: TRUE | FV5: TRUE | FW5: TRUE | FX5: TRUE | FY5: TRUE | FZ5: TRUE | GA5: TRUE | GB5: TRUE | GC5: TRUE | GD5: TRUE | GE5: TRUE | GF5: TRUE | GG5: TRUE | GH5: TRUE | GI5: TRUE | GJ5: TRUE | GK5: TRUE | GL5: TRUE | GM5: TRUE | GN5: TRUE | GO5: TRUE | GP5: TRUE | GQ5: TRUE | GR5: TRUE | GS5: TRUE | GT5: TRUE | GU5: TRUE | GV5: TRUE | GW5: TRUE | GX5: TRUE | GY5: TRUE | GZ5: TRUE | HA5: TRUE | HB5: TRUE | HC5: TRUE | HD5: TRUE | HE5: TRUE | HF5: TRUE | HG5: TRUE | HH5: TRUE | HI5: TRUE | HJ5: TRUE | HK5: TRUE | HL5: TRUE | HM5: TRUE | HN5: TRUE | HO5: TRUE | HP5: TRUE | HQ5: TRUE | HR5: TRUE | HS5: TRUE | HT5: TRUE | HU5: TRUE | HV5: TRUE | HW5: TRUE | HX5: TRUE | HY5: TRUE | HZ5: TRUE | IA5: TRUE | IB5: TRUE | IC5: TRUE | ID5: TRUE | IE5: TRUE | IF5: TRUE | IG5: TRUE | IH5: TRUE | II5: TRUE | IJ5: TRUE | IK5: TRUE | IL5: TRUE | IM5: TRUE | IN5: TRUE | IO5: TRUE | IP5: TRUE | IQ5: TRUE | IR5: TRUE | IS5: TRUE | IT5: TRUE | IU5: TRUE | IV5: TRUE | IW5: TRUE | IX5: TRUE | IY5: TRUE | IZ5: TRUE | JA5: TRUE | JB5: TRUE | JC5: TRUE | JD5: TRUE | JE5: TRUE | JF5: TRUE | JG5: TRUE | JH5: TRUE | JI5: TRUE | JJ5: TRUE | JK5: TRUE | JL5: TRUE | JM5: TRUE | JN5: TRUE | JO5: TRUE | JP5: TRUE | JQ5: TRUE | JR5: TRUE | JS5: TRUE | JT5: TRUE | JU5: TRUE | JV5: TRUE | JW5: TRUE | JX5: TRUE | JY5: TRUE | JZ5: TRUE | KA5: TRUE | KB5: TRUE | KC5: TRUE | KD5: TRUE | KE5: TRUE | KF5: TRUE | KG5: TRUE | KH5: TRUE | KI5: TRUE | KJ5: TRUE | KK5: TRUE | KL5: TRUE | KM5: TRUE | KN5: TRUE | KO5: TRUE | KP5: TRUE | KQ5: TRUE | KR5: TRUE | KS5: TRUE | KT5: TRUE | KU5: TRUE | KV5: TRUE | KW5: TRUE | KX5: TRUE | KY5: TRUE | KZ5: TRUE | LA5: TRUE | LB5: TRUE | LC5: TRUE | LD5: TRUE | LE5: TRUE | LF5: TRUE | LG5: TRUE | LH5: TRUE | LI5: TRUE | LJ5: TRUE | LK5: TRUE | LL5: TRUE | LM5: TRUE | LN5: TRUE | LO5: TRUE | LP5: TRUE | LQ5: TRUE | LR5: TRUE | LS5: TRUE | LT5: TRUE | LU5: TRUE | LV5: TRUE | LW5: TRUE | LX5: TRUE | LY5: TRUE | LZ5: TRUE | MA5: TRUE | MB5: TRUE | MC5: TRUE | MD5: TRUE | ME5: TRUE | MF5: TRUE | MG5: TRUE | MH5: TRUE | MI5: TRUE | MJ5: TRUE | MK5: TRUE | ML5: TRUE | MM5: TRUE | MN5: TRUE | MO5: TRUE | MP5: TRUE | MQ5: FALSE | MR5: FALSE | MS5: FALSE | MT5: FALSE | MU5: FALSE | MV5: FALSE | MW5: FALSE | MX5: FALSE | MY5: FALSE | MZ5: FALSE | NA5: FALSE | NB5: FALSE | NC5: FALSE | ND5: FALSE | NE5: FALSE | NF5: FALSE | NG5: FALSE | NH5: FALSE | NI5: FALSE | NJ5: FALSE | NK5: FALSE | NL5: FALSE | NM5: FALSE | NN5: FALSE | NO5: FALSE | NP5: FALSE | NQ5: FALSE | NR5: FALSE | NS5: FALSE | NT5: FALSE | NU5: FALSE | NV5: FALSE | NW5: FALSE | NX5: FALSE | NY5: FALSE | NZ5: FALSE | OA5: FALSE | OB5: FALSE | OC5: FALSE | OD5: FALSE | OE5: FALSE
B6: Commercial Operation | G6: =F20 -> 2018-11-01 | K6: =K$2=$G6 -> FALSE | L6: FALSE | M6: FALSE | N6: FALSE | O6: FALSE | P6: FALSE | Q6: FALSE | R6: FALSE | S6: FALSE | T6: FALSE | U6: =U$2=$G6 -> FALSE | V6: FALSE | W6: FALSE | X6: FALSE | Y6: FALSE | Z6: FALSE | AA6: FALSE | AB6: FALSE | AC6: FALSE | AD6: FALSE | AE6: =AE$2=$G6 -> FALSE | AF6: FALSE | AG6: FALSE | AH6: FALSE | AI6: FALSE | AJ6: FALSE | AK6: FALSE | AL6: FALSE | AM6: FALSE | AN6: FALSE | AO6: =AO$2=$G6 -> FALSE | AP6: FALSE | AQ6: FALSE | AR6: FALSE | AS6: FALSE | AT6: FALSE | AU6: FALSE | AV6: FALSE | AW6: FALSE | AX6: FALSE | AY6: =AY$2=$G6 -> FALSE | AZ6: FALSE | BA6: FALSE | BB6: FALSE | BC6: TRUE | BD6: FALSE | BE6: FALSE | BF6: FALSE | BG6: FALSE | BH6: FALSE | BI6: =BI$2=$G6 -> FALSE | BJ6: FALSE | BK6: FALSE | BL6: FALSE | BM6: FALSE | BN6: FALSE | BO6: FALSE | BP6: FALSE | BQ6: FALSE | BR6: FALSE | BS6: =BS$2=$G6 -> FALSE | BT6: FALSE | BU6: FALSE | BV6: FALSE | BW6: FALSE | BX6: FALSE | BY6: FALSE | BZ6: FALSE | CA6: FALSE | CB6: FALSE | CC6: =CC$2=$G6 -> FALSE | CD6: FALSE | CE6: FALSE | CF6: FALSE | CG6: FALSE | CH6: FALSE | CI6: FALSE | CJ6: FALSE | CK6: FALSE | CL6: FALSE | CM6: =CM$2=$G6 -> FALSE | CN6: FALSE | CO6: FALSE | CP6: FALSE | CQ6: FALSE | CR6: FALSE | CS6: FALSE | CT6: FALSE | CU6: FALSE | CV6: FALSE | CW6: =CW$2=$G6 -> FALSE | CX6: FALSE | CY6: FALSE | CZ6: FALSE | DA6: FALSE | DB6: FALSE | DC6: FALSE | DD6: FALSE | DE6: FALSE | DF6: FALSE | DG6: =DG$2=$G6 -> FALSE | DH6: FALSE | DI6: FALSE | DJ6: FALSE | DK6: FALSE | DL6: FALSE | DM6: FALSE | DN6: FALSE | DO6: FALSE | DP6: FALSE | DQ6: =DQ$2=$G6 -> FALSE | DR6: FALSE | DS6: FALSE | DT6: FALSE | DU6: FALSE | DV6: FALSE | DW6: FALSE | DX6: FALSE | DY6: FALSE | DZ6: FALSE | EA6: =EA$2=$G6 -> FALSE | EB6: FALSE | EC6: FALSE | ED6: FALSE | EE6: FALSE | EF6: FALSE | EG6: FALSE | EH6: FALSE | EI6: FALSE | EJ6: FALSE | EK6: =EK$2=$G6 -> FALSE | EL6: FALSE | EM6: FALSE | EN6: FALSE | EO6: FALSE | EP6: FALSE | EQ6: FALSE | ER6: FALSE | ES6: FALSE | ET6: FALSE | EU6: =EU$2=$G6 -> FALSE | EV6: FALSE | EW6: FALSE | EX6: FALSE | EY6: FALSE | EZ6: FALSE | FA6: FALSE | FB6: FALSE | FC6: FALSE | FD6: FALSE | FE6: =FE$2=$G6 -> FALSE | FF6: FALSE | FG6: FALSE | FH6: FALSE | FI6: FALSE | FJ6: FALSE | FK6: FALSE | FL6: FALSE | FM6: FALSE | FN6: FALSE | FO6: =FO$2=$G6 -> FALSE | FP6: FALSE | FQ6: FALSE | FR6: FALSE | FS6: FALSE | FT6: FALSE | FU6: FALSE | FV6: FALSE | FW6: FALSE | FX6: FALSE | FY6: =FY$2=$G6 -> FALSE | FZ6: FALSE | GA6: FALSE | GB6: FALSE | GC6: FALSE | GD6: FALSE | GE6: FALSE | GF6: FALSE | GG6: FALSE | GH6: FALSE | GI6: =GI$2=$G6 -> FALSE | GJ6: FALSE | GK6: FALSE | GL6: FALSE | GM6: FALSE | GN6: FALSE | GO6: FALSE | GP6: FALSE | GQ6: FALSE | GR6: FALSE | GS6: =GS$2=$G6 -> FALSE | GT6: FALSE | GU6: FALSE | GV6: FALSE | GW6: FALSE | GX6: FALSE | GY6: FALSE | GZ6: FALSE | HA6: FALSE | HB6: FALSE | HC6: =HC$2=$G6 -> FALSE | HD6: FALSE | HE6: FALSE | HF6: FALSE | HG6: FALSE | HH6: FALSE | HI6: FALSE | HJ6: FALSE | HK6: FALSE | HL6: FALSE | HM6: =HM$2=$G6 -> FALSE | HN6: FALSE | HO6: FALSE | HP6: FALSE | HQ6: FALSE | HR6: FALSE | HS6: FALSE | HT6: FALSE | HU6: FALSE | HV6: FALSE | HW6: =HW$2=$G6 -> FALSE | HX6: FALSE | HY6: FALSE | HZ6: FALSE | IA6: FALSE | IB6: FALSE | IC6: FALSE | ID6: FALSE | IE6: FALSE | IF6: FALSE | IG6: =IG$2=$G6 -> FALSE | IH6: FALSE | II6: FALSE | IJ6: FALSE | IK6: FALSE | IL6: FALSE | IM6: FALSE | IN6: FALSE | IO6: FALSE | IP6: FALSE | IQ6: =IQ$2=$G6 -> FALSE | IR6: FALSE | IS6: FALSE | IT6: FALSE | IU6: FALSE | IV6: FALSE | IW6: FALSE | IX6: FALSE | IY6: FALSE | IZ6: FALSE | JA6: =JA$2=$G6 -> FALSE | JB6: FALSE | JC6: FALSE | JD6: FALSE | JE6: FALSE | JF6: FALSE | JG6: FALSE | JH6: FALSE | JI6: FALSE | JJ6: FALSE | JK6: =JK$2=$G6 -> FALSE | JL6: FALSE | JM6: FALSE | JN6: FALSE | JO6: FALSE | JP6: FALSE | JQ6: FALSE | JR6: FALSE | JS6: FALSE | JT6: FALSE | JU6: =JU$2=$G6 -> FALSE | JV6: FALSE | JW6: FALSE | JX6: FALSE | JY6: FALSE | JZ6: FALSE | KA6: FALSE | KB6: FALSE | KC6: FALSE | KD6: FALSE | KE6: =KE$2=$G6 -> FALSE | KF6: FALSE | KG6: FALSE | KH6: FALSE | KI6: FALSE | KJ6: FALSE | KK6: FALSE | KL6: FALSE | KM6: FALSE | KN6: FALSE | KO6: =KO$2=$G6 -> FALSE | KP6: FALSE | KQ6: FALSE | KR6: FALSE | KS6: FALSE | KT6: FALSE | KU6: FALSE | KV6: FALSE | KW6: FALSE | KX6: FALSE | KY6: =KY$2=$G6 -> FALSE | KZ6: FALSE | LA6: FALSE | LB6: FALSE | LC6: FALSE | LD6: FALSE | LE6: FALSE | LF6: FALSE | LG6: FALSE | LH6: FALSE | LI6: =LI$2=$G6 -> FALSE | LJ6: FALSE | LK6: FALSE | LL6: FALSE | LM6: FALSE | LN6: FALSE | LO6: FALSE | LP6: FALSE | LQ6: FALSE | LR6: FALSE | LS6: =LS$2=$G6 -> FALSE | LT6: FALSE | LU6: FALSE | LV6: FALSE | LW6: FALSE | LX6: FALSE | LY6: FALSE | LZ6: FALSE | MA6: FALSE | MB6: FALSE | MC6: =MC$2=$G6 -> FALSE | MD6: FALSE | ME6: FALSE | MF6: FALSE | MG6: FALSE | MH6: FALSE | MI6: FALSE | MJ6: FALSE | MK6: FALSE | ML6: FALSE | MM6: =MM$2=$G6 -> FALSE | MN6: FALSE | MO6: FALSE | MP6: FALSE | MQ6: FALSE | MR6: FALSE | MS6: FALSE | MT6: FALSE | MU6: FALSE | MV6: FALSE | MW6: =MW$2=$G6 -> FALSE | MX6: FALSE | MY6: FALSE | MZ6: FALSE | NA6: FALSE | NB6: FALSE | NC6: FALSE | ND6: FALSE | NE6: FALSE | NF6: FALSE | NG6: =NG$2=$G6 -> FALSE | NH6: FALSE | NI6: FALSE | NJ6: FALSE | NK6: FALSE | NL6: FALSE | NM6: FALSE | NN6: FALSE | NO6: FALSE | NP6: FALSE | NQ6: =NQ$2=$G6 -> FALSE | NR6: FALSE | NS6: FALSE | NT6: FALSE | NU6: FALSE | NV6: FALSE | NW6: FALSE | NX6: FALSE | NY6: FALSE | NZ6: FALSE | OA6: FALSE | OB6: FALSE | OC6: FALSE | OD6: FALSE | OE6: FALSE
B7: Decommissioning | G7: =F23 -> 2043-11-01 | K7: FALSE | L7: FALSE | M7: FALSE | N7: FALSE | O7: FALSE | P7: FALSE | Q7: FALSE | R7: FALSE | S7: FALSE | T7: FALSE | U7: FALSE | V7: FALSE | W7: FALSE | X7: FALSE | Y7: FALSE | Z7: FALSE | AA7: FALSE | AB7: FALSE | AC7: FALSE | AD7: FALSE | AE7: FALSE | AF7: FALSE | AG7: FALSE | AH7: FALSE | AI7: FALSE | AJ7: FALSE | AK7: FALSE | AL7: FALSE | AM7: FALSE | AN7: FALSE | AO7: FALSE | AP7: FALSE | AQ7: FALSE | AR7: FALSE | AS7: FALSE | AT7: FALSE | AU7: FALSE | AV7: FALSE | AW7: FALSE | AX7: FALSE | AY7: FALSE | AZ7: FALSE | BA7: FALSE | BB7: FALSE | BC7: FALSE | BD7: FALSE | BE7: FALSE | BF7: FALSE | BG7: FALSE | BH7: FALSE | BI7: FALSE | BJ7: FALSE | BK7: FALSE | BL7: FALSE | BM7: FALSE | BN7: FALSE | BO7: FALSE | BP7: FALSE | BQ7: FALSE | BR7: FALSE | BS7: FALSE | BT7: FALSE | BU7: FALSE | BV7: FALSE | BW7: FALSE | BX7: FALSE | BY7: FALSE | BZ7: FALSE | CA7: FALSE | CB7: FALSE | CC7: FALSE | CD7: FALSE | CE7: FALSE | CF7: FALSE | CG7: FALSE | CH7: FALSE | CI7: FALSE | CJ7: FALSE | CK7: FALSE | CL7: FALSE | CM7: FALSE | CN7: FALSE | CO7: FALSE | CP7: FALSE | CQ7: FALSE | CR7: FALSE | CS7: FALSE | CT7: FALSE | CU7: FALSE | CV7: FALSE | CW7: FALSE | CX7: FALSE | CY7: FALSE | CZ7: FALSE | DA7: FALSE | DB7: FALSE | DC7: FALSE | DD7: FALSE | DE7: FALSE | DF7: FALSE | DG7: FALSE | DH7: FALSE | DI7: FALSE | DJ7: FALSE | DK7: FALSE | DL7: FALSE | DM7: FALSE | DN7: FALSE | DO7: FALSE | DP7: FALSE | DQ7: FALSE | DR7: FALSE | DS7: FALSE | DT7: FALSE | DU7: FALSE | DV7: FALSE | DW7: FALSE | DX7: FALSE | DY7: FALSE | DZ7: FALSE | EA7: FALSE | EB7: FALSE | EC7: FALSE | ED7: FALSE | EE7: FALSE | EF7: FALSE | EG7: FALSE | EH7: FALSE | EI7: FALSE | EJ7: FALSE | EK7: FALSE | EL7: FALSE | EM7: FALSE | EN7: FALSE | EO7: FALSE | EP7: FALSE | EQ7: FALSE | ER7: FALSE | ES7: FALSE | ET7: FALSE | EU7: FALSE | EV7: FALSE | EW7: FALSE | EX7: FALSE | EY7: FALSE | EZ7: FALSE | FA7: FALSE | FB7: FALSE | FC7: FALSE | FD7: FALSE | FE7: FALSE | FF7: FALSE | FG7: FALSE | FH7: FALSE | FI7: FALSE | FJ7: FALSE | FK7: FALSE | FL7: FALSE | FM7: FALSE | FN7: FALSE | FO7: FALSE | FP7: FALSE | FQ7: FALSE | FR7: FALSE | FS7: FALSE | FT7: FALSE | FU7: FALSE | FV7: FALSE | FW7: FALSE | FX7: FALSE | FY7: FALSE | FZ7: FALSE | GA7: FALSE | GB7: FALSE | GC7: FALSE | GD7: FALSE | GE7: FALSE | GF7: FALSE | GG7: FALSE | GH7: FALSE | GI7: FALSE | GJ7: FALSE | GK7: FALSE | GL7: FALSE | GM7: FALSE | GN7: FALSE | GO7: FALSE | GP7: FALSE | GQ7: FALSE | GR7: FALSE | GS7: FALSE | GT7: FALSE | GU7: FALSE | GV7: FALSE | GW7: FALSE | GX7: FALSE | GY7: FALSE | GZ7: FALSE | HA7: FALSE | HB7: FALSE | HC7: FALSE | HD7: FALSE | HE7: FALSE | HF7: FALSE | HG7: FALSE | HH7: FALSE | HI7: FALSE | HJ7: FALSE | HK7: FALSE | HL7: FALSE | HM7: FALSE | HN7: FALSE | HO7: FALSE | HP7: FALSE | HQ7: FALSE | HR7: FALSE | HS7: FALSE | HT7: FALSE | HU7: FALSE | HV7: FALSE | HW7: FALSE | HX7: FALSE | HY7: FALSE | HZ7: FALSE | IA7: FALSE | IB7: FALSE | IC7: FALSE | ID7: FALSE | IE7: FALSE | IF7: FALSE | IG7: FALSE | IH7: FALSE | II7: FALSE | IJ7: FALSE | IK7: FALSE | IL7: FALSE | IM7: FALSE | IN7: FALSE | IO7: FALSE | IP7: FALSE | IQ7: FALSE | IR7: FALSE | IS7: FALSE | IT7: FALSE | IU7: FALSE | IV7: FALSE | IW7: FALSE | IX7: FALSE | IY7: FALSE | IZ7: FALSE | JA7: FALSE | JB7: FALSE | JC7: FALSE | JD7: FALSE | JE7: FALSE | JF7: FALSE | JG7: FALSE | JH7: FALSE | JI7: FALSE | JJ7: FALSE | JK7: FALSE | JL7: FALSE | JM7: FALSE | JN7: FALSE | JO7: FALSE | JP7: FALSE | JQ7: FALSE | JR7: FALSE | JS7: FALSE | JT7: FALSE | JU7: FALSE | JV7: FALSE | JW7: FALSE | JX7: FALSE | JY7: FALSE | JZ7: FALSE | KA7: FALSE | KB7: FALSE | KC7: FALSE | KD7: FALSE | KE7: FALSE | KF7: FALSE | KG7: FALSE | KH7: FALSE | KI7: FALSE | KJ7: FALSE | KK7: FALSE | KL7: FALSE | KM7: FALSE | KN7: FALSE | KO7: FALSE | KP7: FALSE | KQ7: FALSE | KR7: FALSE | KS7: FALSE | KT7: FALSE | KU7: FALSE | KV7: FALSE | KW7: FALSE | KX7: FALSE | KY7: FALSE | KZ7: FALSE | LA7: FALSE | LB7: FALSE | LC7: FALSE | LD7: FALSE | LE7: FALSE | LF7: FALSE | LG7: FALSE | LH7: FALSE | LI7: FALSE | LJ7: FALSE | LK7: FALSE | LL7: FALSE | LM7: FALSE | LN7: FALSE | LO7: FALSE | LP7: FALSE | LQ7: FALSE | LR7: FALSE | LS7: FALSE | LT7: FALSE | LU7: FALSE | LV7: FALSE | LW7: FALSE | LX7: FALSE | LY7: FALSE | LZ7: FALSE | MA7: FALSE | MB7: FALSE | MC7: FALSE | MD7: FALSE | ME7: FALSE | MF7: FALSE | MG7: FALSE | MH7: FALSE | MI7: FALSE | MJ7: FALSE | MK7: FALSE | ML7: FALSE | MM7: FALSE | MN7: FALSE | MO7: FALSE | MP7: FALSE | MQ7: TRUE | MR7: FALSE | MS7: FALSE | MT7: FALSE | MU7: FALSE | MV7: FALSE | MW7: FALSE | MX7: FALSE | MY7: FALSE | MZ7: FALSE | NA7: FALSE | NB7: FALSE | NC7: FALSE | ND7: FALSE | NE7: FALSE | NF7: FALSE | NG7: FALSE | NH7: FALSE | NI7: FALSE | NJ7: FALSE | NK7: FALSE | NL7: FALSE | NM7: FALSE | NN7: FALSE | NO7: FALSE | NP7: FALSE | NQ7: FALSE | NR7: FALSE | NS7: FALSE | NT7: FALSE | NU7: FALSE | NV7: FALSE | NW7: FALSE | NX7: FALSE | NY7: FALSE | NZ7: FALSE | OA7: FALSE | OB7: FALSE | OC7: FALSE | OD7: FALSE | OE7: FALSE
B8: Last Construction Month | G8: =EDATE(G6,-1) -> 2018-10-01 | K8: =K2=$G$8 -> FALSE | L8: FALSE | M8: FALSE | N8: FALSE | O8: FALSE | P8: FALSE | Q8: FALSE | R8: FALSE | S8: FALSE | T8: FALSE | U8: FALSE | V8: FALSE | W8: FALSE | X8: FALSE | Y8: FALSE | Z8: FALSE | AA8: FALSE | AB8: FALSE | AC8: FALSE | AD8: FALSE | AE8: FALSE | AF8: FALSE | AG8: FALSE | AH8: FALSE | AI8: FALSE | AJ8: FALSE | AK8: FALSE | AL8: FALSE | AM8: FALSE | AN8: FALSE | AO8: FALSE | AP8: FALSE | AQ8: FALSE | AR8: FALSE | AS8: FALSE | AT8: FALSE | AU8: FALSE | AV8: FALSE | AW8: FALSE | AX8: FALSE | AY8: FALSE | AZ8: FALSE | BA8: FALSE | BB8: TRUE | BC8: FALSE | BD8: FALSE | BE8: FALSE | BF8: FALSE | BG8: FALSE | BH8: FALSE | BI8: FALSE | BJ8: FALSE | BK8: FALSE | BL8: FALSE | BM8: FALSE | BN8: FALSE | BO8: FALSE | BP8: FALSE | BQ8: FALSE | BR8: FALSE | BS8: FALSE | BT8: FALSE | BU8: FALSE | BV8: FALSE | BW8: =BW2=$G$8 -> FALSE | BX8: FALSE | BY8: FALSE | BZ8: FALSE | CA8: FALSE | CB8: FALSE | CC8: FALSE | CD8: FALSE | CE8: FALSE | CF8: FALSE | CG8: FALSE | CH8: FALSE | CI8: FALSE | CJ8: FALSE | CK8: FALSE | CL8: FALSE | CM8: FALSE | CN8: FALSE | CO8: FALSE | CP8: FALSE | CQ8: FALSE | CR8: FALSE | CS8: FALSE | CT8: FALSE | CU8: FALSE | CV8: FALSE | CW8: FALSE | CX8: FALSE | CY8: FALSE | CZ8: FALSE | DA8: FALSE | DB8: FALSE | DC8: FALSE | DD8: FALSE | DE8: FALSE | DF8: FALSE | DG8: FALSE | DH8: FALSE | DI8: FALSE | DJ8: FALSE | DK8: FALSE | DL8: FALSE | DM8: FALSE | DN8: FALSE | DO8: FALSE | DP8: FALSE | DQ8: FALSE | DR8: FALSE | DS8: FALSE | DT8: FALSE | DU8: FALSE | DV8: FALSE | DW8: FALSE | DX8: FALSE | DY8: FALSE | DZ8: FALSE | EA8: FALSE | EB8: FALSE | EC8: FALSE | ED8: FALSE | EE8: FALSE | EF8: FALSE | EG8: FALSE | EH8: FALSE | EI8: =EI2=$G$8 -> FALSE | EJ8: FALSE | EK8: FALSE | EL8: FALSE | EM8: FALSE | EN8: FALSE | EO8: FALSE | EP8: FALSE | EQ8: FALSE | ER8: FALSE | ES8: FALSE | ET8: FALSE | EU8: FALSE | EV8: FALSE | EW8: FALSE | EX8: FALSE | EY8: FALSE | EZ8: FALSE | FA8: FALSE | FB8: FALSE | FC8: FALSE | FD8: FALSE | FE8: FALSE | FF8: FALSE | FG8: FALSE | FH8: FALSE | FI8: FALSE | FJ8: FALSE | FK8: FALSE | FL8: FALSE | FM8: FALSE | FN8: FALSE | FO8: FALSE | FP8: FALSE | FQ8: FALSE | FR8: FALSE | FS8: FALSE | FT8: FALSE | FU8: FALSE | FV8: FALSE | FW8: FALSE | FX8: FALSE | FY8: FALSE | FZ8: FALSE | GA8: FALSE | GB8: FALSE | GC8: FALSE | GD8: FALSE | GE8: FALSE | GF8: FALSE | GG8: FALSE | GH8: FALSE | GI8: FALSE | GJ8: FALSE | GK8: FALSE | GL8: FALSE | GM8: FALSE | GN8: FALSE | GO8: FALSE | GP8: FALSE | GQ8: FALSE | GR8: FALSE | GS8: FALSE | GT8: FALSE | GU8: =GU2=$G$8 -> FALSE | GV8: FALSE | GW8: FALSE | GX8: FALSE | GY8: FALSE | GZ8: FALSE | HA8: FALSE | HB8: FALSE | HC8: FALSE | HD8: FALSE | HE8: FALSE | HF8: FALSE | HG8: FALSE | HH8: FALSE | HI8: FALSE | HJ8: FALSE | HK8: FALSE | HL8: FALSE | HM8: FALSE | HN8: FALSE | HO8: FALSE | HP8: FALSE | HQ8: FALSE | HR8: FALSE | HS8: FALSE | HT8: FALSE | HU8: FALSE | HV8: FALSE | HW8: FALSE | HX8: FALSE | HY8: FALSE | HZ8: FALSE | IA8: FALSE | IB8: FALSE | IC8: FALSE | ID8: FALSE | IE8: FALSE | IF8: FALSE | IG8: FALSE | IH8: FALSE | II8: FALSE | IJ8: FALSE | IK8: FALSE | IL8: FALSE | IM8: FALSE | IN8: FALSE | IO8: FALSE | IP8: FALSE | IQ8: FALSE | IR8: FALSE | IS8: FALSE | IT8: FALSE | IU8: FALSE | IV8: FALSE | IW8: FALSE | IX8: FALSE | IY8: FALSE | IZ8: FALSE | JA8: FALSE | JB8: FALSE | JC8: FALSE | JD8: FALSE | JE8: FALSE | JF8: FALSE | JG8: =JG2=$G$8 -> FALSE | JH8: FALSE | JI8: FALSE | JJ8: FALSE | JK8: FALSE | JL8: FALSE | JM8: FALSE | JN8: FALSE | JO8: FALSE | JP8: FALSE | JQ8: FALSE | JR8: FALSE | JS8: FALSE | JT8: FALSE | JU8: FALSE | JV8: FALSE | JW8: FALSE | JX8: FALSE | JY8: FALSE | JZ8: FALSE | KA8: FALSE | KB8: FALSE | KC8: FALSE | KD8: FALSE | KE8: FALSE | KF8: FALSE | KG8: FALSE | KH8: FALSE | KI8: FALSE | KJ8: FALSE | KK8: FALSE | KL8: FALSE | KM8: FALSE | KN8: FALSE | KO8: FALSE | KP8: FALSE | KQ8: FALSE | KR8: FALSE | KS8: FALSE | KT8: FALSE | KU8: FALSE | KV8: FALSE | KW8: FALSE | KX8: FALSE | KY8: FALSE | KZ8: FALSE | LA8: FALSE | LB8: FALSE | LC8: FALSE | LD8: FALSE | LE8: FALSE | LF8: FALSE | LG8: FALSE | LH8: FALSE | LI8: FALSE | LJ8: FALSE | LK8: FALSE | LL8: FALSE | LM8: FALSE | LN8: FALSE | LO8: FALSE | LP8: FALSE | LQ8: FALSE | LR8: FALSE | LS8: =LS2=$G$8 -> FALSE | LT8: FALSE | LU8: FALSE | LV8: FALSE | LW8: FALSE | LX8: FALSE | LY8: FALSE | LZ8: FALSE | MA8: FALSE | MB8: FALSE | MC8: FALSE | MD8: FALSE | ME8: FALSE | MF8: FALSE | MG8: FALSE | MH8: FALSE | MI8: FALSE | MJ8: FALSE | MK8: FALSE | ML8: FALSE | MM8: FALSE | MN8: FALSE | MO8: FALSE | MP8: FALSE | MQ8: FALSE | MR8: FALSE | MS8: FALSE | MT8: FALSE | MU8: FALSE | MV8: FALSE | MW8: FALSE | MX8: FALSE | MY8: FALSE | MZ8: FALSE | NA8: FALSE | NB8: FALSE | NC8: FALSE | ND8: FALSE | NE8: FALSE | NF8: FALSE | NG8: FALSE | NH8: FALSE | NI8: FALSE | NJ8: FALSE | NK8: FALSE | NL8: FALSE | NM8: FALSE | NN8: FALSE | NO8: FALSE | NP8: FALSE | NQ8: FALSE | NR8: FALSE | NS8: FALSE | NT8: FALSE | NU8: FALSE | NV8: FALSE | NW8: FALSE | NX8: FALSE | NY8: FALSE | NZ8: FALSE | OA8: FALSE | OB8: FALSE | OC8: FALSE | OD8: FALSE | OE8: FALSE
B9: Days | E9: Days | K9: =K3-K2+1 -> 31 | L9: 30 | M9: 31 | N9: 30 | O9: 31 | P9: 31 | Q9: 30 | R9: 31 | S9: 30 | T9: 31 | U9: 31 | V9: 29 | W9: 31 | X9: 30 | Y9: 31 | Z9: 30 | AA9: 31 | AB9: 31 | AC9: 30 | AD9: 31 | AE9: 30 | AF9: 31 | AG9: 31 | AH9: 28 | AI9: 31 | AJ9: 30 | AK9: 31 | AL9: 30 | AM9: 31 | AN9: 31 | AO9: 30 | AP9: 31 | AQ9: 30 | AR9: 31 | AS9: 31 | AT9: 28 | AU9: 31 | AV9: 30 | AW9: 31 | AX9: 30 | AY9: 31 | AZ9: 31 | BA9: 30 | BB9: 31 | BC9: 30 | BD9: 31 | BE9: 31 | BF9: 28 | BG9: 31 | BH9: 30 | BI9: 31 | BJ9: 30 | BK9: 31 | BL9: 31 | BM9: 30 | BN9: 31 | BO9: 30 | BP9: 31 | BQ9: 31 | BR9: 29 | BS9: 31 | BT9: 30 | BU9: 31 | BV9: 30 | BW9: =BW3-BW2+1 -> 31 | BX9: 31 | BY9: 30 | BZ9: 31 | CA9: 30 | CB9: 31 | CC9: 31 | CD9: 28 | CE9: 31 | CF9: 30 | CG9: 31 | CH9: 30 | CI9: 31 | CJ9: 31 | CK9: 30 | CL9: 31 | CM9: 30 | CN9: 31 | CO9: 31 | CP9: 28 | CQ9: 31 | CR9: 30 | CS9: 31 | CT9: 30 | CU9: 31 | CV9: 31 | CW9: 30 | CX9: 31 | CY9: 30 | CZ9: 31 | DA9: 31 | DB9: 28 | DC9: 31 | DD9: 30 | DE9: 31 | DF9: 30 | DG9: 31 | DH9: 31 | DI9: 30 | DJ9: 31 | DK9: 30 | DL9: 31 | DM9: 31 | DN9: 29 | DO9: 31 | DP9: 30 | DQ9: 31 | DR9: 30 | DS9: 31 | DT9: 31 | DU9: 30 | DV9: 31 | DW9: 30 | DX9: 31 | DY9: 31 | DZ9: 28 | EA9: 31 | EB9: 30 | EC9: 31 | ED9: 30 | EE9: 31 | EF9: 31 | EG9: 30 | EH9: 31 | EI9: =EI3-EI2+1 -> 30 | EJ9: 31 | EK9: 31 | EL9: 28 | EM9: 31 | EN9: 30 | EO9: 31 | EP9: 30 | EQ9: 31 | ER9: 31 | ES9: 30 | ET9: 31 | EU9: 30 | EV9: 31 | EW9: 31 | EX9: 28 | EY9: 31 | EZ9: 30 | FA9: 31 | FB9: 30 | FC9: 31 | FD9: 31 | FE9: 30 | FF9: 31 | FG9: 30 | FH9: 31 | FI9: 31 | FJ9: 29 | FK9: 31 | FL9: 30 | FM9: 31 | FN9: 30 | FO9: 31 | FP9: 31 | FQ9: 30 | FR9: 31 | FS9: 30 | FT9: 31 | FU9: 31 | FV9: 28 | FW9: 31 | FX9: 30 | FY9: 31 | FZ9: 30 | GA9: 31 | GB9: 31 | GC9: 30 | GD9: 31 | GE9: 30 | GF9: 31 | GG9: 31 | GH9: 28 | GI9: 31 | GJ9: 30 | GK9: 31 | GL9: 30 | GM9: 31 | GN9: 31 | GO9: 30 | GP9: 31 | GQ9: 30 | GR9: 31 | GS9: 31 | GT9: 28 | GU9: =GU3-GU2+1 -> 31 | GV9: 30 | GW9: 31 | GX9: 30 | GY9: 31 | GZ9: 31 | HA9: 30 | HB9: 31 | HC9: 30 | HD9: 31 | HE9: 31 | HF9: 29 | HG9: 31 | HH9: 30 | HI9: 31 | HJ9: 30 | HK9: 31 | HL9: 31 | HM9: 30 | HN9: 31 | HO9: 30 | HP9: 31 | HQ9: 31 | HR9: 28 | HS9: 31 | HT9: 30 | HU9: 31 | HV9: 30 | HW9: 31 | HX9: 31 | HY9: 30 | HZ9: 31 | IA9: 30 | IB9: 31 | IC9: 31 | ID9: 28 | IE9: 31 | IF9: 30 | IG9: 31 | IH9: 30 | II9: 31 | IJ9: 31 | IK9: 30 | IL9: 31 | IM9: 30 | IN9: 31 | IO9: 31 | IP9: 28 | IQ9: 31 | IR9: 30 | IS9: 31 | IT9: 30 | IU9: 31 | IV9: 31 | IW9: 30 | IX9: 31 | IY9: 30 | IZ9: 31 | JA9: 31 | JB9: 29 | JC9: 31 | JD9: 30 | JE9: 31 | JF9: 30 | JG9: =JG3-JG2+1 -> 31 | JH9: 31 | JI9: 30 | JJ9: 31 | JK9: 30 | JL9: 31 | JM9: 31 | JN9: 28 | JO9: 31 | JP9: 30 | JQ9: 31 | JR9: 30 | JS9: 31 | JT9: 31 | JU9: 30 | JV9: 31 | JW9: 30 | JX9: 31 | JY9: 31 | JZ9: 28 | KA9: 31 | KB9: 30 | KC9: 31 | KD9: 30 | KE9: 31 | KF9: 31 | KG9: 30 | KH9: 31 | KI9: 30 | KJ9: 31 | KK9: 31 | KL9: 28 | KM9: 31 | KN9: 30 | KO9: 31 | KP9: 30 | KQ9: 31 | KR9: 31 | KS9: 30 | KT9: 31 | KU9: 30 | KV9: 31 | KW9: 31 | KX9: 29 | KY9: 31 | KZ9: 30 | LA9: 31 | LB9: 30 | LC9: 31 | LD9: 31 | LE9: 30 | LF9: 31 | LG9: 30 | LH9: 31 | LI9: 31 | LJ9: 28 | LK9: 31 | LL9: 30 | LM9: 31 | LN9: 30 | LO9: 31 | LP9: 31 | LQ9: 30 | LR9: 31 | LS9: =LS3-LS2+1 -> 30 | LT9: 31 | LU9: 31 | LV9: 28 | LW9: 31 | LX9: 30 | LY9: 31 | LZ9: 30 | MA9: 31 | MB9: 31 | MC9: 30 | MD9: 31 | ME9: 30 | MF9: 31 | MG9: 31 | MH9: 28 | MI9: 31 | MJ9: 30 | MK9: 31 | ML9: 30 | MM9: 31 | MN9: 31 | MO9: 30 | MP9: 31 | MQ9: 30 | MR9: 31 | MS9: 31 | MT9: 29 | MU9: 31 | MV9: 30 | MW9: 31 | MX9: 30 | MY9: 31 | MZ9: 31 | NA9: 30 | NB9: 31 | NC9: 30 | ND9: 31 | NE9: 31 | NF9: 28 | NG9: 31 | NH9: 30 | NI9: 31 | NJ9: 30 | NK9: 31 | NL9: 31 | NM9: 30 | NN9: 31 | NO9: 30 | NP9: 31 | NQ9: 31 | NR9: 28 | NS9: 31 | NT9: 30 | NU9: 31 | NV9: 30 | NW9: 31 | NX9: 31 | NY9: 30 | NZ9: 31 | OA9: 30 | OB9: 31 | OC9: 31 | OD9: 28 | OE9: 31
B10: Hours | E10: Hours | K10: =K9*24 -> 744 | L10: =L9*24 -> 720 | M10: 744 | N10: 720 | O10: 744 | P10: 744 | Q10: 720 | R10: 744 | S10: 720 | T10: 744 | U10: 744 | V10: 696 | W10: 744 | X10: 720 | Y10: 744 | Z10: 720 | AA10: 744 | AB10: 744 | AC10: 720 | AD10: 744 | AE10: 720 | AF10: 744 | AG10: 744 | AH10: 672 | AI10: 744 | AJ10: 720 | AK10: 744 | AL10: 720 | AM10: 744 | AN10: 744 | AO10: 720 | AP10: 744 | AQ10: 720 | AR10: 744 | AS10: 744 | AT10: 672 | AU10: 744 | AV10: 720 | AW10: 744 | AX10: 720 | AY10: 744 | AZ10: 744 | BA10: 720 | BB10: 744 | BC10: 720 | BD10: 744 | BE10: 744 | BF10: 672 | BG10: 744 | BH10: 720 | BI10: 744 | BJ10: 720 | BK10: 744 | BL10: 744 | BM10: 720 | BN10: 744 | BO10: 720 | BP10: 744 | BQ10: 744 | BR10: 696 | BS10: 744 | BT10: 720 | BU10: 744 | BV10: 720 | BW10: 744 | BX10: =BX9*24 -> 744 | BY10: 720 | BZ10: 744 | CA10: 720 | CB10: 744 | CC10: 744 | CD10: 672 | CE10: 744 | CF10: 720 | CG10: 744 | CH10: 720 | CI10: 744 | CJ10: 744 | CK10: 720 | CL10: 744 | CM10: 720 | CN10: 744 | CO10: 744 | CP10: 672 | CQ10: 744 | CR10: 720 | CS10: 744 | CT10: 720 | CU10: 744 | CV10: 744 | CW10: 720 | CX10: 744 | CY10: 720 | CZ10: 744 | DA10: 744 | DB10: 672 | DC10: 744 | DD10: 720 | DE10: 744 | DF10: 720 | DG10: 744 | DH10: 744 | DI10: 720 | DJ10: 744 | DK10: 720 | DL10: 744 | DM10: 744 | DN10: 696 | DO10: 744 | DP10: 720 | DQ10: 744 | DR10: 720 | DS10: 744 | DT10: 744 | DU10: 720 | DV10: 744 | DW10: 720 | DX10: 744 | DY10: 744 | DZ10: 672 | EA10: 744 | EB10: 720 | EC10: 744 | ED10: 720 | EE10: 744 | EF10: 744 | EG10: 720 | EH10: 744 | EI10: 720 | EJ10: =EJ9*24 -> 744 | EK10: 744 | EL10: 672 | EM10: 744 | EN10: 720 | EO10: 744 | EP10: 720 | EQ10: 744 | ER10: 744 | ES10: 720 | ET10: 744 | EU10: 720 | EV10: 744 | EW10: 744 | EX10: 672 | EY10: 744 | EZ10: 720 | FA10: 744 | FB10: 720 | FC10: 744 | FD10: 744 | FE10: 720 | FF10: 744 | FG10: 720 | FH10: 744 | FI10: 744 | FJ10: 696 | FK10: 744 | FL10: 720 | FM10: 744 | FN10: 720 | FO10: 744 | FP10: 744 | FQ10: 720 | FR10: 744 | FS10: 720 | FT10: 744 | FU10: 744 | FV10: 672 | FW10: 744 | FX10: 720 | FY10: 744 | FZ10: 720 | GA10: 744 | GB10: 744 | GC10: 720 | GD10: 744 | GE10: 720 | GF10: 744 | GG10: 744 | GH10: 672 | GI10: 744 | GJ10: 720 | GK10: 744 | GL10: 720 | GM10: 744 | GN10: 744 | GO10: 720 | GP10: 744 | GQ10: 720 | GR10: 744 | GS10: 744 | GT10: 672 | GU10: 744 | GV10: =GV9*24 -> 720 | GW10: 744 | GX10: 720 | GY10: 744 | GZ10: 744 | HA10: 720 | HB10: 744 | HC10: 720 | HD10: 744 | HE10: 744 | HF10: 696 | HG10: 744 | HH10: 720 | HI10: 744 | HJ10: 720 | HK10: 744 | HL10: 744 | HM10: 720 | HN10: 744 | HO10: 720 | HP10: 744 | HQ10: 744 | HR10: 672 | HS10: 744 | HT10: 720 | HU10: 744 | HV10: 720 | HW10: 744 | HX10: 744 | HY10: 720 | HZ10: 744 | IA10: 720 | IB10: 744 | IC10: 744 | ID10: 672 | IE10: 744 | IF10: 720 | IG10: 744 | IH10: 720 | II10: 744 | IJ10: 744 | IK10: 720 | IL10: 744 | IM10: 720 | IN10: 744 | IO10: 744 | IP10: 672 | IQ10: 744 | IR10: 720 | IS10: 744 | IT10: 720 | IU10: 744 | IV10: 744 | IW10: 720 | IX10: 744 | IY10: 720 | IZ10: 744 | JA10: 744 | JB10: 696 | JC10: 744 | JD10: 720 | JE10: 744 | JF10: 720 | JG10: 744 | JH10: =JH9*24 -> 744 | JI10: 720 | JJ10: 744 | JK10: 720 | JL10: 744 | JM10: 744 | JN10: 672 | JO10: 744 | JP10: 720 | JQ10: 744 | JR10: 720 | JS10: 744 | JT10: 744 | JU10: 720 | JV10: 744 | JW10: 720 | JX10: 744 | JY10: 744 | JZ10: 672 | KA10: 744 | KB10: 720 | KC10: 744 | KD10: 720 | KE10: 744 | KF10: 744 | KG10: 720 | KH10: 744 | KI10: 720 | KJ10: 744 | KK10: 744 | KL10: 672 | KM10: 744 | KN10: 720 | KO10: 744 | KP10: 720 | KQ10: 744 | KR10: 744 | KS10: 720 | KT10: 744 | KU10: 720 | KV10: 744 | KW10: 744 | KX10: 696 | KY10: 744 | KZ10: 720 | LA10: 744 | LB10: 720 | LC10: 744 | LD10: 744 | LE10: 720 | LF10: 744 | LG10: 720 | LH10: 744 | LI10: 744 | LJ10: 672 | LK10: 744 | LL10: 720 | LM10: 744 | LN10: 720 | LO10: 744 | LP10: 744 | LQ10: 720 | LR10: 744 | LS10: 720 | LT10: =LT9*24 -> 744 | LU10: 744 | LV10: 672 | LW10: 744 | LX10: 720 | LY10: 744 | LZ10: 720 | MA10: 744 | MB10: 744 | MC10: 720 | MD10: 744 | ME10: 720 | MF10: 744 | MG10: 744 | MH10: 672 | MI10: 744 | MJ10: =MJ9*24 -> 720 | MK10: 744 | ML10: 720 | MM10: 744 | MN10: 744 | MO10: 720 | MP10: 744 | MQ10: 720 | MR10: 744 | MS10: 744 | MT10: 696 | MU10: 744 | MV10: 720 | MW10: 744 | MX10: 720 | MY10: 744 | MZ10: 744 | NA10: 720 | NB10: 744 | NC10: 720 | ND10: 744 | NE10: 744 | NF10: 672 | NG10: 744 | NH10: 720 | NI10: 744 | NJ10: 720 | NK10: 744 | NL10: 744 | NM10: 720 | NN10: 744 | NO10: 720 | NP10: 744 | NQ10: 744 | NR10: 672 | NS10: 744 | NT10: 720 | NU10: 744 | NV10: 720 | NW10: 744 | NX10: 744 | NY10: 720 | NZ10: 744 | OA10: 720 | OB10: 744 | OC10: 744 | OD10: 672 | OE10: 744
B11: Year | K11: =YEAR(K3) -> 2015 | L11: 2015 | M11: 2015 | N11: 2015 | O11: 2015 | P11: 2015 | Q11: 2015 | R11: 2015 | S11: 2015 | T11: 2015 | U11: 2016 | V11: 2016 | W11: 2016 | X11: 2016 | Y11: 2016 | Z11: 2016 | AA11: 2016 | AB11: 2016 | AC11: 2016 | AD11: 2016 | AE11: 2016 | AF11: 2016 | AG11: 2017 | AH11: 2017 | AI11: 2017 | AJ11: 2017 | AK11: 2017 | AL11: 2017 | AM11: 2017 | AN11: 2017 | AO11: 2017 | AP11: 2017 | AQ11: 2017 | AR11: 2017 | AS11: 2018 | AT11: 2018 | AU11: 2018 | AV11: 2018 | AW11: 2018 | AX11: 2018 | AY11: 2018 | AZ11: 2018 | BA11: 2018 | BB11: 2018 | BC11: 2018 | BD11: 2018 | BE11: 2019 | BF11: 2019 | BG11: 2019 | BH11: 2019 | BI11: 2019 | BJ11: 2019 | BK11: 2019 | BL11: 2019 | BM11: 2019 | BN11: 2019 | BO11: 2019 | BP11: 2019 | BQ11: 2020 | BR11: 2020 | BS11: 2020 | BT11: 2020 | BU11: 2020 | BV11: 2020 | BW11: =YEAR(BW3) -> 2020 | BX11: 2020 | BY11: 2020 | BZ11: 2020 | CA11: 2020 | CB11: 2020 | CC11: 2021 | CD11: 2021 | CE11: 2021 | CF11: 2021 | CG11: 2021 | CH11: 2021 | CI11: 2021 | CJ11: 2021 | CK11: 2021 | CL11: 2021 | CM11: 2021 | CN11: 2021 | CO11: 2022 | CP11: 2022 | CQ11: 2022 | CR11: 2022 | CS11: 2022 | CT11: 2022 | CU11: 2022 | CV11: 2022 | CW11: 2022 | CX11: 2022 | CY11: 2022 | CZ11: 2022 | DA11: 2023 | DB11: 2023 | DC11: 2023 | DD11: 2023 | DE11: 2023 | DF11: 2023 | DG11: 2023 | DH11: 2023 | DI11: 2023 | DJ11: 2023 | DK11: 2023 | DL11: 2023 | DM11: 2024 | DN11: 2024 | DO11: 2024 | DP11: 2024 | DQ11: 2024 | DR11: 2024 | DS11: 2024 | DT11: 2024 | DU11: 2024 | DV11: 2024 | DW11: 2024 | DX11: 2024 | DY11: 2025 | DZ11: 2025 | EA11: 2025 | EB11: 2025 | EC11: 2025 | ED11: 2025 | EE11: 2025 | EF11: 2025 | EG11: 2025 | EH11: 2025 | EI11: =YEAR(EI3) -> 2025 | EJ11: 2025 | EK11: 2026 | EL11: 2026 | EM11: 2026 | EN11: 2026 | EO11: 2026 | EP11: 2026 | EQ11: 2026 | ER11: 2026 | ES11: 2026 | ET11: 2026 | EU11: 2026 | EV11: 2026 | EW11: 2027 | EX11: 2027 | EY11: 2027 | EZ11: 2027 | FA11: 2027 | FB11: 2027 | FC11: 2027 | FD11: 2027 | FE11: 2027 | FF11: 2027 | FG11: 2027 | FH11: 2027 | FI11: 2028 | FJ11: 2028 | FK11: 2028 | FL11: 2028 | FM11: 2028 | FN11: 2028 | FO11: 2028 | FP11: 2028 | FQ11: 2028 | FR11: 2028 | FS11: 2028 | FT11: 2028 | FU11: 2029 | FV11: 2029 | FW11: 2029 | FX11: 2029 | FY11: 2029 | FZ11: 2029 | GA11: 2029 | GB11: 2029 | GC11: 2029 | GD11: 2029 | GE11: 2029 | GF11: 2029 | GG11: 2030 | GH11: 2030 | GI11: 2030 | GJ11: 2030 | GK11: 2030 | GL11: 2030 | GM11: 2030 | GN11: 2030 | GO11: 2030 | GP11: 2030 | GQ11: 2030 | GR11: 2030 | GS11: 2031 | GT11: 2031 | GU11: =YEAR(GU3) -> 2031 | GV11: 2031 | GW11: 2031 | GX11: 2031 | GY11: 2031 | GZ11: 2031 | HA11: 2031 | HB11: 2031 | HC11: 2031 | HD11: 2031 | HE11: 2032 | HF11: 2032 | HG11: 2032 | HH11: 2032 | HI11: 2032 | HJ11: 2032 | HK11: 2032 | HL11: 2032 | HM11: 2032 | HN11: 2032 | HO11: 2032 | HP11: 2032 | HQ11: 2033 | HR11: 2033 | HS11: 2033 | HT11: 2033 | HU11: 2033 | HV11: 2033 | HW11: 2033 | HX11: 2033 | HY11: 2033 | HZ11: 2033 | IA11: 2033 | IB11: 2033 | IC11: 2034 | ID11: 2034 | IE11: 2034 | IF11: 2034 | IG11: 2034 | IH11: 2034 | II11: 2034 | IJ11: 2034 | IK11: 2034 | IL11: 2034 | IM11: 2034 | IN11: 2034 | IO11: 2035 | IP11: 2035 | IQ11: 2035 | IR11: 2035 | IS11: 2035 | IT11: 2035 | IU11: 2035 | IV11: 2035 | IW11: 2035 | IX11: 2035 | IY11: 2035 | IZ11: 2035 | JA11: 2036 | JB11: 2036 | JC11: 2036 | JD11: 2036 | JE11: 2036 | JF11: 2036 | JG11: =YEAR(JG3) -> 2036 | JH11: 2036 | JI11: 2036 | JJ11: 2036 | JK11: 2036 | JL11: 2036 | JM11: 2037 | JN11: 2037 | JO11: 2037 | JP11: 2037 | JQ11: 2037 | JR11: 2037 | JS11: 2037 | JT11: 2037 | JU11: 2037 | JV11: 2037 | JW11: 2037 | JX11: 2037 | JY11: 2038 | JZ11: 2038 | KA11: 2038 | KB11: 2038 | KC11: 2038 | KD11: 2038 | KE11: 2038 | KF11: 2038 | KG11: 2038 | KH11: 2038 | KI11: 2038 | KJ11: 2038 | KK11: 2039 | KL11: 2039 | KM11: 2039 | KN11: 2039 | KO11: 2039 | KP11: 2039 | KQ11: 2039 | KR11: 2039 | KS11: 2039 | KT11: 2039 | KU11: 2039 | KV11: 2039 | KW11: 2040 | KX11: 2040 | KY11: 2040 | KZ11: 2040 | LA11: 2040 | LB11: 2040 | LC11: 2040 | LD11: 2040 | LE11: 2040 | LF11: 2040 | LG11: 2040 | LH11: 2040 | LI11: 2041 | LJ11: 2041 | LK11: 2041 | LL11: 2041 | LM11: 2041 | LN11: 2041 | LO11: 2041 | LP11: 2041 | LQ11: 2041 | LR11: 2041 | LS11: =YEAR(LS3) -> 2041 | LT11: 2041 | LU11: 2042 | LV11: 2042 | LW11: 2042 | LX11: 2042 | LY11: 2042 | LZ11: 2042 | MA11: 2042 | MB11: 2042 | MC11: 2042 | MD11: 2042 | ME11: 2042 | MF11: 2042 | MG11: 2043 | MH11: 2043 | MI11: 2043 | MJ11: 2043 | MK11: 2043 | ML11: 2043 | MM11: 2043 | MN11: 2043 | MO11: 2043 | MP11: 2043 | MQ11: 2043 | MR11: 2043 | MS11: 2044 | MT11: 2044 | MU11: 2044 | MV11: 2044 | MW11: 2044 | MX11: 2044 | MY11: 2044 | MZ11: 2044 | NA11: 2044 | NB11: 2044 | NC11: 2044 | ND11: 2044 | NE11: 2045 | NF11: 2045 | NG11: 2045 | NH11: 2045 | NI11: 2045 | NJ11: 2045 | NK11: 2045 | NL11: 2045 | NM11: 2045 | NN11: 2045 | NO11: 2045 | NP11: 2045 | NQ11: 2046 | NR11: 2046 | NS11: 2046 | NT11: 2046 | NU11: 2046 | NV11: 2046 | NW11: 2046 | NX11: 2046 | NY11: 2046 | NZ11: 2046 | OA11: 2046 | OB11: 2046 | OC11: 2047 | OD11: 2047 | OE11: 2047
B12: Month | K12: =MONTH(K2) -> 3 | L12: =MONTH(L2) -> 4 | M12: 5 | N12: 6 | O12: 7 | P12: 8 | Q12: 9 | R12: 10 | S12: 11 | T12: 12 | U12: 1 | V12: 2 | W12: 3 | X12: 4 | Y12: 5 | Z12: 6 | AA12: 7 | AB12: 8 | AC12: 9 | AD12: 10 | AE12: 11 | AF12: 12 | AG12: 1 | AH12: 2 | AI12: 3 | AJ12: 4 | AK12: 5 | AL12: 6 | AM12: 7 | AN12: 8 | AO12: 9 | AP12: 10 | AQ12: 11 | AR12: 12 | AS12: 1 | AT12: 2 | AU12: 3 | AV12: 4 | AW12: 5 | AX12: 6 | AY12: 7 | AZ12: 8 | BA12: 9 | BB12: 10 | BC12: 11 | BD12: 12 | BE12: 1 | BF12: 2 | BG12: 3 | BH12: 4 | BI12: 5 | BJ12: 6 | BK12: 7 | BL12: 8 | BM12: 9 | BN12: 10 | BO12: 11 | BP12: 12 | BQ12: 1 | BR12: 2 | BS12: 3 | BT12: 4 | BU12: 5 | BV12: 6 | BW12: 7 | BX12: =MONTH(BX2) -> 8 | BY12: 9 | BZ12: 10 | CA12: 11 | CB12: 12 | CC12: 1 | CD12: 2 | CE12: 3 | CF12: 4 | CG12: 5 | CH12: 6 | CI12: 7 | CJ12: 8 | CK12: 9 | CL12: 10 | CM12: 11 | CN12: 12 | CO12: 1 | CP12: 2 | CQ12: 3 | CR12: 4 | CS12: 5 | CT12: 6 | CU12: 7 | CV12: 8 | CW12: 9 | CX12: 10 | CY12: 11 | CZ12: 12 | DA12: 1 | DB12: 2 | DC12: 3 | DD12: 4 | DE12: 5 | DF12: 6 | DG12: 7 | DH12: 8 | DI12: 9 | DJ12: 10 | DK12: 11 | DL12: 12 | DM12: 1 | DN12: 2 | DO12: 3 | DP12: 4 | DQ12: 5 | DR12: 6 | DS12: 7 | DT12: 8 | DU12: 9 | DV12: 10 | DW12: 11 | DX12: 12 | DY12: 1 | DZ12: 2 | EA12: 3 | EB12: 4 | EC12: 5 | ED12: 6 | EE12: 7 | EF12: 8 | EG12: 9 | EH12: 10 | EI12: 11 | EJ12: =MONTH(EJ2) -> 12 | EK12: 1 | EL12: 2 | EM12: 3 | EN12: 4 | EO12: 5 | EP12: 6 | EQ12: 7 | ER12: 8 | ES12: 9 | ET12: 10 | EU12: 11 | EV12: 12 | EW12: 1 | EX12: 2 | EY12: 3 | EZ12: 4 | FA12: 5 | FB12: 6 | FC12: 7 | FD12: 8 | FE12: 9 | FF12: 10 | FG12: 11 | FH12: 12 | FI12: 1 | FJ12: 2 | FK12: 3 | FL12: 4 | FM12: 5 | FN12: 6 | FO12: 7 | FP12: 8 | FQ12: 9 | FR12: 10 | FS12: 11 | FT12: 12 | FU12: 1 | FV12: 2 | FW12: 3 | FX12: 4 | FY12: 5 | FZ12: 6 | GA12: 7 | GB12: 8 | GC12: 9 | GD12: 10 | GE12: 11 | GF12: 12 | GG12: 1 | GH12: 2 | GI12: 3 | GJ12: 4 | GK12: 5 | GL12: 6 | GM12: 7 | GN12: 8 | GO12: 9 | GP12: 10 | GQ12: 11 | GR12: 12 | GS12: 1 | GT12: 2 | GU12: 3 | GV12: =MONTH(GV2) -> 4 | GW12: 5 | GX12: 6 | GY12: 7 | GZ12: 8 | HA12: 9 | HB12: 10 | HC12: 11 | HD12: 12 | HE12: 1 | HF12: 2 | HG12: 3 | HH12: 4 | HI12: 5 | HJ12: 6 | HK12: 7 | HL12: 8 | HM12: 9 | HN12: 10 | HO12: 11 | HP12: 12 | HQ12: 1 | HR12: 2 | HS12: 3 | HT12: 4 | HU12: 5 | HV12: 6 | HW12: 7 | HX12: 8 | HY12: 9 | HZ12: 10 | IA12: 11 | IB12: 12 | IC12: 1 | ID12: 2 | IE12: 3 | IF12: 4 | IG12: 5 | IH12: 6 | II12: 7 | IJ12: 8 | IK12: 9 | IL12: 10 | IM12: 11 | IN12: 12 | IO12: 1 | IP12: 2 | IQ12: 3 | IR12: 4 | IS12: 5 | IT12: 6 | IU12: 7 | IV12: 8 | IW12: 9 | IX12: 10 | IY12: 11 | IZ12: 12 | JA12: 1 | JB12: 2 | JC12: 3 | JD12: 4 | JE12: 5 | JF12: 6 | JG12: 7 | JH12: =MONTH(JH2) -> 8 | JI12: 9 | JJ12: 10 | JK12: 11 | JL12: 12 | JM12: 1 | JN12: 2 | JO12: 3 | JP12: 4 | JQ12: 5 | JR12: 6 | JS12: 7 | JT12: 8 | JU12: 9 | JV12: 10 | JW12: 11 | JX12: 12 | JY12: 1 | JZ12: 2 | KA12: 3 | KB12: 4 | KC12: 5 | KD12: 6 | KE12: 7 | KF12: 8 | KG12: 9 | KH12: 10 | KI12: 11 | KJ12: 12 | KK12: 1 | KL12: 2 | KM12: 3 | KN12: 4 | KO12: 5 | KP12: 6 | KQ12: 7 | KR12: 8 | KS12: 9 | KT12: 10 | KU12: 11 | KV12: 12 | KW12: 1 | KX12: 2 | KY12: 3 | KZ12: 4 | LA12: 5 | LB12: 6 | LC12: 7 | LD12: 8 | LE12: 9 | LF12: 10 | LG12: 11 | LH12: 12 | LI12: 1 | LJ12: 2 | LK12: 3 | LL12: 4 | LM12: 5 | LN12: 6 | LO12: 7 | LP12: 8 | LQ12: 9 | LR12: 10 | LS12: 11 | LT12: =MONTH(LT2) -> 12 | LU12: 1 | LV12: 2 | LW12: 3 | LX12: 4 | LY12: 5 | LZ12: 6 | MA12: 7 | MB12: 8 | MC12: 9 | MD12: 10 | ME12: 11 | MF12: 12 | MG12: 1 | MH12: 2 | MI12: 3 | MJ12: 4 | MK12: 5 | ML12: 6 | MM12: 7 | MN12: 8 | MO12: 9 | MP12: 10 | MQ12: 11 | MR12: 12 | MS12: 1 | MT12: 2 | MU12: 3 | MV12: 4 | MW12: 5 | MX12: 6 | MY12: 7 | MZ12: 8 | NA12: 9 | NB12: 10 | NC12: 11 | ND12: 12 | NE12: 1 | NF12: 2 | NG12: 3 | NH12: 4 | NI12: 5 | NJ12: 6 | NK12: 7 | NL12: 8 | NM12: 9 | NN12: 10 | NO12: 11 | NP12: 12 | NQ12: 1 | NR12: 2 | NS12: 3 | NT12: 4 | NU12: 5 | NV12: 6 | NW12: 7 | NX12: 8 | NY12: 9 | NZ12: 10 | OA12: 11 | OB12: 12 | OC12: 1 | OD12: 2 | OE12: 3
B13: End of Quarter | K13: =EOQTR(K2) -> 2015-03-31 | L13: =EOQTR(L2) -> 2015-06-30 | M13: 2015-06-30 | N13: 2015-06-30 | O13: 2015-09-30 | P13: 2015-09-30 | Q13: 2015-09-30 | R13: 2015-12-31 | S13: 2015-12-31 | T13: 2015-12-31 | U13: 2016-03-31 | V13: 2016-03-31 | W13: 2016-03-31 | X13: 2016-06-30 | Y13: 2016-06-30 | Z13: 2016-06-30 | AA13: 2016-09-30 | AB13: 2016-09-30 | AC13: 2016-09-30 | AD13: 2016-12-31 | AE13: 2016-12-31 | AF13: 2016-12-31 | AG13: 2017-03-31 | AH13: 2017-03-31 | AI13: 2017-03-31 | AJ13: 2017-06-30 | AK13: 2017-06-30 | AL13: 2017-06-30 | AM13: 2017-09-30 | AN13: 2017-09-30 | AO13: 2017-09-30 | AP13: 2017-12-31 | AQ13: 2017-12-31 | AR13: 2017-12-31 | AS13: 2018-03-31 | AT13: 2018-03-31 | AU13: 2018-03-31 | AV13: 2018-06-30 | AW13: 2018-06-30 | AX13: 2018-06-30 | AY13: 2018-09-30 | AZ13: 2018-09-30 | BA13: 2018-09-30 | BB13: 2018-12-31 | BC13: 2018-12-31 | BD13: 2018-12-31 | BE13: 2019-03-31 | BF13: 2019-03-31 | BG13: 2019-03-31 | BH13: 2019-06-30 | BI13: 2019-06-30 | BJ13: 2019-06-30 | BK13: 2019-09-30 | BL13: 2019-09-30 | BM13: 2019-09-30 | BN13: 2019-12-31 | BO13: 2019-12-31 | BP13: 2019-12-31 | BQ13: 2020-03-31 | BR13: 2020-03-31 | BS13: 2020-03-31 | BT13: 2020-06-30 | BU13: 2020-06-30 | BV13: 2020-06-30 | BW13: 2020-09-30 | BX13: =EOQTR(BX2) -> 2020-09-30 | BY13: 2020-09-30 | BZ13: 2020-12-31 | CA13: 2020-12-31 | CB13: 2020-12-31 | CC13: 2021-03-31 | CD13: 2021-03-31 | CE13: 2021-03-31 | CF13: 2021-06-30 | CG13: 2021-06-30 | CH13: 2021-06-30 | CI13: 2021-09-30 | CJ13: 2021-09-30 | CK13: 2021-09-30 | CL13: 2021-12-31 | CM13: 2021-12-31 | CN13: 2021-12-31 | CO13: 2022-03-31 | CP13: 2022-03-31 | CQ13: 2022-03-31 | CR13: 2022-06-30 | CS13: 2022-06-30 | CT13: 2022-06-30 | CU13: 2022-09-30 | CV13: 2022-09-30 | CW13: 2022-09-30 | CX13: 2022-12-31 | CY13: 2022-12-31 | CZ13: 2022-12-31 | DA13: 2023-03-31 | DB13: 2023-03-31 | DC13: 2023-03-31 | DD13: 2023-06-30 | DE13: 2023-06-30 | DF13: 2023-06-30 | DG13: 2023-09-30 | DH13: 2023-09-30 | DI13: 2023-09-30 | DJ13: 2023-12-31 | DK13: 2023-12-31 | DL13: 2023-12-31 | DM13: 2024-03-31 | DN13: 2024-03-31 | DO13: 2024-03-31 | DP13: 2024-06-30 | DQ13: 2024-06-30 | DR13: 2024-06-30 | DS13: 2024-09-30 | DT13: 2024-09-30 | DU13: 2024-09-30 | DV13: 2024-12-31 | DW13: 2024-12-31 | DX13: 2024-12-31 | DY13: 2025-03-31 | DZ13: 2025-03-31 | EA13: 2025-03-31 | EB13: 2025-06-30 | EC13: 2025-06-30 | ED13: 2025-06-30 | EE13: 2025-09-30 | EF13: 2025-09-30 | EG13: 2025-09-30 | EH13: 2025-12-31 | EI13: 2025-12-31 | EJ13: =EOQTR(EJ2) -> 2025-12-31 | EK13: 2026-03-31 | EL13: 2026-03-31 | EM13: 2026-03-31 | EN13: 2026-06-30 | EO13: 2026-06-30 | EP13: 2026-06-30 | EQ13: 2026-09-30 | ER13: 2026-09-30 | ES13: 2026-09-30 | ET13: 2026-12-31 | EU13: 2026-12-31 | EV13: 2026-12-31 | EW13: 2027-03-31 | EX13: 2027-03-31 | EY13: 2027-03-31 | EZ13: 2027-06-30 | FA13: 2027-06-30 | FB13: 2027-06-30 | FC13: 2027-09-30 | FD13: 2027-09-30 | FE13: 2027-09-30 | FF13: 2027-12-31 | FG13: 2027-12-31 | FH13: 2027-12-31 | FI13: 2028-03-31 | FJ13: 2028-03-31 | FK13: 2028-03-31 | FL13: 2028-06-30 | FM13: 2028-06-30 | FN13: 2028-06-30 | FO13: 2028-09-30 | FP13: 2028-09-30 | FQ13: 2028-09-30 | FR13: 2028-12-31 | FS13: 2028-12-31 | FT13: 2028-12-31 | FU13: 2029-03-31 | FV13: 2029-03-31 | FW13: 2029-03-31 | FX13: 2029-06-30 | FY13: 2029-06-30 | FZ13: 2029-06-30 | GA13: 2029-09-30 | GB13: 2029-09-30 | GC13: 2029-09-30 | GD13: 2029-12-31 | GE13: 2029-12-31 | GF13: 2029-12-31 | GG13: 2030-03-31 | GH13: 2030-03-31 | GI13: 2030-03-31 | GJ13: 2030-06-30 | GK13: 2030-06-30 | GL13: 2030-06-30 | GM13: 2030-09-30 | GN13: 2030-09-30 | GO13: 2030-09-30 | GP13: 2030-12-31 | GQ13: 2030-12-31 | GR13: 2030-12-31 | GS13: 2031-03-31 | GT13: 2031-03-31 | GU13: 2031-03-31 | GV13: =EOQTR(GV2) -> 2031-06-30 | GW13: 2031-06-30 | GX13: 2031-06-30 | GY13: 2031-09-30 | GZ13: 2031-09-30 | HA13: 2031-09-30 | HB13: 2031-12-31 | HC13: 2031-12-31 | HD13: 2031-12-31 | HE13: 2032-03-31 | HF13: 2032-03-31 | HG13: 2032-03-31 | HH13: 2032-06-30 | HI13: 2032-06-30 | HJ13: 2032-06-30 | HK13: 2032-09-30 | HL13: 2032-09-30 | HM13: 2032-09-30 | HN13: 2032-12-31 | HO13: 2032-12-31 | HP13: 2032-12-31 | HQ13: 2033-03-31 | HR13: 2033-03-31 | HS13: 2033-03-31 | HT13: 2033-06-30 | HU13: 2033-06-30 | HV13: 2033-06-30 | HW13: 2033-09-30 | HX13: 2033-09-30 | HY13: 2033-09-30 | HZ13: 2033-12-31 | IA13: 2033-12-31 | IB13: 2033-12-31 | IC13: 2034-03-31 | ID13: 2034-03-31 | IE13: 2034-03-31 | IF13: 2034-06-30 | IG13: 2034-06-30 | IH13: 2034-06-30 | II13: 2034-09-30 | IJ13: 2034-09-30 | IK13: 2034-09-30 | IL13: 2034-12-31 | IM13: 2034-12-31 | IN13: 2034-12-31 | IO13: 2035-03-31 | IP13: 2035-03-31 | IQ13: 2035-03-31 | IR13: 2035-06-30 | IS13: 2035-06-30 | IT13: 2035-06-30 | IU13: 2035-09-30 | IV13: 2035-09-30 | IW13: 2035-09-30 | IX13: 2035-12-31 | IY13: 2035-12-31 | IZ13: 2035-12-31 | JA13: 2036-03-31 | JB13: 2036-03-31 | JC13: 2036-03-31 | JD13: 2036-06-30 | JE13: 2036-06-30 | JF13: 2036-06-30 | JG13: 2036-09-30 | JH13: =EOQTR(JH2) -> 2036-09-30 | JI13: 2036-09-30 | JJ13: 2036-12-31 | JK13: 2036-12-31 | JL13: 2036-12-31 | JM13: 2037-03-31 | JN13: 2037-03-31 | JO13: 2037-03-31 | JP13: 2037-06-30 | JQ13: 2037-06-30 | JR13: 2037-06-30 | JS13: 2037-09-30 | JT13: 2037-09-30 | JU13: 2037-09-30 | JV13: 2037-12-31 | JW13: 2037-12-31 | JX13: 2037-12-31 | JY13: 2038-03-31 | JZ13: 2038-03-31 | KA13: 2038-03-31 | KB13: 2038-06-30 | KC13: 2038-06-30 | KD13: 2038-06-30 | KE13: 2038-09-30 | KF13: 2038-09-30 | KG13: 2038-09-30 | KH13: 2038-12-31 | KI13: 2038-12-31 | KJ13: 2038-12-31 | KK13: 2039-03-31 | KL13: 2039-03-31 | KM13: 2039-03-31 | KN13: 2039-06-30 | KO13: 2039-06-30 | KP13: 2039-06-30 | KQ13: 2039-09-30 | KR13: 2039-09-30 | KS13: 2039-09-30 | KT13: 2039-12-31 | KU13: 2039-12-31 | KV13: 2039-12-31 | KW13: 2040-03-31 | KX13: 2040-03-31 | KY13: 2040-03-31 | KZ13: 2040-06-30 | LA13: 2040-06-30 | LB13: 2040-06-30 | LC13: 2040-09-30 | LD13: 2040-09-30 | LE13: 2040-09-30 | LF13: 2040-12-31 | LG13: 2040-12-31 | LH13: 2040-12-31 | LI13: 2041-03-31 | LJ13: 2041-03-31 | LK13: 2041-03-31 | LL13: 2041-06-30 | LM13: 2041-06-30 | LN13: 2041-06-30 | LO13: 2041-09-30 | LP13: 2041-09-30 | LQ13: 2041-09-30 | LR13: 2041-12-31 | LS13: 2041-12-31 | LT13: =EOQTR(LT2) -> 2041-12-31 | LU13: 2042-03-31 | LV13: 2042-03-31 | LW13: 2042-03-31 | LX13: 2042-06-30 | LY13: 2042-06-30 | LZ13: 2042-06-30 | MA13: 2042-09-30 | MB13: 2042-09-30 | MC13: 2042-09-30 | MD13: 2042-12-31 | ME13: 2042-12-31 | MF13: 2042-12-31 | MG13: 2043-03-31 | MH13: 2043-03-31 | MI13: 2043-03-31 | MJ13: 2043-06-30 | MK13: 2043-06-30 | ML13: 2043-06-30 | MM13: 2043-09-30 | MN13: 2043-09-30 | MO13: 2043-09-30 | MP13: 2043-12-31 | MQ13: 2043-12-31 | MR13: 2043-12-31 | MS13: 2044-03-31 | MT13: 2044-03-31 | MU13: 2044-03-31 | MV13: 2044-06-30 | MW13: 2044-06-30 | MX13: 2044-06-30 | MY13: 2044-09-30 | MZ13: 2044-09-30 | NA13: 2044-09-30 | NB13: 2044-12-31 | NC13: 2044-12-31 | ND13: 2044-12-31 | NE13: 2045-03-31 | NF13: 2045-03-31 | NG13: 2045-03-31 | NH13: 2045-06-30 | NI13: 2045-06-30 | NJ13: 2045-06-30 | NK13: 2045-09-30 | NL13: 2045-09-30 | NM13: 2045-09-30 | NN13: 2045-12-31 | NO13: 2045-12-31 | NP13: 2045-12-31 | NQ13: 2046-03-31 | NR13: 2046-03-31 | NS13: 2046-03-31 | NT13: 2046-06-30 | NU13: 2046-06-30 | NV13: 2046-06-30 | NW13: 2046-09-30 | NX13: 2046-09-30 | NY13: 2046-09-30 | NZ13: 2046-12-31 | OA13: 2046-12-31 | OB13: 2046-12-31 | OC13: 2047-03-31 | OD13: 2047-03-31 | OE13: 2047-03-31
B14: End of Quarter Switch | K14: =K13=K3 -> TRUE | L14: =L13=L3 -> FALSE | M14: FALSE | N14: TRUE | O14: FALSE | P14: FALSE | Q14: TRUE | R14: FALSE | S14: FALSE | T14: TRUE | U14: FALSE | V14: FALSE | W14: TRUE | X14: FALSE | Y14: FALSE | Z14: TRUE | AA14: FALSE | AB14: FALSE | AC14: TRUE | AD14: FALSE | AE14: FALSE | AF14: TRUE | AG14: FALSE | AH14: FALSE | AI14: TRUE | AJ14: FALSE | AK14: FALSE | AL14: TRUE | AM14: FALSE | AN14: FALSE | AO14: TRUE | AP14: FALSE | AQ14: FALSE | AR14: TRUE | AS14: FALSE | AT14: FALSE | AU14: TRUE | AV14: FALSE | AW14: FALSE | AX14: TRUE | AY14: FALSE | AZ14: FALSE | BA14: TRUE | BB14: FALSE | BC14: FALSE | BD14: TRUE | BE14: FALSE | BF14: FALSE | BG14: TRUE | BH14: FALSE | BI14: FALSE | BJ14: TRUE | BK14: FALSE | BL14: FALSE | BM14: TRUE | BN14: FALSE | BO14: FALSE | BP14: TRUE | BQ14: FALSE | BR14: FALSE | BS14: TRUE | BT14: FALSE | BU14: FALSE | BV14: TRUE | BW14: FALSE | BX14: =BX13=BX3 -> FALSE | BY14: TRUE | BZ14: FALSE | CA14: FALSE | CB14: TRUE | CC14: FALSE | CD14: FALSE | CE14: TRUE | CF14: FALSE | CG14: FALSE | CH14: TRUE | CI14: FALSE | CJ14: FALSE | CK14: TRUE | CL14: FALSE | CM14: FALSE | CN14: TRUE | CO14: FALSE | CP14: FALSE | CQ14: TRUE | CR14: FALSE | CS14: FALSE | CT14: TRUE | CU14: FALSE | CV14: FALSE | CW14: TRUE | CX14: FALSE | CY14: FALSE | CZ14: TRUE | DA14: FALSE | DB14: FALSE | DC14: TRUE | DD14: FALSE | DE14: FALSE | DF14: TRUE | DG14: FALSE | DH14: FALSE | DI14: TRUE | DJ14: FALSE | DK14: FALSE | DL14: TRUE | DM14: FALSE | DN14: FALSE | DO14: TRUE | DP14: FALSE | DQ14: FALSE | DR14: TRUE | DS14: FALSE | DT14: FALSE | DU14: TRUE | DV14: FALSE | DW14: FALSE | DX14: TRUE | DY14: FALSE | DZ14: FALSE | EA14: TRUE | EB14: FALSE | EC14: FALSE | ED14: TRUE | EE14: FALSE | EF14: FALSE | EG14: TRUE | EH14: FALSE | EI14: FALSE | EJ14: =EJ13=EJ3 -> TRUE | EK14: FALSE | EL14: FALSE | EM14: TRUE | EN14: FALSE | EO14: FALSE | EP14: TRUE | EQ14: FALSE | ER14: FALSE | ES14: TRUE | ET14: FALSE | EU14: FALSE | EV14: TRUE | EW14: FALSE | EX14: FALSE | EY14: TRUE | EZ14: FALSE | FA14: FALSE | FB14: TRUE | FC14: FALSE | FD14: FALSE | FE14: TRUE | FF14: FALSE | FG14: FALSE | FH14: TRUE | FI14: FALSE | FJ14: FALSE | FK14: TRUE | FL14: FALSE | FM14: FALSE | FN14: TRUE | FO14: FALSE | FP14: FALSE | FQ14: TRUE | FR14: FALSE | FS14: FALSE | FT14: TRUE | FU14: FALSE | FV14: FALSE | FW14: TRUE | FX14: FALSE | FY14: FALSE | FZ14: TRUE | GA14: FALSE | GB14: FALSE | GC14: TRUE | GD14: FALSE | GE14: FALSE | GF14: TRUE | GG14: FALSE | GH14: FALSE | GI14: TRUE | GJ14: FALSE | GK14: FALSE | GL14: TRUE | GM14: FALSE | GN14: FALSE | GO14: TRUE | GP14: FALSE | GQ14: FALSE | GR14: TRUE | GS14: FALSE | GT14: FALSE | GU14: TRUE | GV14: =GV13=GV3 -> FALSE | GW14: FALSE | GX14: TRUE | GY14: FALSE | GZ14: FALSE | HA14: TRUE | HB14: FALSE | HC14: FALSE | HD14: TRUE | HE14: FALSE | HF14: FALSE | HG14: TRUE | HH14: FALSE | HI14: FALSE | HJ14: TRUE | HK14: FALSE | HL14: FALSE | HM14: TRUE | HN14: FALSE | HO14: FALSE | HP14: TRUE | HQ14: FALSE | HR14: FALSE | HS14: TRUE | HT14: FALSE | HU14: FALSE | HV14: TRUE | HW14: FALSE | HX14: FALSE | HY14: TRUE | HZ14: FALSE | IA14: FALSE | IB14: TRUE | IC14: FALSE | ID14: FALSE | IE14: TRUE | IF14: FALSE | IG14: FALSE | IH14: TRUE | II14: FALSE | IJ14: FALSE | IK14: TRUE | IL14: FALSE | IM14: FALSE | IN14: TRUE | IO14: FALSE | IP14: FALSE | IQ14: TRUE | IR14: FALSE | IS14: FALSE | IT14: TRUE | IU14: FALSE | IV14: FALSE | IW14: TRUE | IX14: FALSE | IY14: FALSE | IZ14: TRUE | JA14: FALSE | JB14: FALSE | JC14: TRUE | JD14: FALSE | JE14: FALSE | JF14: TRUE | JG14: FALSE | JH14: =JH13=JH3 -> FALSE | JI14: TRUE | JJ14: FALSE | JK14: FALSE | JL14: TRUE | JM14: FALSE | JN14: FALSE | JO14: TRUE | JP14: FALSE | JQ14: FALSE | JR14: TRUE | JS14: FALSE | JT14: FALSE | JU14: TRUE | JV14: FALSE | JW14: FALSE | JX14: TRUE | JY14: FALSE | JZ14: FALSE | KA14: TRUE | KB14: FALSE | KC14: FALSE | KD14: TRUE | KE14: FALSE | KF14: FALSE | KG14: TRUE | KH14: FALSE | KI14: FALSE | KJ14: TRUE | KK14: FALSE | KL14: FALSE | KM14: TRUE | KN14: FALSE | KO14: FALSE | KP14: TRUE | KQ14: FALSE | KR14: FALSE | KS14: TRUE | KT14: FALSE | KU14: FALSE | KV14: TRUE | KW14: FALSE | KX14: FALSE | KY14: TRUE | KZ14: FALSE | LA14: FALSE | LB14: TRUE | LC14: FALSE | LD14: FALSE | LE14: TRUE | LF14: FALSE | LG14: FALSE | LH14: TRUE | LI14: FALSE | LJ14: FALSE | LK14: TRUE | LL14: FALSE | LM14: FALSE | LN14: TRUE | LO14: FALSE | LP14: FALSE | LQ14: TRUE | LR14: FALSE | LS14: FALSE | LT14: =LT13=LT3 -> TRUE | LU14: FALSE | LV14: FALSE | LW14: TRUE | LX14: FALSE | LY14: FALSE | LZ14: TRUE | MA14: FALSE | MB14: FALSE | MC14: TRUE | MD14: FALSE | ME14: FALSE | MF14: TRUE | MG14: FALSE | MH14: FALSE | MI14: TRUE | MJ14: FALSE | MK14: FALSE | ML14: TRUE | MM14: FALSE | MN14: FALSE | MO14: TRUE | MP14: FALSE | MQ14: FALSE | MR14: TRUE | MS14: FALSE | MT14: FALSE | MU14: TRUE | MV14: FALSE | MW14: FALSE | MX14: TRUE | MY14: FALSE | MZ14: FALSE | NA14: TRUE | NB14: FALSE | NC14: FALSE | ND14: TRUE | NE14: FALSE | NF14: FALSE | NG14: TRUE | NH14: FALSE | NI14: FALSE | NJ14: TRUE | NK14: FALSE | NL14: FALSE | NM14: TRUE | NN14: FALSE | NO14: FALSE | NP14: TRUE | NQ14: FALSE | NR14: FALSE | NS14: TRUE | NT14: FALSE | NU14: FALSE | NV14: TRUE | NW14: FALSE | NX14: FALSE | NY14: TRUE | NZ14: FALSE | OA14: FALSE | OB14: TRUE | OC14: FALSE | OD14: FALSE | OE14: TRUE
B15: Date for Project Finance Analysis | E15: FY Month | G15: =MONTH(G6) -> 11 | K15: =IF(K4,K3,EOHY(K2,$G$15)) -> 2015-03-31 | L15: =IF(L4,L3,EOHY(L2,$G$15)) -> 2015-04-30 | M15: 2015-05-31 | N15: 2015-06-30 | O15: 2015-07-31 | P15: 2015-08-31 | Q15: 2015-09-30 | R15: 2015-10-31 | S15: 2015-11-30 | T15: 2015-12-31 | U15: 2016-01-31 | V15: 2016-02-29 | W15: 2016-03-31 | X15: 2016-04-30 | Y15: 2016-05-31 | Z15: 2016-06-30 | AA15: 2016-07-31 | AB15: 2016-08-31 | AC15: 2016-09-30 | AD15: 2016-10-31 | AE15: 2016-11-30 | AF15: 2016-12-31 | AG15: 2017-01-31 | AH15: 2017-02-28 | AI15: 2017-03-31 | AJ15: 2017-04-30 | AK15: 2017-05-31 | AL15: 2017-06-30 | AM15: 2017-07-31 | AN15: 2017-08-31 | AO15: 2017-09-30 | AP15: 2017-10-31 | AQ15: 2017-11-30 | AR15: 2017-12-31 | AS15: 2018-01-31 | AT15: 2018-02-28 | AU15: 2018-03-31 | AV15: 2018-04-30 | AW15: 2018-05-31 | AX15: 2018-06-30 | AY15: 2018-07-31 | AZ15: 2018-08-31 | BA15: 2018-09-30 | BB15: 2018-10-31 | BC15: 2019-04-30 | BD15: 2019-04-30 | BE15: 2019-04-30 | BF15: 2019-04-30 | BG15: 2019-04-30 | BH15: 2019-04-30 | BI15: 2019-10-31 | BJ15: 2019-10-31 | BK15: 2019-10-31 | BL15: 2019-10-31 | BM15: 2019-10-31 | BN15: 2019-10-31 | BO15: 2020-04-30 | BP15: 2020-04-30 | BQ15: 2020-04-30 | BR15: 2020-04-30 | BS15: 2020-04-30 | BT15: 2020-04-30 | BU15: 2020-10-31 | BV15: 2020-10-31 | BW15: 2020-10-31 | BX15: =IF(BX4,BX3,EOHY(BX2,$G$15)) -> 2020-10-31 | BY15: 2020-10-31 | BZ15: 2020-10-31 | CA15: 2021-04-30 | CB15: 2021-04-30 | CC15: 2021-04-30 | CD15: 2021-04-30 | CE15: 2021-04-30 | CF15: 2021-04-30 | CG15: 2021-10-31 | CH15: 2021-10-31 | CI15: 2021-10-31 | CJ15: 2021-10-31 | CK15: 2021-10-31 | CL15: 2021-10-31 | CM15: 2022-04-30 | CN15: 2022-04-30 | CO15: 2022-04-30 | CP15: 2022-04-30 | CQ15: 2022-04-30 | CR15: 2022-04-30 | CS15: 2022-10-31 | CT15: 2022-10-31 | CU15: 2022-10-31 | CV15: 2022-10-31 | CW15: 2022-10-31 | CX15: 2022-10-31 | CY15: 2023-04-30 | CZ15: 2023-04-30 | DA15: 2023-04-30 | DB15: 2023-04-30 | DC15: 2023-04-30 | DD15: 2023-04-30 | DE15: 2023-10-31 | DF15: 2023-10-31 | DG15: 2023-10-31 | DH15: 2023-10-31 | DI15: 2023-10-31 | DJ15: 2023-10-31 | DK15: 2024-04-30 | DL15: 2024-04-30 | DM15: 2024-04-30 | DN15: 2024-04-30 | DO15: 2024-04-30 | DP15: 2024-04-30 | DQ15: 2024-10-31 | DR15: 2024-10-31 | DS15: 2024-10-31 | DT15: 2024-10-31 | DU15: 2024-10-31 | DV15: 2024-10-31 | DW15: 2025-04-30 | DX15: 2025-04-30 | DY15: 2025-04-30 | DZ15: 2025-04-30 | EA15: 2025-04-30 | EB15: 2025-04-30 | EC15: 2025-10-31 | ED15: 2025-10-31 | EE15: 2025-10-31 | EF15: 2025-10-31 | EG15: 2025-10-31 | EH15: 2025-10-31 | EI15: 2026-04-30 | EJ15: =IF(EJ4,EJ3,EOHY(EJ2,$G$15)) -> 2026-04-30 | EK15: 2026-04-30 | EL15: 2026-04-30 | EM15: 2026-04-30 | EN15: 2026-04-30 | EO15: 2026-10-31 | EP15: 2026-10-31 | EQ15: 2026-10-31 | ER15: 2026-10-31 | ES15: 2026-10-31 | ET15: 2026-10-31 | EU15: 2027-04-30 | EV15: 2027-04-30 | EW15: 2027-04-30 | EX15: 2027-04-30 | EY15: 2027-04-30 | EZ15: 2027-04-30 | FA15: 2027-10-31 | FB15: 2027-10-31 | FC15: 2027-10-31 | FD15: 2027-10-31 | FE15: 2027-10-31 | FF15: 2027-10-31 | FG15: 2028-04-30 | FH15: 2028-04-30 | FI15: 2028-04-30 | FJ15: 2028-04-30 | FK15: 2028-04-30 | FL15: 2028-04-30 | FM15: 2028-10-31 | FN15: 2028-10-31 | FO15: 2028-10-31 | FP15: 2028-10-31 | FQ15: 2028-10-31 | FR15: 2028-10-31 | FS15: 2029-04-30 | FT15: 2029-04-30 | FU15: 2029-04-30 | FV15: 2029-04-30 | FW15: 2029-04-30 | FX15: 2029-04-30 | FY15: 2029-10-31 | FZ15: 2029-10-31 | GA15: 2029-10-31 | GB15: 2029-10-31 | GC15: 2029-10-31 | GD15: 2029-10-31 | GE15: 2030-04-30 | GF15: 2030-04-30 | GG15: 2030-04-30 | GH15: 2030-04-30 | GI15: 2030-04-30 | GJ15: 2030-04-30 | GK15: 2030-10-31 | GL15: 2030-10-31 | GM15: 2030-10-31 | GN15: 2030-10-31 | GO15: 2030-10-31 | GP15: 2030-10-31 | GQ15: 2031-04-30 | GR15: 2031-04-30 | GS15: 2031-04-30 | GT15: 2031-04-30 | GU15: 2031-04-30 | GV15: =IF(GV4,GV3,EOHY(GV2,$G$15)) -> 2031-04-30 | GW15: 2031-10-31 | GX15: 2031-10-31 | GY15: 2031-10-31 | GZ15: 2031-10-31 | HA15: 2031-10-31 | HB15: 2031-10-31 | HC15: 2032-04-30 | HD15: 2032-04-30 | HE15: 2032-04-30 | HF15: 2032-04-30 | HG15: 2032-04-30 | HH15: 2032-04-30 | HI15: 2032-10-31 | HJ15: 2032-10-31 | HK15: 2032-10-31 | HL15: 2032-10-31 | HM15: 2032-10-31 | HN15: 2032-10-31 | HO15: 2033-04-30 | HP15: 2033-04-30 | HQ15: 2033-04-30 | HR15: 2033-04-30 | HS15: 2033-04-30 | HT15: 2033-04-30 | HU15: 2033-10-31 | HV15: 2033-10-31 | HW15: 2033-10-31 | HX15: 2033-10-31 | HY15: 2033-10-31 | HZ15: 2033-10-31 | IA15: 2034-04-30 | IB15: 2034-04-30 | IC15: 2034-04-30 | ID15: 2034-04-30 | IE15: 2034-04-30 | IF15: 2034-04-30 | IG15: 2034-10-31 | IH15: 2034-10-31 | II15: 2034-10-31 | IJ15: 2034-10-31 | IK15: 2034-10-31 | IL15: 2034-10-31 | IM15: 2035-04-30 | IN15: 2035-04-30 | IO15: 2035-04-30 | IP15: 2035-04-30 | IQ15: 2035-04-30 | IR15: 2035-04-30 | IS15: 2035-10-31 | IT15: 2035-10-31 | IU15: 2035-10-31 | IV15: 2035-10-31 | IW15: 2035-10-31 | IX15: 2035-10-31 | IY15: 2036-04-30 | IZ15: 2036-04-30 | JA15: 2036-04-30 | JB15: 2036-04-30 | JC15: 2036-04-30 | JD15: 2036-04-30 | JE15: 2036-10-31 | JF15: 2036-10-31 | JG15: 2036-10-31 | JH15: =IF(JH4,JH3,EOHY(JH2,$G$15)) -> 2036-10-31 | JI15: 2036-10-31 | JJ15: 2036-10-31 | JK15: 2037-04-30 | JL15: 2037-04-30 | JM15: 2037-04-30 | JN15: 2037-04-30 | JO15: 2037-04-30 | JP15: 2037-04-30 | JQ15: 2037-10-31 | JR15: 2037-10-31 | JS15: 2037-10-31 | JT15: 2037-10-31 | JU15: 2037-10-31 | JV15: 2037-10-31 | JW15: 2038-04-30 | JX15: 2038-04-30 | JY15: 2038-04-30 | JZ15: 2038-04-30 | KA15: 2038-04-30 | KB15: 2038-04-30 | KC15: 2038-10-31 | KD15: 2038-10-31 | KE15: 2038-10-31 | KF15: 2038-10-31 | KG15: 2038-10-31 | KH15: 2038-10-31 | KI15: 2039-04-30 | KJ15: 2039-04-30 | KK15: 2039-04-30 | KL15: 2039-04-30 | KM15: 2039-04-30 | KN15: 2039-04-30 | KO15: 2039-10-31 | KP15: 2039-10-31 | KQ15: 2039-10-31 | KR15: 2039-10-31 | KS15: 2039-10-31 | KT15: 2039-10-31 | KU15: 2040-04-30 | KV15: 2040-04-30 | KW15: 2040-04-30 | KX15: 2040-04-30 | KY15: 2040-04-30 | KZ15: 2040-04-30 | LA15: 2040-10-31 | LB15: 2040-10-31 | LC15: 2040-10-31 | LD15: 2040-10-31 | LE15: 2040-10-31 | LF15: 2040-10-31 | LG15: 2041-04-30 | LH15: 2041-04-30 | LI15: 2041-04-30 | LJ15: 2041-04-30 | LK15: 2041-04-30 | LL15: 2041-04-30 | LM15: 2041-10-31 | LN15: 2041-10-31 | LO15: 2041-10-31 | LP15: 2041-10-31 | LQ15: 2041-10-31 | LR15: 2041-10-31 | LS15: 2042-04-30 | LT15: =IF(LT4,LT3,EOHY(LT2,$G$15)) -> 2042-04-30 | LU15: 2042-04-30 | LV15: 2042-04-30 | LW15: 2042-04-30 | LX15: 2042-04-30 | LY15: 2042-10-31 | LZ15: 2042-10-31 | MA15: 2042-10-31 | MB15: 2042-10-31 | MC15: 2042-10-31 | MD15: 2042-10-31 | ME15: 2043-04-30 | MF15: 2043-04-30 | MG15: 2043-04-30 | MH15: 2043-04-30 | MI15: 2043-04-30 | MJ15: 2043-04-30 | MK15: 2043-10-31 | ML15: 2043-10-31 | MM15: 2043-10-31 | MN15: 2043-10-31 | MO15: 2043-10-31 | MP15: 2043-10-31 | MQ15: 2044-04-30 | MR15: 2044-04-30 | MS15: 2044-04-30 | MT15: 2044-04-30 | MU15: 2044-04-30 | MV15: 2044-04-30 | MW15: 2044-10-31 | MX15: 2044-10-31 | MY15: 2044-10-31 | MZ15: 2044-10-31 | NA15: 2044-10-31 | NB15: 2044-10-31 | NC15: 2045-04-30 | ND15: 2045-04-30 | NE15: 2045-04-30 | NF15: 2045-04-30 | NG15: 2045-04-30 | NH15: 2045-04-30 | NI15: 2045-10-31 | NJ15: 2045-10-31 | NK15: 2045-10-31 | NL15: 2045-10-31 | NM15: 2045-10-31 | NN15: 2045-10-31 | NO15: 2046-04-30 | NP15: 2046-04-30 | NQ15: 2046-04-30 | NR15: 2046-04-30 | NS15: 2046-04-30 | NT15: 2046-04-30 | NU15: 2046-10-31 | NV15: 2046-10-31 | NW15: 2046-10-31 | NX15: 2046-10-31 | NY15: 2046-10-31 | NZ15: 2046-10-31 | OA15: 2047-04-30 | OB15: 2047-04-30 | OC15: 2047-04-30 | OD15: 2047-04-30 | OE15: 2047-04-30
A17: Assumptions
B18: Timing Assumptions | K18: Pre-tax IRR | L18: =I131 -> 0.06634506508
C19: Model Start | E19: date | F19: 2015-03-01 | K19: After Tax IRR | L19: =I158 -> 0.05680203971
C20: Commercial Operation | E20: date | F20: 2018-11-01
C21: Construction Period | E21: months | F21: =DAYS360(F19,F20)/30 -> 44
C22: Plant Life | E22: years | F22: 25
C23: Decomissioning | E23: date | F23: =EDATE(F20,F22*12) -> 2043-11-01
B25: Operating Assumptions
C26: Capacity | E26: MW | F26: 300
C28: Capacity Factor | E28: Code Number | F28: 2 | H28: 1 | I28: 2 | J28: 3 | K28: 4
E29: % | F29: Month | G29: Date | H29: P25 | I29: P50 | J29: P75 | K29: P95
F30: 0 | G30: =EDATE($F$20,F30) -> 2018-11-01 | H30: 0.35 | I30: 0.33 | J30: 0.3 | K30: 0.25
F31: 12 | G31: =EDATE($F$20,F31) -> 2019-11-01 | H31: 0.36 | I31: 0.35 | J31: 0.3 | K31: 0.26
F32: 50 | G32: =EDATE($F$20,F32) -> 2023-01-01 | H32: 0.365 | I32: 0.355 | J32: 0.3 | K32: 0.255
F33: 120 | G33: =EDATE($F$20,F33) -> 2028-11-01 | H33: 0.365 | I33: 0.34 | J33: 0.3 | K33: 0.253
F34: 250 | G34: =EDATE($F$20,F34) -> 2039-09-01 | H34: 0.365 | I34: 0.33 | J34: 0.3 | K34: 0.24
B36: Capital Expenditures
C37: Capex/kW | E37: USD/kW | F37: 2000
C38: Construction Year | G38: 1 | H38: 2 | I38: 3 | J38: 4
C39: Percent | G39: 0.2 | H39: 0.65 | I39: =1-SUM(G39:H39) -> 0.15 | J39: 0
B41: Revenue Assumptions
C42: Merchant Revenues | E42: USD/MWH | F42: 70
C44: Year | G44: 2015 | H44: 2016 | I44: 2017 | J44: 2018 | K44: 2019 | L44: 2020 | M44: 2021 | N44: 2022 | O44: 2023
C45: Scenario Number | E45: Code | F45: 2
D46: Base Case Revenue Growth | G46: -0.03 | H46: 0 | I46: 0.01 | J46: 0.025 | K46: 0.02 | L46: 0.015 | M46: 0.015 | N46: 0.015 | O46: 0.015
D47: Low Case Growth | G47: -0.04 | H47: -0.01 | I47: 0 | J47: 0 | K47: 0.01 | L47: 0.01 | M47: 0.01 | N47: 0.015 | O47: 0.015
D48: High Case Growth | G48: 0 | H48: 0.015 | I48: 0.02 | J48: 0.025 | K48: 0.025 | L48: 0.025 | M48: 0.025 | N48: 0.015 | O48: 0.015
D50: =INDEX(D46:D48,$F$45) -> Low Case Growth | G50: =INDEX(G46:G48,$F$45) -> -0.04 | H50: -0.01 | I50: 0 | J50: 0 | K50: 0.01 | L50: 0.01 | M50: 0.01 | N50: 0.015 | O50: 0.015
B52: Operating Expenses | E52: Base Period | F52: 2016-01-01
C53: Fixed OM | F53: Age | G53: USD/kW-year
F54: 1 | G54: 35
F55: 10 | G55: 38
F56: 15 | G56: 45
C58: O&M Escalation (General Inflation) | G58: 2015 | H58: 2016 | I58: 2017 | J58: 2018 | K58: 2019 | L58: 2020 | M58: 2021 | N58: 2022 | O58: 2023
C59: Scenario Number | E59: Code | F59: 2
D60: Base Case Inflation Case | G60: 0.015 | H60: 0.02 | I60: 0.02 | J60: 0.02 | K60: 0.02 | L60: 0.03 | M60: 0.03 | N60: 0.03 | O60: 0.03
D61: Low Inflation Case | G61: 0 | H61: 0.002 | I61: 0.005 | J61: 0.01 | K61: 0.01 | L61: 0.01 | M61: 0.01 | N61: 0.01 | O61: 0.01
D62: High Inflation Case | G62: 0.015 | H62: 0.0175 | I62: 0.019 | J62: 0.025 | K62: 0.03 | L62: 0.03 | M62: 0.03 | N62: 0.03 | O62: 0.03
D64: =INDEX(D60:D62,$F$59) -> Low Inflation Case | G64: =INDEX(G60:G62,$F$59) -> 0 | H64: 0.002 | I64: 0.005 | J64: 0.01 | K64: 0.01 | L64: 0.01 | M64: 0.01 | N64: 0.01 | O64: 0.01
C66: Working Capital
D67: Days Receivables | E67: Days | F67: 45
D68: Days Payables | E68: Days | F68: 20
B70: Deprecaition and Tax Assumptions
C71: Income Tax Rate | E71: % | F71: 0.25
C73: Tax Life | E73: Years | F73: 10
C74: Declining Balance Factor | E74: Times | F74: 1.5
C76: Year | G76: 0 | H76: 1 | I76: 2 | J76: 3 | K76: 4 | L76: 5 | M76: 6 | N76: 7 | O76: 8 | P76: 9 | Q76: 10 | R76: 11 | S76: 12 | T76: 13 | U76: 14 | V76: 15
C77: Rate | F77: =SUM(G77:V77) -> 1 | G77: =IF(G76<=$F$73,VDB(1,0,$F$73,F76,G76)) -> 0 | H77: =IF(H76<=$F$73,VDB(1,0,$F$73,G76,H76)) -> 0.2 | I77: 0.16 | J77: 0.128 | K77: 0.1024 | L77: 0.08192 | M77: 0.065536 | N77: 0.065536 | O77: 0.065536 | P77: 0.065536 | Q77: 0.065536 | R77: FALSE | S77: FALSE | T77: FALSE | U77: FALSE | V77: FALSE
A80: Capacity, Output and Capital Expenditures
B81: Plant Capacity | E81: MW | F81: Total Cap | G81: =F26 -> 300 | K81: =$G$81*K5 -> 0 | L81: 0 | M81: 0 | N81: 0 | O81: 0 | P81: 0 | Q81: 0 | R81: 0 | S81: 0 | T81: 0 | U81: 0 | V81: 0 | W81: 0 | X81: 0 | Y81: 0 | Z81: 0 | AA81: 0 | AB81: 0 | AC81: 0 | AD81: 0 | AE81: 0 | AF81: 0 | AG81: 0 | AH81: 0 | AI81: 0 | AJ81: 0 | AK81: 0 | AL81: 0 | AM81: 0 | AN81: 0 | AO81: 0 | AP81: 0 | AQ81: 0 | AR81: 0 | AS81: 0 | AT81: 0 | AU81: 0 | AV81: 0 | AW81: 0 | AX81: 0 | AY81: 0 | AZ81: 0 | BA81: 0 | BB81: 0 | BC81: 300 | BD81: 300 | BE81: 300 | BF81: 300 | BG81: 300 | BH81: 300 | BI81: 300 | BJ81: 300 | BK81: 300 | BL81: 300 | BM81: 300 | BN81: 300 | BO81: 300 | BP81: 300 | BQ81: 300 | BR81: 300 | BS81: 300 | BT81: 300 | BU81: 300 | BV81: 300 | BW81: =$G$81*BW5 -> 300 | BX81: 300 | BY81: 300 | BZ81: 300 | CA81: 300 | CB81: 300 | CC81: 300 | CD81: 300 | CE81: 300 | CF81: 300 | CG81: 300 | CH81: 300 | CI81: 300 | CJ81: 300 | CK81: 300 | CL81: 300 | CM81: 300 | CN81: 300 | CO81: 300 | CP81: 300 | CQ81: 300 | CR81: 300 | CS81: 300 | CT81: 300 | CU81: 300 | CV81: 300 | CW81: 300 | CX81: 300 | CY81: 300 | CZ81: 300 | DA81: 300 | DB81: 300 | DC81: 300 | DD81: 300 | DE81: 300 | DF81: 300 | DG81: 300 | DH81: 300 | DI81: 300 | DJ81: 300 | DK81: 300 | DL81: 300 | DM81: 300 | DN81: 300 | DO81: 300 | DP81: 300 | DQ81: 300 | DR81: 300 | DS81: 300 | DT81: 300 | DU81: 300 | DV81: 300 | DW81: 300 | DX81: 300 | DY81: 300 | DZ81: 300 | EA81: 300 | EB81: 300 | EC81: 300 | ED81: 300 | EE81: 300 | EF81: 300 | EG81: 300 | EH81: 300 | EI81: =$G$81*EI5 -> 300 | EJ81: 300 | EK81: 300 | EL81: 300 | EM81: 300 | EN81: 300 | EO81: 300 | EP81: 300 | EQ81: 300 | ER81: 300 | ES81: 300 | ET81: 300 | EU81: 300 | EV81: 300 | EW81: 300 | EX81: 300 | EY81: 300 | EZ81: 300 | FA81: 300 | FB81: 300 | FC81: 300 | FD81: 300 | FE81: 300 | FF81: 300 | FG81: 300 | FH81: 300 | FI81: 300 | FJ81: 300 | FK81: 300 | FL81: 300 | FM81: 300 | FN81: 300 | FO81: 300 | FP81: 300 | FQ81: 300 | FR81: 300 | FS81: 300 | FT81: 300 | FU81: 300 | FV81: 300 | FW81: 300 | FX81: 300 | FY81: 300 | FZ81: 300 | GA81: 300 | GB81: 300 | GC81: 300 | GD81: 300 | GE81: 300 | GF81: 300 | GG81: 300 | GH81: 300 | GI81: 300 | GJ81: 300 | GK81: 300 | GL81: 300 | GM81: 300 | GN81: 300 | GO81: 300 | GP81: 300 | GQ81: 300 | GR81: 300 | GS81: 300 | GT81: 300 | GU81: =$G$81*GU5 -> 300 | GV81: 300 | GW81: 300 | GX81: 300 | GY81: 300 | GZ81: 300 | HA81: 300 | HB81: 300 | HC81: 300 | HD81: 300 | HE81: 300 | HF81: 300 | HG81: 300 | HH81: 300 | HI81: 300 | HJ81: 300 | HK81: 300 | HL81: 300 | HM81: 300 | HN81: 300 | HO81: 300 | HP81: 300 | HQ81: 300 | HR81: 300 | HS81: 300 | HT81: 300 | HU81: 300 | HV81: 300 | HW81: 300 | HX81: 300 | HY81: 300 | HZ81: 300 | IA81: 300 | IB81: 300 | IC81: 300 | ID81: 300 | IE81: 300 | IF81: 300 | IG81: 300 | IH81: 300 | II81: 300 | IJ81: 300 | IK81: 300 | IL81: 300 | IM81: 300 | IN81: 300 | IO81: 300 | IP81: 300 | IQ81: 300 | IR81: 300 | IS81: 300 | IT81: 300 | IU81: 300 | IV81: 300 | IW81: 300 | IX81: 300 | IY81: 300 | IZ81: 300 | JA81: 300 | JB81: 300 | JC81: 300 | JD81: 300 | JE81: 300 | JF81: 300 | JG81: =$G$81*JG5 -> 300 | JH81: 300 | JI81: 300 | JJ81: 300 | JK81: 300 | JL81: 300 | JM81: 300 | JN81: 300 | JO81: 300 | JP81: 300 | JQ81: 300 | JR81: 300 | JS81: 300 | JT81: 300 | JU81: 300 | JV81: 300 | JW81: 300 | JX81: 300 | JY81: 300 | JZ81: 300 | KA81: 300 | KB81: 300 | KC81: 300 | KD81: 300 | KE81: 300 | KF81: 300 | KG81: 300 | KH81: 300 | KI81: 300 | KJ81: 300 | KK81: 300 | KL81: 300 | KM81: 300 | KN81: 300 | KO81: 300 | KP81: 300 | KQ81: 300 | KR81: 300 | KS81: 300 | KT81: 300 | KU81: 300 | KV81: 300 | KW81: 300 | KX81: 300 | KY81: 300 | KZ81: 300 | LA81: 300 | LB81: 300 | LC81: 300 | LD81: 300 | LE81: 300 | LF81: 300 | LG81: 300 | LH81: 300 | LI81: 300 | LJ81: 300 | LK81: 300 | LL81: 300 | LM81: 300 | LN81: 300 | LO81: 300 | LP81: 300 | LQ81: 300 | LR81: 300 | LS81: =$G$81*LS5 -> 300 | LT81: 300 | LU81: 300 | LV81: 300 | LW81: 300 | LX81: 300 | LY81: 300 | LZ81: 300 | MA81: 300 | MB81: 300 | MC81: 300 | MD81: 300 | ME81: 300 | MF81: 300 | MG81: 300 | MH81: 300 | MI81: 300 | MJ81: 300 | MK81: 300 | ML81: 300 | MM81: 300 | MN81: 300 | MO81: 300 | MP81: 300 | MQ81: 0 | MR81: 0 | MS81: 0 | MT81: 0 | MU81: 0 | MV81: 0 | MW81: 0 | MX81: 0 | MY81: 0 | MZ81: 0 | NA81: 0 | NB81: 0 | NC81: 0 | ND81: 0 | NE81: 0 | NF81: 0 | NG81: 0 | NH81: 0 | NI81: 0 | NJ81: 0 | NK81: 0 | NL81: 0 | NM81: 0 | NN81: 0 | NO81: 0 | NP81: 0 | NQ81: 0 | NR81: 0 | NS81: 0 | NT81: 0 | NU81: 0 | NV81: 0 | NW81: 0 | NX81: 0 | NY81: 0 | NZ81: 0 | OA81: 0 | OB81: 0 | OC81: 0 | OD81: 0 | OE81: 0
B82: Capacity Factor | E82: %
C83: Row Number | K83: =MATCH(K2,$G$30:$G$34,1) ->  | BC83: 1 | BD83: 1 | BE83: 1 | BF83: 1 | BG83: 1 | BH83: 1 | BI83: 1 | BJ83: 1 | BK83: 1 | BL83: 1 | BM83: 1 | BN83: 1 | BO83: 2 | BP83: 2 | BQ83: 2 | BR83: 2 | BS83: 2 | BT83: 2 | BU83: 2 | BV83: 2 | BW83: =MATCH(BW2,$G$30:$G$34,1) -> 2 | BX83: 2 | BY83: 2 | BZ83: 2 | CA83: 2 | CB83: 2 | CC83: 2 | CD83: 2 | CE83: 2 | CF83: 2 | CG83: 2 | CH83: 2 | CI83: 2 | CJ83: 2 | CK83: 2 | CL83: 2 | CM83: 2 | CN83: 2 | CO83: 2 | CP83: 2 | CQ83: 2 | CR83: 2 | CS83: 2 | CT83: 2 | CU83: 2 | CV83: 2 | CW83: 2 | CX83: 2 | CY83: 2 | CZ83: 2 | DA83: 3 | DB83: 3 | DC83: 3 | DD83: 3 | DE83: 3 | DF83: 3 | DG83: 3 | DH83: 3 | DI83: 3 | DJ83: 3 | DK83: 3 | DL83: 3 | DM83: 3 | DN83: 3 | DO83: 3 | DP83: 3 | DQ83: 3 | DR83: 3 | DS83: 3 | DT83: 3 | DU83: 3 | DV83: 3 | DW83: 3 | DX83: 3 | DY83: 3 | DZ83: 3 | EA83: 3 | EB83: 3 | EC83: 3 | ED83: 3 | EE83: 3 | EF83: 3 | EG83: 3 | EH83: 3 | EI83: =MATCH(EI2,$G$30:$G$34,1) -> 3 | EJ83: 3 | EK83: 3 | EL83: 3 | EM83: 3 | EN83: 3 | EO83: 3 | EP83: 3 | EQ83: 3 | ER83: 3 | ES83: 3 | ET83: 3 | EU83: 3 | EV83: 3 | EW83: 3 | EX83: 3 | EY83: 3 | EZ83: 3 | FA83: 3 | FB83: 3 | FC83: 3 | FD83: 3 | FE83: 3 | FF83: 3 | FG83: 3 | FH83: 3 | FI83: 3 | FJ83: 3 | FK83: 3 | FL83: 3 | FM83: 3 | FN83: 3 | FO83: 3 | FP83: 3 | FQ83: 3 | FR83: 3 | FS83: 4 | FT83: 4 | FU83: 4 | FV83: 4 | FW83: 4 | FX83: 4 | FY83: 4 | FZ83: 4 | GA83: 4 | GB83: 4 | GC83: 4 | GD83: 4 | GE83: 4 | GF83: 4 | GG83: 4 | GH83: 4 | GI83: 4 | GJ83: 4 | GK83: 4 | GL83: 4 | GM83: 4 | GN83: 4 | GO83: 4 | GP83: 4 | GQ83: 4 | GR83: 4 | GS83: 4 | GT83: 4 | GU83: =MATCH(GU2,$G$30:$G$34,1) -> 4 | GV83: 4 | GW83: 4 | GX83: 4 | GY83: 4 | GZ83: 4 | HA83: 4 | HB83: 4 | HC83: 4 | HD83: 4 | HE83: 4 | HF83: 4 | HG83: 4 | HH83: 4 | HI83: 4 | HJ83: 4 | HK83: 4 | HL83: 4 | HM83: 4 | HN83: 4 | HO83: 4 | HP83: 4 | HQ83: 4 | HR83: 4 | HS83: 4 | HT83: 4 | HU83: 4 | HV83: 4 | HW83: 4 | HX83: 4 | HY83: 4 | HZ83: 4 | IA83: 4 | IB83: 4 | IC83: 4 | ID83: 4 | IE83: 4 | IF83: 4 | IG83: 4 | IH83: 4 | II83: 4 | IJ83: 4 | IK83: 4 | IL83: 4 | IM83: 4 | IN83: 4 | IO83: 4 | IP83: 4 | IQ83: 4 | IR83: 4 | IS83: 4 | IT83: 4 | IU83: 4 | IV83: 4 | IW83: 4 | IX83: 4 | IY83: 4 | IZ83: 4 | JA83: 4 | JB83: 4 | JC83: 4 | JD83: 4 | JE83: 4 | JF83: 4 | JG83: =MATCH(JG2,$G$30:$G$34,1) -> 4 | JH83: 4 | JI83: 4 | JJ83: 4 | JK83: 4 | JL83: 4 | JM83: 4 | JN83: 4 | JO83: 4 | JP83: 4 | JQ83: 4 | JR83: 4 | JS83: 4 | JT83: 4 | JU83: 4 | JV83: 4 | JW83: 4 | JX83: 4 | JY83: 4 | JZ83: 4 | KA83: 4 | KB83: 4 | KC83: 4 | KD83: 4 | KE83: 4 | KF83: 4 | KG83: 4 | KH83: 4 | KI83: 4 | KJ83: 4 | KK83: 4 | KL83: 4 | KM83: 4 | KN83: 4 | KO83: 4 | KP83: 4 | KQ83: 4 | KR83: 4 | KS83: 5 | KT83: 5 | KU83: 5 | KV83: 5 | KW83: 5 | KX83: 5 | KY83: 5 | KZ83: 5 | LA83: 5 | LB83: 5 | LC83: 5 | LD83: 5 | LE83: 5 | LF83: 5 | LG83: 5 | LH83: 5 | LI83: 5 | LJ83: 5 | LK83: 5 | LL83: 5 | LM83: 5 | LN83: 5 | LO83: 5 | LP83: 5 | LQ83: 5 | LR83: 5 | LS83: =MATCH(LS2,$G$30:$G$34,1) -> 5 | LT83: 5 | LU83: 5 | LV83: 5 | LW83: 5 | LX83: 5 | LY83: 5 | LZ83: 5 | MA83: 5 | MB83: 5 | MC83: 5 | MD83: 5 | ME83: 5 | MF83: 5 | MG83: 5 | MH83: 5 | MI83: 5 | MJ83: 5 | MK83: 5 | ML83: 5 | MM83: 5 | MN83: 5 | MO83: 5 | MP83: 5 | MQ83: 5 | MR83: 5 | MS83: 5 | MT83: 5 | MU83: 5 | MV83: 5 | MW83: 5 | MX83: 5 | MY83: 5 | MZ83: 5 | NA83: 5 | NB83: 5 | NC83: 5 | ND83: 5 | NE83: 5 | NF83: 5 | NG83: 5 | NH83: 5 | NI83: 5 | NJ83: 5 | NK83: 5 | NL83: 5 | NM83: 5 | NN83: 5 | NO83: 5 | NP83: 5 | NQ83: 5 | NR83: 5 | NS83: 5 | NT83: 5 | NU83: 5 | NV83: 5 | NW83: 5 | NX83: 5 | NY83: 5 | NZ83: 5 | OA83: 5 | OB83: 5 | OC83: 5 | OD83: 5 | OE83: 5
C84: Capacity Factor | K84: =INDEX($H$30:$K$34,K83,$F$28) ->  | L84: =INDEX($H$30:$K$34,L83,$F$28) ->  | BC84: 0.33 | BD84: 0.33 | BE84: 0.33 | BF84: 0.33 | BG84: 0.33 | BH84: 0.33 | BI84: 0.33 | BJ84: 0.33 | BK84: 0.33 | BL84: 0.33 | BM84: 0.33 | BN84: 0.33 | BO84: 0.35 | BP84: 0.35 | BQ84: 0.35 | BR84: 0.35 | BS84: 0.35 | BT84: 0.35 | BU84: 0.35 | BV84: 0.35 | BW84: 0.35 | BX84: =INDEX($H$30:$K$34,BX83,$F$28) -> 0.35 | BY84: 0.35 | BZ84: 0.35 | CA84: 0.35 | CB84: 0.35 | CC84: 0.35 | CD84: 0.35 | CE84: 0.35 | CF84: 0.35 | CG84: 0.35 | CH84: 0.35 | CI84: 0.35 | CJ84: 0.35 | CK84: 0.35 | CL84: 0.35 | CM84: 0.35 | CN84: 0.35 | CO84: 0.35 | CP84: 0.35 | CQ84: 0.35 | CR84: 0.35 | CS84: 0.35 | CT84: 0.35 | CU84: 0.35 | CV84: 0.35 | CW84: 0.35 | CX84: 0.35 | CY84: 0.35 | CZ84: 0.35 | DA84: 0.355 | DB84: 0.355 | DC84: 0.355 | DD84: 0.355 | DE84: 0.355 | DF84: 0.355 | DG84: 0.355 | DH84: 0.355 | DI84: 0.355 | DJ84: 0.355 | DK84: 0.355 | DL84: 0.355 | DM84: 0.355 | DN84: 0.355 | DO84: 0.355 | DP84: 0.355 | DQ84: 0.355 | DR84: 0.355 | DS84: 0.355 | DT84: 0.355 | DU84: 0.355 | DV84: 0.355 | DW84: 0.355 | DX84: 0.355 | DY84: 0.355 | DZ84: 0.355 | EA84: 0.355 | EB84: 0.355 | EC84: 0.355 | ED84: 0.355 | EE84: 0.355 | EF84: 0.355 | EG84: 0.355 | EH84: 0.355 | EI84: 0.355 | EJ84: =INDEX($H$30:$K$34,EJ83,$F$28) -> 0.355 | EK84: 0.355 | EL84: 0.355 | EM84: 0.355 | EN84: 0.355 | EO84: 0.355 | EP84: 0.355 | EQ84: 0.355 | ER84: 0.355 | ES84: 0.355 | ET84: 0.355 | EU84: 0.355 | EV84: 0.355 | EW84: 0.355 | EX84: 0.355 | EY84: 0.355 | EZ84: 0.355 | FA84: 0.355 | FB84: 0.355 | FC84: 0.355 | FD84: 0.355 | FE84: 0.355 | FF84: 0.355 | FG84: 0.355 | FH84: 0.355 | FI84: 0.355 | FJ84: 0.355 | FK84: 0.355 | FL84: 0.355 | FM84: 0.355 | FN84: 0.355 | FO84: 0.355 | FP84: 0.355 | FQ84: 0.355 | FR84: 0.355 | FS84: 0.34 | FT84: 0.34 | FU84: 0.34 | FV84: 0.34 | FW84: 0.34 | FX84: 0.34 | FY84: 0.34 | FZ84: 0.34 | GA84: 0.34 | GB84: 0.34 | GC84: 0.34 | GD84: 0.34 | GE84: 0.34 | GF84: 0.34 | GG84: 0.34 | GH84: 0.34 | GI84: 0.34 | GJ84: 0.34 | GK84: 0.34 | GL84: 0.34 | GM84: 0.34 | GN84: 0.34 | GO84: 0.34 | GP84: 0.34 | GQ84: 0.34 | GR84: 0.34 | GS84: 0.34 | GT84: 0.34 | GU84: 0.34 | GV84: =INDEX($H$30:$K$34,GV83,$F$28) -> 0.34 | GW84: 0.34 | GX84: 0.34 | GY84: 0.34 | GZ84: 0.34 | HA84: 0.34 | HB84: 0.34 | HC84: 0.34 | HD84: 0.34 | HE84: 0.34 | HF84: 0.34 | HG84: 0.34 | HH84: 0.34 | HI84: 0.34 | HJ84: 0.34 | HK84: 0.34 | HL84: 0.34 | HM84: 0.34 | HN84: 0.34 | HO84: 0.34 | HP84: 0.34 | HQ84: 0.34 | HR84: 0.34 | HS84: 0.34 | HT84: 0.34 | HU84: 0.34 | HV84: 0.34 | HW84: 0.34 | HX84: 0.34 | HY84: 0.34 | HZ84: 0.34 | IA84: 0.34 | IB84: 0.34 | IC84: 0.34 | ID84: 0.34 | IE84: 0.34 | IF84: 0.34 | IG84: 0.34 | IH84: 0.34 | II84: 0.34 | IJ84: 0.34 | IK84: 0.34 | IL84: 0.34 | IM84: 0.34 | IN84: 0.34 | IO84: 0.34 | IP84: 0.34 | IQ84: 0.34 | IR84: 0.34 | IS84: 0.34 | IT84: 0.34 | IU84: 0.34 | IV84: 0.34 | IW84: 0.34 | IX84: 0.34 | IY84: 0.34 | IZ84: 0.34 | JA84: 0.34 | JB84: 0.34 | JC84: 0.34 | JD84: 0.34 | JE84: 0.34 | JF84: 0.34 | JG84: 0.34 | JH84: =INDEX($H$30:$K$34,JH83,$F$28) -> 0.34 | JI84: 0.34 | JJ84: 0.34 | JK84: 0.34 | JL84: 0.34 | JM84: 0.34 | JN84: 0.34 | JO84: 0.34 | JP84: 0.34 | JQ84: 0.34 | JR84: 0.34 | JS84: 0.34 | JT84: 0.34 | JU84: 0.34 | JV84: 0.34 | JW84: 0.34 | JX84: 0.34 | JY84: 0.34 | JZ84: 0.34 | KA84: 0.34 | KB84: 0.34 | KC84: 0.34 | KD84: 0.34 | KE84: 0.34 | KF84: 0.34 | KG84: 0.34 | KH84: 0.34 | KI84: 0.34 | KJ84: 0.34 | KK84: 0.34 | KL84: 0.34 | KM84: 0.34 | KN84: 0.34 | KO84: 0.34 | KP84: 0.34 | KQ84: 0.34 | KR84: 0.34 | KS84: 0.33 | KT84: 0.33 | KU84: 0.33 | KV84: 0.33 | KW84: 0.33 | KX84: 0.33 | KY84: 0.33 | KZ84: 0.33 | LA84: 0.33 | LB84: 0.33 | LC84: 0.33 | LD84: 0.33 | LE84: 0.33 | LF84: 0.33 | LG84: 0.33 | LH84: 0.33 | LI84: 0.33 | LJ84: 0.33 | LK84: 0.33 | LL84: 0.33 | LM84: 0.33 | LN84: 0.33 | LO84: 0.33 | LP84: 0.33 | LQ84: 0.33 | LR84: 0.33 | LS84: 0.33 | LT84: =INDEX($H$30:$K$34,LT83,$F$28) -> 0.33 | LU84: 0.33 | LV84: 0.33 | LW84: 0.33 | LX84: 0.33 | LY84: 0.33 | LZ84: 0.33 | MA84: 0.33 | MB84: 0.33 | MC84: 0.33 | MD84: 0.33 | ME84: 0.33 | MF84: 0.33 | MG84: 0.33 | MH84: 0.33 | MI84: 0.33 | MJ84: 0.33 | MK84: 0.33 | ML84: 0.33 | MM84: 0.33 | MN84: 0.33 | MO84: 0.33 | MP84: 0.33 | MQ84: 0.33 | MR84: 0.33 | MS84: 0.33 | MT84: 0.33 | MU84: 0.33 | MV84: 0.33 | MW84: 0.33 | MX84: 0.33 | MY84: 0.33 | MZ84: 0.33 | NA84: 0.33 | NB84: 0.33 | NC84: 0.33 | ND84: 0.33 | NE84: 0.33 | NF84: 0.33 | NG84: 0.33 | NH84: 0.33 | NI84: 0.33 | NJ84: 0.33 | NK84: 0.33 | NL84: 0.33 | NM84: 0.33 | NN84: 0.33 | NO84: 0.33 | NP84: 0.33 | NQ84: 0.33 | NR84: 0.33 | NS84: 0.33 | NT84: 0.33 | NU84: 0.33 | NV84: 0.33 | NW84: 0.33 | NX84: 0.33 | NY84: 0.33 | NZ84: 0.33 | OA84: 0.33 | OB84: 0.33 | OC84: 0.33 | OD84: 0.33 | OE84: 0.33
C86: Generation | E86: MWH | K86: =IF(K5,K81*K84*K10) -> FALSE | L86: FALSE | M86: FALSE | N86: FALSE | O86: FALSE | P86: FALSE | Q86: FALSE | R86: FALSE | S86: FALSE | T86: FALSE | U86: FALSE | V86: FALSE | W86: FALSE | X86: FALSE | Y86: FALSE | Z86: FALSE | AA86: FALSE | AB86: FALSE | AC86: FALSE | AD86: FALSE | AE86: FALSE | AF86: FALSE | AG86: FALSE | AH86: FALSE | AI86: FALSE | AJ86: FALSE | AK86: FALSE | AL86: FALSE | AM86: FALSE | AN86: FALSE | AO86: FALSE | AP86: FALSE | AQ86: FALSE | AR86: FALSE | AS86: FALSE | AT86: FALSE | AU86: FALSE | AV86: FALSE | AW86: FALSE | AX86: FALSE | AY86: FALSE | AZ86: FALSE | BA86: FALSE | BB86: FALSE | BC86: 71280 | BD86: 73656 | BE86: 73656 | BF86: 66528 | BG86: 73656 | BH86: 71280 | BI86: 73656 | BJ86: 71280 | BK86: 73656 | BL86: 73656 | BM86: 71280 | BN86: 73656 | BO86: 75600 | BP86: 78120 | BQ86: 78120 | BR86: 73080 | BS86: 78120 | BT86: 75600 | BU86: 78120 | BV86: 75600 | BW86: =IF(BW5,BW81*BW84*BW10) -> 78120 | BX86: 78120 | BY86: 75600 | BZ86: 78120 | CA86: 75600 | CB86: 78120 | CC86: 78120 | CD86: 70560 | CE86: 78120 | CF86: 75600 | CG86: 78120 | CH86: 75600 | CI86: 78120 | CJ86: 78120 | CK86: 75600 | CL86: 78120 | CM86: 75600 | CN86: 78120 | CO86: 78120 | CP86: 70560 | CQ86: 78120 | CR86: 75600 | CS86: 78120 | CT86: 75600 | CU86: 78120 | CV86: 78120 | CW86: 75600 | CX86: 78120 | CY86: 75600 | CZ86: 78120 | DA86: 79236 | DB86: 71568 | DC86: 79236 | DD86: 76680 | DE86: 79236 | DF86: 76680 | DG86: 79236 | DH86: 79236 | DI86: 76680 | DJ86: 79236 | DK86: 76680 | DL86: 79236 | DM86: 79236 | DN86: 74124 | DO86: 79236 | DP86: 76680 | DQ86: 79236 | DR86: 76680 | DS86: 79236 | DT86: 79236 | DU86: 76680 | DV86: 79236 | DW86: 76680 | DX86: 79236 | DY86: 79236 | DZ86: 71568 | EA86: 79236 | EB86: 76680 | EC86: 79236 | ED86: 76680 | EE86: 79236 | EF86: 79236 | EG86: 76680 | EH86: 79236 | EI86: =IF(EI5,EI81*EI84*EI10) -> 76680 | EJ86: 79236 | EK86: 79236 | EL86: 71568 | EM86: 79236 | EN86: 76680 | EO86: 79236 | EP86: 76680 | EQ86: 79236 | ER86: 79236 | ES86: 76680 | ET86: 79236 | EU86: 76680 | EV86: 79236 | EW86: 79236 | EX86: 71568 | EY86: 79236 | EZ86: 76680 | FA86: 79236 | FB86: 76680 | FC86: 79236 | FD86: 79236 | FE86: 76680 | FF86: 79236 | FG86: 76680 | FH86: 79236 | FI86: 79236 | FJ86: 74124 | FK86: 79236 | FL86: 76680 | FM86: 79236 | FN86: 76680 | FO86: 79236 | FP86: 79236 | FQ86: 76680 | FR86: 79236 | FS86: 73440 | FT86: 75888 | FU86: 75888 | FV86: 68544 | FW86: 75888 | FX86: 73440 | FY86: 75888 | FZ86: 73440 | GA86: 75888 | GB86: 75888 | GC86: 73440 | GD86: 75888 | GE86: 73440 | GF86: 75888 | GG86: 75888 | GH86: 68544 | GI86: 75888 | GJ86: 73440 | GK86: 75888 | GL86: 73440 | GM86: 75888 | GN86: 75888 | GO86: 73440 | GP86: 75888 | GQ86: 73440 | GR86: 75888 | GS86: 75888 | GT86: 68544 | GU86: =IF(GU5,GU81*GU84*GU10) -> 75888 | GV86: 73440 | GW86: 75888 | GX86: 73440 | GY86: 75888 | GZ86: 75888 | HA86: 73440 | HB86: 75888 | HC86: 73440 | HD86: 75888 | HE86: 75888 | HF86: 70992 | HG86: 75888 | HH86: 73440 | HI86: 75888 | HJ86: 73440 | HK86: 75888 | HL86: 75888 | HM86: 73440 | HN86: 75888 | HO86: 73440 | HP86: 75888 | HQ86: 75888 | HR86: 68544 | HS86: 75888 | HT86: 73440 | HU86: 75888 | HV86: 73440 | HW86: 75888 | HX86: 75888 | HY86: 73440 | HZ86: 75888 | IA86: 73440 | IB86: 75888 | IC86: 75888 | ID86: 68544 | IE86: 75888 | IF86: 73440 | IG86: 75888 | IH86: 73440 | II86: 75888 | IJ86: 75888 | IK86: 73440 | IL86: 75888 | IM86: 73440 | IN86: 75888 | IO86: 75888 | IP86: 68544 | IQ86: 75888 | IR86: 73440 | IS86: 75888 | IT86: 73440 | IU86: 75888 | IV86: 75888 | IW86: 73440 | IX86: 75888 | IY86: 73440 | IZ86: 75888 | JA86: 75888 | JB86: 70992 | JC86: 75888 | JD86: 73440 | JE86: 75888 | JF86: 73440 | JG86: =IF(JG5,JG81*JG84*JG10) -> 75888 | JH86: 75888 | JI86: 73440 | JJ86: 75888 | JK86: 73440 | JL86: 75888 | JM86: 75888 | JN86: 68544 | JO86: 75888 | JP86: 73440 | JQ86: 75888 | JR86: 73440 | JS86: 75888 | JT86: 75888 | JU86: 73440 | JV86: 75888 | JW86: 73440 | JX86: 75888 | JY86: 75888 | JZ86: 68544 | KA86: 75888 | KB86: 73440 | KC86: 75888 | KD86: 73440 | KE86: 75888 | KF86: 75888 | KG86: 73440 | KH86: 75888 | KI86: 73440 | KJ86: 75888 | KK86: 75888 | KL86: 68544 | KM86: 75888 | KN86: 73440 | KO86: 75888 | KP86: 73440 | KQ86: 75888 | KR86: 75888 | KS86: 71280 | KT86: 73656 | KU86: 71280 | KV86: 73656 | KW86: 73656 | KX86: 68904 | KY86: 73656 | KZ86: 71280 | LA86: 73656 | LB86: 71280 | LC86: 73656 | LD86: 73656 | LE86: 71280 | LF86: 73656 | LG86: 71280 | LH86: 73656 | LI86: 73656 | LJ86: 66528 | LK86: 73656 | LL86: 71280 | LM86: 73656 | LN86: 71280 | LO86: 73656 | LP86: 73656 | LQ86: 71280 | LR86: 73656 | LS86: =IF(LS5,LS81*LS84*LS10) -> 71280 | LT86: 73656 | LU86: 73656 | LV86: 66528 | LW86: 73656 | LX86: 71280 | LY86: 73656 | LZ86: 71280 | MA86: 73656 | MB86: 73656 | MC86: 71280 | MD86: 73656 | ME86: 71280 | MF86: 73656 | MG86: 73656 | MH86: 66528 | MI86: 73656 | MJ86: 71280 | MK86: 73656 | ML86: 71280 | MM86: 73656 | MN86: 73656 | MO86: 71280 | MP86: 73656 | MQ86: FALSE | MR86: FALSE | MS86: FALSE | MT86: FALSE | MU86: FALSE | MV86: FALSE | MW86: FALSE | MX86: FALSE | MY86: FALSE | MZ86: FALSE | NA86: FALSE | NB86: FALSE | NC86: FALSE | ND86: FALSE | NE86: FALSE | NF86: FALSE | NG86: FALSE | NH86: FALSE | NI86: FALSE | NJ86: FALSE | NK86: FALSE | NL86: FALSE | NM86: FALSE | NN86: FALSE | NO86: FALSE | NP86: FALSE | NQ86: FALSE | NR86: FALSE | NS86: FALSE | NT86: FALSE | NU86: FALSE | NV86: FALSE | NW86: FALSE | NX86: FALSE | NY86: FALSE | NZ86: FALSE | OA86: FALSE | OB86: FALSE | OC86: FALSE | OD86: FALSE | OE86: FALSE
B88: Capital Expenditures
C89: Construction Period | K89: =J89+K4 -> 1 | L89: 2 | M89: 3 | N89: 4 | O89: 5 | P89: 6 | Q89: 7 | R89: 8 | S89: 9 | T89: 10 | U89: 11 | V89: 12 | W89: 13 | X89: 14 | Y89: 15 | Z89: 16 | AA89: 17 | AB89: 18 | AC89: 19 | AD89: 20 | AE89: 21 | AF89: 22 | AG89: 23 | AH89: 24 | AI89: 25 | AJ89: 26 | AK89: 27 | AL89: 28 | AM89: 29 | AN89: 30 | AO89: 31 | AP89: 32 | AQ89: 33 | AR89: 34 | AS89: 35 | AT89: 36 | AU89: 37 | AV89: 38 | AW89: 39 | AX89: 40 | AY89: 41 | AZ89: 42 | BA89: 43 | BB89: 44 | BC89: 44 | BD89: 44 | BE89: 44 | BF89: 44 | BG89: 44 | BH89: 44 | BI89: 44 | BJ89: 44 | BK89: 44 | BL89: 44 | BM89: 44 | BN89: 44 | BO89: 44 | BP89: 44 | BQ89: 44 | BR89: 44 | BS89: 44 | BT89: 44 | BU89: 44 | BV89: 44 | BW89: =BV89+BW4 -> 44 | BX89: 44 | BY89: 44 | BZ89: 44 | CA89: 44 | CB89: 44 | CC89: 44 | CD89: 44 | CE89: 44 | CF89: 44 | CG89: 44 | CH89: 44 | CI89: 44 | CJ89: 44 | CK89: 44 | CL89: 44 | CM89: 44 | CN89: 44 | CO89: 44 | CP89: 44 | CQ89: 44 | CR89: 44 | CS89: 44 | CT89: 44 | CU89: 44 | CV89: 44 | CW89: 44 | CX89: 44 | CY89: 44 | CZ89: 44 | DA89: 44 | DB89: 44 | DC89: 44 | DD89: 44 | DE89: 44 | DF89: 44 | DG89: 44 | DH89: 44 | DI89: 44 | DJ89: 44 | DK89: 44 | DL89: 44 | DM89: 44 | DN89: 44 | DO89: 44 | DP89: 44 | DQ89: 44 | DR89: 44 | DS89: 44 | DT89: 44 | DU89: 44 | DV89: 44 | DW89: 44 | DX89: 44 | DY89: 44 | DZ89: 44 | EA89: 44 | EB89: 44 | EC89: 44 | ED89: 44 | EE89: 44 | EF89: 44 | EG89: 44 | EH89: 44 | EI89: =EH89+EI4 -> 44 | EJ89: 44 | EK89: 44 | EL89: 44 | EM89: 44 | EN89: 44 | EO89: 44 | EP89: 44 | EQ89: 44 | ER89: 44 | ES89: 44 | ET89: 44 | EU89: 44 | EV89: 44 | EW89: 44 | EX89: 44 | EY89: 44 | EZ89: 44 | FA89: 44 | FB89: 44 | FC89: 44 | FD89: 44 | FE89: 44 | FF89: 44 | FG89: 44 | FH89: 44 | FI89: 44 | FJ89: 44 | FK89: 44 | FL89: 44 | FM89: 44 | FN89: 44 | FO89: 44 | FP89: 44 | FQ89: 44 | FR89: 44 | FS89: 44 | FT89: 44 | FU89: 44 | FV89: 44 | FW89: 44 | FX89: 44 | FY89: 44 | FZ89: 44 | GA89: 44 | GB89: 44 | GC89: 44 | GD89: 44 | GE89: 44 | GF89: 44 | GG89: 44 | GH89: 44 | GI89: 44 | GJ89: 44 | GK89: 44 | GL89: 44 | GM89: 44 | GN89: 44 | GO89: 44 | GP89: 44 | GQ89: 44 | GR89: 44 | GS89: 44 | GT89: 44 | GU89: =GT89+GU4 -> 44 | GV89: 44 | GW89: 44 | GX89: 44 | GY89: 44 | GZ89: 44 | HA89: 44 | HB89: 44 | HC89: 44 | HD89: 44 | HE89: 44 | HF89: 44 | HG89: 44 | HH89: 44 | HI89: 44 | HJ89: 44 | HK89: 44 | HL89: 44 | HM89: 44 | HN89: 44 | HO89: 44 | HP89: 44 | HQ89: 44 | HR89: 44 | HS89: 44 | HT89: 44 | HU89: 44 | HV89: 44 | HW89: 44 | HX89: 44 | HY89: 44 | HZ89: 44 | IA89: 44 | IB89: 44 | IC89: 44 | ID89: 44 | IE89: 44 | IF89: 44 | IG89: 44 | IH89: 44 | II89: 44 | IJ89: 44 | IK89: 44 | IL89: 44 | IM89: 44 | IN89: 44 | IO89: 44 | IP89: 44 | IQ89: 44 | IR89: 44 | IS89: 44 | IT89: 44 | IU89: 44 | IV89: 44 | IW89: 44 | IX89: 44 | IY89: 44 | IZ89: 44 | JA89: 44 | JB89: 44 | JC89: 44 | JD89: 44 | JE89: 44 | JF89: 44 | JG89: =JF89+JG4 -> 44 | JH89: 44 | JI89: 44 | JJ89: 44 | JK89: 44 | JL89: 44 | JM89: 44 | JN89: 44 | JO89: 44 | JP89: 44 | JQ89: 44 | JR89: 44 | JS89: 44 | JT89: 44 | JU89: 44 | JV89: 44 | JW89: 44 | JX89: 44 | JY89: 44 | JZ89: 44 | KA89: 44 | KB89: 44 | KC89: 44 | KD89: 44 | KE89: 44 | KF89: 44 | KG89: 44 | KH89: 44 | KI89: 44 | KJ89: 44 | KK89: 44 | KL89: 44 | KM89: 44 | KN89: 44 | KO89: 44 | KP89: 44 | KQ89: 44 | KR89: 44 | KS89: 44 | KT89: 44 | KU89: 44 | KV89: 44 | KW89: 44 | KX89: 44 | KY89: 44 | KZ89: 44 | LA89: 44 | LB89: 44 | LC89: 44 | LD89: 44 | LE89: 44 | LF89: 44 | LG89: 44 | LH89: 44 | LI89: 44 | LJ89: 44 | LK89: 44 | LL89: 44 | LM89: 44 | LN89: 44 | LO89: 44 | LP89: 44 | LQ89: 44 | LR89: 44 | LS89: =LR89+LS4 -> 44 | LT89: 44 | LU89: 44 | LV89: 44 | LW89: 44 | LX89: 44 | LY89: 44 | LZ89: 44 | MA89: 44 | MB89: 44 | MC89: 44 | MD89: 44 | ME89: 44 | MF89: 44 | MG89: 44 | MH89: 44 | MI89: 44 | MJ89: 44 | MK89: 44 | ML89: 44 | MM89: 44 | MN89: 44 | MO89: 44 | MP89: 44 | MQ89: 44 | MR89: 44 | MS89: 44 | MT89: 44 | MU89: 44 | MV89: 44 | MW89: 44 | MX89: 44 | MY89: 44 | MZ89: 44 | NA89: 44 | NB89: 44 | NC89: 44 | ND89: 44 | NE89: 44 | NF89: 44 | NG89: 44 | NH89: 44 | NI89: 44 | NJ89: 44 | NK89: 44 | NL89: 44 | NM89: 44 | NN89: 44 | NO89: 44 | NP89: 44 | NQ89: 44 | NR89: 44 | NS89: 44 | NT89: 44 | NU89: 44 | NV89: 44 | NW89: 44 | NX89: 44 | NY89: 44 | NZ89: 44 | OA89: 44 | OB89: 44 | OC89: 44 | OD89: 44 | OE89: 44
C90: Construction Year | K90: =ROUNDUP(K89/12,0) -> 1 | L90: =ROUNDUP(L89/12,0) -> 1 | M90: 1 | N90: 1 | O90: 1 | P90: 1 | Q90: 1 | R90: 1 | S90: 1 | T90: 1 | U90: 1 | V90: 1 | W90: 2 | X90: 2 | Y90: 2 | Z90: 2 | AA90: 2 | AB90: 2 | AC90: 2 | AD90: 2 | AE90: 2 | AF90: 2 | AG90: 2 | AH90: 2 | AI90: 3 | AJ90: 3 | AK90: 3 | AL90: 3 | AM90: 3 | AN90: 3 | AO90: 3 | AP90: 3 | AQ90: 3 | AR90: 3 | AS90: 3 | AT90: 3 | AU90: 4 | AV90: 4 | AW90: 4 | AX90: 4 | AY90: 4 | AZ90: 4 | BA90: 4 | BB90: 4 | BC90: 4 | BD90: 4 | BE90: 4 | BF90: 4 | BG90: 4 | BH90: 4 | BI90: 4 | BJ90: 4 | BK90: 4 | BL90: 4 | BM90: 4 | BN90: 4 | BO90: 4 | BP90: 4 | BQ90: 4 | BR90: 4 | BS90: 4 | BT90: 4 | BU90: 4 | BV90: 4 | BW90: 4 | BX90: =ROUNDUP(BX89/12,0) -> 4 | BY90: 4 | BZ90: 4 | CA90: 4 | CB90: 4 | CC90: 4 | CD90: 4 | CE90: 4 | CF90: 4 | CG90: 4 | CH90: 4 | CI90: 4 | CJ90: 4 | CK90: 4 | CL90: 4 | CM90: 4 | CN90: 4 | CO90: 4 | CP90: 4 | CQ90: 4 | CR90: 4 | CS90: 4 | CT90: 4 | CU90: 4 | CV90: 4 | CW90: 4 | CX90: 4 | CY90: 4 | CZ90: 4 | DA90: 4 | DB90: 4 | DC90: 4 | DD90: 4 | DE90: 4 | DF90: 4 | DG90: 4 | DH90: 4 | DI90: 4 | DJ90: 4 | DK90: 4 | DL90: 4 | DM90: 4 | DN90: 4 | DO90: 4 | DP90: 4 | DQ90: 4 | DR90: 4 | DS90: 4 | DT90: 4 | DU90: 4 | DV90: 4 | DW90: 4 | DX90: 4 | DY90: 4 | DZ90: 4 | EA90: 4 | EB90: 4 | EC90: 4 | ED90: 4 | EE90: 4 | EF90: 4 | EG90: 4 | EH90: 4 | EI90: 4 | EJ90: =ROUNDUP(EJ89/12,0) -> 4 | EK90: 4 | EL90: 4 | EM90: 4 | EN90: 4 | EO90: 4 | EP90: 4 | EQ90: 4 | ER90: 4 | ES90: 4 | ET90: 4 | EU90: 4 | EV90: 4 | EW90: 4 | EX90: 4 | EY90: 4 | EZ90: 4 | FA90: 4 | FB90: 4 | FC90: 4 | FD90: 4 | FE90: 4 | FF90: 4 | FG90: 4 | FH90: 4 | FI90: 4 | FJ90: 4 | FK90: 4 | FL90: 4 | FM90: 4 | FN90: 4 | FO90: 4 | FP90: 4 | FQ90: 4 | FR90: 4 | FS90: 4 | FT90: 4 | FU90: 4 | FV90: 4 | FW90: 4 | FX90: 4 | FY90: 4 | FZ90: 4 | GA90: 4 | GB90: 4 | GC90: 4 | GD90: 4 | GE90: 4 | GF90: 4 | GG90: 4 | GH90: 4 | GI90: 4 | GJ90: 4 | GK90: 4 | GL90: 4 | GM90: 4 | GN90: 4 | GO90: 4 | GP90: 4 | GQ90: 4 | GR90: 4 | GS90: 4 | GT90: 4 | GU90: 4 | GV90: =ROUNDUP(GV89/12,0) -> 4 | GW90: 4 | GX90: 4 | GY90: 4 | GZ90: 4 | HA90: 4 | HB90: 4 | HC90: 4 | HD90: 4 | HE90: 4 | HF90: 4 | HG90: 4 | HH90: 4 | HI90: 4 | HJ90: 4 | HK90: 4 | HL90: 4 | HM90: 4 | HN90: 4 | HO90: 4 | HP90: 4 | HQ90: 4 | HR90: 4 | HS90: 4 | HT90: 4 | HU90: 4 | HV90: 4 | HW90: 4 | HX90: 4 | HY90: 4 | HZ90: 4 | IA90: 4 | IB90: 4 | IC90: 4 | ID90: 4 | IE90: 4 | IF90: 4 | IG90: 4 | IH90: 4 | II90: 4 | IJ90: 4 | IK90: 4 | IL90: 4 | IM90: 4 | IN90: 4 | IO90: 4 | IP90: 4 | IQ90: 4 | IR90: 4 | IS90: 4 | IT90: 4 | IU90: 4 | IV90: 4 | IW90: 4 | IX90: 4 | IY90: 4 | IZ90: 4 | JA90: 4 | JB90: 4 | JC90: 4 | JD90: 4 | JE90: 4 | JF90: 4 | JG90: 4 | JH90: =ROUNDUP(JH89/12,0) -> 4 | JI90: 4 | JJ90: 4 | JK90: 4 | JL90: 4 | JM90: 4 | JN90: 4 | JO90: 4 | JP90: 4 | JQ90: 4 | JR90: 4 | JS90: 4 | JT90: 4 | JU90: 4 | JV90: 4 | JW90: 4 | JX90: 4 | JY90: 4 | JZ90: 4 | KA90: 4 | KB90: 4 | KC90: 4 | KD90: 4 | KE90: 4 | KF90: 4 | KG90: 4 | KH90: 4 | KI90: 4 | KJ90: 4 | KK90: 4 | KL90: 4 | KM90: 4 | KN90: 4 | KO90: 4 | KP90: 4 | KQ90: 4 | KR90: 4 | KS90: 4 | KT90: 4 | KU90: 4 | KV90: 4 | KW90: 4 | KX90: 4 | KY90: 4 | KZ90: 4 | LA90: 4 | LB90: 4 | LC90: 4 | LD90: 4 | LE90: 4 | LF90: 4 | LG90: 4 | LH90: 4 | LI90: 4 | LJ90: 4 | LK90: 4 | LL90: 4 | LM90: 4 | LN90: 4 | LO90: 4 | LP90: 4 | LQ90: 4 | LR90: 4 | LS90: 4 | LT90: =ROUNDUP(LT89/12,0) -> 4 | LU90: 4 | LV90: 4 | LW90: 4 | LX90: 4 | LY90: 4 | LZ90: 4 | MA90: 4 | MB90: 4 | MC90: 4 | MD90: 4 | ME90: 4 | MF90: 4 | MG90: 4 | MH90: 4 | MI90: 4 | MJ90: 4 | MK90: 4 | ML90: 4 | MM90: 4 | MN90: 4 | MO90: 4 | MP90: 4 | MQ90: 4 | MR90: 4 | MS90: 4 | MT90: 4 | MU90: 4 | MV90: 4 | MW90: 4 | MX90: 4 | MY90: 4 | MZ90: 4 | NA90: 4 | NB90: 4 | NC90: 4 | ND90: 4 | NE90: 4 | NF90: 4 | NG90: 4 | NH90: 4 | NI90: 4 | NJ90: 4 | NK90: 4 | NL90: 4 | NM90: 4 | NN90: 4 | NO90: 4 | NP90: 4 | NQ90: 4 | NR90: 4 | NS90: 4 | NT90: 4 | NU90: 4 | NV90: 4 | NW90: 4 | NX90: 4 | NY90: 4 | NZ90: 4 | OA90: 4 | OB90: 4 | OC90: 4 | OD90: 4 | OE90: 4
